{"text_format":"3","workbook":"xlsx","n_sheets":14,"sheets":["Loading","Summary","Import","Upload","CategoryTemplate","SoldToShipTo","GlobalVariables","ShipMethods","ProductLine_Style","CellStyle","CategoryList","CATEGORY","HistoryData","Instructions"],"not_rendered":{"macros":1,"defined_names":5},"read":"whole","date_system":"1900"}

{"sheet":"Loading","index":0,"n_rows":0,"n_cols":0,"rows_kept":0,"hidden":true}

{"sheet":"Summary","index":1,"n_rows":28,"n_cols":20,"rows_kept":28,"merged":[[1,4,1,16],[8,3,8,7],[10,2,10,16],[11,3,11,4],[11,5,11,6],[11,7,11,8],[11,9,11,10],[11,11,11,12],[11,13,11,14],[12,3,12,4],[12,5,12,6],[12,7,12,8],[12,9,12,10],[12,11,12,12],[12,13,12,14],[13,3,13,4],[13,5,13,6],[13,7,13,8],[13,9,13,10],[13,11,13,12],[13,13,13,14],[14,3,14,4],[14,5,14,6],[14,7,14,8],[14,9,14,10],[14,11,14,12],[14,13,14,14],[16,3,16,4],[16,5,16,6],[16,7,16,8],[16,9,16,10],[16,11,16,12],[16,13,16,14],[17,3,17,4],[17,5,17,6],[17,7,17,8],[17,9,17,10],[17,11,17,12],[17,13,17,14],[20,3,20,4],[20,5,20,6],[20,7,20,8],[20,9,20,10],[20,11,20,12],[20,13,20,14],[20,15,20,16]]}
[]
[{"$nulls":3},"Comments"]
[]
[]
[]
["Tubbs2324"," ","Tubbs 23/24"]
[]
[]
[null,null,"Enter your Account No:"]
[]
[null,null,"SHIPTO, SHIP DATE, PO# ARE REQUIRED FIELDS FOR EACH ORDER:"]
[{"$nulls":3},"Order 1",null,"Order 2",null,"Order 3",null,"Order 4",null,"Order 5",null,"Order 6"]
[null,null,"Ship To"]
[null,null,"Ship Date","2023-07-01"]
[null,null,"PO Number"]
[]
[null,null,"Deadline"]
[null,null,"Requested Delivery Date"]
[]
[null,null,"Order and Category Sub-Totals"]
[{"$nulls":3},"Order 1",null,"Order 2",null,"Order 3",null,"Order 4",null,"Order 5",null,"Order 6",null,"TOTALS",null,"Discount %","Net Total"]
[{"$nulls":3},"Units","Value","Units","Value","Units","Value","Units","Value","Units","Value","Units","Value","Units","Value","Percent","Value"]
[null,null,"Order Total",{"$f":"SUM(D24)","v":0},{"v":0,"d":"0.00"},0,{"v":0,"d":"0.00"},0,{"v":0,"d":"0.00"},0,{"v":0,"d":"0.00"},0,{"v":0,"d":"0.00"},0,{"v":0,"d":"0.00"},0,{"v":0,"d":"0.00"},null,{"$f":"Q23*(1-R23)","v":{"v":0,"d":"0.00"}},"USD"]
["U0","1","CATEGORY Total",{"$f":"SUM(D25:D28)","v":0},{"v":0,"d":"0.00"},0,{"v":0,"d":"0.00"},0,{"v":0,"d":"0.00"},0,{"v":0,"d":"0.00"},0,{"v":0,"d":"0.00"},0,{"v":0,"d":"0.00"},{"$f":"SUM(D24,F24,H24,J24,L24,N24)","v":0},{"v":0,"d":"0.00"},null,{"v":0,"d":"0.00"}]
["U","30","Snowshoe",{"$f":"CATEGORY!N95","v":0},{"$f":"SUMPRODUCT(CATEGORY!K11:K77,CATEGORY!N11:N77)","v":{"v":0,"d":"0.00"}},{"$f":"CATEGORY!O95","v":0},{"$f":"SUMPRODUCT(CATEGORY!K11:K77,CATEGORY!O11:O77)","v":{"v":0,"d":"0.00"}},{"$f":"CATEGORY!P95","v":0},{"$f":"SUMPRODUCT(CATEGORY!K11:K77,CATEGORY!P11:P77)","v":{"v":0,"d":"0.00"}},{"$f":"CATEGORY!Q95","v":0},{"$f":"SUMPRODUCT(CATEGORY!K11:K77,CATEGORY!Q11:Q77)","v":{"v":0,"d":"0.00"}},{"$f":"CATEGORY!R95","v":0},{"$f":"SUMPRODUCT(CATEGORY!K11:K77,CATEGORY!R11:R77)","v":{"v":0,"d":"0.00"}},{"$f":"CATEGORY!S95","v":0},{"$f":"SUMPRODUCT(CATEGORY!K11:K77,CATEGORY!S11:S77)","v":{"v":0,"d":"0.00"}},0,{"v":0,"d":"0.00"},null,{"v":0,"d":"0.00"}]
["U","19","Poles",{"$f":"CATEGORY!N96","v":0},{"$f":"SUMPRODUCT(CATEGORY!K78:K79,CATEGORY!N78:N79)","v":{"v":0,"d":"0.00"}},{"$f":"CATEGORY!O96","v":0},{"$f":"SUMPRODUCT(CATEGORY!K78:K79,CATEGORY!O78:O79)","v":{"v":0,"d":"0.00"}},{"$f":"CATEGORY!P96","v":0},{"$f":"SUMPRODUCT(CATEGORY!K78:K79,CATEGORY!P78:P79)","v":{"v":0,"d":"0.00"}},{"$f":"CATEGORY!Q96","v":0},{"$f":"SUMPRODUCT(CATEGORY!K78:K79,CATEGORY!Q78:Q79)","v":{"v":0,"d":"0.00"}},{"$f":"CATEGORY!R96","v":0},{"$f":"SUMPRODUCT(CATEGORY!K78:K79,CATEGORY!R78:R79)","v":{"v":0,"d":"0.00"}},{"$f":"CATEGORY!S96","v":0},{"$f":"SUMPRODUCT(CATEGORY!K78:K79,CATEGORY!S78:S79)","v":{"v":0,"d":"0.00"}},0,{"v":0,"d":"0.00"},null,{"v":0,"d":"0.00"}]
["U","15","Kits",{"$f":"CATEGORY!N97","v":0},{"$f":"SUMPRODUCT(CATEGORY!K80:K87,CATEGORY!N80:N87)","v":{"v":0,"d":"0.00"}},{"$f":"CATEGORY!O97","v":0},{"$f":"SUMPRODUCT(CATEGORY!K80:K87,CATEGORY!O80:O87)","v":{"v":0,"d":"0.00"}},{"$f":"CATEGORY!P97","v":0},{"$f":"SUMPRODUCT(CATEGORY!K80:K87,CATEGORY!P80:P87)","v":{"v":0,"d":"0.00"}},{"$f":"CATEGORY!Q97","v":0},{"$f":"SUMPRODUCT(CATEGORY!K80:K87,CATEGORY!Q80:Q87)","v":{"v":0,"d":"0.00"}},{"$f":"CATEGORY!R97","v":0},{"$f":"SUMPRODUCT(CATEGORY!K80:K87,CATEGORY!R80:R87)","v":{"v":0,"d":"0.00"}},{"$f":"CATEGORY!S97","v":0},{"$f":"SUMPRODUCT(CATEGORY!K80:K87,CATEGORY!S80:S87)","v":{"v":0,"d":"0.00"}},0,{"v":0,"d":"0.00"},null,{"v":0,"d":"0.00"}]
["U","2","Accessories",{"$f":"CATEGORY!N98","v":0},{"$f":"SUMPRODUCT(CATEGORY!K88:K93,CATEGORY!N88:N93)","v":{"v":0,"d":"0.00"}},{"$f":"CATEGORY!O98","v":0},{"$f":"SUMPRODUCT(CATEGORY!K88:K93,CATEGORY!O88:O93)","v":{"v":0,"d":"0.00"}},{"$f":"CATEGORY!P98","v":0},{"$f":"SUMPRODUCT(CATEGORY!K88:K93,CATEGORY!P88:P93)","v":{"v":0,"d":"0.00"}},{"$f":"CATEGORY!Q98","v":0},{"$f":"SUMPRODUCT(CATEGORY!K88:K93,CATEGORY!Q88:Q93)","v":{"v":0,"d":"0.00"}},{"$f":"CATEGORY!R98","v":0},{"$f":"SUMPRODUCT(CATEGORY!K88:K93,CATEGORY!R88:R93)","v":{"v":0,"d":"0.00"}},{"$f":"CATEGORY!S98","v":0},{"$f":"SUMPRODUCT(CATEGORY!K88:K93,CATEGORY!S88:S93)","v":{"v":0,"d":"0.00"}},0,{"v":0,"d":"0.00"},null,{"v":0,"d":"0.00"}]

{"sheet":"Import","index":2,"n_rows":103,"n_cols":11,"rows_kept":103,"hidden":true}
["2.0.0"]
[{"$nulls":5},"Order1","Order2","Order3","Order4","Order5","Order6"]
["Soldto",{"$nulls":4},{"$f":"Summary!D9&\"\"","v":""},{"$f":"Summary!D9&\"\"","v":""},{"$f":"Summary!D9&\"\"","v":""},{"$f":"Summary!D9&\"\"","v":""},{"$f":"Summary!D9&\"\"","v":""},{"$f":"Summary!D9&\"\"","v":""}]
["Shipto",{"$nulls":4},{"$f":"Summary!D13&\"\"","v":""},{"$f":"Summary!F13&\"\"","v":""},{"$f":"Summary!H13&\"\"","v":""},{"$f":"Summary!J13&\"\"","v":""},{"$f":"Summary!L13&\"\"","v":""},{"$f":"Summary!N13&\"\"","v":""}]
["PONumber",{"$nulls":4},{"$f":"Summary!D15&\"\"","v":""},{"$f":"Summary!F15&\"\"","v":""},{"$f":"Summary!H15&\"\"","v":""},{"$f":"Summary!J15&\"\"","v":""},{"$f":"Summary!L15&\"\"","v":""},{"$f":"Summary!N15&\"\"","v":""}]
["ShipRequiredDate",{"$nulls":4},{"$f":"Summary!D14","v":"2023-07-01"},{"$f":"Summary!F14","v":"00:00:00"},{"$f":"Summary!H14","v":"00:00:00"},{"$f":"Summary!J14","v":"00:00:00"},{"$f":"Summary!L14","v":"00:00:00"},{"$f":"Summary!N14","v":"00:00:00"}]
["ShipNotBeforeDate"]
["ShipCancelDate"]
["ShipMethod"]
{"$rows_empty":10}
["UPC","StyleNumber","StyleName","ColorCode","Size"]
["886745820246",{"$f":"CATEGORY!F11","v":"X190100101250"},{"$f":"CATEGORY!G11","v":"886745820246"},{"$f":"CATEGORY!H11","v":"MOUNTAINEER"},{"$f":"CATEGORY!I11","v":"Green (1262)"},{"$f":"+CATEGORY!N11","v":0},{"$f":"+CATEGORY!O11","v":0},{"$f":"+CATEGORY!P11","v":0},{"$f":"+CATEGORY!Q11","v":0},{"$f":"+CATEGORY!R11","v":0},{"$f":"+CATEGORY!S11","v":0}]
["886745819899",{"$f":"CATEGORY!F12","v":"X190100101300"},{"$f":"CATEGORY!G12","v":"886745819899"},{"$f":"CATEGORY!H12","v":"MOUNTAINEER"},{"$f":"CATEGORY!I12","v":"Green (1262)"},{"$f":"+CATEGORY!N12","v":0},{"$f":"+CATEGORY!O12","v":0},{"$f":"+CATEGORY!P12","v":0},{"$f":"+CATEGORY!Q12","v":0},{"$f":"+CATEGORY!R12","v":0},{"$f":"+CATEGORY!S12","v":0}]
["886745820154",{"$f":"CATEGORY!F13","v":"X190100101360"},{"$f":"CATEGORY!G13","v":"886745820154"},{"$f":"CATEGORY!H13","v":"MOUNTAINEER"},{"$f":"CATEGORY!I13","v":"Green (1262)"},{"$f":"+CATEGORY!N13","v":0},{"$f":"+CATEGORY!O13","v":0},{"$f":"+CATEGORY!P13","v":0},{"$f":"+CATEGORY!Q13","v":0},{"$f":"+CATEGORY!R13","v":0},{"$f":"+CATEGORY!S13","v":0}]
["886745820260",{"$f":"CATEGORY!F14","v":"X19010010121W"},{"$f":"CATEGORY!G14","v":"886745820260"},{"$f":"CATEGORY!H14","v":"MOUNTAINEER"},{"$f":"CATEGORY!I14","v":"Purple (1429)"},{"$f":"+CATEGORY!N14","v":0},{"$f":"+CATEGORY!O14","v":0},{"$f":"+CATEGORY!P14","v":0},{"$f":"+CATEGORY!Q14","v":0},{"$f":"+CATEGORY!R14","v":0},{"$f":"+CATEGORY!S14","v":0}]
["886745819981",{"$f":"CATEGORY!F15","v":"X19010010125W"},{"$f":"CATEGORY!G15","v":"886745819981"},{"$f":"CATEGORY!H15","v":"MOUNTAINEER"},{"$f":"CATEGORY!I15","v":"Purple (1429)"},{"$f":"+CATEGORY!N15","v":0},{"$f":"+CATEGORY!O15","v":0},{"$f":"+CATEGORY!P15","v":0},{"$f":"+CATEGORY!Q15","v":0},{"$f":"+CATEGORY!R15","v":0},{"$f":"+CATEGORY!S15","v":0}]
["886745886082",{"$f":"CATEGORY!F16","v":"X19010010130W"},{"$f":"CATEGORY!G16","v":"886745886082"},{"$f":"CATEGORY!H16","v":"MOUNTAINEER"},{"$f":"CATEGORY!I16","v":"Purple (1429)"},{"$f":"+CATEGORY!N16","v":0},{"$f":"+CATEGORY!O16","v":0},{"$f":"+CATEGORY!P16","v":0},{"$f":"+CATEGORY!Q16","v":0},{"$f":"+CATEGORY!R16","v":0},{"$f":"+CATEGORY!S16","v":0}]
["886745975083",{"$f":"CATEGORY!F17","v":"X220100201250"},{"$f":"CATEGORY!G17","v":"886745975083"},{"$f":"CATEGORY!H17","v":"FLEX VRT"},{"$f":"CATEGORY!I17","v":"Yellow (1557)"},{"$f":"+CATEGORY!N17","v":0},{"$f":"+CATEGORY!O17","v":0},{"$f":"+CATEGORY!P17","v":0},{"$f":"+CATEGORY!Q17","v":0},{"$f":"+CATEGORY!R17","v":0},{"$f":"+CATEGORY!S17","v":0}]
["886745975748",{"$f":"CATEGORY!F18","v":"X220100201290"},{"$f":"CATEGORY!G18","v":"886745975748"},{"$f":"CATEGORY!H18","v":"FLEX VRT"},{"$f":"CATEGORY!I18","v":"Yellow (1557)"},{"$f":"+CATEGORY!N18","v":0},{"$f":"+CATEGORY!O18","v":0},{"$f":"+CATEGORY!P18","v":0},{"$f":"+CATEGORY!Q18","v":0},{"$f":"+CATEGORY!R18","v":0},{"$f":"+CATEGORY!S18","v":0}]
["886745975304",{"$f":"CATEGORY!F19","v":"X22010030121W"},{"$f":"CATEGORY!G19","v":"886745975304"},{"$f":"CATEGORY!H19","v":"FLEX VRT"},{"$f":"CATEGORY!I19","v":"Coral (1176)"},{"$f":"+CATEGORY!N19","v":0},{"$f":"+CATEGORY!O19","v":0},{"$f":"+CATEGORY!P19","v":0},{"$f":"+CATEGORY!Q19","v":0},{"$f":"+CATEGORY!R19","v":0},{"$f":"+CATEGORY!S19","v":0}]
["886745974130",{"$f":"CATEGORY!F20","v":"X22010030125W"},{"$f":"CATEGORY!G20","v":"886745974130"},{"$f":"CATEGORY!H20","v":"FLEX VRT"},{"$f":"CATEGORY!I20","v":"Coral (1176)"},{"$f":"+CATEGORY!N20","v":0},{"$f":"+CATEGORY!O20","v":0},{"$f":"+CATEGORY!P20","v":0},{"$f":"+CATEGORY!Q20","v":0},{"$f":"+CATEGORY!R20","v":0},{"$f":"+CATEGORY!S20","v":0}]
["886745974628",{"$f":"CATEGORY!F21","v":"X220100401250"},{"$f":"CATEGORY!G21","v":"886745974628"},{"$f":"CATEGORY!H21","v":"FLEX ALP"},{"$f":"CATEGORY!I21","v":"White (1532)"},{"$f":"+CATEGORY!N21","v":0},{"$f":"+CATEGORY!O21","v":0},{"$f":"+CATEGORY!P21","v":0},{"$f":"+CATEGORY!Q21","v":0},{"$f":"+CATEGORY!R21","v":0},{"$f":"+CATEGORY!S21","v":0}]
["886745975687",{"$f":"CATEGORY!F22","v":"X220100401290"},{"$f":"CATEGORY!G22","v":"886745975687"},{"$f":"CATEGORY!H22","v":"FLEX ALP"},{"$f":"CATEGORY!I22","v":"White (1532)"},{"$f":"+CATEGORY!N22","v":0},{"$f":"+CATEGORY!O22","v":0},{"$f":"+CATEGORY!P22","v":0},{"$f":"+CATEGORY!Q22","v":0},{"$f":"+CATEGORY!R22","v":0},{"$f":"+CATEGORY!S22","v":0}]
["886745974444",{"$f":"CATEGORY!F23","v":"X22010050121W"},{"$f":"CATEGORY!G23","v":"886745974444"},{"$f":"CATEGORY!H23","v":"FLEX ALP"},{"$f":"CATEGORY!I23","v":"Lime Green (1333)"},{"$f":"+CATEGORY!N23","v":0},{"$f":"+CATEGORY!O23","v":0},{"$f":"+CATEGORY!P23","v":0},{"$f":"+CATEGORY!Q23","v":0},{"$f":"+CATEGORY!R23","v":0},{"$f":"+CATEGORY!S23","v":0}]
["886745974765",{"$f":"CATEGORY!F24","v":"X22010050125W"},{"$f":"CATEGORY!G24","v":"886745974765"},{"$f":"CATEGORY!H24","v":"FLEX ALP"},{"$f":"CATEGORY!I24","v":"Lime Green (1333)"},{"$f":"+CATEGORY!N24","v":0},{"$f":"+CATEGORY!O24","v":0},{"$f":"+CATEGORY!P24","v":0},{"$f":"+CATEGORY!Q24","v":0},{"$f":"+CATEGORY!R24","v":0},{"$f":"+CATEGORY!S24","v":0}]
["886745780175",{"$f":"CATEGORY!F25","v":"X180101501250"},{"$f":"CATEGORY!G25","v":"886745780175"},{"$f":"CATEGORY!H25","v":"PANORAMIC"},{"$f":"CATEGORY!I25","v":"Black/Red (1044)"},{"$f":"+CATEGORY!N25","v":0},{"$f":"+CATEGORY!O25","v":0},{"$f":"+CATEGORY!P25","v":0},{"$f":"+CATEGORY!Q25","v":0},{"$f":"+CATEGORY!R25","v":0},{"$f":"+CATEGORY!S25","v":0}]
["886745780205",{"$f":"CATEGORY!F26","v":"X180101501300"},{"$f":"CATEGORY!G26","v":"886745780205"},{"$f":"CATEGORY!H26","v":"PANORAMIC"},{"$f":"CATEGORY!I26","v":"Black/Red (1044)"},{"$f":"+CATEGORY!N26","v":0},{"$f":"+CATEGORY!O26","v":0},{"$f":"+CATEGORY!P26","v":0},{"$f":"+CATEGORY!Q26","v":0},{"$f":"+CATEGORY!R26","v":0},{"$f":"+CATEGORY!S26","v":0}]
["886745780083",{"$f":"CATEGORY!F27","v":"X180101501360"},{"$f":"CATEGORY!G27","v":"886745780083"},{"$f":"CATEGORY!H27","v":"PANORAMIC"},{"$f":"CATEGORY!I27","v":"Black/Red (1044)"},{"$f":"+CATEGORY!N27","v":0},{"$f":"+CATEGORY!O27","v":0},{"$f":"+CATEGORY!P27","v":0},{"$f":"+CATEGORY!Q27","v":0},{"$f":"+CATEGORY!R27","v":0},{"$f":"+CATEGORY!S27","v":0}]
["886745780267",{"$f":"CATEGORY!F28","v":"X18010150121W"},{"$f":"CATEGORY!G28","v":"886745780267"},{"$f":"CATEGORY!H28","v":"PANORAMIC"},{"$f":"CATEGORY!I28","v":"Grey/Ice Blue (1276)"},{"$f":"+CATEGORY!N28","v":0},{"$f":"+CATEGORY!O28","v":0},{"$f":"+CATEGORY!P28","v":0},{"$f":"+CATEGORY!Q28","v":0},{"$f":"+CATEGORY!R28","v":0},{"$f":"+CATEGORY!S28","v":0}]
["886745779988",{"$f":"CATEGORY!F29","v":"X18010150125W"},{"$f":"CATEGORY!G29","v":"886745779988"},{"$f":"CATEGORY!H29","v":"PANORAMIC"},{"$f":"CATEGORY!I29","v":"Grey/Ice Blue (1276)"},{"$f":"+CATEGORY!N29","v":0},{"$f":"+CATEGORY!O29","v":0},{"$f":"+CATEGORY!P29","v":0},{"$f":"+CATEGORY!Q29","v":0},{"$f":"+CATEGORY!R29","v":0},{"$f":"+CATEGORY!S29","v":0}]
["886745886174",{"$f":"CATEGORY!F30","v":"X18010150130W"},{"$f":"CATEGORY!G30","v":"886745886174"},{"$f":"CATEGORY!H30","v":"PANORAMIC"},{"$f":"CATEGORY!I30","v":"Grey/Ice Blue (1276)"},{"$f":"+CATEGORY!N30","v":0},{"$f":"+CATEGORY!O30","v":0},{"$f":"+CATEGORY!P30","v":0},{"$f":"+CATEGORY!Q30","v":0},{"$f":"+CATEGORY!R30","v":0},{"$f":"+CATEGORY!S30","v":0}]
["886745975724",{"$f":"CATEGORY!F31","v":"X220100801250"},{"$f":"CATEGORY!G31","v":"886745975724"},{"$f":"CATEGORY!H31","v":"WILDERNESS"},{"$f":"CATEGORY!I31","v":"Black (1013)"},{"$f":"+CATEGORY!N31","v":0},{"$f":"+CATEGORY!O31","v":0},{"$f":"+CATEGORY!P31","v":0},{"$f":"+CATEGORY!Q31","v":0},{"$f":"+CATEGORY!R31","v":0},{"$f":"+CATEGORY!S31","v":0}]
["886745975113",{"$f":"CATEGORY!F32","v":"X220100801300"},{"$f":"CATEGORY!G32","v":"886745975113"},{"$f":"CATEGORY!H32","v":"WILDERNESS"},{"$f":"CATEGORY!I32","v":"Black (1013)"},{"$f":"+CATEGORY!N32","v":0},{"$f":"+CATEGORY!O32","v":0},{"$f":"+CATEGORY!P32","v":0},{"$f":"+CATEGORY!Q32","v":0},{"$f":"+CATEGORY!R32","v":0},{"$f":"+CATEGORY!S32","v":0}]
["886745974871",{"$f":"CATEGORY!F33","v":"X220100801360"},{"$f":"CATEGORY!G33","v":"886745974871"},{"$f":"CATEGORY!H33","v":"WILDERNESS"},{"$f":"CATEGORY!I33","v":"Black (1013)"},{"$f":"+CATEGORY!N33","v":0},{"$f":"+CATEGORY!O33","v":0},{"$f":"+CATEGORY!P33","v":0},{"$f":"+CATEGORY!Q33","v":0},{"$f":"+CATEGORY!R33","v":0},{"$f":"+CATEGORY!S33","v":0}]
["886745974550",{"$f":"CATEGORY!F34","v":"X220100802250"},{"$f":"CATEGORY!G34","v":"886745974550"},{"$f":"CATEGORY!H34","v":"WILDERNESS"},{"$f":"CATEGORY!I34","v":"Blue (1119)"},{"$f":"+CATEGORY!N34","v":0},{"$f":"+CATEGORY!O34","v":0},{"$f":"+CATEGORY!P34","v":0},{"$f":"+CATEGORY!Q34","v":0},{"$f":"+CATEGORY!R34","v":0},{"$f":"+CATEGORY!S34","v":0}]
["886745975632",{"$f":"CATEGORY!F35","v":"X220100802300"},{"$f":"CATEGORY!G35","v":"886745975632"},{"$f":"CATEGORY!H35","v":"WILDERNESS"},{"$f":"CATEGORY!I35","v":"Blue (1119)"},{"$f":"+CATEGORY!N35","v":0},{"$f":"+CATEGORY!O35","v":0},{"$f":"+CATEGORY!P35","v":0},{"$f":"+CATEGORY!Q35","v":0},{"$f":"+CATEGORY!R35","v":0},{"$f":"+CATEGORY!S35","v":0}]
["886745975885",{"$f":"CATEGORY!F36","v":"X220100802360"},{"$f":"CATEGORY!G36","v":"886745975885"},{"$f":"CATEGORY!H36","v":"WILDERNESS"},{"$f":"CATEGORY!I36","v":"Blue (1119)"},{"$f":"+CATEGORY!N36","v":0},{"$f":"+CATEGORY!O36","v":0},{"$f":"+CATEGORY!P36","v":0},{"$f":"+CATEGORY!Q36","v":0},{"$f":"+CATEGORY!R36","v":0},{"$f":"+CATEGORY!S36","v":0}]
["886745975977",{"$f":"CATEGORY!F37","v":"X22010090121W"},{"$f":"CATEGORY!G37","v":"886745975977"},{"$f":"CATEGORY!H37","v":"WILDERNESS"},{"$f":"CATEGORY!I37","v":"No Color (1398)"},{"$f":"+CATEGORY!N37","v":0},{"$f":"+CATEGORY!O37","v":0},{"$f":"+CATEGORY!P37","v":0},{"$f":"+CATEGORY!Q37","v":0},{"$f":"+CATEGORY!R37","v":0},{"$f":"+CATEGORY!S37","v":0}]
["886745975779",{"$f":"CATEGORY!F38","v":"X22010090125W"},{"$f":"CATEGORY!G38","v":"886745975779"},{"$f":"CATEGORY!H38","v":"WILDERNESS"},{"$f":"CATEGORY!I38","v":"No Color (1398)"},{"$f":"+CATEGORY!N38","v":0},{"$f":"+CATEGORY!O38","v":0},{"$f":"+CATEGORY!P38","v":0},{"$f":"+CATEGORY!Q38","v":0},{"$f":"+CATEGORY!R38","v":0},{"$f":"+CATEGORY!S38","v":0}]
["886745974260",{"$f":"CATEGORY!F39","v":"X22010090130W"},{"$f":"CATEGORY!G39","v":"886745974260"},{"$f":"CATEGORY!H39","v":"WILDERNESS"},{"$f":"CATEGORY!I39","v":"No Color (1398)"},{"$f":"+CATEGORY!N39","v":0},{"$f":"+CATEGORY!O39","v":0},{"$f":"+CATEGORY!P39","v":0},{"$f":"+CATEGORY!Q39","v":0},{"$f":"+CATEGORY!R39","v":0},{"$f":"+CATEGORY!S39","v":0}]
["886745780397",{"$f":"CATEGORY!F40","v":"X180102001240"},{"$f":"CATEGORY!G40","v":"886745780397"},{"$f":"CATEGORY!H40","v":"FLEX RDG"},{"$f":"CATEGORY!I40","v":"Black/Green (1018)"},{"$f":"+CATEGORY!N40","v":0},{"$f":"+CATEGORY!O40","v":0},{"$f":"+CATEGORY!P40","v":0},{"$f":"+CATEGORY!Q40","v":0},{"$f":"+CATEGORY!R40","v":0},{"$f":"+CATEGORY!S40","v":0}]
["886745779971",{"$f":"CATEGORY!F41","v":"X18010200122W"},{"$f":"CATEGORY!G41","v":"886745779971"},{"$f":"CATEGORY!H41","v":"FLEX RDG"},{"$f":"CATEGORY!I41","v":"Black/Blue (1028)"},{"$f":"+CATEGORY!N41","v":0},{"$f":"+CATEGORY!O41","v":0},{"$f":"+CATEGORY!P41","v":0},{"$f":"+CATEGORY!Q41","v":0},{"$f":"+CATEGORY!R41","v":0},{"$f":"+CATEGORY!S41","v":0}]
["886745974987",{"$f":"CATEGORY!F42","v":"X220100601240"},{"$f":"CATEGORY!G42","v":"886745974987"},{"$f":"CATEGORY!H42","v":"FLEX TRK"},{"$f":"CATEGORY!I42","v":"No Color (1398)"},{"$f":"+CATEGORY!N42","v":0},{"$f":"+CATEGORY!O42","v":0},{"$f":"+CATEGORY!P42","v":0},{"$f":"+CATEGORY!Q42","v":0},{"$f":"+CATEGORY!R42","v":0},{"$f":"+CATEGORY!S42","v":0}]
["886745974772",{"$f":"CATEGORY!F43","v":"X22010070122W"},{"$f":"CATEGORY!G43","v":"886745974772"},{"$f":"CATEGORY!H43","v":"FLEX TRK"},{"$f":"CATEGORY!I43","v":"Khaki (1317)"},{"$f":"+CATEGORY!N43","v":0},{"$f":"+CATEGORY!O43","v":0},{"$f":"+CATEGORY!P43","v":0},{"$f":"+CATEGORY!Q43","v":0},{"$f":"+CATEGORY!R43","v":0},{"$f":"+CATEGORY!S43","v":0}]
["886745883111",{"$f":"CATEGORY!F44","v":"X200100401250"},{"$f":"CATEGORY!G44","v":"886745883111"},{"$f":"CATEGORY!H44","v":"WAYFINDER"},{"$f":"CATEGORY!I44","v":"Red/Black (1450)"},{"$f":"+CATEGORY!N44","v":0},{"$f":"+CATEGORY!O44","v":0},{"$f":"+CATEGORY!P44","v":0},{"$f":"+CATEGORY!Q44","v":0},{"$f":"+CATEGORY!R44","v":0},{"$f":"+CATEGORY!S44","v":0}]
["886745882978",{"$f":"CATEGORY!F45","v":"X200100401300"},{"$f":"CATEGORY!G45","v":"886745882978"},{"$f":"CATEGORY!H45","v":"WAYFINDER"},{"$f":"CATEGORY!I45","v":"Red/Black (1450)"},{"$f":"+CATEGORY!N45","v":0},{"$f":"+CATEGORY!O45","v":0},{"$f":"+CATEGORY!P45","v":0},{"$f":"+CATEGORY!Q45","v":0},{"$f":"+CATEGORY!R45","v":0},{"$f":"+CATEGORY!S45","v":0}]
["886745884118",{"$f":"CATEGORY!F46","v":"X200100401360"},{"$f":"CATEGORY!G46","v":"886745884118"},{"$f":"CATEGORY!H46","v":"WAYFINDER"},{"$f":"CATEGORY!I46","v":"Red/Black (1450)"},{"$f":"+CATEGORY!N46","v":0},{"$f":"+CATEGORY!O46","v":0},{"$f":"+CATEGORY!P46","v":0},{"$f":"+CATEGORY!Q46","v":0},{"$f":"+CATEGORY!R46","v":0},{"$f":"+CATEGORY!S46","v":0}]
["886745884040",{"$f":"CATEGORY!F47","v":"X20010040121W"},{"$f":"CATEGORY!G47","v":"886745884040"},{"$f":"CATEGORY!H47","v":"WAYFINDER"},{"$f":"CATEGORY!I47","v":"Purple (1429)"},{"$f":"+CATEGORY!N47","v":0},{"$f":"+CATEGORY!O47","v":0},{"$f":"+CATEGORY!P47","v":0},{"$f":"+CATEGORY!Q47","v":0},{"$f":"+CATEGORY!R47","v":0},{"$f":"+CATEGORY!S47","v":0}]
["886745884064",{"$f":"CATEGORY!F48","v":"X20010040125W"},{"$f":"CATEGORY!G48","v":"886745884064"},{"$f":"CATEGORY!H48","v":"WAYFINDER"},{"$f":"CATEGORY!I48","v":"Purple (1429)"},{"$f":"+CATEGORY!N48","v":0},{"$f":"+CATEGORY!O48","v":0},{"$f":"+CATEGORY!P48","v":0},{"$f":"+CATEGORY!Q48","v":0},{"$f":"+CATEGORY!R48","v":0},{"$f":"+CATEGORY!S48","v":0}]
["196222143288",{"$f":"CATEGORY!F49","v":"X230100501250"},{"$f":"CATEGORY!G49","v":"196222143288"},{"$f":"CATEGORY!H49","v":"FRONTIER"},{"$f":"CATEGORY!I49","v":"Black (1013)"},{"$f":"+CATEGORY!N49","v":0},{"$f":"+CATEGORY!O49","v":0},{"$f":"+CATEGORY!P49","v":0},{"$f":"+CATEGORY!Q49","v":0},{"$f":"+CATEGORY!R49","v":0},{"$f":"+CATEGORY!S49","v":0}]
["196222143202",{"$f":"CATEGORY!F50","v":"X230100501300"},{"$f":"CATEGORY!G50","v":"196222143202"},{"$f":"CATEGORY!H50","v":"FRONTIER"},{"$f":"CATEGORY!I50","v":"Black (1013)"},{"$f":"+CATEGORY!N50","v":0},{"$f":"+CATEGORY!O50","v":0},{"$f":"+CATEGORY!P50","v":0},{"$f":"+CATEGORY!Q50","v":0},{"$f":"+CATEGORY!R50","v":0},{"$f":"+CATEGORY!S50","v":0}]
["196222140911",{"$f":"CATEGORY!F51","v":"X230100501360"},{"$f":"CATEGORY!G51","v":"196222140911"},{"$f":"CATEGORY!H51","v":"FRONTIER"},{"$f":"CATEGORY!I51","v":"Black (1013)"},{"$f":"+CATEGORY!N51","v":0},{"$f":"+CATEGORY!O51","v":0},{"$f":"+CATEGORY!P51","v":0},{"$f":"+CATEGORY!Q51","v":0},{"$f":"+CATEGORY!R51","v":0},{"$f":"+CATEGORY!S51","v":0}]
["196222143752",{"$f":"CATEGORY!F52","v":"X23010060121W"},{"$f":"CATEGORY!G52","v":"196222143752"},{"$f":"CATEGORY!H52","v":"FRONTIER"},{"$f":"CATEGORY!I52","v":"Gray (1238)"},{"$f":"+CATEGORY!N52","v":0},{"$f":"+CATEGORY!O52","v":0},{"$f":"+CATEGORY!P52","v":0},{"$f":"+CATEGORY!Q52","v":0},{"$f":"+CATEGORY!R52","v":0},{"$f":"+CATEGORY!S52","v":0}]
["196222141734",{"$f":"CATEGORY!F53","v":"X23010060125W"},{"$f":"CATEGORY!G53","v":"196222141734"},{"$f":"CATEGORY!H53","v":"FRONTIER"},{"$f":"CATEGORY!I53","v":"Gray (1238)"},{"$f":"+CATEGORY!N53","v":0},{"$f":"+CATEGORY!O53","v":0},{"$f":"+CATEGORY!P53","v":0},{"$f":"+CATEGORY!Q53","v":0},{"$f":"+CATEGORY!R53","v":0},{"$f":"+CATEGORY!S53","v":0}]
["196222140706",{"$f":"CATEGORY!F54","v":"X23010060130W"},{"$f":"CATEGORY!G54","v":"196222140706"},{"$f":"CATEGORY!H54","v":"FRONTIER"},{"$f":"CATEGORY!I54","v":"Gray (1238)"},{"$f":"+CATEGORY!N54","v":0},{"$f":"+CATEGORY!O54","v":0},{"$f":"+CATEGORY!P54","v":0},{"$f":"+CATEGORY!Q54","v":0},{"$f":"+CATEGORY!R54","v":0},{"$f":"+CATEGORY!S54","v":0}]
["886745819967",{"$f":"CATEGORY!F55","v":"X190100201250"},{"$f":"CATEGORY!G55","v":"886745819967"},{"$f":"CATEGORY!H55","v":"XPLORE"},{"$f":"CATEGORY!I55","v":"Silver/Blue (1481)"},{"$f":"+CATEGORY!N55","v":0},{"$f":"+CATEGORY!O55","v":0},{"$f":"+CATEGORY!P55","v":0},{"$f":"+CATEGORY!Q55","v":0},{"$f":"+CATEGORY!R55","v":0},{"$f":"+CATEGORY!S55","v":0}]
["886745819875",{"$f":"CATEGORY!F56","v":"X190100201300"},{"$f":"CATEGORY!G56","v":"886745819875"},{"$f":"CATEGORY!H56","v":"XPLORE"},{"$f":"CATEGORY!I56","v":"Silver/Blue (1481)"},{"$f":"+CATEGORY!N56","v":0},{"$f":"+CATEGORY!O56","v":0},{"$f":"+CATEGORY!P56","v":0},{"$f":"+CATEGORY!Q56","v":0},{"$f":"+CATEGORY!R56","v":0},{"$f":"+CATEGORY!S56","v":0}]
["886745820086",{"$f":"CATEGORY!F57","v":"X19010020121W"},{"$f":"CATEGORY!G57","v":"886745820086"},{"$f":"CATEGORY!H57","v":"XPLORE"},{"$f":"CATEGORY!I57","v":"Rasberry Red (1443)"},{"$f":"+CATEGORY!N57","v":0},{"$f":"+CATEGORY!O57","v":0},{"$f":"+CATEGORY!P57","v":0},{"$f":"+CATEGORY!Q57","v":0},{"$f":"+CATEGORY!R57","v":0},{"$f":"+CATEGORY!S57","v":0}]
["886745819882",{"$f":"CATEGORY!F58","v":"X19010020125W"},{"$f":"CATEGORY!G58","v":"886745819882"},{"$f":"CATEGORY!H58","v":"XPLORE"},{"$f":"CATEGORY!I58","v":"Rasberry Red (1443)"},{"$f":"+CATEGORY!N58","v":0},{"$f":"+CATEGORY!O58","v":0},{"$f":"+CATEGORY!P58","v":0},{"$f":"+CATEGORY!Q58","v":0},{"$f":"+CATEGORY!R58","v":0},{"$f":"+CATEGORY!S58","v":0}]
["886745700876",{"$f":"CATEGORY!F59","v":"X170100201240"},{"$f":"CATEGORY!G59","v":"886745700876"},{"$f":"CATEGORY!H59","v":"FLEX ESC 24"},{"$f":"CATEGORY!I59","v":"Cyan/Black (1184)"},{"$f":"+CATEGORY!N59","v":0},{"$f":"+CATEGORY!O59","v":0},{"$f":"+CATEGORY!P59","v":0},{"$f":"+CATEGORY!Q59","v":0},{"$f":"+CATEGORY!R59","v":0},{"$f":"+CATEGORY!S59","v":0}]
["886745838258",{"$f":"CATEGORY!F60","v":"X1901010018"},{"$f":"CATEGORY!G60","v":"886745838258"},{"$f":"CATEGORY!H60","v":"FLEX ESC XL"},{"$f":"CATEGORY!I60","v":"Cyan/Black (1184)"},{"$f":"+CATEGORY!N60","v":0},{"$f":"+CATEGORY!O60","v":0},{"$f":"+CATEGORY!P60","v":0},{"$f":"+CATEGORY!Q60","v":0},{"$f":"+CATEGORY!R60","v":0},{"$f":"+CATEGORY!S60","v":0}]
["886745696551",{"$f":"CATEGORY!F61","v":"X170100101220"},{"$f":"CATEGORY!G61","v":"886745696551"},{"$f":"CATEGORY!H61","v":"FLEX ESC 22 W"},{"$f":"CATEGORY!I61","v":"Cyan/Black (1184)"},{"$f":"+CATEGORY!N61","v":0},{"$f":"+CATEGORY!O61","v":0},{"$f":"+CATEGORY!P61","v":0},{"$f":"+CATEGORY!Q61","v":0},{"$f":"+CATEGORY!R61","v":0},{"$f":"+CATEGORY!S61","v":0}]
["886745698302",{"$f":"CATEGORY!F62","v":"X170101301240"},{"$f":"CATEGORY!G62","v":"886745698302"},{"$f":"CATEGORY!H62","v":"FLEX STP 24"},{"$f":"CATEGORY!I62","v":"Black/Red (1044)"},{"$f":"+CATEGORY!N62","v":0},{"$f":"+CATEGORY!O62","v":0},{"$f":"+CATEGORY!P62","v":0},{"$f":"+CATEGORY!Q62","v":0},{"$f":"+CATEGORY!R62","v":0},{"$f":"+CATEGORY!S62","v":0}]
["886745838333",{"$f":"CATEGORY!F63","v":"X1901009018"},{"$f":"CATEGORY!G63","v":"886745838333"},{"$f":"CATEGORY!H63","v":"FLEX STP XL"},{"$f":"CATEGORY!I63","v":"Black/Red (1044)"},{"$f":"+CATEGORY!N63","v":0},{"$f":"+CATEGORY!O63","v":0},{"$f":"+CATEGORY!P63","v":0},{"$f":"+CATEGORY!Q63","v":0},{"$f":"+CATEGORY!R63","v":0},{"$f":"+CATEGORY!S63","v":0}]
["886745697169",{"$f":"CATEGORY!F64","v":"X170101201220"},{"$f":"CATEGORY!G64","v":"886745697169"},{"$f":"CATEGORY!H64","v":"FLEX STP 22 W"},{"$f":"CATEGORY!I64","v":"Black/Teal (1047)"},{"$f":"+CATEGORY!N64","v":0},{"$f":"+CATEGORY!O64","v":0},{"$f":"+CATEGORY!P64","v":0},{"$f":"+CATEGORY!Q64","v":0},{"$f":"+CATEGORY!R64","v":0},{"$f":"+CATEGORY!S64","v":0}]
["196222145084",{"$f":"CATEGORY!F65","v":"X230101201170"},{"$f":"CATEGORY!G65","v":"196222145084"},{"$f":"CATEGORY!H65","v":"ECLIPSE"},{"$f":"CATEGORY!I65","v":"Black (1013)"},{"$f":"+CATEGORY!N65","v":0},{"$f":"+CATEGORY!O65","v":0},{"$f":"+CATEGORY!P65","v":0},{"$f":"+CATEGORY!Q65","v":0},{"$f":"+CATEGORY!R65","v":0},{"$f":"+CATEGORY!S65","v":0}]
["196222145060",{"$f":"CATEGORY!F66","v":"X230101201210"},{"$f":"CATEGORY!G66","v":"196222145060"},{"$f":"CATEGORY!H66","v":"ECLIPSE"},{"$f":"CATEGORY!I66","v":"Black (1013)"},{"$f":"+CATEGORY!N66","v":0},{"$f":"+CATEGORY!O66","v":0},{"$f":"+CATEGORY!P66","v":0},{"$f":"+CATEGORY!Q66","v":0},{"$f":"+CATEGORY!R66","v":0},{"$f":"+CATEGORY!S66","v":0}]
["196222145039",{"$f":"CATEGORY!F67","v":"X230101201250"},{"$f":"CATEGORY!G67","v":"196222145039"},{"$f":"CATEGORY!H67","v":"ECLIPSE"},{"$f":"CATEGORY!I67","v":"Black (1013)"},{"$f":"+CATEGORY!N67","v":0},{"$f":"+CATEGORY!O67","v":0},{"$f":"+CATEGORY!P67","v":0},{"$f":"+CATEGORY!Q67","v":0},{"$f":"+CATEGORY!R67","v":0},{"$f":"+CATEGORY!S67","v":0}]
["196222145350",{"$f":"CATEGORY!F68","v":"X230101202210"},{"$f":"CATEGORY!G68","v":"196222145350"},{"$f":"CATEGORY!H68","v":"ECLIPSE"},{"$f":"CATEGORY!I68","v":"Blue (1119)"},{"$f":"+CATEGORY!N68","v":0},{"$f":"+CATEGORY!O68","v":0},{"$f":"+CATEGORY!P68","v":0},{"$f":"+CATEGORY!Q68","v":0},{"$f":"+CATEGORY!R68","v":0},{"$f":"+CATEGORY!S68","v":0}]
["196222145329",{"$f":"CATEGORY!F69","v":"X230101202250"},{"$f":"CATEGORY!G69","v":"196222145329"},{"$f":"CATEGORY!H69","v":"ECLIPSE"},{"$f":"CATEGORY!I69","v":"Blue (1119)"},{"$f":"+CATEGORY!N69","v":0},{"$f":"+CATEGORY!O69","v":0},{"$f":"+CATEGORY!P69","v":0},{"$f":"+CATEGORY!Q69","v":0},{"$f":"+CATEGORY!R69","v":0},{"$f":"+CATEGORY!S69","v":0}]
["886745975205",{"$f":"CATEGORY!F70","v":"X220101201220"},{"$f":"CATEGORY!G70","v":"886745975205"},{"$f":"CATEGORY!H70","v":"FLEX HKE"},{"$f":"CATEGORY!I70","v":"No Color (1398)"},{"$f":"+CATEGORY!N70","v":0},{"$f":"+CATEGORY!O70","v":0},{"$f":"+CATEGORY!P70","v":0},{"$f":"+CATEGORY!Q70","v":0},{"$f":"+CATEGORY!R70","v":0},{"$f":"+CATEGORY!S70","v":0}]
["886745975403",{"$f":"CATEGORY!F71","v":"X220101301210"},{"$f":"CATEGORY!G71","v":"886745975403"},{"$f":"CATEGORY!H71","v":"GLACIER"},{"$f":"CATEGORY!I71","v":"No Color (1398)"},{"$f":"+CATEGORY!N71","v":0},{"$f":"+CATEGORY!O71","v":0},{"$f":"+CATEGORY!P71","v":0},{"$f":"+CATEGORY!Q71","v":0},{"$f":"+CATEGORY!R71","v":0},{"$f":"+CATEGORY!S71","v":0}]
["886745780182",{"$f":"CATEGORY!F72","v":"X180102101190"},{"$f":"CATEGORY!G72","v":"886745780182"},{"$f":"CATEGORY!H72","v":"STORM"},{"$f":"CATEGORY!I72","v":"Teal (1501)"},{"$f":"+CATEGORY!N72","v":0},{"$f":"+CATEGORY!O72","v":0},{"$f":"+CATEGORY!P72","v":0},{"$f":"+CATEGORY!Q72","v":0},{"$f":"+CATEGORY!R72","v":0},{"$f":"+CATEGORY!S72","v":0}]
["886745837251",{"$f":"CATEGORY!F73","v":"X1901008010"},{"$f":"CATEGORY!G73","v":"886745837251"},{"$f":"CATEGORY!H73","v":"STORM"},{"$f":"CATEGORY!I73","v":"Purple (1429)"},{"$f":"+CATEGORY!N73","v":0},{"$f":"+CATEGORY!O73","v":0},{"$f":"+CATEGORY!P73","v":0},{"$f":"+CATEGORY!Q73","v":0},{"$f":"+CATEGORY!R73","v":0},{"$f":"+CATEGORY!S73","v":0}]
["886745169901",{"$f":"CATEGORY!F74","v":"X130101001170"},{"$f":"CATEGORY!G74","v":"886745169901"},{"$f":"CATEGORY!H74","v":"FLEX JR"},{"$f":"CATEGORY!I74","v":"Cyan/Black (1184)"},{"$f":"+CATEGORY!N74","v":0},{"$f":"+CATEGORY!O74","v":0},{"$f":"+CATEGORY!P74","v":0},{"$f":"+CATEGORY!Q74","v":0},{"$f":"+CATEGORY!R74","v":0},{"$f":"+CATEGORY!S74","v":0}]
["886745300298",{"$f":"CATEGORY!F75","v":"X140101001160"},{"$f":"CATEGORY!G75","v":"886745300298"},{"$f":"CATEGORY!H75","v":"SNOWGLOW"},{"$f":"CATEGORY!I75","v":"Pearl/Glow (1419)"},{"$f":"+CATEGORY!N75","v":0},{"$f":"+CATEGORY!O75","v":0},{"$f":"+CATEGORY!P75","v":0},{"$f":"+CATEGORY!Q75","v":0},{"$f":"+CATEGORY!R75","v":0},{"$f":"+CATEGORY!S75","v":0}]
["886745883715",{"$f":"CATEGORY!F76","v":"X200100101160"},{"$f":"CATEGORY!G76","v":"886745883715"},{"$f":"CATEGORY!H76","v":"SNOWBALL"},{"$f":"CATEGORY!I76","v":"No Color (1398)"},{"$f":"+CATEGORY!N76","v":0},{"$f":"+CATEGORY!O76","v":0},{"$f":"+CATEGORY!P76","v":0},{"$f":"+CATEGORY!Q76","v":0},{"$f":"+CATEGORY!R76","v":0},{"$f":"+CATEGORY!S76","v":0}]
["886745596479",{"$f":"CATEGORY!F77","v":"X160103201140"},{"$f":"CATEGORY!G77","v":"886745596479"},{"$f":"CATEGORY!H77","v":"SNOWFLAKE"},{"$f":"CATEGORY!I77","v":"Red/Yellow/Blue (1456)"},{"$f":"+CATEGORY!N77","v":0},{"$f":"+CATEGORY!O77","v":0},{"$f":"+CATEGORY!P77","v":0},{"$f":"+CATEGORY!Q77","v":0},{"$f":"+CATEGORY!R77","v":0},{"$f":"+CATEGORY!S77","v":0}]
["886745995531",{"$f":"CATEGORY!F78","v":"X2202001010"},{"$f":"CATEGORY!G78","v":"886745995531"},{"$f":"CATEGORY!H78","v":"TUBBS TRAIL WALKING POLES- 2 PC"},{"$f":"CATEGORY!I78","v":"No Color (1398)"},{"$f":"+CATEGORY!N78","v":0},{"$f":"+CATEGORY!O78","v":0},{"$f":"+CATEGORY!P78","v":0},{"$f":"+CATEGORY!Q78","v":0},{"$f":"+CATEGORY!R78","v":0},{"$f":"+CATEGORY!S78","v":0}]
["886745995548",{"$f":"CATEGORY!F79","v":"X2202002010"},{"$f":"CATEGORY!G79","v":"886745995548"},{"$f":"CATEGORY!H79","v":"TUBBS DAY HIKING POLES- 3 PC"},{"$f":"CATEGORY!I79","v":"No Color (1398)"},{"$f":"+CATEGORY!N79","v":0},{"$f":"+CATEGORY!O79","v":0},{"$f":"+CATEGORY!P79","v":0},{"$f":"+CATEGORY!Q79","v":0},{"$f":"+CATEGORY!R79","v":0},{"$f":"+CATEGORY!S79","v":0}]
["886745991731",{"$f":"CATEGORY!F80","v":"X22010150122W"},{"$f":"CATEGORY!G80","v":"886745991731"},{"$f":"CATEGORY!H80","v":"FLEX TRK KIT"},{"$f":"CATEGORY!I80","v":"No Color (1398)"},{"$f":"+CATEGORY!N80","v":0},{"$f":"+CATEGORY!O80","v":0},{"$f":"+CATEGORY!P80","v":0},{"$f":"+CATEGORY!Q80","v":0},{"$f":"+CATEGORY!R80","v":0},{"$f":"+CATEGORY!S80","v":0}]
["886745991724",{"$f":"CATEGORY!F81","v":"X220101501240"},{"$f":"CATEGORY!G81","v":"886745991724"},{"$f":"CATEGORY!H81","v":"FLEX TRK KIT"},{"$f":"CATEGORY!I81","v":"No Color (1398)"},{"$f":"+CATEGORY!N81","v":0},{"$f":"+CATEGORY!O81","v":0},{"$f":"+CATEGORY!P81","v":0},{"$f":"+CATEGORY!Q81","v":0},{"$f":"+CATEGORY!R81","v":0},{"$f":"+CATEGORY!S81","v":0}]
["886745820079",{"$f":"CATEGORY!F82","v":"X190100601250"},{"$f":"CATEGORY!G82","v":"886745820079"},{"$f":"CATEGORY!H82","v":"XPLORE KIT"},{"$f":"CATEGORY!I82","v":"Silver/Blue (1481)"},{"$f":"+CATEGORY!N82","v":0},{"$f":"+CATEGORY!O82","v":0},{"$f":"+CATEGORY!P82","v":0},{"$f":"+CATEGORY!Q82","v":0},{"$f":"+CATEGORY!R82","v":0},{"$f":"+CATEGORY!S82","v":0}]
["886745819868",{"$f":"CATEGORY!F83","v":"X190100601300"},{"$f":"CATEGORY!G83","v":"886745819868"},{"$f":"CATEGORY!H83","v":"XPLORE KIT"},{"$f":"CATEGORY!I83","v":"Silver/Blue (1481)"},{"$f":"+CATEGORY!N83","v":0},{"$f":"+CATEGORY!O83","v":0},{"$f":"+CATEGORY!P83","v":0},{"$f":"+CATEGORY!Q83","v":0},{"$f":"+CATEGORY!R83","v":0},{"$f":"+CATEGORY!S83","v":0}]
["886745819950",{"$f":"CATEGORY!F84","v":"X19010060121W"},{"$f":"CATEGORY!G84","v":"886745819950"},{"$f":"CATEGORY!H84","v":"XPLORE KIT"},{"$f":"CATEGORY!I84","v":"Rasberry Red (1443)"},{"$f":"+CATEGORY!N84","v":0},{"$f":"+CATEGORY!O84","v":0},{"$f":"+CATEGORY!P84","v":0},{"$f":"+CATEGORY!Q84","v":0},{"$f":"+CATEGORY!R84","v":0},{"$f":"+CATEGORY!S84","v":0}]
["886745820109",{"$f":"CATEGORY!F85","v":"X19010060125W"},{"$f":"CATEGORY!G85","v":"886745820109"},{"$f":"CATEGORY!H85","v":"XPLORE KIT"},{"$f":"CATEGORY!I85","v":"Rasberry Red (1443)"},{"$f":"+CATEGORY!N85","v":0},{"$f":"+CATEGORY!O85","v":0},{"$f":"+CATEGORY!P85","v":0},{"$f":"+CATEGORY!Q85","v":0},{"$f":"+CATEGORY!R85","v":0},{"$f":"+CATEGORY!S85","v":0}]
["886745719908",{"$f":"CATEGORY!F86","v":"X170101601220"},{"$f":"CATEGORY!G86","v":"886745719908"},{"$f":"CATEGORY!H86","v":"FLEX STP KIT 22 W"},{"$f":"CATEGORY!I86","v":"Black/Teal (1047)"},{"$f":"+CATEGORY!N86","v":0},{"$f":"+CATEGORY!O86","v":0},{"$f":"+CATEGORY!P86","v":0},{"$f":"+CATEGORY!Q86","v":0},{"$f":"+CATEGORY!R86","v":0},{"$f":"+CATEGORY!S86","v":0}]
["886745719847",{"$f":"CATEGORY!F87","v":"X170101701240"},{"$f":"CATEGORY!G87","v":"886745719847"},{"$f":"CATEGORY!H87","v":"FLEX STP KIT 24"},{"$f":"CATEGORY!I87","v":"Black/Red (1044)"},{"$f":"+CATEGORY!N87","v":0},{"$f":"+CATEGORY!O87","v":0},{"$f":"+CATEGORY!P87","v":0},{"$f":"+CATEGORY!Q87","v":0},{"$f":"+CATEGORY!R87","v":0},{"$f":"+CATEGORY!S87","v":0}]
["886745169932",{"$f":"CATEGORY!F88","v":"X1303001010"},{"$f":"CATEGORY!G88","v":"886745169932"},{"$f":"CATEGORY!H88","v":"TUBBS SNOWSHOE HOLSTER"},{"$f":"CATEGORY!I88","v":"Black (1013)"},{"$f":"+CATEGORY!N88","v":0},{"$f":"+CATEGORY!O88","v":0},{"$f":"+CATEGORY!P88","v":0},{"$f":"+CATEGORY!Q88","v":0},{"$f":"+CATEGORY!R88","v":0},{"$f":"+CATEGORY!S88","v":0}]
["714636638529",{"$f":"CATEGORY!F89","v":"X10500192"},{"$f":"CATEGORY!G89","v":"714636638529"},{"$f":"CATEGORY!H89","v":"SNOWSHOE_BAG"},{"$f":"CATEGORY!I89","v":"Gray (1238)"},{"$f":"+CATEGORY!N89","v":0},{"$f":"+CATEGORY!O89","v":0},{"$f":"+CATEGORY!P89","v":0},{"$f":"+CATEGORY!Q89","v":0},{"$f":"+CATEGORY!R89","v":0},{"$f":"+CATEGORY!S89","v":0}]
["714636638536",{"$f":"CATEGORY!F90","v":"X10500194"},{"$f":"CATEGORY!G90","v":"714636638536"},{"$f":"CATEGORY!H90","v":"SNOWSHOE_BAG"},{"$f":"CATEGORY!I90","v":"Gray (1238)"},{"$f":"+CATEGORY!N90","v":0},{"$f":"+CATEGORY!O90","v":0},{"$f":"+CATEGORY!P90","v":0},{"$f":"+CATEGORY!Q90","v":0},{"$f":"+CATEGORY!R90","v":0},{"$f":"+CATEGORY!S90","v":0}]
["714636638543",{"$f":"CATEGORY!F91","v":"X10500196"},{"$f":"CATEGORY!G91","v":"714636638543"},{"$f":"CATEGORY!H91","v":"SNOWSHOE_BAG"},{"$f":"CATEGORY!I91","v":"Gray (1238)"},{"$f":"+CATEGORY!N91","v":0},{"$f":"+CATEGORY!O91","v":0},{"$f":"+CATEGORY!P91","v":0},{"$f":"+CATEGORY!Q91","v":0},{"$f":"+CATEGORY!R91","v":0},{"$f":"+CATEGORY!S91","v":0}]
["714636952946",{"$f":"CATEGORY!F92","v":"X1203001010"},{"$f":"CATEGORY!G92","v":"714636952946"},{"$f":"CATEGORY!H92","v":"WOMENS SNOWSHOE GAITERS"},{"$f":"CATEGORY!I92","v":"Black/Gray (1034)"},{"$f":"+CATEGORY!N92","v":0},{"$f":"+CATEGORY!O92","v":0},{"$f":"+CATEGORY!P92","v":0},{"$f":"+CATEGORY!Q92","v":0},{"$f":"+CATEGORY!R92","v":0},{"$f":"+CATEGORY!S92","v":0}]
["886745011101",{"$f":"CATEGORY!F93","v":"X1203002010"},{"$f":"CATEGORY!G93","v":"886745011101"},{"$f":"CATEGORY!H93","v":"MENS SNOWSHOE GAITERS"},{"$f":"CATEGORY!I93","v":"Black (1013)"},{"$f":"+CATEGORY!N93","v":0},{"$f":"+CATEGORY!O93","v":0},{"$f":"+CATEGORY!P93","v":0},{"$f":"+CATEGORY!Q93","v":0},{"$f":"+CATEGORY!R93","v":0},{"$f":"+CATEGORY!S93","v":0}]

{"sheet":"Upload","index":3,"n_rows":9,"n_cols":28,"rows_kept":9,"hidden":true,"merged":[[4,8,4,9],[4,11,4,12],[4,14,4,15],[4,17,4,18],[4,20,4,21],[4,23,4,24],[7,8,7,9],[7,11,7,12],[7,14,7,15],[7,17,7,18],[7,20,7,21],[7,23,7,24],[7,26,7,27]]}
[null,null,"UPLOAD"," ",{"$nulls":3},"*The blue \"filter\" button will exclude each UPC with a qty of 0 and include any qty above 0"]
[null,null,"Account Name",{"$nulls":4},"*The red \"unfilter\" button will allow to view all UPC's and this step MUST be done before each upload into DB"]
[]
[]
[{"$nulls":3}," "," "," ",null,null,"Filter qty(s) to Upload",null,null,"Filter qty(s) to Upload",null,null,"Filter qty(s) to Upload",null,null,"Filter qty(s) to Upload",null,null,"Filter qty(s) to Upload",null,null,"Filter qty(s) to Upload"]
[{"$nulls":5},"_________",null,null,"_________","_________",null,"_________","_________",null,"_________","_________",null,"_________","_________",null,"_________","_________",null,"_________","_________",null,"_________"," _______"]
[]
[{"$nulls":8},"DELIVERY  1",null,null,"DELIVERY  2",null,null,"DELIVERY 3",null,null,"DELIVERY 4",null,null,"DELIVERY  5",null,null,"DELIVERY  6",null,null,"TOTAL"]
["SKU","UPC","Product Group","Style","Description","Color","Earliest CRD",null,"UPC"," QTY",null,"UPC"," QTY",null,"UPC"," QTY",null,"UPC"," QTY",null,"UPC"," QTY",null,"UPC"," QTY",null,"UPC"," QTY"]

{"sheet":"CategoryTemplate","index":4,"n_rows":10,"n_cols":21,"rows_kept":10,"hidden":true,"merged":[[7,6,7,7],[8,6,8,7]]}
[{"$nulls":6}," "]
[]
[]
[]
[{"$nulls":13},"Order 1","Order 2","Order 3","Order 4","Order 5","Order 6"]
[{"$nulls":6}," "," "," ",null,"Ship To*"]
[{"$nulls":6}," "," "," ",null,"Ship Date*"]
[{"$nulls":6}," Total {0} Units",null,null," ","PO Number*"]
[{"$nulls":6},"Total {0} Order Value",null,{"$f":"SUM(N9:S9)","v":{"v":0,"d":"0.00"}}," ","Sub-Totals"]
[null,"CategoryID","SKU","UPC","Product Category","SKU","UPC","Description","Color","Size","Price WS","MAP","Order History","Order 1","Order 2","Order 3","Order 4","Order 5","Order 6","Style Total Units","Style Total Value"]

{"sheet":"SoldToShipTo","index":5,"n_rows":2321,"n_cols":18,"rows_kept":2321,"hidden":true}
["SoldTo","SoldToName","ShipTo","SoldToAddress","ShipToDisplayAs","ShipToName","ShipToAddress","ShipToAddress1","ShipToAddress2","ShipToAddress3","ShipToCity","ShipToStateProvince","ShipToPostalCode","SoldToCountry","ShipToCountry","SoldToCity","SoldToState"]
["C006209","COLLEGE OUTSIDE","1142","COLLEGE OUTSIDE, INC","COLLEGE OUTSIDE","COLLEGE OUTSIDE"," CARPINTERIA CA","","","","CARPINTERIA","CA","93013","US","US","CARPINTERIA","CA",""]
["C006219","EDGE SPORTS","832","JAGGER INC","EDGE SPORTS","EDGE SPORTS"," LEAD SD","","","","LEAD","SD","57754","US","US","LEAD","SD",""]
["C006222","WIND RIVER OUTDOOR COMPANY SWEETWATER FOOD & BEVERAGE, LLC","391","8114 HWY 789","WIND RIVER OUTDOOR COMPANY SWEETWATER FOOD & BEVERAGE, LLC","WIND RIVER OUTDOOR COMPANY SWEETWATER FOOD & BEVERAGE, LLC"," LANDER WY","","","","LANDER","WY","82520","US","US","LANDER","WY",""]
["C006223","HIGH POINT XC SKI CENTER","1308","25 BLACK WALNUT MT. RD.","HIGH POINT XC SKI CENTER","HIGH POINT XC SKI CENTER"," VERNON NJ","","","","VERNON","NJ","07462","US","US","VERNON","NJ",""]
["C006223","HIGH POINT XC SKI CENTER","3299","25 BLACK WALNUT MT. RD.","HIGH POINT XC SKI CENTER","HIGH POINT XC SKI CENTER"," SUSSEX NJ","","","","SUSSEX","NJ","07461","US","US","VERNON","NJ",""]
["C006224","AMAZON.COM","1044","ACCOUNTS PAYABLE","AMAZON.COM","AMAZON.COM"," SEATTLE WA","","","","SEATTLE","WA","98108-1309","US","US","SEATTLE","WA",""]
["C006224","AMAZON.COM","182984","ACCOUNTS PAYABLE","AMAZON.COM","AMAZON.COM","","","","","","","","US","US","SEATTLE","WA",""]
["C006224","AMAZON.COM","2894","ACCOUNTS PAYABLE","AMAZON.COM","AMAZON.COM"," FLORENCE NJ","","","","FLORENCE","NJ","08518","US","US","SEATTLE","WA",""]
["C006224","AMAZON.COM","2895","ACCOUNTS PAYABLE","AMAZON.COM","AMAZON.COM"," GREENWOOD IN","","","","GREENWOOD","IN","46143-7830","US","US","SEATTLE","WA",""]
["C006224","AMAZON.COM","2896","ACCOUNTS PAYABLE","AMAZON.COM","AMAZON.COM"," EDISON NJ","","","","EDISON","NJ","08817","US","US","SEATTLE","WA",""]
["C006224","AMAZON.COM","2897","ACCOUNTS PAYABLE","AMAZON.COM","AMAZON.COM"," MEMPHIS TN","","","","MEMPHIS","TN","38118","US","US","SEATTLE","WA",""]
["C006224","AMAZON.COM","2898","ACCOUNTS PAYABLE","AMAZON.COM","AMAZON.COM"," SAN MARCOS TX","","","","SAN MARCOS","TX","78666-8969","US","US","SEATTLE","WA",""]
["C006224","AMAZON.COM","2899","ACCOUNTS PAYABLE","AMAZON.COM","AMAZON.COM"," KENOSHA WI","","","","KENOSHA","WI","53144-7449","US","US","SEATTLE","WA",""]
["C006224","AMAZON.COM","2900","ACCOUNTS PAYABLE","AMAZON.COM","AMAZON.COM"," WILMER TX","","","","WILMER","TX","75172-1265","US","US","SEATTLE","WA",""]
["C006224","AMAZON.COM","2901","ACCOUNTS PAYABLE","AMAZON.COM","AMAZON.COM"," SUMNER WA","","","","SUMNER","WA","98390","US","US","SEATTLE","WA",""]
["C006224","AMAZON.COM","2902","ACCOUNTS PAYABLE","AMAZON.COM","AMAZON.COM"," INDIANAPOLIS IN","","","","INDIANAPOLIS","IN","46231","US","US","SEATTLE","WA",""]
["C006224","AMAZON.COM","2903","ACCOUNTS PAYABLE","AMAZON.COM","AMAZON.COM"," FRESNO CA","","","","FRESNO","CA","93725","US","US","SEATTLE","WA",""]
["C006224","AMAZON.COM","2904","ACCOUNTS PAYABLE","AMAZON.COM","AMAZON.COM"," EASTVALE CA","","","","EASTVALE","CA","92880","US","US","SEATTLE","WA",""]
["C006224","AMAZON.COM","2905","ACCOUNTS PAYABLE","AMAZON.COM","AMAZON.COM"," MONEE IL","","","","MONEE","IL","60449","US","US","SEATTLE","WA",""]
["C006224","AMAZON.COM","2906","ACCOUNTS PAYABLE","AMAZON.COM","AMAZON.COM"," OKLAHOMA CITY OK","","","","OKLAHOMA CITY","OK","73159","US","US","SEATTLE","WA",""]
["C006224","AMAZON.COM","2907","ACCOUNTS PAYABLE","AMAZON.COM","AMAZON.COM"," TROUTDALE OR","","","","TROUTDALE","OR","97060","US","US","SEATTLE","WA",""]
["C006224","AMAZON.COM","2908","ACCOUNTS PAYABLE","AMAZON.COM","AMAZON.COM"," MACON GA","","","","MACON","GA","31216","US","US","SEATTLE","WA",""]
["C006224","AMAZON.COM","2909","ACCOUNTS PAYABLE","AMAZON.COM","AMAZON.COM"," STOCKTON CA","","","","STOCKTON","CA","95215-9465","US","US","SEATTLE","WA",""]
["C006224","AMAZON.COM","2910","ACCOUNTS PAYABLE","AMAZON.COM","AMAZON.COM"," SALT LAKE CITY UT","","","","SALT LAKE CITY","UT","84116","US","US","SEATTLE","WA",""]
["C006224","AMAZON.COM","2911","ACCOUNTS PAYABLE","AMAZON.COM","AMAZON.COM"," SACRAMENTO CA","","","","SACRAMENTO","CA","95837","US","US","SEATTLE","WA",""]
["C006224","AMAZON.COM","2912","ACCOUNTS PAYABLE","AMAZON.COM","AMAZON.COM"," TUSCON AZ","","","","TUSCON","AZ","85756","US","US","SEATTLE","WA",""]
["C006224","AMAZON.COM","2913","ACCOUNTS PAYABLE","AMAZON.COM","AMAZON.COM"," PLAINFIELD IN","","","","PLAINFIELD","IN","46168","US","US","SEATTLE","WA",""]
["C006224","AMAZON.COM","2914","ACCOUNTS PAYABLE","AMAZON.COM","AMAZON.COM"," WEST COLUMBIA SC","","","","WEST COLUMBIA","SC","29172","US","US","SEATTLE","WA",""]
["C006224","AMAZON.COM","2915","ACCOUNTS PAYABLE","AMAZON.COM","AMAZON.COM"," SHAKOPEE MN","","","","SHAKOPEE","MN","55379","US","US","SEATTLE","WA",""]
["C006224","AMAZON.COM","2916","ACCOUNTS PAYABLE","AMAZON.COM","AMAZON.COM"," CHATTANOOGA TN","","","","CHATTANOOGA","TN","37416","US","US","SEATTLE","WA",""]
["C006224","AMAZON.COM","2917","ACCOUNTS PAYABLE","AMAZON.COM","AMAZON.COM"," SPARROWS POINT MD","","","","SPARROWS POINT","MD","21219","US","US","SEATTLE","WA",""]
["C006224","AMAZON.COM","2918","ACCOUNTS PAYABLE","AMAZON.COM","AMAZON.COM"," CHARLESTON TN","","","","CHARLESTON","TN","37310","US","US","SEATTLE","WA",""]
["C006224","AMAZON.COM","2919","ACCOUNTS PAYABLE","AMAZON.COM","AMAZON.COM"," DALLAS TX","","","","DALLAS","TX","76226","US","US","SEATTLE","WA",""]
["C006224","AMAZON.COM","2920","ACCOUNTS PAYABLE","AMAZON.COM","AMAZON.COM"," PHOENIX AZ","","","","PHOENIX","AZ","85043","US","US","SEATTLE","WA",""]
["C006224","AMAZON.COM","2921","ACCOUNTS PAYABLE","AMAZON.COM","AMAZON.COM"," KERNERSVILLE NC","","","","KERNERSVILLE","NC","27284","US","US","SEATTLE","WA",""]
["C006224","AMAZON.COM","2922","ACCOUNTS PAYABLE","AMAZON.COM","AMAZON.COM"," BELOIT WI","","","","BELOIT","WI","53511-9701","US","US","SEATTLE","WA",""]
["C006224","AMAZON.COM","2923","ACCOUNTS PAYABLE","AMAZON.COM","AMAZON.COM"," LEBANON TN","","","","LEBANON","TN","37090","US","US","SEATTLE","WA",""]
["C006224","AMAZON.COM","2924","ACCOUNTS PAYABLE","AMAZON.COM","AMAZON.COM"," RENSSELAER NY","","","","RENSSELAER","NY","12033","US","US","SEATTLE","WA",""]
["C006224","AMAZON.COM","2925","ACCOUNTS PAYABLE","AMAZON.COM","AMAZON.COM"," WEST DEPTFORD NJ","","","","WEST DEPTFORD","NJ","08066","US","US","SEATTLE","WA",""]
["C006224","AMAZON.COM","2926","ACCOUNTS PAYABLE","AMAZON.COM","AMAZON.COM"," SPARROWS POINT MD","","","","SPARROWS POINT","MD","21219-2504","US","US","SEATTLE","WA",""]
["C006224","AMAZON.COM","2927","ACCOUNTS PAYABLE","AMAZON.COM","AMAZON.COM"," ROMULUS MI","","","","ROMULUS","MI","48174","US","US","SEATTLE","WA",""]
["C006224","AMAZON.COM","2928","ACCOUNTS PAYABLE","AMAZON.COM","AMAZON.COM"," KENOSHA WI","","","","KENOSHA","WI","53144","US","US","SEATTLE","WA",""]
["C006224","AMAZON.COM","2929","ACCOUNTS PAYABLE","AMAZON.COM","AMAZON.COM"," CALEDONIA MI","","","","CALEDONIA","MI","49316-9191","US","US","SEATTLE","WA",""]
["C006224","AMAZON.COM","2930","ACCOUNTS PAYABLE","AMAZON.COM","AMAZON.COM"," COMPTON CA","","","","COMPTON","CA","90220-5111","US","US","SEATTLE","WA",""]
["C006224","AMAZON.COM","2931","ACCOUNTS PAYABLE","AMAZON.COM","AMAZON.COM"," HENDERSON NV","","","","HENDERSON","NV","89044","US","US","SEATTLE","WA",""]
["C006224","AMAZON.COM","2932","ACCOUNTS PAYABLE","AMAZON.COM","AMAZON.COM"," ORANGE CITY FL","","","","ORANGE CITY","FL","32763","US","US","SEATTLE","WA",""]
["C006224","AMAZON.COM","2933","ACCOUNTS PAYABLE","AMAZON.COM","AMAZON.COM"," OLIVE BRANCH MS","","","","OLIVE BRANCH","MS","38654","US","US","SEATTLE","WA",""]
["C006224","AMAZON.COM","2934","ACCOUNTS PAYABLE","AMAZON.COM","AMAZON.COM"," OPA-LOCKA FL","","","","OPA-LOCKA","FL","33054","US","US","SEATTLE","WA",""]
["C006224","AMAZON.COM","2935","ACCOUNTS PAYABLE","AMAZON.COM","AMAZON.COM"," KANSAS CITY KS","","","","KANSAS CITY","KS","66102","US","US","SEATTLE","WA",""]
["C006224","AMAZON.COM","2936","ACCOUNTS PAYABLE","AMAZON.COM","AMAZON.COM"," CHANNAHON IL","","","","CHANNAHON","IL","60410","US","US","SEATTLE","WA",""]
["C006224","AMAZON.COM","2937","ACCOUNTS PAYABLE","AMAZON.COM","AMAZON.COM"," IMPERIAL PA","","","","IMPERIAL","PA","15126-2402","US","US","SEATTLE","WA",""]
["C006224","AMAZON.COM","2938","ACCOUNTS PAYABLE","AMAZON.COM","AMAZON.COM"," SAN BERNARDINO CA","","","","SAN BERNARDINO","CA","92408-2805","US","US","SEATTLE","WA",""]
["C006224","AMAZON.COM","2939","ACCOUNTS PAYABLE","AMAZON.COM","AMAZON.COM"," WEST JORDAN UT","","","","WEST JORDAN","UT","84094","US","US","SEATTLE","WA",""]
["C006224","AMAZON.COM","2940","ACCOUNTS PAYABLE","AMAZON.COM","AMAZON.COM"," LEWISBERRY PA","","","","LEWISBERRY","PA","17339","US","US","SEATTLE","WA",""]
["C006224","AMAZON.COM","2941","ACCOUNTS PAYABLE","AMAZON.COM","AMAZON.COM"," WINDSOR CT","","","","WINDSOR","CT","06095","US","US","SEATTLE","WA",""]
["C006224","AMAZON.COM","2942","ACCOUNTS PAYABLE","AMAZON.COM","AMAZON.COM"," GOULDSBORO PA","","","","GOULDSBORO","PA","18424-9492","US","US","SEATTLE","WA",""]
["C006224","AMAZON.COM","2943","ACCOUNTS PAYABLE","AMAZON.COM","AMAZON.COM"," UNION CITY GA","","","","UNION CITY","GA","30291-2091","US","US","SEATTLE","WA",""]
["C006224","AMAZON.COM","2944","ACCOUNTS PAYABLE","AMAZON.COM","AMAZON.COM"," JOLIET IL","","","","JOLIET","IL","60433","US","US","SEATTLE","WA",""]
["C006224","AMAZON.COM","2945","ACCOUNTS PAYABLE","AMAZON.COM","AMAZON.COM"," HAZLETON PA","","","","HAZLETON","PA","18202","US","US","SEATTLE","WA",""]
["C006224","AMAZON.COM","2946","ACCOUNTS PAYABLE","AMAZON.COM","AMAZON.COM"," KERNERSVILLE NC","","","","KERNERSVILLE","NC","27284","US","US","SEATTLE","WA",""]
["C006224","AMAZON.COM","2947","ACCOUNTS PAYABLE","AMAZON.COM","AMAZON.COM"," SPARTANBURG SC","","","","SPARTANBURG","SC","29303","US","US","SEATTLE","WA",""]
["C006224","AMAZON.COM","2948","ACCOUNTS PAYABLE","AMAZON.COM","AMAZON.COM"," AUBURNDALE FL","","","","AUBURNDALE","FL","33823","US","US","SEATTLE","WA",""]
["C006224","AMAZON.COM","2949","ACCOUNTS PAYABLE","AMAZON.COM","AMAZON.COM"," MURFREESBORO TN","","","","MURFREESBORO","TN","37127","US","US","SEATTLE","WA",""]
["C006224","AMAZON.COM","2950","ACCOUNTS PAYABLE","AMAZON.COM","AMAZON.COM"," GREENFIELD IN","","","","GREENFIELD","IN","46140-7099","US","US","SEATTLE","WA",""]
["C006224","AMAZON.COM","2951","ACCOUNTS PAYABLE","AMAZON.COM","AMAZON.COM"," CHESTER VA","","","","CHESTER","VA","23836","US","US","SEATTLE","WA",""]
["C006224","AMAZON.COM","2952","ACCOUNTS PAYABLE","AMAZON.COM","AMAZON.COM"," VISALIA CA","","","","VISALIA","CA","93291-1882","US","US","SEATTLE","WA",""]
["C006224","AMAZON.COM","2953","ACCOUNTS PAYABLE","AMAZON.COM","AMAZON.COM"," PETERSBURG VA","","","","PETERSBURG","VA","23803","US","US","SEATTLE","WA",""]
["C006224","AMAZON.COM","2954","ACCOUNTS PAYABLE","AMAZON.COM","AMAZON.COM"," FORNEY TX","","","","FORNEY","TX","75126-2300","US","US","SEATTLE","WA",""]
["C006224","AMAZON.COM","2955","ACCOUNTS PAYABLE","AMAZON.COM","AMAZON.COM"," LEBANON TN","","","","LEBANON","TN","37090","US","US","SEATTLE","WA",""]
["C006224","AMAZON.COM","2956","ACCOUNTS PAYABLE","AMAZON.COM","AMAZON.COM"," PARK CITY KS","","","","PARK CITY","KS","67219-1410","US","US","SEATTLE","WA",""]
["C006224","AMAZON.COM","2957","ACCOUNTS PAYABLE","AMAZON.COM","AMAZON.COM"," MIDDLETOWN DE","","","","MIDDLETOWN","DE","19709","US","US","SEATTLE","WA",""]
["C006224","AMAZON.COM","2958","ACCOUNTS PAYABLE","AMAZON.COM","AMAZON.COM"," BLOOMINGTON CA","","","","BLOOMINGTON","CA","92316","US","US","SEATTLE","WA",""]
["C006224","AMAZON.COM","2959","ACCOUNTS PAYABLE","AMAZON.COM","AMAZON.COM"," JEFFERSONVILLE IN","","","","JEFFERSONVILLE","IN","47130","US","US","SEATTLE","WA",""]
["C006224","AMAZON.COM","2960","ACCOUNTS PAYABLE","AMAZON.COM","AMAZON.COM"," SACRAMENTO CA","","","","SACRAMENTO","CA","95837-1109","US","US","SEATTLE","WA",""]
["C006224","AMAZON.COM","2961","ACCOUNTS PAYABLE","AMAZON.COM","AMAZON.COM"," ROCK TAVERN NY","","","","ROCK TAVERN","NY","12575-5150","US","US","SEATTLE","WA",""]
["C006224","AMAZON.COM","2962","ACCOUNTS PAYABLE","AMAZON.COM","AMAZON.COM"," NORTH LITTLE ROCK AR","","","","NORTH LITTLE ROCK","AR","72117-5026","US","US","SEATTLE","WA",""]
["C006224","AMAZON.COM","2963","ACCOUNTS PAYABLE","AMAZON.COM","AMAZON.COM"," OKLAHOMA CITY OK","","","","OKLAHOMA CITY","OK","73159-0003","US","US","SEATTLE","WA",""]
["C006224","AMAZON.COM","2964","ACCOUNTS PAYABLE","AMAZON.COM","AMAZON.COM"," SAN ANTONIO TX","","","","SAN ANTONIO","TX","78245-9512","US","US","SEATTLE","WA",""]
["C006224","AMAZON.COM","2965","ACCOUNTS PAYABLE","AMAZON.COM","AMAZON.COM"," REPUBLIC MO","","","","REPUBLIC","MO","65738-2779","US","US","SEATTLE","WA",""]
["C006224","AMAZON.COM","2966","ACCOUNTS PAYABLE","AMAZON.COM","AMAZON.COM"," FARGO ND","","","","FARGO","ND","58102-7400","US","US","SEATTLE","WA",""]
["C006224","AMAZON.COM","2967","ACCOUNTS PAYABLE","AMAZON.COM","AMAZON.COM"," SPOKANE WA","","","","SPOKANE","WA","99216","US","US","SEATTLE","WA",""]
["C006224","AMAZON.COM","2968","ACCOUNTS PAYABLE","AMAZON.COM","AMAZON.COM"," FRESNO TX","","","","FRESNO","TX","77545","US","US","SEATTLE","WA",""]
["C006224","AMAZON.COM","2969","ACCOUNTS PAYABLE","AMAZON.COM","AMAZON.COM"," LITHIA SPRINGS GA","","","","LITHIA SPRINGS","GA","30122-3895","US","US","SEATTLE","WA",""]
["C006224","AMAZON.COM","2970","ACCOUNTS PAYABLE","AMAZON.COM","AMAZON.COM"," CARTERET NJ","","","","CARTERET","NJ","07008-3529","US","US","SEATTLE","WA",""]
["C006224","AMAZON.COM","2971","ACCOUNTS PAYABLE","AMAZON.COM","AMAZON.COM"," RIALTO CA","","","","RIALTO","CA","92376-3009","US","US","SEATTLE","WA",""]
["C006224","AMAZON.COM","2972","ACCOUNTS PAYABLE","AMAZON.COM","AMAZON.COM"," STONE MOUNTAIN GA","","","","STONE MOUNTAIN","GA","30087-3506","US","US","SEATTLE","WA",""]
["C006224","AMAZON.COM","2973","ACCOUNTS PAYABLE","AMAZON.COM","AMAZON.COM"," WINDSOR CT","","","","WINDSOR","CT","06095-2144","US","US","SEATTLE","WA",""]
["C006224","AMAZON.COM","2974","ACCOUNTS PAYABLE","AMAZON.COM","AMAZON.COM"," RANDALL OH","","","","RANDALL","OH","44128","US","US","SEATTLE","WA",""]
["C006224","AMAZON.COM","2975","ACCOUNTS PAYABLE","AMAZON.COM","AMAZON.COM"," CHARLOTTE NC","","","","CHARLOTTE","NC","28214-2633","US","US","SEATTLE","WA",""]
["C006224","AMAZON.COM","2976","ACCOUNTS PAYABLE","AMAZON.COM","AMAZON.COM"," WEST JEFFERSON OH","","","","WEST JEFFERSON","OH","43162-9747","US","US","SEATTLE","WA",""]
["C006224","AMAZON.COM","2977","ACCOUNTS PAYABLE","AMAZON.COM","AMAZON.COM"," AURORA CO","","","","AURORA","CO","80018","US","US","SEATTLE","WA",""]
["C006224","AMAZON.COM","2978","ACCOUNTS PAYABLE","AMAZON.COM","AMAZON.COM"," KANSAS CITY KS","","","","KANSAS CITY","KS","66109-3665","US","US","SEATTLE","WA",""]
["C006224","AMAZON.COM","2979","ACCOUNTS PAYABLE","AMAZON.COM","AMAZON.COM"," FORT WAYNE IN","","","","FORT WAYNE","IN","46809-9771","US","US","SEATTLE","WA",""]
["C006224","AMAZON.COM","2980","ACCOUNTS PAYABLE","AMAZON.COM","AMAZON.COM"," SPOKANE WA","","","","SPOKANE","WA","99216","US","US","SEATTLE","WA",""]
["C006224","AMAZON.COM","2981","ACCOUNTS PAYABLE","AMAZON.COM","AMAZON.COM"," GOODYEAR AZ","","","","GOODYEAR","AZ","85395-7672","US","US","SEATTLE","WA",""]
["C006224","AMAZON.COM","2982","ACCOUNTS PAYABLE","AMAZON.COM","AMAZON.COM"," PHOENIX AZ","","","","PHOENIX","AZ","85043-2356","US","US","SEATTLE","WA",""]
["C006224","AMAZON.COM","2983","ACCOUNTS PAYABLE","AMAZON.COM","AMAZON.COM"," HOUSTON TX","","","","HOUSTON","TX","77038-2324","US","US","SEATTLE","WA",""]
["C006224","AMAZON.COM","2984","ACCOUNTS PAYABLE","AMAZON.COM","AMAZON.COM"," FRESNO TX","","","","FRESNO","TX","77545","US","US","SEATTLE","WA",""]
["C006224","AMAZON.COM","2985","ACCOUNTS PAYABLE","AMAZON.COM","AMAZON.COM"," MADISON AL","","","","MADISON","AL","35756-4403","US","US","SEATTLE","WA",""]
["C006224","AMAZON.COM","2986","ACCOUNTS PAYABLE","AMAZON.COM","AMAZON.COM"," PARK CITY KS","","","","PARK CITY","KS","67219-1410","US","US","SEATTLE","WA",""]
["C006224","AMAZON.COM","2987","ACCOUNTS PAYABLE","AMAZON.COM","AMAZON.COM"," NEW CASTLE DE","","","","NEW CASTLE","DE","19720","US","US","SEATTLE","WA",""]
["C006224","AMAZON.COM","2988","ACCOUNTS PAYABLE","AMAZON.COM","AMAZON.COM"," CARENCRO LA","","","","CARENCRO","LA","70520","US","US","SEATTLE","WA",""]
["C006224","AMAZON.COM","2989","ACCOUNTS PAYABLE","AMAZON.COM","AMAZON.COM"," SAN ANTONIO TX","","","","SAN ANTONIO","TX","78245-9512","US","US","SEATTLE","WA",""]
["C006224","AMAZON.COM","2990","ACCOUNTS PAYABLE","AMAZON.COM","AMAZON.COM"," BLOOMINGTON CA","","","","BLOOMINGTON","CA","92316-3819","US","US","SEATTLE","WA",""]
["C006224","AMAZON.COM","2991","ACCOUNTS PAYABLE","AMAZON.COM","AMAZON.COM"," EASTVALE CA","","","","EASTVALE","CA","91752-5087","US","US","SEATTLE","WA",""]
["C006224","AMAZON.COM","2992","ACCOUNTS PAYABLE","AMAZON.COM","AMAZON.COM"," SACRAMENTO CA","","","","SACRAMENTO","CA","95837-1109","US","US","SEATTLE","WA",""]
["C006224","AMAZON.COM","2993","ACCOUNTS PAYABLE","AMAZON.COM","AMAZON.COM"," REPUBLIC MO","","","","REPUBLIC","MO","65738-2779","US","US","SEATTLE","WA",""]
["C006224","AMAZON.COM","2994","ACCOUNTS PAYABLE","AMAZON.COM","AMAZON.COM"," SAN BERNARDINO CA","","","","SAN BERNARDINO","CA","92408-0123","US","US","SEATTLE","WA",""]
["C006224","AMAZON.COM","2995","ACCOUNTS PAYABLE","AMAZON.COM","AMAZON.COM"," ROCK TAVERN NY","","","","ROCK TAVERN","NY","12575-5150","US","US","SEATTLE","WA",""]
["C006224","AMAZON.COM","2996","ACCOUNTS PAYABLE","AMAZON.COM","AMAZON.COM"," PENNS GROVE NJ","","","","PENNS GROVE","NJ","08069-2957","US","US","SEATTLE","WA",""]
["C006224","AMAZON.COM","2997","ACCOUNTS PAYABLE","AMAZON.COM","AMAZON.COM"," SOMERSET","","","","SOMERSET","","8873","US","US","SEATTLE","WA",""]
["C006224","AMAZON.COM","2998","ACCOUNTS PAYABLE","AMAZON.COM","AMAZON.COM"," TULSA OK","","","","TULSA","OK","74116-2102","US","US","SEATTLE","WA",""]
["C006224","AMAZON.COM","2999","ACCOUNTS PAYABLE","AMAZON.COM","AMAZON.COM"," UNION CITY GA","","","","UNION CITY","GA","30291-2009","US","US","SEATTLE","WA",""]
["C006224","AMAZON.COM","3000","ACCOUNTS PAYABLE","AMAZON.COM","AMAZON.COM"," DALLAS TX","","","","DALLAS","TX","75241-7203","US","US","SEATTLE","WA",""]
["C006224","AMAZON.COM","3001","ACCOUNTS PAYABLE","AMAZON.COM","AMAZON.COM"," KENT WA","","","","KENT","WA","98032","US","US","SEATTLE","WA",""]
["C006224","AMAZON.COM","3002","ACCOUNTS PAYABLE","AMAZON.COM","AMAZON.COM"," PLAINFIELD IN","","","","PLAINFIELD","IN","46168","US","US","SEATTLE","WA",""]
["C006224","AMAZON.COM","3003","ACCOUNTS PAYABLE","AMAZON.COM","AMAZON.COM"," PATTERSON CA","","","","PATTERSON","CA","95363","US","US","SEATTLE","WA",""]
["C006224","AMAZON.COM","3004","ACCOUNTS PAYABLE","AMAZON.COM","AMAZON.COM"," TRACY CA","","","","TRACY","CA","95304","US","US","SEATTLE","WA",""]
["C006224","AMAZON.COM","3005","ACCOUNTS PAYABLE","AMAZON.COM","AMAZON.COM"," COPPELL TX","","","","COPPELL","TX","75019","US","US","SEATTLE","WA",""]
["C006224","AMAZON.COM","3006","ACCOUNTS PAYABLE","AMAZON.COM","AMAZON.COM"," FORT WORTH TX","","","","FORT WORTH","TX","76177","US","US","SEATTLE","WA",""]
["C006224","AMAZON.COM","3007","ACCOUNTS PAYABLE","AMAZON.COM","AMAZON.COM"," SCHERTZ TX","","","","SCHERTZ","TX","78154","US","US","SEATTLE","WA",""]
["C006224","AMAZON.COM","3008","ACCOUNTS PAYABLE","AMAZON.COM","AMAZON.COM"," FORT WORTH TX","","","","FORT WORTH","TX","76155","US","US","SEATTLE","WA",""]
["C006224","AMAZON.COM","3009","ACCOUNTS PAYABLE","AMAZON.COM","AMAZON.COM"," CARLISLE PA","","","","CARLISLE","PA","17013","US","US","SEATTLE","WA",""]
["C006224","AMAZON.COM","3010","ACCOUNTS PAYABLE","AMAZON.COM","AMAZON.COM"," STOCKTON CA","","","","STOCKTON","CA","95206","US","US","SEATTLE","WA",""]
["C006224","AMAZON.COM","3011","ACCOUNTS PAYABLE","AMAZON.COM","AMAZON.COM"," WHITESTOWN IN","","","","WHITESTOWN","IN","46075","US","US","SEATTLE","WA",""]
["C006224","AMAZON.COM","3012","ACCOUNTS PAYABLE","AMAZON.COM","AMAZON.COM"," WHITESTOWN IN","","","","WHITESTOWN","IN","46075","US","US","SEATTLE","WA",""]
["C006224","AMAZON.COM","3013","ACCOUNTS PAYABLE","AMAZON.COM","AMAZON.COM"," GOODYEAR AZ","","","","GOODYEAR","AZ","85338","US","US","SEATTLE","WA",""]
["C006224","AMAZON.COM","3014","ACCOUNTS PAYABLE","AMAZON.COM","AMAZON.COM"," DALLAS TX","","","","DALLAS","TX","75241-7203","US","US","SEATTLE","WA",""]
["C006224","AMAZON.COM","3015","ACCOUNTS PAYABLE","AMAZON.COM","AMAZON.COM"," LIVONIA MI","","","","LIVONIA","MI","48150","US","US","SEATTLE","WA",""]
["C006224","AMAZON.COM","3016","ACCOUNTS PAYABLE","AMAZON.COM","AMAZON.COM"," EDISON NJ","","","","EDISON","NJ","08817","US","US","SEATTLE","WA",""]
["C006224","AMAZON.COM","3017","ACCOUNTS PAYABLE","AMAZON.COM","AMAZON.COM"," RIALTO CA","","","","RIALTO","CA","92376","US","US","SEATTLE","WA",""]
["C006224","AMAZON.COM","3018","ACCOUNTS PAYABLE","AMAZON.COM","AMAZON.COM"," SACRAMENTO CA","","","","SACRAMENTO","CA","95837","US","US","SEATTLE","WA",""]
["C006224","AMAZON.COM","3019","ACCOUNTS PAYABLE","AMAZON.COM","AMAZON.COM"," PERRIS CA","","","","PERRIS","CA","92571","US","US","SEATTLE","WA",""]
["C006224","AMAZON.COM","3020","ACCOUNTS PAYABLE","AMAZON.COM","AMAZON.COM"," NORTH EAST MD","","","","NORTH EAST","MD","21901","US","US","SEATTLE","WA",""]
["C006224","AMAZON.COM","3021","ACCOUNTS PAYABLE","AMAZON.COM","AMAZON.COM"," AURORA CO","","","","AURORA","CO","80019","US","US","SEATTLE","WA",""]
["C006224","AMAZON.COM","3022","ACCOUNTS PAYABLE","AMAZON.COM","AMAZON.COM"," KENT WA","","","","KENT","WA","98032","US","US","SEATTLE","WA",""]
["C006224","AMAZON.COM","3023","ACCOUNTS PAYABLE","AMAZON.COM","AMAZON.COM"," DALLAS TX","","","","DALLAS","TX","75241-7203","US","US","SEATTLE","WA",""]
["C006224","AMAZON.COM","3024","ACCOUNTS PAYABLE","AMAZON.COM","AMAZON.COM"," PHOENIX AZ","","","","PHOENIX","AZ","85043-3313","US","US","SEATTLE","WA",""]
["C006224","AMAZON.COM","3025","ACCOUNTS PAYABLE","AMAZON.COM","AMAZON.COM"," GROVEPORT OH","","","","GROVEPORT","OH","43125-9016","US","US","SEATTLE","WA",""]
["C006224","AMAZON.COM","3026","ACCOUNTS PAYABLE","AMAZON.COM","AMAZON.COM"," AURORA IL","","","","AURORA","IL","60502","US","US","SEATTLE","WA",""]
["C006224","AMAZON.COM","3027","ACCOUNTS PAYABLE","AMAZON.COM","AMAZON.COM"," RIALTO CA","","","","RIALTO","CA","92376-3009","US","US","SEATTLE","WA",""]
["C006224","AMAZON.COM","3028","ACCOUNTS PAYABLE","AMAZON.COM","AMAZON.COM"," ROMEOVILLE IL","","","","ROMEOVILLE","IL","60446","US","US","SEATTLE","WA",""]
["C006224","AMAZON.COM","3029","ACCOUNTS PAYABLE","AMAZON.COM","AMAZON.COM"," CARTERET NJ","","","","CARTERET","NJ","07008","US","US","SEATTLE","WA",""]
["C006224","AMAZON.COM","3030","ACCOUNTS PAYABLE","AMAZON.COM","AMAZON.COM"," EASTON PA","","","","EASTON","PA","18045","US","US","SEATTLE","WA",""]
["C006224","AMAZON.COM","3031","ACCOUNTS PAYABLE","AMAZON.COM","AMAZON.COM"," EDWARDSVILLE IL","","","","EDWARDSVILLE","IL","62025","US","US","SEATTLE","WA",""]
["C006224","AMAZON.COM","3032","ACCOUNTS PAYABLE","AMAZON.COM","AMAZON.COM"," JEFFERSON GA","","","","JEFFERSON","GA","30549","US","US","SEATTLE","WA",""]
["C006224","AMAZON.COM","3033","ACCOUNTS PAYABLE","AMAZON.COM","AMAZON.COM"," MINOOKA IL","","","","MINOOKA","IL","60447","US","US","SEATTLE","WA",""]
["C006224","AMAZON.COM","3034","ACCOUNTS PAYABLE","AMAZON.COM","AMAZON.COM"," SEATTLE WA","","","","SEATTLE","WA","98108","US","US","SEATTLE","WA",""]
["C006224","AMAZON.COM","3035","ACCOUNTS PAYABLE","AMAZON.COM","AMAZON.COM"," LAS VEGAS NV","","","","LAS VEGAS","NV","89115","US","US","SEATTLE","WA",""]
["C006224","AMAZON.COM","3036","ACCOUNTS PAYABLE","AMAZON.COM","AMAZON.COM"," ABERDEEN MD","","","","ABERDEEN","MD","21001","US","US","SEATTLE","WA",""]
["C006224","AMAZON.COM","3037","ACCOUNTS PAYABLE","AMAZON.COM","AMAZON.COM"," WAUKEGAN IL","","","","WAUKEGAN","IL","60085","US","US","SEATTLE","WA",""]
["C006224","AMAZON.COM","3038","ACCOUNTS PAYABLE","AMAZON.COM","AMAZON.COM"," INDIANAPOLIS IN","","","","INDIANAPOLIS","IN","46241","US","US","SEATTLE","WA",""]
["C006224","AMAZON.COM","3039","ACCOUNTS PAYABLE","AMAZON.COM","AMAZON.COM"," SWEDESBORO NJ","","","","SWEDESBORO","NJ","08085","US","US","SEATTLE","WA",""]
["C006224","AMAZON.COM","3040","ACCOUNTS PAYABLE","AMAZON.COM","AMAZON.COM"," JACKSONVILLE FL","","","","JACKSONVILLE","FL","32218","US","US","SEATTLE","WA",""]
["C006224","AMAZON.COM","3041","ACCOUNTS PAYABLE","AMAZON.COM","AMAZON.COM"," JACKSONVILLE FL","","","","JACKSONVILLE","FL","32221","US","US","SEATTLE","WA",""]
["C006224","AMAZON.COM","3042","ACCOUNTS PAYABLE","AMAZON.COM","AMAZON.COM"," INDIANAPOLIS IN","","","","INDIANAPOLIS","IN","46241","US","US","SEATTLE","WA",""]
["C006224","AMAZON.COM","3043","ACCOUNTS PAYABLE","AMAZON.COM","AMAZON.COM"," HOUSTON TX","","","","HOUSTON","TX","77090","US","US","SEATTLE","WA",""]
["C006224","AMAZON.COM","3044","ACCOUNTS PAYABLE","AMAZON.COM","AMAZON.COM"," SHAKOPEE MN","","","","SHAKOPEE","MN","55379","US","US","SEATTLE","WA",""]
["C006224","AMAZON.COM","3045","ACCOUNTS PAYABLE","AMAZON.COM","AMAZON.COM"," ETNA OH","","","","ETNA","OH","43062","US","US","SEATTLE","WA",""]
["C006224","AMAZON.COM","3046","ACCOUNTS PAYABLE","AMAZON.COM","AMAZON.COM"," CHARLOTTE NC","","","","CHARLOTTE","NC","28214-8082","US","US","SEATTLE","WA",""]
["C006224","AMAZON.COM","3047","ACCOUNTS PAYABLE","AMAZON.COM","AMAZON.COM"," EDGERTON KS","","","","EDGERTON","KS","66021","US","US","SEATTLE","WA",""]
["C006224","AMAZON.COM","3048","ACCOUNTS PAYABLE","AMAZON.COM","AMAZON.COM"," FLORENCE NJ","","","","FLORENCE","NJ","08518","US","US","SEATTLE","WA",""]
["C006224","AMAZON.COM","3049","ACCOUNTS PAYABLE","AMAZON.COM","AMAZON.COM"," EDWARDSVILLE IL","","","","EDWARDSVILLE","IL","62025","US","US","SEATTLE","WA",""]
["C006224","AMAZON.COM","3050","ACCOUNTS PAYABLE","AMAZON.COM","AMAZON.COM"," REDLANDS CA","","","","REDLANDS","CA","92374","US","US","SEATTLE","WA",""]
["C006224","AMAZON.COM","3051","ACCOUNTS PAYABLE","AMAZON.COM","AMAZON.COM"," GRAPEVINE TX","","","","GRAPEVINE","TX","76051","US","US","SEATTLE","WA",""]
["C006224","AMAZON.COM","3052","ACCOUNTS PAYABLE","AMAZON.COM","AMAZON.COM"," PITTSTON PA","","","","PITTSTON","PA","18640-5000","US","US","SEATTLE","WA",""]
["C006224","AMAZON.COM","3053","ACCOUNTS PAYABLE","AMAZON.COM","AMAZON.COM"," EDWARDSVILLE IL","","","","EDWARDSVILLE","IL","62025","US","US","SEATTLE","WA",""]
["C006224","AMAZON.COM","3054","ACCOUNTS PAYABLE","AMAZON.COM","AMAZON.COM"," SUMNER WA","","","","SUMNER","WA","98390","US","US","SEATTLE","WA",""]
["C006224","AMAZON.COM","3055","ACCOUNTS PAYABLE","AMAZON.COM","AMAZON.COM"," WINDSOR CT","","","","WINDSOR","CT","06095","US","US","SEATTLE","WA",""]
["C006224","AMAZON.COM","3056","ACCOUNTS PAYABLE","AMAZON.COM","AMAZON.COM"," SAN MARCOS TX","","","","SAN MARCOS","TX","78666","US","US","SEATTLE","WA",""]
["C006224","AMAZON.COM","3057","ACCOUNTS PAYABLE","AMAZON.COM","AMAZON.COM"," RIALTO CA","","","","RIALTO","CA","92376","US","US","SEATTLE","WA",""]
["C006224","AMAZON.COM","3058","ACCOUNTS PAYABLE","AMAZON.COM","AMAZON.COM"," CRANBURY NJ","","","","CRANBURY","NJ","08512","US","US","SEATTLE","WA",""]
["C006224","AMAZON.COM","3059","ACCOUNTS PAYABLE","AMAZON.COM","AMAZON.COM"," FALL RIVER MA","","","","FALL RIVER","MA","02722","US","US","SEATTLE","WA",""]
["C006224","AMAZON.COM","3060","ACCOUNTS PAYABLE","AMAZON.COM","AMAZON.COM"," TRACY CA","","","","TRACY","CA","95391","US","US","SEATTLE","WA",""]
["C006224","AMAZON.COM","3061","ACCOUNTS PAYABLE","AMAZON.COM","AMAZON.COM"," AURORA IL","","","","AURORA","IL","60503","US","US","SEATTLE","WA",""]
["C006224","AMAZON.COM","3062","ACCOUNTS PAYABLE","AMAZON.COM","AMAZON.COM"," MONEE IL","","","","MONEE","IL","60449","US","US","SEATTLE","WA",""]
["C006224","AMAZON.COM","3063","ACCOUNTS PAYABLE","AMAZON.COM","AMAZON.COM"," LEXINGTON KY","","","","LEXINGTON","KY","40511","US","US","SEATTLE","WA",""]
["C006224","AMAZON.COM","3064","ACCOUNTS PAYABLE","AMAZON.COM","AMAZON.COM"," LEXINGTON KY","","","","LEXINGTON","KY","40510","US","US","SEATTLE","WA",""]
["C006224","AMAZON.COM","3065","ACCOUNTS PAYABLE","AMAZON.COM","AMAZON.COM"," NEW CASTLE DE","","","","NEW CASTLE","DE","19720","US","US","SEATTLE","WA",""]
["C006224","AMAZON.COM","3066","ACCOUNTS PAYABLE","AMAZON.COM","AMAZON.COM"," CHAMBERSBURG PA","","","","CHAMBERSBURG","PA","17201","US","US","SEATTLE","WA",""]
["C006224","AMAZON.COM","3067","ACCOUNTS PAYABLE","AMAZON.COM","AMAZON.COM"," FERNLEY NV","","","","FERNLEY","NV","89408","US","US","SEATTLE","WA",""]
["C006224","AMAZON.COM","3068","ACCOUNTS PAYABLE","AMAZON.COM","AMAZON.COM"," RENO NV","","","","RENO","NV","89506","US","US","SEATTLE","WA",""]
["C006224","AMAZON.COM","3069","ACCOUNTS PAYABLE","AMAZON.COM","AMAZON.COM"," COFFEYVILLE KS","","","","COFFEYVILLE","KS","67337","US","US","SEATTLE","WA",""]
["C006224","AMAZON.COM","3070","ACCOUNTS PAYABLE","AMAZON.COM","AMAZON.COM"," CAMPBELLSVILLE KY","","","","CAMPBELLSVILLE","KY","42718","US","US","SEATTLE","WA",""]
["C006224","AMAZON.COM","3071","ACCOUNTS PAYABLE","AMAZON.COM","AMAZON.COM"," GRAND FORKS ND","","","","GRAND FORKS","ND","58201","US","US","SEATTLE","WA",""]
["C006224","AMAZON.COM","3072","ACCOUNTS PAYABLE","AMAZON.COM","AMAZON.COM"," PHOENIX AZ","","","","PHOENIX","AZ","85043","US","US","SEATTLE","WA",""]
["C006224","AMAZON.COM","3073","ACCOUNTS PAYABLE","AMAZON.COM","AMAZON.COM"," HEBRON KY","","","","HEBRON","KY","41048","US","US","SEATTLE","WA",""]
["C006224","AMAZON.COM","3074","ACCOUNTS PAYABLE","AMAZON.COM","AMAZON.COM"," RIVERSIDE CA","","","","RIVERSIDE","CA","92518","US","US","SEATTLE","WA",""]
["C006224","AMAZON.COM","3075","ACCOUNTS PAYABLE","AMAZON.COM","AMAZON.COM"," FTW AIRPORT TX","","","","FTW AIRPORT","TX","75261","US","US","SEATTLE","WA",""]
["C006224","AMAZON.COM","3076","ACCOUNTS PAYABLE","AMAZON.COM","AMAZON.COM"," BREINIGSVILLE PA","","","","BREINIGSVILLE","PA","18031","US","US","SEATTLE","WA",""]
["C006224","AMAZON.COM","3077","ACCOUNTS PAYABLE","AMAZON.COM","AMAZON.COM"," BROOKSHIRE TX","","","","BROOKSHIRE","TX","77423","US","US","SEATTLE","WA",""]
["C006224","AMAZON.COM","3078","ACCOUNTS PAYABLE","AMAZON.COM","AMAZON.COM"," CLEAR BROOK VA","","","","CLEAR BROOK","VA","22624-1568","US","US","SEATTLE","WA",""]
["C006224","AMAZON.COM","3079","ACCOUNTS PAYABLE","AMAZON.COM","AMAZON.COM"," CONCORD NC","","","","CONCORD","NC","28027-7995","US","US","SEATTLE","WA",""]
["C006224","AMAZON.COM","3080","ACCOUNTS PAYABLE","AMAZON.COM","AMAZON.COM"," IRVING TX","","","","IRVING","TX","75261","US","US","SEATTLE","WA",""]
["C006224","AMAZON.COM","3081","ACCOUNTS PAYABLE","AMAZON.COM","AMAZON.COM"," ORLANDO FL","","","","ORLANDO","FL","32824-8028","US","US","SEATTLE","WA",""]
["C006224","AMAZON.COM","3082","ACCOUNTS PAYABLE","AMAZON.COM","AMAZON.COM"," DU PONT WA","","","","DU PONT","WA","98327","US","US","SEATTLE","WA",""]
["C006224","AMAZON.COM","3083","ACCOUNTS PAYABLE","AMAZON.COM","AMAZON.COM"," KUTZTOWN PA","","","","KUTZTOWN","PA","19530","US","US","SEATTLE","WA",""]
["C006224","AMAZON.COM","3084","ACCOUNTS PAYABLE","AMAZON.COM","AMAZON.COM"," HEBRON KY","","","","HEBRON","KY","41048","US","US","SEATTLE","WA",""]
["C006224","AMAZON.COM","3085","ACCOUNTS PAYABLE","AMAZON.COM","AMAZON.COM"," PHOENIX AZ","","","","PHOENIX","AZ","85043","US","US","SEATTLE","WA",""]
["C006224","AMAZON.COM","3086","ACCOUNTS PAYABLE","AMAZON.COM","AMAZON.COM"," ROBBINSVILLE NJ","","","","ROBBINSVILLE","NJ","08691","US","US","SEATTLE","WA",""]
["C006224","AMAZON.COM","3087","ACCOUNTS PAYABLE","AMAZON.COM","AMAZON.COM"," PHOENIX AZ","","","","PHOENIX","AZ","85043","US","US","SEATTLE","WA",""]
["C006224","AMAZON.COM","3088","ACCOUNTS PAYABLE","AMAZON.COM","AMAZON.COM"," MORENO VALLEY CA","","","","MORENO VALLEY","CA","92551","US","US","SEATTLE","WA",""]
["C006224","AMAZON.COM","3089","ACCOUNTS PAYABLE","AMAZON.COM","AMAZON.COM"," SHEPHERDSVILLE KY","","","","SHEPHERDSVILLE","KY","40165","US","US","SEATTLE","WA",""]
["C006224","AMAZON.COM","3090","ACCOUNTS PAYABLE","AMAZON.COM","AMAZON.COM"," LAKELAND FL","","","","LAKELAND","FL","33811","US","US","SEATTLE","WA",""]
["C006224","AMAZON.COM","3091","ACCOUNTS PAYABLE","AMAZON.COM","AMAZON.COM"," RUSKIN FL","","","","RUSKIN","FL","33570","US","US","SEATTLE","WA",""]
["C006224","AMAZON.COM","3092","ACCOUNTS PAYABLE","AMAZON.COM","AMAZON.COM"," CARLISLE PA","","","","CARLISLE","PA","17015","US","US","SEATTLE","WA",""]
["C006224","AMAZON.COM","3093","ACCOUNTS PAYABLE","AMAZON.COM","AMAZON.COM"," BREINIGSVILLE PA","","","","BREINIGSVILLE","PA","18031","US","US","SEATTLE","WA",""]
["C006224","AMAZON.COM","3094","ACCOUNTS PAYABLE","AMAZON.COM","AMAZON.COM"," IRVING TX","","","","IRVING","TX","75261","US","US","SEATTLE","WA",""]
["C006224","AMAZON.COM","3095","ACCOUNTS PAYABLE","AMAZON.COM","AMAZON.COM"," CARLISLE PA","","","","CARLISLE","PA","17013","US","US","SEATTLE","WA",""]
["C006224","AMAZON.COM","3096","ACCOUNTS PAYABLE","AMAZON.COM","AMAZON.COM"," STOCKTON CA","","","","STOCKTON","CA","95206","US","US","SEATTLE","WA",""]
["C006224","AMAZON.COM","3097","ACCOUNTS PAYABLE","AMAZON.COM","AMAZON.COM"," SAN BERNARDINO CA","","","","SAN BERNARDINO","CA","92408-0123","US","US","SEATTLE","WA",""]
["C006224","AMAZON.COM","3098","ACCOUNTS PAYABLE","AMAZON.COM","AMAZON.COM"," REDLANDS CA","","","","REDLANDS","CA","92374","US","US","SEATTLE","WA",""]
["C006224","AMAZON.COM","3099","ACCOUNTS PAYABLE","AMAZON.COM","AMAZON.COM"," CARLISLE PA","","","","CARLISLE","PA","17015","US","US","SEATTLE","WA",""]
["C006224","AMAZON.COM","3100","ACCOUNTS PAYABLE","AMAZON.COM","AMAZON.COM"," MORENO VALLEY CA","","","","MORENO VALLEY","CA","92551","US","US","SEATTLE","WA",""]
["C006224","AMAZON.COM","3101","ACCOUNTS PAYABLE","AMAZON.COM","AMAZON.COM"," SUMNER WA","","","","SUMNER","WA","98390","US","US","SEATTLE","WA",""]
["C006224","AMAZON.COM","3102","ACCOUNTS PAYABLE","AMAZON.COM","AMAZON.COM"," ROBBINSVILLE NJ","","","","ROBBINSVILLE","NJ","08691","US","US","SEATTLE","WA",""]
["C006224","AMAZON.COM","3103","ACCOUNTS PAYABLE","AMAZON.COM","AMAZON.COM"," CHARLOTTE NC","","","","CHARLOTTE","NC","28214","US","US","SEATTLE","WA",""]
["C006224","AMAZON.COM","3104","ACCOUNTS PAYABLE","AMAZON.COM","AMAZON.COM"," LIVONIA MI","","","","LIVONIA","MI","48150","US","US","SEATTLE","WA",""]
["C006224","AMAZON.COM","3105","ACCOUNTS PAYABLE","AMAZON.COM","AMAZON.COM"," SHELBY CHARTER TOWNSHIP MI","","","","SHELBY CHARTER TOWNSHIP","MI","48317","US","US","SEATTLE","WA",""]
["C006224","AMAZON.COM","3106","ACCOUNTS PAYABLE","AMAZON.COM","AMAZON.COM"," MONROE OH","","","","MONROE","OH","45050","US","US","SEATTLE","WA",""]
["C006224","AMAZON.COM","3107","ACCOUNTS PAYABLE","AMAZON.COM","AMAZON.COM"," FONTANA CA","","","","FONTANA","CA","92337","US","US","SEATTLE","WA",""]
["C006224","AMAZON.COM","3108","ACCOUNTS PAYABLE","AMAZON.COM","AMAZON.COM"," MONROE OH","","","","MONROE","OH","45050","US","US","SEATTLE","WA",""]
["C006224","AMAZON.COM","3109","ACCOUNTS PAYABLE","AMAZON.COM","AMAZON.COM"," SALEM OR","","","","SALEM","OR","97317","US","US","SEATTLE","WA",""]
["C006224","AMAZON.COM","3110","ACCOUNTS PAYABLE","AMAZON.COM","AMAZON.COM"," HEBRON KY","","","","HEBRON","KY","41048","US","US","SEATTLE","WA",""]
["C006224","AMAZON.COM","3111","ACCOUNTS PAYABLE","AMAZON.COM","AMAZON.COM"," SHEPHERDSVILLE KY","","","","SHEPHERDSVILLE","KY","40165","US","US","SEATTLE","WA",""]
["C006224","AMAZON.COM","3112","ACCOUNTS PAYABLE","AMAZON.COM","AMAZON.COM"," SHEPHERDSVILLE KY","","","","SHEPHERDSVILLE","KY","40165","US","US","SEATTLE","WA",""]
["C006224","AMAZON.COM","3113","ACCOUNTS PAYABLE","AMAZON.COM","AMAZON.COM"," BURLINGTON NJ","","","","BURLINGTON","NJ","08016-1934","US","US","SEATTLE","WA",""]
["C006224","AMAZON.COM","3114","ACCOUNTS PAYABLE","AMAZON.COM","AMAZON.COM"," SAN BERNARDINO CA","","","","SAN BERNARDINO","CA","92408-2453","US","US","SEATTLE","WA",""]
["C006224","AMAZON.COM","3115","ACCOUNTS PAYABLE","AMAZON.COM","AMAZON.COM"," MEMPHIS TN","","","","MEMPHIS","TN","38118-7830","US","US","SEATTLE","WA",""]
["C006224","AMAZON.COM","3116","ACCOUNTS PAYABLE","AMAZON.COM","AMAZON.COM"," MONEE IL","","","","MONEE","IL","60449","US","US","SEATTLE","WA",""]
["C006224","AMAZON.COM","3117","ACCOUNTS PAYABLE","AMAZON.COM","AMAZON.COM"," ROBBINSVILLE NJ","","","","ROBBINSVILLE","NJ","08691","US","US","SEATTLE","WA",""]
["C006224","AMAZON.COM","3118","ACCOUNTS PAYABLE","AMAZON.COM","AMAZON.COM"," SALEM OR","","","","SALEM","OR","97317-8983","US","US","SEATTLE","WA",""]
["C006224","AMAZON.COM","3119","ACCOUNTS PAYABLE","AMAZON.COM","AMAZON.COM"," MACON GA","","","","MACON","GA","31216","US","US","SEATTLE","WA",""]
["C006224","AMAZON.COM","3120","ACCOUNTS PAYABLE","AMAZON.COM","AMAZON.COM"," BALTIMORE MD","","","","BALTIMORE","MD","21224","US","US","SEATTLE","WA",""]
["C006224","AMAZON.COM","3121","ACCOUNTS PAYABLE","AMAZON.COM","AMAZON.COM"," RENO NV","","","","RENO","NV","89506","US","US","SEATTLE","WA",""]
["C006237","OAKRIDGE BIKE SHOP","180","PO BOX 630","OAKRIDGE BIKE SHOP","OAKRIDGE BIKE SHOP"," OAKRIDGE OR","","","","OAKRIDGE","OR","97463","US","US","OAKRIDGE","OR",""]
["C006237","OAKRIDGE BIKE SHOP","1878","PO BOX 630","OAKRIDGE BIKE SHOP","OAKRIDGE BIKE SHOP"," OAKRIDGE OR","","","","OAKRIDGE","OR","97463","US","US","OAKRIDGE","OR",""]
["C006241","TAHOE CROSS COUNTRY SKI AREA INC","2569","PO BOX 7260","TAHOE CROSS COUNTRY SKI AREA INC","TAHOE CROSS COUNTRY SKI AREA INC"," TAHOE CITY CA","","","","TAHOE CITY","CA","96145","US","US","TAHOE CITY","CA",""]
["C006241","TAHOE CROSS COUNTRY SKI AREA INC","825","PO BOX 7260","TAHOE CROSS COUNTRY SKI AREA INC","TAHOE CROSS COUNTRY SKI AREA INC"," TAHOE CITY CA","","","","TAHOE CITY","CA","96145","US","US","TAHOE CITY","CA",""]
["C006242","EASTERN MOUNTAIN SPORTS","2573","160 CORPORATE COURT","EASTERN MOUNTAIN SPORTS","EASTERN MOUNTAIN SPORTS"," MIDDLETOWN RI","","","","MIDDLETOWN","RI","02842","US","US","MERIDEN","CT",""]
["C006242","EASTERN MOUNTAIN SPORTS","2574","160 CORPORATE COURT","EASTERN MOUNTAIN SPORTS","EASTERN MOUNTAIN SPORTS"," NORTHBOROUGH MA","","","","NORTHBOROUGH","MA","01532","US","US","MERIDEN","CT",""]
["C006242","EASTERN MOUNTAIN SPORTS","2575","160 CORPORATE COURT","EASTERN MOUNTAIN SPORTS","EASTERN MOUNTAIN SPORTS"," PETERBOROUGH NH","","","","PETERBOROUGH","NH","03458","US","US","MERIDEN","CT",""]
["C006242","EASTERN MOUNTAIN SPORTS","2576","160 CORPORATE COURT","EASTERN MOUNTAIN SPORTS","EASTERN MOUNTAIN SPORTS"," ITHACA NY","","","","ITHACA","NY","14850","US","US","MERIDEN","CT",""]
["C006242","EASTERN MOUNTAIN SPORTS","2577","160 CORPORATE COURT","EASTERN MOUNTAIN SPORTS","EASTERN MOUNTAIN SPORTS"," ACTON MA","","","","ACTON","MA","01720","US","US","MERIDEN","CT",""]
["C006242","EASTERN MOUNTAIN SPORTS","2578","160 CORPORATE COURT","EASTERN MOUNTAIN SPORTS","EASTERN MOUNTAIN SPORTS"," CAMBRIDGE MA","","","","CAMBRIDGE","MA","02138","US","US","MERIDEN","CT",""]
["C006242","EASTERN MOUNTAIN SPORTS","2579","160 CORPORATE COURT","EASTERN MOUNTAIN SPORTS","EASTERN MOUNTAIN SPORTS"," SARATOGA SPRINGS NY","","","","SARATOGA SPRINGS","NY","12866","US","US","MERIDEN","CT",""]
["C006242","EASTERN MOUNTAIN SPORTS","2580","160 CORPORATE COURT","EASTERN MOUNTAIN SPORTS","EASTERN MOUNTAIN SPORTS"," FAYETTEVILLE NY","","","","FAYETTEVILLE","NY","13066","US","US","MERIDEN","CT",""]
["C006242","EASTERN MOUNTAIN SPORTS","2581","160 CORPORATE COURT","EASTERN MOUNTAIN SPORTS","EASTERN MOUNTAIN SPORTS"," SCHENECTADY NY","","","","SCHENECTADY","NY","12304","US","US","MERIDEN","CT",""]
["C006242","EASTERN MOUNTAIN SPORTS","2582","160 CORPORATE COURT","EASTERN MOUNTAIN SPORTS","EASTERN MOUNTAIN SPORTS"," LANESBOROUGH MA","","","","LANESBOROUGH","MA","01237","US","US","MERIDEN","CT",""]
["C006242","EASTERN MOUNTAIN SPORTS","2583","160 CORPORATE COURT","EASTERN MOUNTAIN SPORTS","EASTERN MOUNTAIN SPORTS"," POUGHKEEPSIE NY","","","","POUGHKEEPSIE","NY","12601","US","US","MERIDEN","CT",""]
["C006242","EASTERN MOUNTAIN SPORTS","2584","160 CORPORATE COURT","EASTERN MOUNTAIN SPORTS","EASTERN MOUNTAIN SPORTS"," EATONTOWN NJ","","","","EATONTOWN","NJ","07724","US","US","MERIDEN","CT",""]
["C006242","EASTERN MOUNTAIN SPORTS","2585","160 CORPORATE COURT","EASTERN MOUNTAIN SPORTS","EASTERN MOUNTAIN SPORTS"," EXTON PA","","","","EXTON","PA","19341","US","US","MERIDEN","CT",""]
["C006242","EASTERN MOUNTAIN SPORTS","2586","160 CORPORATE COURT","EASTERN MOUNTAIN SPORTS","EASTERN MOUNTAIN SPORTS"," MERIDEN CT","","","","MERIDEN","CT","06450","US","US","MERIDEN","CT",""]
["C006242","EASTERN MOUNTAIN SPORTS","2587","160 CORPORATE COURT","EASTERN MOUNTAIN SPORTS","EASTERN MOUNTAIN SPORTS"," ALBANY NY","","","","ALBANY","NY","12203","US","US","MERIDEN","CT",""]
["C006242","EASTERN MOUNTAIN SPORTS","2588","160 CORPORATE COURT","EASTERN MOUNTAIN SPORTS","EASTERN MOUNTAIN SPORTS"," PORTSMOUTH NH","","","","PORTSMOUTH","NH","03801","US","US","MERIDEN","CT",""]
["C006242","EASTERN MOUNTAIN SPORTS","2589","160 CORPORATE COURT","EASTERN MOUNTAIN SPORTS","EASTERN MOUNTAIN SPORTS"," NEWTON MA","","","","NEWTON","MA","02464","US","US","MERIDEN","CT",""]
["C006242","EASTERN MOUNTAIN SPORTS","2590","160 CORPORATE COURT","EASTERN MOUNTAIN SPORTS","EASTERN MOUNTAIN SPORTS"," ROCHESTER NY","","","","ROCHESTER","NY","14618","US","US","MERIDEN","CT",""]
["C006242","EASTERN MOUNTAIN SPORTS","2591","160 CORPORATE COURT","EASTERN MOUNTAIN SPORTS","EASTERN MOUNTAIN SPORTS"," WARRINGTON PA","","","","WARRINGTON","PA","18976","US","US","MERIDEN","CT",""]
["C006242","EASTERN MOUNTAIN SPORTS","2592","160 CORPORATE COURT","EASTERN MOUNTAIN SPORTS","EASTERN MOUNTAIN SPORTS"," CONCORD NH","","","","CONCORD","NH","03301","US","US","MERIDEN","CT",""]
["C006242","EASTERN MOUNTAIN SPORTS","2593","160 CORPORATE COURT","EASTERN MOUNTAIN SPORTS","EASTERN MOUNTAIN SPORTS"," MANCHESTER CT","","","","MANCHESTER","CT","06040","US","US","MERIDEN","CT",""]
["C006242","EASTERN MOUNTAIN SPORTS","2594","160 CORPORATE COURT","EASTERN MOUNTAIN SPORTS","EASTERN MOUNTAIN SPORTS"," BOURNE MA","","","","BOURNE","MA","02532","US","US","MERIDEN","CT",""]
["C006242","EASTERN MOUNTAIN SPORTS","2595","160 CORPORATE COURT","EASTERN MOUNTAIN SPORTS","EASTERN MOUNTAIN SPORTS"," ANNAPOLIS MD","","","","ANNAPOLIS","MD","21401","US","US","MERIDEN","CT",""]
["C006242","EASTERN MOUNTAIN SPORTS","2596","160 CORPORATE COURT","EASTERN MOUNTAIN SPORTS","EASTERN MOUNTAIN SPORTS"," AMHERST NY","","","","AMHERST","NY","14228","US","US","MERIDEN","CT",""]
["C006242","EASTERN MOUNTAIN SPORTS","2597","160 CORPORATE COURT","EASTERN MOUNTAIN SPORTS","EASTERN MOUNTAIN SPORTS"," N CONWAY NH","","","","N CONWAY","NH","03860","US","US","MERIDEN","CT",""]
["C006242","EASTERN MOUNTAIN SPORTS","2598","160 CORPORATE COURT","EASTERN MOUNTAIN SPORTS","EASTERN MOUNTAIN SPORTS"," LYNNFIELD MA","","","","LYNNFIELD","MA","01940","US","US","MERIDEN","CT",""]
["C006242","EASTERN MOUNTAIN SPORTS","2599","160 CORPORATE COURT","EASTERN MOUNTAIN SPORTS","EASTERN MOUNTAIN SPORTS"," DANBURY CT","","","","DANBURY","CT","06810","US","US","MERIDEN","CT",""]
["C006242","EASTERN MOUNTAIN SPORTS","2600","160 CORPORATE COURT","EASTERN MOUNTAIN SPORTS","EASTERN MOUNTAIN SPORTS"," NASHUA NH","","","","NASHUA","NH","03060","US","US","MERIDEN","CT",""]
["C006242","EASTERN MOUNTAIN SPORTS","2601","160 CORPORATE COURT","EASTERN MOUNTAIN SPORTS","EASTERN MOUNTAIN SPORTS"," BURLINGTON VT","","","","BURLINGTON","VT","05403","US","US","MERIDEN","CT",""]
["C006242","EASTERN MOUNTAIN SPORTS","2602","160 CORPORATE COURT","EASTERN MOUNTAIN SPORTS","EASTERN MOUNTAIN SPORTS"," MERIDEN CT","","","","MERIDEN","CT","06450","US","US","MERIDEN","CT",""]
["C006242","EASTERN MOUNTAIN SPORTS","2603","160 CORPORATE COURT","EASTERN MOUNTAIN SPORTS","EASTERN MOUNTAIN SPORTS"," BOSTON MA","","","","BOSTON","MA","02215","US","US","MERIDEN","CT",""]
["C006242","EASTERN MOUNTAIN SPORTS","2604","160 CORPORATE COURT","EASTERN MOUNTAIN SPORTS","EASTERN MOUNTAIN SPORTS"," MANCHESTER CENTER VT","","","","MANCHESTER CENTER","VT","05255","US","US","MERIDEN","CT",""]
["C006242","EASTERN MOUNTAIN SPORTS","2605","160 CORPORATE COURT","EASTERN MOUNTAIN SPORTS","EASTERN MOUNTAIN SPORTS"," STAMFORD CT","","","","STAMFORD","CT","06905","US","US","MERIDEN","CT",""]
["C006242","EASTERN MOUNTAIN SPORTS","2606","160 CORPORATE COURT","EASTERN MOUNTAIN SPORTS","EASTERN MOUNTAIN SPORTS"," HAVERFORD PA","","","","HAVERFORD","PA","19041","US","US","MERIDEN","CT",""]
["C006242","EASTERN MOUNTAIN SPORTS","2607","160 CORPORATE COURT","EASTERN MOUNTAIN SPORTS","EASTERN MOUNTAIN SPORTS"," RUTLAND VT","","","","RUTLAND","VT","05701","US","US","MERIDEN","CT",""]
["C006242","EASTERN MOUNTAIN SPORTS","2608","160 CORPORATE COURT","EASTERN MOUNTAIN SPORTS","EASTERN MOUNTAIN SPORTS"," LAKE PLACID NY","","","","LAKE PLACID","NY","12946","US","US","MERIDEN","CT",""]
["C006242","EASTERN MOUNTAIN SPORTS","2609","160 CORPORATE COURT","EASTERN MOUNTAIN SPORTS","EASTERN MOUNTAIN SPORTS"," MERIDEN CT","","","","MERIDEN","CT","06450","US","US","MERIDEN","CT",""]
["C006242","EASTERN MOUNTAIN SPORTS","2610","160 CORPORATE COURT","EASTERN MOUNTAIN SPORTS","EASTERN MOUNTAIN SPORTS"," HYANNIS MA","","","","HYANNIS","MA","02601","US","US","MERIDEN","CT",""]
["C006242","EASTERN MOUNTAIN SPORTS","2611","160 CORPORATE COURT","EASTERN MOUNTAIN SPORTS","EASTERN MOUNTAIN SPORTS"," FAIRFIELD CT","","","","FAIRFIELD","CT","06825","US","US","MERIDEN","CT",""]
["C006242","EASTERN MOUNTAIN SPORTS","2612","160 CORPORATE COURT","EASTERN MOUNTAIN SPORTS","EASTERN MOUNTAIN SPORTS"," PORTLAND ME","","","","PORTLAND","ME","04101","US","US","MERIDEN","CT",""]
["C006242","EASTERN MOUNTAIN SPORTS","2613","160 CORPORATE COURT","EASTERN MOUNTAIN SPORTS","EASTERN MOUNTAIN SPORTS"," HADLEY MA","","","","HADLEY","MA","01035","US","US","MERIDEN","CT",""]
["C006242","EASTERN MOUNTAIN SPORTS","2614","160 CORPORATE COURT","EASTERN MOUNTAIN SPORTS","EASTERN MOUNTAIN SPORTS"," SCARSDALE NY","","","","SCARSDALE","NY","10583","US","US","MERIDEN","CT",""]
["C006242","EASTERN MOUNTAIN SPORTS","2615","160 CORPORATE COURT","EASTERN MOUNTAIN SPORTS","EASTERN MOUNTAIN SPORTS"," BRIDGEWATER NJ","","","","BRIDGEWATER","NJ","08807","US","US","MERIDEN","CT",""]
["C006242","EASTERN MOUNTAIN SPORTS","2616","160 CORPORATE COURT","EASTERN MOUNTAIN SPORTS","EASTERN MOUNTAIN SPORTS"," MANCHESTER NH","","","","MANCHESTER","NH","03103","US","US","MERIDEN","CT",""]
["C006242","EASTERN MOUNTAIN SPORTS","2617","160 CORPORATE COURT","EASTERN MOUNTAIN SPORTS","EASTERN MOUNTAIN SPORTS"," SYRACUSE NY","","","","SYRACUSE","NY","13290","US","US","MERIDEN","CT",""]
["C006242","EASTERN MOUNTAIN SPORTS","2618","160 CORPORATE COURT","EASTERN MOUNTAIN SPORTS","EASTERN MOUNTAIN SPORTS"," SALEM NH","","","","SALEM","NH","03079","US","US","MERIDEN","CT",""]
["C006242","EASTERN MOUNTAIN SPORTS","2619","160 CORPORATE COURT","EASTERN MOUNTAIN SPORTS","EASTERN MOUNTAIN SPORTS"," COLLEGEVILLE PA","","","","COLLEGEVILLE","PA","19426","US","US","MERIDEN","CT",""]
["C006242","EASTERN MOUNTAIN SPORTS","2620","160 CORPORATE COURT","EASTERN MOUNTAIN SPORTS","EASTERN MOUNTAIN SPORTS"," MERIDEN CT","","","","MERIDEN","CT","06450","US","US","MERIDEN","CT",""]
["C006242","EASTERN MOUNTAIN SPORTS","2621","160 CORPORATE COURT","EASTERN MOUNTAIN SPORTS","EASTERN MOUNTAIN SPORTS"," WILMINGTON DE","","","","WILMINGTON","DE","19803","US","US","MERIDEN","CT",""]
["C006242","EASTERN MOUNTAIN SPORTS","2622","160 CORPORATE COURT","EASTERN MOUNTAIN SPORTS","EASTERN MOUNTAIN SPORTS"," LANCASTER PA","","","","LANCASTER","PA","17601","US","US","MERIDEN","CT",""]
["C006242","EASTERN MOUNTAIN SPORTS","2623","160 CORPORATE COURT","EASTERN MOUNTAIN SPORTS","EASTERN MOUNTAIN SPORTS"," WATERFORD CT","","","","WATERFORD","CT","06385","US","US","MERIDEN","CT",""]
["C006242","EASTERN MOUNTAIN SPORTS","2624","160 CORPORATE COURT","EASTERN MOUNTAIN SPORTS","EASTERN MOUNTAIN SPORTS"," WEST LEBANON NH","","","","WEST LEBANON","NH","03784","US","US","MERIDEN","CT",""]
["C006242","EASTERN MOUNTAIN SPORTS","2625","160 CORPORATE COURT","EASTERN MOUNTAIN SPORTS","EASTERN MOUNTAIN SPORTS"," AVON CT","","","","AVON","CT","06001","US","US","MERIDEN","CT",""]
["C006242","EASTERN MOUNTAIN SPORTS","2626","160 CORPORATE COURT","EASTERN MOUNTAIN SPORTS","EASTERN MOUNTAIN SPORTS"," PRINCETON NJ","","","","PRINCETON","NJ","08540","US","US","MERIDEN","CT",""]
["C006242","EASTERN MOUNTAIN SPORTS","2627","160 CORPORATE COURT","EASTERN MOUNTAIN SPORTS","EASTERN MOUNTAIN SPORTS"," MARLBOROUGH MA","","","","MARLBOROUGH","MA","01752","US","US","MERIDEN","CT",""]
["C006242","EASTERN MOUNTAIN SPORTS","2628","160 CORPORATE COURT","EASTERN MOUNTAIN SPORTS","EASTERN MOUNTAIN SPORTS"," MERIDEN CT","","","","MERIDEN","CT","06450","US","US","MERIDEN","CT",""]
["C006242","EASTERN MOUNTAIN SPORTS","827","160 CORPORATE COURT","EASTERN MOUNTAIN SPORTS","EASTERN MOUNTAIN SPORTS"," MERIDEN CT","","","","MERIDEN","CT","06450","US","US","MERIDEN","CT",""]
["C006246","SKI AND SPORT SHACK, LTD","2642","220 Nahant St","SKI AND SPORT SHACK, LTD","SKI AND SPORT SHACK, LTD"," STONEHAM MA","","","","STONEHAM","MA","02180","US","US","Wakefield","MA",""]
["C006246","SKI AND SPORT SHACK, LTD","857","220 Nahant St","SKI AND SPORT SHACK, LTD","SKI AND SPORT SHACK, LTD"," Wakefield MA","","","","Wakefield","MA","01880-3425","US","US","Wakefield","MA",""]
["C006248","GEAR CO-OP, LLC","2046","1420 VILLAGE WAY","GEAR CO-OP, LLC","GEAR CO-OP, LLC"," COSTA MESA CA","","","","COSTA MESA","CA","92626","US","US","SANTA ANA","CA",""]
["C006248","GEAR CO-OP, LLC","377","1420 VILLAGE WAY","GEAR CO-OP, LLC","GEAR CO-OP, LLC"," SANTA ANA CA","","","","SANTA ANA","CA","92705","US","US","SANTA ANA","CA",""]
["C006250","MOUNTAIN DOGS INC","886","12 PLAISTOW RD","MOUNTAIN DOGS INC","MOUNTAIN DOGS INC"," PLAISTOW NH","","","","PLAISTOW","NH","03865","US","US","PLAISTOW","NH",""]
["C006256","GUNNISON SPORTS OUTLET LLC","868","201 W TOMICHI AVE","GUNNISON SPORTS OUTLET LLC","GUNNISON SPORTS OUTLET LLC"," GUNNISON CO","","","","GUNNISON","CO","81230","US","US","GUNNISON","CO",""]
["C006257","JAKES HIWAY 2 SPORTS","2634","32901 138TH SE","JAKES HIWAY 2 SPORTS","JAKES HIWAY 2 SPORTS"," GOLD BAR WA","","","","GOLD BAR","WA","98251","US","US","SULTAN","WA",""]
["C006257","JAKES HIWAY 2 SPORTS","837","32901 138TH SE","JAKES HIWAY 2 SPORTS","JAKES HIWAY 2 SPORTS"," SULTAN WA","","","","SULTAN","WA","98294","US","US","SULTAN","WA",""]
["C006262","MCCLOUD OUTDOORS & GEAR EXCHANGE","2481","PO BOX 4","MCCLOUD OUTDOORS & GEAR EXCHANGE","MCCLOUD OUTDOORS & GEAR EXCHANGE"," MCCLOUD CA","","","","MCCLOUD","CA","96057","US","US","MCCLOUD","CA",""]
["C006262","MCCLOUD OUTDOORS & GEAR EXCHANGE","755","PO BOX 4","MCCLOUD OUTDOORS & GEAR EXCHANGE","MCCLOUD OUTDOORS & GEAR EXCHANGE"," MCCLOUD CA","","","","MCCLOUD","CA","96057","US","US","MCCLOUD","CA",""]
["C006275","OUTDOORS GEEK","730","4431 GLENCOE STREET","OUTDOORS GEEK","OUTDOORS GEEK"," DENVER CO","","","","DENVER","CO","80216","US","US","DENVER","CO",""]
["C006276","HARD HEADED","2469","SUMMIT SHADE SPORTS INC","HARD HEADED","HARD HEADED"," STEAMBOAT SPRINGS CO","","","","STEAMBOAT SPRINGS","CO","80487","US","US","STEAMBOAT SPRINGS","CO",""]
["C006276","HARD HEADED","729","SUMMIT SHADE SPORTS INC","HARD HEADED","HARD HEADED"," STEAMBOAT SPRINGS CO","","","","STEAMBOAT SPRINGS","CO","80487","US","US","STEAMBOAT SPRINGS","CO",""]
["C006280","MOVATIK CORP.","2471","3579 NW 82ND AVENUE","MOVATIK CORP.","MOVATIK CORP."," MIAMI FL","","","","MIAMI","FL","33126","US","US","DORAL","FL",""]
["C006280","MOVATIK CORP.","732","3579 NW 82ND AVENUE","MOVATIK CORP.","MOVATIK CORP."," DORAL FL","","","","DORAL","FL","33122","US","US","DORAL","FL",""]
["C006281","AMERICAN VALLEY ENVIRONMENTAL LLC","724","FEATHER RIVER OUTDOORS","AMERICAN VALLEY ENVIRONMENTAL LLC","AMERICAN VALLEY ENVIRONMENTAL LLC"," QUINCY CA","","","","QUINCY","CA","95971","US","US","QUINCY","CA",""]
["C006283","LJC FEED","2465","PO BOX 829","LJC FEED","LJC FEED"," CAMAS WA","","","","CAMAS","WA","98607","US","US","CAMAS","WA",""]
["C006283","LJC FEED","727","PO BOX 829","LJC FEED","LJC FEED"," CAMAS WA","","","","CAMAS","WA","98607","US","US","CAMAS","WA",""]
["C006304","42 DEGREES NORTH","806","128 S. CENTER STREET","42 DEGREES NORTH","42 DEGREES NORTH"," CASPER WY","","","","CASPER","WY","82601","US","US","CASPER","WY",""]
["C006305","TAOS MOUNTAIN OUTFITTERS","812","ALL WHO WANDER INC","TAOS MOUNTAIN OUTFITTERS","TAOS MOUNTAIN OUTFITTERS"," TAOS NM","","","","TAOS","NM","87571","US","US","TAOS","NM",""]
["C006308","THINK FAST TOYS","1984","114 DIXON STREET","THINK FAST TOYS","THINK FAST TOYS"," SELBYVILLE DE","","","","SELBYVILLE","DE","19975","US","US","SELBYVILLE","DE",""]
["C006308","THINK FAST TOYS","289","114 DIXON STREET","THINK FAST TOYS","THINK FAST TOYS"," SELBYVILLE DE","","","","SELBYVILLE","DE","19975","US","US","SELBYVILLE","DE",""]
["C006313","BOTHELL SKI AND BIKE","820","8020 BOTHELL WAY NE","BOTHELL SKI AND BIKE","BOTHELL SKI AND BIKE"," KENMORE WA","","","","KENMORE","WA","98028","US","US","KENMORE","WA",""]
["C006314","ELEVEN","781","330 BELLEVIEW AVE","ELEVEN","ELEVEN"," CRESTED BUTTE CO","","","","CRESTED BUTTE","CO","81224","US","US","CRESTED BUTTE","CO",""]
["C006320","EVO","2551","EVOLUTION INNOVATIONS LLC","EVO","EVO"," SEATTLE WA","","","","SEATTLE","WA","98103","US","US","SEATTLE","WA",""]
["C006320","EVO","2552","EVOLUTION INNOVATIONS LLC","EVO","EVO"," DENVER CO","","","","DENVER","CO","80203","US","US","SEATTLE","WA",""]
["C006320","EVO","2553","EVOLUTION INNOVATIONS LLC","EVO","EVO"," SALT LAKE CITY UT","","","","SALT LAKE CITY","UT","84101","US","US","SEATTLE","WA",""]
["C006320","EVO","2554","EVOLUTION INNOVATIONS LLC","EVO","EVO"," SNOQUALMIE WA","","","","SNOQUALMIE","WA","98068","US","US","SEATTLE","WA",""]
["C006320","EVO","2555","EVOLUTION INNOVATIONS LLC","EVO","EVO"," HOOD RIVER OR","","","","HOOD RIVER","OR","97031","US","US","SEATTLE","WA",""]
["C006320","EVO","2556","EVOLUTION INNOVATIONS LLC","EVO","EVO"," PORTLAND OR","","","","PORTLAND","OR","97214","US","US","SEATTLE","WA",""]
["C006320","EVO","2557","EVOLUTION INNOVATIONS LLC","EVO","EVO"," SEATTLE WA","","","","SEATTLE","WA","98107","US","US","SEATTLE","WA",""]
["C006320","EVO","2558","EVOLUTION INNOVATIONS LLC","EVO","EVO"," SEATTLE WA","","","","SEATTLE","WA","98103","US","US","SEATTLE","WA",""]
["C006320","EVO","2559","EVOLUTION INNOVATIONS LLC","EVO","EVO"," AUBURN WA","","","","AUBURN","WA","98001","US","US","SEATTLE","WA",""]
["C006320","EVO","2560","EVOLUTION INNOVATIONS LLC","EVO","EVO"," DENVER CO","","","","DENVER","CO","80203","US","US","SEATTLE","WA",""]
["C006320","EVO","2561","EVOLUTION INNOVATIONS LLC","EVO","EVO"," SUMNER WA","","","","SUMNER","WA","98390","US","US","SEATTLE","WA",""]
["C006320","EVO","39798","EVOLUTION INNOVATIONS LLC","EVO","EVO"," Santa Barbara CA","","","","Santa Barbara","CA","93101","US","US","SEATTLE","WA",""]
["C006320","EVO","815","EVOLUTION INNOVATIONS LLC","EVO","EVO"," SEATTLE WA","","","","SEATTLE","WA","98103","US","US","SEATTLE","WA",""]
["C006322","CRYSTAL RIVER OUTFITTERS","1967","WIESEN PROPERTIES","CRYSTAL RIVER OUTFITTERS","CRYSTAL RIVER OUTFITTERS"," GLEN ARBOR MI","","","","GLEN ARBOR","MI","49636","US","US","GLEN ARBOR","MI",""]
["C006322","CRYSTAL RIVER OUTFITTERS","262","WIESEN PROPERTIES","CRYSTAL RIVER OUTFITTERS","CRYSTAL RIVER OUTFITTERS"," GLEN ARBOR MI","","","","GLEN ARBOR","MI","49636","US","US","GLEN ARBOR","MI",""]
["C006326","BLOWN MOTOR","2495","ALPHA POWERSPORTS INC","BLOWN MOTOR","BLOWN MOTOR"," DRAPER UT","","","","DRAPER","UT","84020","US","US","SAINT GEORGE","UT",""]
["C006326","BLOWN MOTOR","789","ALPHA POWERSPORTS INC","BLOWN MOTOR","BLOWN MOTOR"," SAINT GEORGE UT","","","","SAINT GEORGE","UT","84770","US","US","SAINT GEORGE","UT",""]
["C006337","SAWTOOTH OUTFITTERS","2854","PO BOX 2214","SAWTOOTH OUTFITTERS","SAWTOOTH OUTFITTERS"," TOFTE MN","","","","TOFTE","MN","55615","US","US","TOFTE","MN",""]
["C006337","SAWTOOTH OUTFITTERS","986","PO BOX 2214","SAWTOOTH OUTFITTERS","SAWTOOTH OUTFITTERS"," TOFTE MN","","","","TOFTE","MN","55615","US","US","TOFTE","MN",""]
["C006341","THE INTERNATIONAL BORDER CO","984","IBC INC","THE INTERNATIONAL BORDER CO","THE INTERNATIONAL BORDER CO"," MALONE NY","","","","MALONE","NY","12953","US","US","MALONE","NY",""]
["C006342","STEVENS PASS MOUNTAIN RESORT","2129","PO BOX 609","STEVENS PASS MOUNTAIN RESORT","STEVENS PASS MOUNTAIN RESORT"," SKYKOMISH WA","","","","SKYKOMISH","WA","98288","US","US","LEAVENWORTH","WA",""]
["C006342","STEVENS PASS MOUNTAIN RESORT","497","PO BOX 609","STEVENS PASS MOUNTAIN RESORT","STEVENS PASS MOUNTAIN RESORT"," LEAVENWORTH WA","","","","LEAVENWORTH","WA","98826","US","US","LEAVENWORTH","WA",""]
["C006343","PINEY CREEK NORDIC CENTER TENNESSEE PASS","992","1101 ASH ST.","PINEY CREEK NORDIC CENTER TENNESSEE PASS","PINEY CREEK NORDIC CENTER TENNESSEE PASS"," LEADVILLE CO","","","","LEADVILLE","CO","80461","US","US","LEADVILLE","CO",""]
["C006344","MOUNTAIN OUTFITTERS","2140","VIVERIEL SOGNO, LLC","MOUNTAIN OUTFITTERS","MOUNTAIN OUTFITTERS"," BRECKENRIDGE CO","","","","BRECKENRIDGE","CO","80424","US","US","BRECKENRIDGE","CO",""]
["C006344","MOUNTAIN OUTFITTERS","512","VIVERIEL SOGNO, LLC","MOUNTAIN OUTFITTERS","MOUNTAIN OUTFITTERS"," BRECKENRIDGE CO","","","","BRECKENRIDGE","CO","80424","US","US","BRECKENRIDGE","CO",""]
["C006351","SUTTONS BAY BIKES","2156","GRAND TRAVERSE BIKE TOURS LLC","SUTTONS BAY BIKES","SUTTONS BAY BIKES"," SUTTONS BAY MI","","","","SUTTONS BAY","MI","49682","US","US","SUTTONS BAY","MI",""]
["C006351","SUTTONS BAY BIKES","548","GRAND TRAVERSE BIKE TOURS LLC","SUTTONS BAY BIKES","SUTTONS BAY BIKES"," SUTTONS BAY MI","","","","SUTTONS BAY","MI","49682","US","US","SUTTONS BAY","MI",""]
["C006356","JOSEPH'S SPORTING GOODS","556","LATENDRESSE WINKIN INC","JOSEPH'S SPORTING GOODS","JOSEPH'S SPORTING GOODS"," WATERVILLE ME","","","","WATERVILLE","ME","04901","US","US","WATERVILLE","ME",""]
["C006359","OUTLAND USA","2683","WHITESTONE INVESTMENTS INC","OUTLAND USA","OUTLAND USA"," NOLENSVILLE TN","","","","NOLENSVILLE","TN","37135","US","US","NOLENSVILLE","TN",""]
["C006359","OUTLAND USA","2684","WHITESTONE INVESTMENTS INC","OUTLAND USA","OUTLAND USA"," NOLENSVILLE TN","","","","NOLENSVILLE","TN","37135-9513","US","US","NOLENSVILLE","TN",""]
["C006359","OUTLAND USA","923","WHITESTONE INVESTMENTS INC","OUTLAND USA","OUTLAND USA"," NOLENSVILLE TN","","","","NOLENSVILLE","TN","37135","US","US","NOLENSVILLE","TN",""]
["C006360","MURDOCKS SPORTS","935","177 WEST FIRST STREET","MURDOCKS SPORTS","MURDOCKS SPORTS"," OSWEGO NY","","","","OSWEGO","NY","13126","US","US","OSWEGO","NY",""]
["C006362","SPORTSMENS OF LITCHFIELD","879","CHEROSNICK ENT INC","SPORTSMENS OF LITCHFIELD","SPORTSMENS OF LITCHFIELD"," LITCHFIELD CT","","","","LITCHFIELD","CT","06759","US","US","LITCHFIELD","CT",""]
["C006364","BEAR VALLEY CROSS COUNTRY","2685","PO BOX 5120","BEAR VALLEY CROSS COUNTRY","BEAR VALLEY CROSS COUNTRY"," BEAR VALLEY CA","","","","BEAR VALLEY","CA","95223","US","US","BEAR VALLEY","CA",""]
["C006364","BEAR VALLEY CROSS COUNTRY","926","PO BOX 5120","BEAR VALLEY CROSS COUNTRY","BEAR VALLEY CROSS COUNTRY"," BEAR VALLEY CA","","","","BEAR VALLEY","CA","95223","US","US","BEAR VALLEY","CA",""]
["C006381","BLACKBIRD","903","1810 W MAIN","BLACKBIRD","BLACKBIRD"," MEDFORD OR","","","","MEDFORD","OR","97501","US","US","MEDFORD","OR",""]
["C006389","PACHALETA INC","1117","5987 NW 102ND AVE","PACHALETA INC","PACHALETA INC"," DORAL FL","","","","DORAL","FL","33178","US","US","DORAL","FL",""]
["C006389","PACHALETA INC","3170","5987 NW 102ND AVE","PACHALETA INC","PACHALETA INC"," DORAL FL","","","","DORAL","FL","33178","US","US","DORAL","FL",""]
["C006403","ALPINE SHOP","1526","BNE INC","ALPINE SHOP","ALPINE SHOP"," SANDPOINT ID","","","","SANDPOINT","ID","83864","US","US","SANDPOINT","ID",""]
["C006405","WAYNE'S SKI AND CYCLE","1073","4700 4TH ST SW","WAYNE'S SKI AND CYCLE","WAYNE'S SKI AND CYCLE"," MASON CITY IA","","","","MASON CITY","IA","50401","US","US","MASON CITY","IA",""]
["C006409","ENWILD, INC","1064","708 DITZ DR","ENWILD, INC","ENWILD, INC"," MANHEIM PA","","","","MANHEIM","PA","17545","US","US","MANHEIM","PA",""]
["C006409","ENWILD, INC","3129","708 DITZ DR","ENWILD, INC","ENWILD, INC"," MANHEIM PA","","","","MANHEIM","PA","17545","US","US","MANHEIM","PA",""]
["C006420","SUBURBAN SPORTS","1572","25 WEBSTER SQUARE RD","SUBURBAN SPORTS","SUBURBAN SPORTS"," BERLIN CT","","","","BERLIN","CT","06037","US","US","BERLIN","CT",""]
["C006425","PERFORMANCE SPORTS","1253","SAN JUAN MOUNTAIN SPORTS LLC","PERFORMANCE SPORTS","PERFORMANCE SPORTS"," DURANGO CO","","","","DURANGO","CO","81301","US","US","DURANGO","CO",""]
["C006426","WILD ERNEST SPORTS","1247","14 FAWN COURT","WILD ERNEST SPORTS","WILD ERNEST SPORTS"," SILVERTHORNE CO","","","","SILVERTHORNE","CO","80498","US","US","SILVERTHORNE","CO",""]
["C006430","SILVER STAR SKI & SPORT","2646","PO BOX 4465","SILVER STAR SKI & SPORT","SILVER STAR SKI & SPORT"," PARK CITY UT","","","","PARK CITY","UT","84060","US","US","PARK CITY","UT",""]
["C006430","SILVER STAR SKI & SPORT","863","PO BOX 4465","SILVER STAR SKI & SPORT","SILVER STAR SKI & SPORT"," PARK CITY UT","","","","PARK CITY","UT","84060","US","US","PARK CITY","UT",""]
["C006432","NYMANS SKI SHOP","2645","344 WEST 4650 NORTH","NYMANS SKI SHOP","NYMANS SKI SHOP"," OREM UT","","","","OREM","UT","84097","US","US","PROVO","UT",""]
["C006432","NYMANS SKI SHOP","861","344 WEST 4650 NORTH","NYMANS SKI SHOP","NYMANS SKI SHOP"," PROVO UT","","","","PROVO","UT","84604","US","US","PROVO","UT",""]
["C006438","ORANGE COUNTY SNOWBOARDS","1594","ORANGE COUNTY SNOWBOARDS CORP","ORANGE COUNTY SNOWBOARDS","ORANGE COUNTY SNOWBOARDS"," MONROE NY","","","","MONROE","NY","10950","US","US","MONROE","NY",""]
["C006438","ORANGE COUNTY SNOWBOARDS","3767","ORANGE COUNTY SNOWBOARDS CORP","ORANGE COUNTY SNOWBOARDS","ORANGE COUNTY SNOWBOARDS"," GOSHEN NY","","","","GOSHEN","NY","10924","US","US","MONROE","NY",""]
["C006441","SOKO OUTFITTERS","1238","CW SUNDIVER","SOKO OUTFITTERS","SOKO OUTFITTERS"," CEDAR RAPIDS IA","","","","CEDAR RAPIDS","IA","52404","US","US","CEDAR RAPIDS","IA",""]
["C006444","METHOW CYCLE & SPORT","1241","PO BOX #1134","METHOW CYCLE & SPORT","METHOW CYCLE & SPORT"," WINTHROP WA","","","","WINTHROP","WA","98862","US","US","WINTHROP","WA",""]
["C006444","METHOW CYCLE & SPORT","3247","PO BOX #1134","METHOW CYCLE & SPORT","METHOW CYCLE & SPORT"," WINTHROP WA","","","","WINTHROP","WA","98862","US","US","WINTHROP","WA",""]
["C006448","ONION RIVER OUTDOORS","1235","ICHIBAN SPORTS LLC","ONION RIVER OUTDOORS","ONION RIVER OUTDOORS"," MONTPELIER VT","","","","MONTPELIER","VT","05602","US","US","MONTPELIER","VT",""]
["C006449","ACTION BIKES AND OUTDOOR","850","611 BROAD ST","ACTION BIKES AND OUTDOOR","ACTION BIKES AND OUTDOOR"," MILFORD PA","","","","MILFORD","PA","18337","US","US","MILFORD","PA",""]
["C006450","WHITE BIRCH OUTFITTERS","1233","ALPENHAUS PRODUCTIONS LLC","WHITE BIRCH OUTFITTERS","WHITE BIRCH OUTFITTERS"," GAYLORD MI","","","","GAYLORD","MI","49735","US","US","GAYLORD","MI",""]
["C006451","ATMOSPHERE MOUNTAINWORKS LLC","1242","210 2ND ST","ATMOSPHERE MOUNTAINWORKS LLC","ATMOSPHERE MOUNTAINWORKS LLC"," LARAMIE WY","","","","LARAMIE","WY","82070","US","US","LARAMIE","WY",""]
["C006455","VALLEY BIKE & SKI","1298","7707 149TH ST W SUITE 2","VALLEY BIKE & SKI","VALLEY BIKE & SKI"," APPLE VALLEY MN","","","","APPLE VALLEY","MN","55124","US","US","APPLE VALLEY","MN",""]
["C006455","VALLEY BIKE & SKI","3290","7707 149TH ST W SUITE 2","VALLEY BIKE & SKI","VALLEY BIKE & SKI"," APPLE VALLEY MN","","","","APPLE VALLEY","MN","55124","US","US","APPLE VALLEY","MN",""]
["C006460","HIGH DESERT LIFE OUTDOORS LTD","1294","28 W MAIN","HIGH DESERT LIFE OUTDOORS LTD","HIGH DESERT LIFE OUTDOORS LTD"," CORTEZ CO","","","","CORTEZ","CO","81321","US","US","CORTEZ","CO",""]
["C006469","THE HUB","1285","CENTENNIAL OUTDOORS LLC","THE HUB","THE HUB"," PAGOSA SPRINGS CO","","","","PAGOSA SPRINGS","CO","81147","US","US","PAGOSA SPRINGS","CO",""]
["C006469","THE HUB","3279","CENTENNIAL OUTDOORS LLC","THE HUB","THE HUB"," PAGOSA SPRINGS CO","","","","PAGOSA SPRINGS","CO","81147","US","US","PAGOSA SPRINGS","CO",""]
["C006471","PARAGON GUIDES","2650","PO BOX 130","PARAGON GUIDES","PARAGON GUIDES"," EDWARDS CO","","","","EDWARDS","CO","81632","US","US","VAIL","CO",""]
["C006471","PARAGON GUIDES","870","PO BOX 130","PARAGON GUIDES","PARAGON GUIDES"," VAIL CO","","","","VAIL","CO","81658","US","US","VAIL","CO",""]
["C006474","ASHCROFT SKI TOURING UNIT INC.","1267","PO BOX 7931","ASHCROFT SKI TOURING UNIT INC.","ASHCROFT SKI TOURING UNIT INC."," ASPEN CO","","","","ASPEN","CO","81612","US","US","ASPEN","CO",""]
["C006474","ASHCROFT SKI TOURING UNIT INC.","3267","PO BOX 7931","ASHCROFT SKI TOURING UNIT INC.","ASHCROFT SKI TOURING UNIT INC."," ASPEN CO","","","","ASPEN","CO","81611","US","US","ASPEN","CO",""]
["C006476","GOATS BEARD MOUNTAIN SUPPLIERS","869","50 LOST RIVER RD","GOATS BEARD MOUNTAIN SUPPLIERS","GOATS BEARD MOUNTAIN SUPPLIERS"," MAZAMA WA","","","","MAZAMA","WA","98833","US","US","MAZAMA","WA",""]
["C006482","BIKE BOARD AND SKI, LLC","773","450 MAIN STREET","BIKE BOARD AND SKI, LLC","BIKE BOARD AND SKI, LLC"," PRESQUE ISLE ME","","","","PRESQUE ISLE","ME","04769","US","US","PRESQUE ISLE","ME",""]
["C006484","PROSKI SEATTLE","769","5440 SAND POINT WAY NE","PROSKI SEATTLE","PROSKI SEATTLE"," SEATTLE WA","","","","SEATTLE","WA","98105","US","US","SEATTLE","WA",""]
["C006522","PENINSULA","1171","PENINSULA BOUTIQUE, LLC","PENINSULA","PENINSULA"," BOYNE CITY MI","","","","BOYNE CITY","MI","49712","US","US","BOYNE CITY","MI",""]
["C006522","PENINSULA","3203","PENINSULA BOUTIQUE, LLC","PENINSULA","PENINSULA"," BOYNE CITY MI","","","","BOYNE CITY","MI","49712","US","US","BOYNE CITY","MI",""]
["C006533","MOOSEJAW","2385","32200 NORTH AVIS STE 100","MOOSEJAW","MOOSEJAW"," MADISON HEIGHTS MI","","","","MADISON HEIGHTS","MI","48071","US","US","MADISON HEIGHTS","MI",""]
["C006533","MOOSEJAW","2386","32200 NORTH AVIS STE 100","MOOSEJAW","MOOSEJAW"," CLINTON TOWNSHIP MI","","","","CLINTON TOWNSHIP","MI","48038","US","US","MADISON HEIGHTS","MI",""]
["C006533","MOOSEJAW","2387","32200 NORTH AVIS STE 100","MOOSEJAW","MOOSEJAW"," WEST CHESTER","","","","WEST CHESTER","","45096","US","US","MADISON HEIGHTS","MI",""]
["C006533","MOOSEJAW","2388","32200 NORTH AVIS STE 100","MOOSEJAW","MOOSEJAW"," WEST VALLEY UT","","","","WEST VALLEY","UT","84128","US","US","MADISON HEIGHTS","MI",""]
["C006533","MOOSEJAW","2389","32200 NORTH AVIS STE 100","MOOSEJAW","MOOSEJAW"," NATICK MA","","","","NATICK","MA","01760","US","US","MADISON HEIGHTS","MI",""]
["C006533","MOOSEJAW","2390","32200 NORTH AVIS STE 100","MOOSEJAW","MOOSEJAW"," BIRMINGHAM MI","","","","BIRMINGHAM","MI","48009","US","US","MADISON HEIGHTS","MI",""]
["C006533","MOOSEJAW","2391","32200 NORTH AVIS STE 100","MOOSEJAW","MOOSEJAW"," ANN ARBOR MI","","","","ANN ARBOR","MI","48104","US","US","MADISON HEIGHTS","MI",""]
["C006533","MOOSEJAW","2392","32200 NORTH AVIS STE 100","MOOSEJAW","MOOSEJAW"," CHICAGO IL","","","","CHICAGO","IL","60614","US","US","MADISON HEIGHTS","MI",""]
["C006533","MOOSEJAW","2393","32200 NORTH AVIS STE 100","MOOSEJAW","MOOSEJAW"," DEERFIELD IL","","","","DEERFIELD","IL","60015","US","US","MADISON HEIGHTS","MI",""]
["C006533","MOOSEJAW","2394","32200 NORTH AVIS STE 100","MOOSEJAW","MOOSEJAW"," GROSSE POINTE MI","","","","GROSSE POINTE","MI","48230","US","US","MADISON HEIGHTS","MI",""]
["C006533","MOOSEJAW","2395","32200 NORTH AVIS STE 100","MOOSEJAW","MOOSEJAW"," EAST LANSING MI","","","","EAST LANSING","MI","48823","US","US","MADISON HEIGHTS","MI",""]
["C006533","MOOSEJAW","2396","32200 NORTH AVIS STE 100","MOOSEJAW","MOOSEJAW"," ROCHESTER HILLS MI","","","","ROCHESTER HILLS","MI","48309","US","US","MADISON HEIGHTS","MI",""]
["C006533","MOOSEJAW","56553","32200 NORTH AVIS STE 100","MOOSEJAW","MOOSEJAW"," Madison Heights MI","","","","Madison Heights","MI","48071","US","US","MADISON HEIGHTS","MI",""]
["C006533","MOOSEJAW","603","32200 NORTH AVIS STE 100","MOOSEJAW","MOOSEJAW"," MADISON HEIGHTS MI","","","","MADISON HEIGHTS","MI","48071","US","US","MADISON HEIGHTS","MI",""]
["C006541","FIN-N-FEATHER","1010","125 HWY 1 WEST","FIN-N-FEATHER","FIN-N-FEATHER"," IOWA CITY IA","","","","IOWA CITY","IA","52246","US","US","IOWA CITY","IA",""]
["C006555","ARIZONA NORIC VILLAGE","1465","PO BOX 520","ARIZONA NORIC VILLAGE","ARIZONA NORIC VILLAGE"," FLAGSTAFF AZ","","","","FLAGSTAFF","AZ","86002","US","US","FLAGSTAFF","AZ",""]
["C006555","ARIZONA NORIC VILLAGE","3530","PO BOX 520","ARIZONA NORIC VILLAGE","ARIZONA NORIC VILLAGE"," FLAGSTAFF AZ","","","","FLAGSTAFF","AZ","86001","US","US","FLAGSTAFF","AZ",""]
["C006555","ARIZONA NORIC VILLAGE","3531","PO BOX 520","ARIZONA NORIC VILLAGE","ARIZONA NORIC VILLAGE"," FLAGSTAFF AZ","","","","FLAGSTAFF","AZ","86001","US","US","FLAGSTAFF","AZ",""]
["C006557","SAN JUAN SPORTS","1458","102 S. MAIN ST.","SAN JUAN SPORTS","SAN JUAN SPORTS"," CREEDE CO","","","","CREEDE","CO","81130","US","US","CREEDE","CO",""]
["C006563","SNOW PEAK INC","1036","PO BOX 176","SNOW PEAK INC","SNOW PEAK INC"," ANGEL FIRE NM","","","","ANGEL FIRE","NM","87710","US","US","ANGEL FIRE","NM",""]
["C006563","SNOW PEAK INC","2882","PO BOX 176","SNOW PEAK INC","SNOW PEAK INC"," ANGEL FIRE NM","","","","ANGEL FIRE","NM","87710","US","US","ANGEL FIRE","NM",""]
["C006563","SNOW PEAK INC","2883","PO BOX 176","SNOW PEAK INC","SNOW PEAK INC"," ANGEL FIRE NM","","","","ANGEL FIRE","NM","87710","US","US","ANGEL FIRE","NM",""]
["C006566","BACKPACKERS SHOP","1032","5128 COLORADO AVE","BACKPACKERS SHOP","BACKPACKERS SHOP"," SHEFFIELD VILLAGE OH","","","","SHEFFIELD VILLAGE","OH","44054","US","US","SHEFFIELD VILLAGE","OH",""]
["C006574","THE GEAR FIX","1411","550 SW INDUSTRIAL WAY STE 183","THE GEAR FIX","THE GEAR FIX"," BEND OR","","","","BEND","OR","97702","US","US","BEND","OR",""]
["C006575","JK SPORTS","1369","1801 WEST LINCOLN AVE","JK SPORTS","JK SPORTS"," FERGUS FALLS MN","","","","FERGUS FALLS","MN","56537","US","US","FERGUS FALLS","MN",""]
["C006576","GEAR FOR ADVENTURE","1435","305 BUFFALO STREET","GEAR FOR ADVENTURE","GEAR FOR ADVENTURE"," HAMBURG NY","","","","HAMBURG","NY","14075","US","US","HAMBURG","NY",""]
["C006576","GEAR FOR ADVENTURE","3512","305 BUFFALO STREET","GEAR FOR ADVENTURE","GEAR FOR ADVENTURE"," AMHERST NY","","","","AMHERST","NY","14226","US","US","HAMBURG","NY",""]
["C006577","GALENA LODGE","958","HC64 BOX 8326","GALENA LODGE","GALENA LODGE"," KETCHUM ID","","","","KETCHUM","ID","83340","US","US","KETCHUM","ID",""]
["C006583","BOULDER ARMY STORE","2856","8771 WOLFF CT","BOULDER ARMY STORE","BOULDER ARMY STORE"," GLENWOOD SPGS CO","","","","GLENWOOD SPGS","CO","81601","US","US","WESTMINSTER","CO",""]
["C006583","BOULDER ARMY STORE","990","8771 WOLFF CT","BOULDER ARMY STORE","BOULDER ARMY STORE"," WESTMINSTER CO","","","","WESTMINSTER","CO","80031","US","US","WESTMINSTER","CO",""]
["C006588","LAKE SUPERIOR TRADING POST","2843","PO BOX 370","LAKE SUPERIOR TRADING POST","LAKE SUPERIOR TRADING POST"," GRAND MARAIS MN","","","","GRAND MARAIS","MN","55604","US","US","GRAND MARAIS","MN",""]
["C006588","LAKE SUPERIOR TRADING POST","967","PO BOX 370","LAKE SUPERIOR TRADING POST","LAKE SUPERIOR TRADING POST"," GRAND MARAIS MN","","","","GRAND MARAIS","MN","55604","US","US","GRAND MARAIS","MN",""]
["C006590","CLEAR WATER OUTDOOR","1420","744 W MAIN ST","CLEAR WATER OUTDOOR","CLEAR WATER OUTDOOR"," LAKE GENEVA WI","","","","LAKE GENEVA","WI","53147","US","US","LAKE GENEVA","WI",""]
["C006590","CLEAR WATER OUTDOOR","3496","744 W MAIN ST","CLEAR WATER OUTDOOR","CLEAR WATER OUTDOOR"," DELAFIELD WI","","","","DELAFIELD","WI","53018","US","US","LAKE GENEVA","WI",""]
["C006590","CLEAR WATER OUTDOOR","3497","744 W MAIN ST","CLEAR WATER OUTDOOR","CLEAR WATER OUTDOOR"," MILWAUKEE WI","","","","MILWAUKEE","WI","53202","US","US","LAKE GENEVA","WI",""]
["C006592","PLAY IT AGAIN SPORTS - DEDHAM","1347","606 WASHINGTON ST","PLAY IT AGAIN SPORTS - DEDHAM","PLAY IT AGAIN SPORTS - DEDHAM"," DEDHAM MA","","","","DEDHAM","MA","02026","US","US","DEDHAM","MA",""]
["C006594","ST. CROIX SHOES","1363","ST CROIX SHOE &amp; BOOT LLC","ST. CROIX SHOES","ST. CROIX SHOES"," HUDSON WI","","","","HUDSON","WI","54016","US","US","HUDSON","WI",""]
["C006594","ST. CROIX SHOES","3362","ST CROIX SHOE &amp; BOOT LLC","ST. CROIX SHOES","ST. CROIX SHOES"," HUDSON WI","","","","HUDSON","WI","54016","US","US","HUDSON","WI",""]
["C006601","TWO PINES SUPPLY","1402","PLUS SIZE BMX, LLC","TWO PINES SUPPLY","TWO PINES SUPPLY"," FRASER CO","","","","FRASER","CO","80442","US","US","FRASER","CO",""]
["C006601","TWO PINES SUPPLY","3481","PLUS SIZE BMX, LLC","TWO PINES SUPPLY","TWO PINES SUPPLY"," GRANBY CO","","","","GRANBY","CO","80446","US","US","FRASER","CO",""]
["C006603","THE BIKE HUB","1408","1025 N BROADWAY","THE BIKE HUB","THE BIKE HUB"," DE PERE WI","","","","DE PERE","WI","54115","US","US","DE PERE","WI",""]
["C006613","SKJERSAA'S","1409","SAGEBRUSH CYCLES, LLC","SKJERSAA'S","SKJERSAA'S"," BEND OR","","","","BEND","OR","97702","US","US","BEND","OR",""]
["C006618","ASCENT OUTDOORS LLC","1387","1120 NW BALLARD WAY","ASCENT OUTDOORS LLC","ASCENT OUTDOORS LLC"," SEATTLE WA","","","","SEATTLE","WA","98107","US","US","SEATTLE","WA",""]
["C006632","SUNNY SPORTS","1461","454 NINTH AVENUE","SUNNY SPORTS","SUNNY SPORTS"," NEW YORK NY","","","","NEW YORK","NY","10018","US","US","NEW YORK","NY",""]
["C006632","SUNNY SPORTS","3525","454 NINTH AVENUE","SUNNY SPORTS","SUNNY SPORTS"," ELIZABETH NJ","","","","ELIZABETH","NJ","07206","US","US","NEW YORK","NY",""]
["C006632","SUNNY SPORTS","3526","454 NINTH AVENUE","SUNNY SPORTS","SUNNY SPORTS"," SALT LAKE CITY UT","","","","SALT LAKE CITY","UT","84116","US","US","NEW YORK","NY",""]
["C006632","SUNNY SPORTS","3527","454 NINTH AVENUE","SUNNY SPORTS","SUNNY SPORTS"," CHATTANOOGA TN","","","","CHATTANOOGA","TN","37416","US","US","NEW YORK","NY",""]
["C006637","PLAY IT AGAIN SPORTS - LIVONIA","146","31224 FIVE MILE RD.","PLAY IT AGAIN SPORTS - LIVONIA","PLAY IT AGAIN SPORTS - LIVONIA"," LIVONIA MI","","","","LIVONIA","MI","48154","US","US","LIVONIA","MI",""]
["C006639","CABERFAE PEAKS SKI & GOLF RESORT","151","1 CABERFAE LANE","CABERFAE PEAKS SKI & GOLF RESORT","CABERFAE PEAKS SKI & GOLF RESORT"," CADILLAC MI","","","","CADILLAC","MI","49601","US","US","CADILLAC","MI",""]
["C006641","WIND ROSE NORTH OUTFITTERS","1131","427 - 10TH AVENUE","WIND ROSE NORTH OUTFITTERS","WIND ROSE NORTH OUTFITTERS"," MENOMINEE MI","","","","MENOMINEE","MI","49858","US","US","MENOMINEE","MI",""]
["C006651","MONARCH SNOWSHOE TOURS","157","7330 US HIGHWAY 50","MONARCH SNOWSHOE TOURS","MONARCH SNOWSHOE TOURS"," SALIDA CO","","","","SALIDA","CO","81201","US","US","SALIDA","CO",""]
["C006651","MONARCH SNOWSHOE TOURS","1855","7330 US HIGHWAY 50","MONARCH SNOWSHOE TOURS","MONARCH SNOWSHOE TOURS"," SALIDA CO","","","","SALIDA","CO","81201","US","US","SALIDA","CO",""]
["C006654","GREAT OUTDOORS, THE","1111","59 WATERFRONT PLAZA","GREAT OUTDOORS, THE","GREAT OUTDOORS, THE"," NEWPORT VT","","","","NEWPORT","VT","05855","US","US","NEWPORT","VT",""]
["C006654","GREAT OUTDOORS, THE","3163","59 WATERFRONT PLAZA","GREAT OUTDOORS, THE","GREAT OUTDOORS, THE"," ENOSBURG FALLS VT","","","","ENOSBURG FALLS","VT","05450","US","US","NEWPORT","VT",""]
["C006654","GREAT OUTDOORS, THE","3164","59 WATERFRONT PLAZA","GREAT OUTDOORS, THE","GREAT OUTDOORS, THE"," MORRISVILLE VT","","","","MORRISVILLE","VT","05661","US","US","NEWPORT","VT",""]
["C006655","DESTINATION SPORTS, LLC","108","294 N 600 E","DESTINATION SPORTS, LLC","DESTINATION SPORTS, LLC"," MORGAN UT","","","","MORGAN","UT","84050","US","US","MORGAN","UT",""]
["C006656","SAMS DEPARTMENT STORES INC","1110","74 MAIN STREET","SAMS DEPARTMENT STORES INC","SAMS DEPARTMENT STORES INC"," BRATTLEBORO VT","","","","BRATTLEBORO","VT","05301","US","US","BRATTLEBORO","VT",""]
["C006658","WOODSTOCK INN & RESORT NORDIC CTR","1115","9 CROSS ST","WOODSTOCK INN & RESORT NORDIC CTR","WOODSTOCK INN & RESORT NORDIC CTR"," WOODSTOCK VT","","","","WOODSTOCK","VT","05091","US","US","WOODSTOCK","VT",""]
["C006658","WOODSTOCK INN & RESORT NORDIC CTR","3169","9 CROSS ST","WOODSTOCK INN & RESORT NORDIC CTR","WOODSTOCK INN & RESORT NORDIC CTR"," WOODSTOCK VT","","","","WOODSTOCK","VT","05091","US","US","WOODSTOCK","VT",""]
["C006659","BIG BEAR GEAR LLC","111","71 S ORANGE AVE #396","BIG BEAR GEAR LLC","BIG BEAR GEAR LLC"," SOUTH ORANGE NJ","","","","SOUTH ORANGE","NJ","07079","US","US","SOUTH ORANGE","NJ",""]
["C006659","BIG BEAR GEAR LLC","1671","71 S ORANGE AVE #396","BIG BEAR GEAR LLC","BIG BEAR GEAR LLC"," LAMBERTVILLE NJ","","","","LAMBERTVILLE","NJ","08530","US","US","SOUTH ORANGE","NJ",""]
["C006660","SHANTY CREEK RESORTS","106","5780 SHANTY CREEK ROAD","SHANTY CREEK RESORTS","SHANTY CREEK RESORTS"," BELLAIRE MI","","","","BELLAIRE","MI","49615","US","US","BELLAIRE","MI",""]
["C006661","EVERGREEN BIKE SHOP, INC.","102","28677 BUFFALO PARK ROAD","EVERGREEN BIKE SHOP, INC.","EVERGREEN BIKE SHOP, INC."," EVERGREEN CO","","","","EVERGREEN","CO","80439","US","US","EVERGREEN","CO",""]
["C006665","FARM WAY","1106","286 WAITS RIVER ROAD","FARM WAY","FARM WAY"," BRADFORD VT","","","","BRADFORD","VT","05033","US","US","BRADFORD","VT",""]
["C006666","RIDGELINE BIKE & SKI","104","10470 W. OVERLAND RD.","RIDGELINE BIKE & SKI","RIDGELINE BIKE & SKI"," BOISE ID","","","","BOISE","ID","83709","US","US","BOISE","ID",""]
["C006668","ARDENT BICYCLES","128","1421 NW 4TH ST","ARDENT BICYCLES","ARDENT BICYCLES"," GRAND RAPIDS MN","","","","GRAND RAPIDS","MN","55744","US","US","GRAND RAPIDS","MN",""]
["C006669","FOSTER OUTDOOR","130","7302 SE STEELE ST","FOSTER OUTDOOR","FOSTER OUTDOOR"," PORTLAND OR","","","","PORTLAND","OR","97206","US","US","PORTLAND","OR",""]
["C006669","FOSTER OUTDOOR","1844","7302 SE STEELE ST","FOSTER OUTDOOR","FOSTER OUTDOOR"," PORTLAND OR","","","","PORTLAND","OR","97206","US","US","PORTLAND","OR",""]
["C006670","SKIERS OUTLET","116","ACME POOL COMPANY INC","SKIERS OUTLET","SKIERS OUTLET"," NEW HARTFORD NY","","","","NEW HARTFORD","NY","13413","US","US","NEW HARTFORD","NY",""]
["C006675","EXCLUSIVE EXCURSIONS LLC","118","18 PAYDAY DR","EXCLUSIVE EXCURSIONS LLC","EXCLUSIVE EXCURSIONS LLC"," PARK CITY UT","","","","PARK CITY","UT","84060","US","US","PARK CITY","UT",""]
["C006680","BUCHIKA'S SKI & BIKE","1508","T &amp; D SKI AND BIKE SHOP","BUCHIKA'S SKI & BIKE","BUCHIKA'S SKI & BIKE"," SALEM NH","","","","SALEM","NH","03079","US","US","SALEM","NH",""]
["C006684","MAYNARD OUTDOOR STORE INC","1186","24 NASON STREET","MAYNARD OUTDOOR STORE INC","MAYNARD OUTDOOR STORE INC"," MAYNARD MA","","","","MAYNARD","MA","01754","US","US","MAYNARD","MA",""]
["C006687","CYCLE LOGICAL LLC","1887","302 EAST PIONEER AVENUE","CYCLE LOGICAL LLC","CYCLE LOGICAL LLC"," AUBURN WA","","","","AUBURN","WA","98001","US","US","HOMER","AK",""]
["C006687","CYCLE LOGICAL LLC","204","302 EAST PIONEER AVENUE","CYCLE LOGICAL LLC","CYCLE LOGICAL LLC"," HOMER AK","","","","HOMER","AK","99603","US","US","HOMER","AK",""]
["C006690","WAHOO ADVENTURES","195","2721 EVERGREEN CIRCLE","WAHOO ADVENTURES","WAHOO ADVENTURES"," WHITE BEAR LAKE MN","","","","WHITE BEAR LAKE","MN","55110","US","US","WHITE BEAR LAKE","MN",""]
["C006692","PLAY IT AGAIN SPORTS - LONGMONT","196","1067 S. HOVER UNIT G","PLAY IT AGAIN SPORTS - LONGMONT","PLAY IT AGAIN SPORTS - LONGMONT"," LONGMONT CO","","","","LONGMONT","CO","80501","US","US","LONGMONT","CO",""]
["C006696","NORDIC SPORTS","1188","218 WEST BAY ST","NORDIC SPORTS","NORDIC SPORTS"," EAST TAWAS MI","","","","EAST TAWAS","MI","48730","US","US","EAST TAWAS","MI",""]
["C006702","RAMBLERAVEN GEAR TRADER","208","3220 N DIVISION ST","RAMBLERAVEN GEAR TRADER","RAMBLERAVEN GEAR TRADER"," SPOKANE WA","","","","SPOKANE","WA","99207","US","US","SPOKANE","WA",""]
["C006706","BRECKENRIDGE NORDIC CENTER","1155","PO BOX 1776","BRECKENRIDGE NORDIC CENTER","BRECKENRIDGE NORDIC CENTER"," BRECKENRIDGE CO","","","","BRECKENRIDGE","CO","80424","US","US","BRECKENRIDGE","CO",""]
["C006706","BRECKENRIDGE NORDIC CENTER","3198","PO BOX 1776","BRECKENRIDGE NORDIC CENTER","BRECKENRIDGE NORDIC CENTER"," BRECKENRIDGE CO","","","","BRECKENRIDGE","CO","80424","US","US","BRECKENRIDGE","CO",""]
["C006712","JAX MERCANTILE CO","1146","JAX INC","JAX MERCANTILE CO","JAX MERCANTILE CO"," LAPORTE CO","","","","LAPORTE","CO","80535","US","US","LAPORTE","CO",""]
["C006712","JAX MERCANTILE CO","3186","JAX INC","JAX MERCANTILE CO","JAX MERCANTILE CO"," CHEYENNE WY","","","","CHEYENNE","WY","82009","US","US","LAPORTE","CO",""]
["C006712","JAX MERCANTILE CO","3187","JAX INC","JAX MERCANTILE CO","JAX MERCANTILE CO"," LOVELAND CO","","","","LOVELAND","CO","80537","US","US","LAPORTE","CO",""]
["C006712","JAX MERCANTILE CO","3188","JAX INC","JAX MERCANTILE CO","JAX MERCANTILE CO"," BROOMFIELD CO","","","","BROOMFIELD","CO","80020","US","US","LAPORTE","CO",""]
["C006712","JAX MERCANTILE CO","3189","JAX INC","JAX MERCANTILE CO","JAX MERCANTILE CO"," AMES IA","","","","AMES","IA","50014","US","US","LAPORTE","CO",""]
["C006712","JAX MERCANTILE CO","3190","JAX INC","JAX MERCANTILE CO","JAX MERCANTILE CO"," FORT COLLINS CO","","","","FORT COLLINS","CO","80524","US","US","LAPORTE","CO",""]
["C006712","JAX MERCANTILE CO","3191","JAX INC","JAX MERCANTILE CO","JAX MERCANTILE CO"," LAFAYETTE CO","","","","LAFAYETTE","CO","80026","US","US","LAPORTE","CO",""]
["C006712","JAX MERCANTILE CO","3192","JAX INC","JAX MERCANTILE CO","JAX MERCANTILE CO"," LAPORTE CO","","","","LAPORTE","CO","80535","US","US","LAPORTE","CO",""]
["C006712","JAX MERCANTILE CO","3193","JAX INC","JAX MERCANTILE CO","JAX MERCANTILE CO"," FORT COLLINS CO","","","","FORT COLLINS","CO","80524","US","US","LAPORTE","CO",""]
["C006713","BELLEAYRE SKI SHOP","176","PO BOX 560","BELLEAYRE SKI SHOP","BELLEAYRE SKI SHOP"," HIGHMOUNT NY","","","","HIGHMOUNT","NY","12441","US","US","HIGHMOUNT","NY",""]
["C006713","BELLEAYRE SKI SHOP","1875","PO BOX 560","BELLEAYRE SKI SHOP","BELLEAYRE SKI SHOP"," HIGHMOUNT NY","","","","HIGHMOUNT","NY","12441","US","US","HIGHMOUNT","NY",""]
["C006718","THE LAST RESORT","186","PO BOX 1105","THE LAST RESORT","THE LAST RESORT"," ROSLYN WA","","","","ROSLYN","WA","98941","US","US","ROSLYN","WA",""]
["C006718","THE LAST RESORT","1882","PO BOX 1105","THE LAST RESORT","THE LAST RESORT"," RONALD WA","","","","RONALD","WA","98940","US","US","ROSLYN","WA",""]
["C006719","AVENTURON","191","631 N 8TH STREET","AVENTURON","AVENTURON"," SHEBOYGAN WI","","","","SHEBOYGAN","WI","53081","US","US","SHEBOYGAN","WI",""]
["C006720","NEVER SUMMER MOUNTAINEERING","1160","919 GRAND AVE","NEVER SUMMER MOUNTAINEERING","NEVER SUMMER MOUNTAINEERING"," GRAND LAKE CO","","","","GRAND LAKE","CO","80447","US","US","GRAND LAKE","CO",""]
["C006721","HIVE OF MADISON","192","1904 MONROE STREET","HIVE OF MADISON","HIVE OF MADISON"," MADISON WI","","","","MADISON","WI","53711","US","US","MADISON","WI",""]
["C006723","ESTES PARK MTN SHOP INC","1158","2050 BIG THOMPSON AVE","ESTES PARK MTN SHOP INC","ESTES PARK MTN SHOP INC"," ESTES PARK CO","","","","ESTES PARK","CO","80517","US","US","ESTES PARK","CO",""]
["C006723","ESTES PARK MTN SHOP INC","3200","2050 BIG THOMPSON AVE","ESTES PARK MTN SHOP INC","ESTES PARK MTN SHOP INC"," ESTES PARK CO","","","","ESTES PARK","CO","80517","US","US","ESTES PARK","CO",""]
["C006728","WANDERLUST TOURS","1055","61535 S HWY SUITE 13","WANDERLUST TOURS","WANDERLUST TOURS"," BEND OR","","","","BEND","OR","97702","US","US","BEND","OR",""]
["C006731","HUBERTS DEPARTMENT STORE","1072","PO BOX 33","HUBERTS DEPARTMENT STORE","HUBERTS DEPARTMENT STORE"," NEWPORT NH","","","","NEWPORT","NH","03773","US","US","NEWPORT","NH",""]
["C006731","HUBERTS DEPARTMENT STORE","3135","PO BOX 33","HUBERTS DEPARTMENT STORE","HUBERTS DEPARTMENT STORE"," NEWPORT NH","","","","NEWPORT","NH","03773","US","US","NEWPORT","NH",""]
["C006739","MOONLIGHT BASIN LLC","1652","ACCOUNTS PAYABLE","MOONLIGHT BASIN LLC","MOONLIGHT BASIN LLC"," BIG SKY MT","","","","BIG SKY","MT","59716","US","US","BIG SKY","MT",""]
["C006739","MOONLIGHT BASIN LLC","47","ACCOUNTS PAYABLE","MOONLIGHT BASIN LLC","MOONLIGHT BASIN LLC"," BIG SKY MT","","","","BIG SKY","MT","59716","US","US","BIG SKY","MT",""]
["C006740","OUTBOUND MOUNTAIN GEAR","17","4600 PLETTNER LN 1E","OUTBOUND MOUNTAIN GEAR","OUTBOUND MOUNTAIN GEAR"," EVERGREEN CO","","","","EVERGREEN","CO","80459","US","US","EVERGREEN","CO",""]
["C006745","METHOW VALLEY SKI SCHOOL","1042","PO BOX 903","METHOW VALLEY SKI SCHOOL","METHOW VALLEY SKI SCHOOL"," WINTHROP WA","","","","WINTHROP","WA","98862","US","US","WINTHROP","WA",""]
["C006745","METHOW VALLEY SKI SCHOOL","2892","PO BOX 903","METHOW VALLEY SKI SCHOOL","METHOW VALLEY SKI SCHOOL"," MAZAMA WA","","","","MAZAMA","WA","98833","US","US","WINTHROP","WA",""]
["C006763","SNOWY SUMMIT LLC","1661","PO BOX 652","SNOWY SUMMIT LLC","SNOWY SUMMIT LLC"," FRISCO CO","","","","FRISCO","CO","80443","US","US","FRISCO","CO",""]
["C006763","SNOWY SUMMIT LLC","71","PO BOX 652","SNOWY SUMMIT LLC","SNOWY SUMMIT LLC"," FRISCO CO","","","","FRISCO","CO","80443","US","US","FRISCO","CO",""]
["C006764","TERRY'S CYCLE, LLC","79","317 N. STATE T","TERRY'S CYCLE, LLC","TERRY'S CYCLE, LLC"," ALMA MI","","","","ALMA","MI","48801","US","US","ALMA","MI",""]
["C006765","BUILERS SPORT AND CYCLE","1093","215 S  3RD  AVE","BUILERS SPORT AND CYCLE","BUILERS SPORT AND CYCLE"," WAUSAU WI","","","","WAUSAU","WI","54401","US","US","WAUSAU","WI",""]
["C006767","THE HEEL SHOE FITTERS","73","930 B WAUBE LN","THE HEEL SHOE FITTERS","THE HEEL SHOE FITTERS"," GREEN BAY WI","","","","GREEN BAY","WI","54304","US","US","GREEN BAY","WI",""]
["C006768","PLAY IT AGAIN SPORTS - ST CLOUD","74","134 W Division Street","PLAY IT AGAIN SPORTS - ST CLOUD","PLAY IT AGAIN SPORTS - ST CLOUD"," WAITE PARK MN","","","","WAITE PARK","MN","56387","US","US","WAITE PARK","MN",""]
["C006769","SILLY GOOSE SILENT SPORTS LLC","1666","W8055 SEIFERT ROAD","SILLY GOOSE SILENT SPORTS LLC","SILLY GOOSE SILENT SPORTS LLC"," PARKFALLS WI","","","","PARKFALLS","WI","54552","US","US","PARKFALLS","WI",""]
["C006769","SILLY GOOSE SILENT SPORTS LLC","93","W8055 SEIFERT ROAD","SILLY GOOSE SILENT SPORTS LLC","SILLY GOOSE SILENT SPORTS LLC"," PARKFALLS WI","","","","PARKFALLS","WI","54552","US","US","PARKFALLS","WI",""]
["C006771","BIKE TRUCKEE","1668","10015 PALISADES DR","BIKE TRUCKEE","BIKE TRUCKEE"," TRUCKEE CA","","","","TRUCKEE","CA","96161","US","US","TRUCKEE","CA",""]
["C006771","BIKE TRUCKEE","98","10015 PALISADES DR","BIKE TRUCKEE","BIKE TRUCKEE"," TRUCKEE CA","","","","TRUCKEE","CA","96161","US","US","TRUCKEE","CA",""]
["C006773","LIBERTY MOUNTAIN SPORTS LLC","1101","9816 S JORDAN GTWY","LIBERTY MOUNTAIN SPORTS LLC","LIBERTY MOUNTAIN SPORTS LLC"," SANDY UT","","","","SANDY","UT","84070","US","US","SANDY","UT",""]
["C006773","LIBERTY MOUNTAIN SPORTS LLC","3159","9816 S JORDAN GTWY","LIBERTY MOUNTAIN SPORTS LLC","LIBERTY MOUNTAIN SPORTS LLC"," MONTOURSVILLE PA","","","","MONTOURSVILLE","PA","17754","US","US","SANDY","UT",""]
["C006773","LIBERTY MOUNTAIN SPORTS LLC","3160","9816 S JORDAN GTWY","LIBERTY MOUNTAIN SPORTS LLC","LIBERTY MOUNTAIN SPORTS LLC"," MONTOURSVILLE PA","","","","MONTOURSVILLE","PA","17754","US","US","SANDY","UT",""]
["C006774","WAVE RAVE","1098","PO BOX 2479","WAVE RAVE","WAVE RAVE"," MAMMOTH LAKES CA","","","","MAMMOTH LAKES","CA","93546","US","US","MAMMOTH LAKES","CA",""]
["C006774","WAVE RAVE","3157","PO BOX 2479","WAVE RAVE","WAVE RAVE"," MAMMOTH LAKES CA","","","","MAMMOTH LAKES","CA","93546","US","US","MAMMOTH LAKES","CA",""]
["C006782","SALIDA MOUNTAIN SPORTS INC","103","110 NORTH F ST","SALIDA MOUNTAIN SPORTS INC","SALIDA MOUNTAIN SPORTS INC"," SALIDA CO","","","","SALIDA","CO","81201","US","US","SALIDA","CO",""]
["C006783","VITAL OUTDOORS","1655","P.O BOX 26","VITAL OUTDOORS","VITAL OUTDOORS"," GOLDEN CO","","","","GOLDEN","CO","80401","US","US","GOLDEN","CO",""]
["C006783","VITAL OUTDOORS","52","P.O BOX 26","VITAL OUTDOORS","VITAL OUTDOORS"," GOLDEN CO","","","","GOLDEN","CO","80402","US","US","GOLDEN","CO",""]
["C006791","LONE PINE GEAR EXCHANGE","66","2835 E 3300 S","LONE PINE GEAR EXCHANGE","LONE PINE GEAR EXCHANGE"," SALT LAKE CITY UT","","","","SALT LAKE CITY","UT","84109","US","US","SALT LAKE CITY","UT",""]
["C006793","ROUTES OUTFITTER, LLC","69","3131 W. COLORADO AVE","ROUTES OUTFITTER, LLC","ROUTES OUTFITTER, LLC"," COLORADO SPRINGS CO","","","","COLORADO SPRINGS","CO","80904","US","US","COLORADO SPRINGS","CO",""]
["C006795","STONE HARBOR WILDERNESS SUPPLY","59","22 EAST 1ST ST","STONE HARBOR WILDERNESS SUPPLY","STONE HARBOR WILDERNESS SUPPLY"," GRAND MARAIS MN","","","","GRAND MARAIS","MN","55604","US","US","GRAND MARAIS","MN",""]
["C006799","THE TENNIS & GOLF COMPANY","1656","30211 WOODWARD AVE","THE TENNIS & GOLF COMPANY","THE TENNIS & GOLF COMPANY"," KEEGO HARBOR MI","","","","KEEGO HARBOR","MI","48320","US","US","ROYAL OAK","MI",""]
["C006799","THE TENNIS & GOLF COMPANY","56","30211 WOODWARD AVE","THE TENNIS & GOLF COMPANY","THE TENNIS & GOLF COMPANY"," ROYAL OAK MI","","","","ROYAL OAK","MI","48073","US","US","ROYAL OAK","MI",""]
["C006811","AJ MOTION SPORTS","925","WLM ENTERPRISES","AJ MOTION SPORTS","AJ MOTION SPORTS"," SANDY UT","","","","SANDY","UT","84093","US","US","SANDY","UT",""]
["C006812","GANNETT PEAK SPORTS","418","GANNETT PEAK ENTERPRISES LLC","GANNETT PEAK SPORTS","GANNETT PEAK SPORTS"," LANDER WY","","","","LANDER","WY","82520","US","US","LANDER","WY",""]
["C006813","RH RENY, INC","222","731 RT 1","RH RENY, INC","RH RENY, INC"," NEWCASTLE ME","","","","NEWCASTLE","ME","04553","US","US","NEWCASTLE","ME",""]
["C006814","WAKEBOSS ST CROIX DOCK INC","433","2091 US HWY 8","WAKEBOSS ST CROIX DOCK INC","WAKEBOSS ST CROIX DOCK INC"," ST CROIX FALLS WI","","","","ST CROIX FALLS","WI","54024","US","US","ST CROIX FALLS","WI",""]
["C006816","814 OUTDOOR SPORTS","217","500 WEST PLUM STREET STE A","814 OUTDOOR SPORTS","814 OUTDOOR SPORTS"," EDINBORO PA","","","","EDINBORO","PA","16412","US","US","EDINBORO","PA",""]
["C006817","MONTBELL AMERICA INC.","2074","3550 FRONTIER AVE UNIT B","MONTBELL AMERICA INC.","MONTBELL AMERICA INC."," BOULDER CO","","","","BOULDER","CO","80302","US","US","BOULDER","CO",""]
["C006817","MONTBELL AMERICA INC.","2075","3550 FRONTIER AVE UNIT B","MONTBELL AMERICA INC.","MONTBELL AMERICA INC."," DENVER CO","","","","DENVER","CO","80202","US","US","BOULDER","CO",""]
["C006817","MONTBELL AMERICA INC.","419","3550 FRONTIER AVE UNIT B","MONTBELL AMERICA INC.","MONTBELL AMERICA INC."," BOULDER CO","","","","BOULDER","CO","80301","US","US","BOULDER","CO",""]
["C006819","BAY 15 CAMBRIDGE TRUE VALUE HOME CENTER","398","355 GARFIELD STREET S","BAY 15 CAMBRIDGE TRUE VALUE HOME CENTER","BAY 15 CAMBRIDGE TRUE VALUE HOME CENTER"," CAMBRIDGE MN","","","","CAMBRIDGE","MN","55008","US","US","CAMBRIDGE","MN",""]
["C006824","LAKE MILLS AREA SCHOOL DISTRICT","2070","120 E LAKE PARK PLACE","LAKE MILLS AREA SCHOOL DISTRICT","LAKE MILLS AREA SCHOOL DISTRICT"," LAKE MILLS WI","","","","LAKE MILLS","WI","53551","US","US","LAKE MILLS","WI",""]
["C006824","LAKE MILLS AREA SCHOOL DISTRICT","408","120 E LAKE PARK PLACE","LAKE MILLS AREA SCHOOL DISTRICT","LAKE MILLS AREA SCHOOL DISTRICT"," LAKE MILLS WI","","","","LAKE MILLS","WI","53551","US","US","LAKE MILLS","WI",""]
["C006828","PIONEER MIDWEST LLC","1327","415 COUNTY ROAD 81","PIONEER MIDWEST LLC","PIONEER MIDWEST LLC"," OSSEO MN","","","","OSSEO","MN","55369","US","US","OSSEO","MN",""]
["C006829","MOUNTAIN TO SOUND LLC","472","ALKI KAYAK TOURS","MOUNTAIN TO SOUND LLC","MOUNTAIN TO SOUND LLC"," SEATTLE WA","","","","SEATTLE","WA","98126","US","US","SEATTLE","WA",""]
["C006835","WHEELSUP ADVENTURES","216","86 BALTIMORE STREET","WHEELSUP ADVENTURES","WHEELSUP ADVENTURES"," CUMBERLAND MD","","","","CUMBERLAND","MD","21502","US","US","CUMBERLAND","MD",""]
["C006838","JOHNSON HARDWARE & RENTAL","220","1442 VT RT 15W","JOHNSON HARDWARE & RENTAL","JOHNSON HARDWARE & RENTAL"," JOHNSON VT","","","","JOHNSON","VT","05656","US","US","JOHNSON","VT",""]
["C006841","JOSEPH SLEEPER & SONS, INC","1152","99 LYNDON STREET","JOSEPH SLEEPER & SONS, INC","JOSEPH SLEEPER & SONS, INC"," CARIBOU ME","","","","CARIBOU","ME","04736","US","US","CARIBOU","ME",""]
["C006841","JOSEPH SLEEPER & SONS, INC","3194","99 LYNDON STREET","JOSEPH SLEEPER & SONS, INC","JOSEPH SLEEPER & SONS, INC"," PRESQUE ISLE ME","","","","PRESQUE ISLE","ME","04769","US","US","CARIBOU","ME",""]
["C006841","JOSEPH SLEEPER & SONS, INC","3195","99 LYNDON STREET","JOSEPH SLEEPER & SONS, INC","JOSEPH SLEEPER & SONS, INC"," WATERVILLE ME","","","","WATERVILLE","ME","04901","US","US","CARIBOU","ME",""]
["C006841","JOSEPH SLEEPER & SONS, INC","3196","99 LYNDON STREET","JOSEPH SLEEPER & SONS, INC","JOSEPH SLEEPER & SONS, INC"," BANGOR ME","","","","BANGOR","ME","04401","US","US","CARIBOU","ME",""]
["C006842","WAYZATA COUNTRY CLUB","421","200 WAYZATA","WAYZATA COUNTRY CLUB","WAYZATA COUNTRY CLUB"," WAYZATA MN","","","","WAYZATA","MN","55391","US","US","WAYZATA","MN",""]
["C006843","CITY OF OWATONNA","381","540 WEST HILLS CIRCLE","CITY OF OWATONNA","CITY OF OWATONNA"," OWATONNA MN","","","","OWATONNA","MN","55060","US","US","OWATONNA","MN",""]
["C006849","GOGORENTAL.COM","2045","605 HWY 10 E","GOGORENTAL.COM","GOGORENTAL.COM"," FARGO ND","","","","FARGO","ND","58103","US","US","DETROIT LAKES","MN",""]
["C006849","GOGORENTAL.COM","375","605 HWY 10 E","GOGORENTAL.COM","GOGORENTAL.COM"," DETROIT LAKES MN","","","","DETROIT LAKES","MN","56560","US","US","DETROIT LAKES","MN",""]
["C006850","EDGE AND SPOKE","1527","7875 LEARY WAY NE","EDGE AND SPOKE","EDGE AND SPOKE"," REDMOND WA","","","","REDMOND","WA","98052","US","US","REDMOND","WA",""]
["C006858","THE KAYAK CENTRE","218","70 BROWN ST","THE KAYAK CENTRE","THE KAYAK CENTRE"," WICKFORD RI","","","","WICKFORD","RI","02852","US","US","WICKFORD","RI",""]
["C006860","GIGA INC","1966","2448 INDUSTRIAL PARK DRIVE","GIGA INC","GIGA INC"," MACON GA","","","","MACON","GA","31216","US","US","MACON","GA",""]
["C006860","GIGA INC","261","2448 INDUSTRIAL PARK DRIVE","GIGA INC","GIGA INC"," MACON GA","","","","MACON","GA","31216","US","US","MACON","GA",""]
["C006866","ULLER'S SKI & BOARD SHOP","270","1031 HAINES ROAD","ULLER'S SKI & BOARD SHOP","ULLER'S SKI & BOARD SHOP"," YORK PA","","","","YORK","PA","17402","US","US","YORK","PA",""]
["C006867","NEWARK COMMUNITY CYCLING CENTER","287","2 PARK PL","NEWARK COMMUNITY CYCLING CENTER","NEWARK COMMUNITY CYCLING CENTER"," NEWARK NJ","","","","NEWARK","NJ","07108","US","US","NEWARK","NJ",""]
["C006870","MN TRU NORTH","1985","46735 WINTERGREEN RD.","MN TRU NORTH","MN TRU NORTH"," PERHAM MN","","","","PERHAM","MN","56573","US","US","PERHAM","MN",""]
["C006870","MN TRU NORTH","293","46735 WINTERGREEN RD.","MN TRU NORTH","MN TRU NORTH"," PERHAM MN","","","","PERHAM","MN","56573","US","US","PERHAM","MN",""]
["C006872","MOUNTAIN TOPS OUTFITTERS, INC","842","144 MAIN ST","MOUNTAIN TOPS OUTFITTERS, INC","MOUNTAIN TOPS OUTFITTERS, INC"," BEACON NY","","","","BEACON","NY","12508","US","US","BEACON","NY",""]
["C006875","BLUE VALLEY SKI AND BOARD CATSEYE ENTERPRISES INC","1222","246 UNIT Q RAINBOW DR","BLUE VALLEY SKI AND BOARD CATSEYE ENTERPRISES INC","BLUE VALLEY SKI AND BOARD CATSEYE ENTERPRISES INC"," SILVERTHORNE CO","","","","SILVERTHORNE","CO","80498","US","US","SILVERTHORNE","CO",""]
["C006875","BLUE VALLEY SKI AND BOARD CATSEYE ENTERPRISES INC","3236","246 UNIT Q RAINBOW DR","BLUE VALLEY SKI AND BOARD CATSEYE ENTERPRISES INC","BLUE VALLEY SKI AND BOARD CATSEYE ENTERPRISES INC"," SILVERTHORNE CO","","","","SILVERTHORNE","CO","80498","US","US","SILVERTHORNE","CO",""]
["C006883","BIVOUAC","238","336 SOUTH STATE STREET","BIVOUAC","BIVOUAC"," ANN ARBOR MI","","","","ANN ARBOR","MI","48104","US","US","ANN ARBOR","MI",""]
["C006896","CRIPPLE CREEK BACKCOUNTRY","1203","582 Highway 133","CRIPPLE CREEK BACKCOUNTRY","CRIPPLE CREEK BACKCOUNTRY"," CARBONDALE CO","","","","CARBONDALE","CO","81623","US","US","Carbondale","CO",""]
["C006896","CRIPPLE CREEK BACKCOUNTRY","3219","582 Highway 133","CRIPPLE CREEK BACKCOUNTRY","CRIPPLE CREEK BACKCOUNTRY"," ENGLEWOOD CO","","","","ENGLEWOOD","CO","80113","US","US","Carbondale","CO",""]
["C006896","CRIPPLE CREEK BACKCOUNTRY","3220","582 Highway 133","CRIPPLE CREEK BACKCOUNTRY","CRIPPLE CREEK BACKCOUNTRY"," SEATTLE WA","","","","SEATTLE","WA","98103","US","US","Carbondale","CO",""]
["C006896","CRIPPLE CREEK BACKCOUNTRY","3221","582 Highway 133","CRIPPLE CREEK BACKCOUNTRY","CRIPPLE CREEK BACKCOUNTRY"," ASPEN CO","","","","ASPEN","CO","81611","US","US","Carbondale","CO",""]
["C006896","CRIPPLE CREEK BACKCOUNTRY","3222","582 Highway 133","CRIPPLE CREEK BACKCOUNTRY","CRIPPLE CREEK BACKCOUNTRY"," AVON CO","","","","AVON","CO","81620","US","US","Carbondale","CO",""]
["C006896","CRIPPLE CREEK BACKCOUNTRY","3223","582 Highway 133","CRIPPLE CREEK BACKCOUNTRY","CRIPPLE CREEK BACKCOUNTRY"," SILVERTON CO","","","","SILVERTON","CO","81433","US","US","Carbondale","CO",""]
["C006896","CRIPPLE CREEK BACKCOUNTRY","3224","582 Highway 133","CRIPPLE CREEK BACKCOUNTRY","CRIPPLE CREEK BACKCOUNTRY"," CARBONDALE CO","","","","CARBONDALE","CO","81623","US","US","Carbondale","CO",""]
["C006896","CRIPPLE CREEK BACKCOUNTRY","65060","582 Highway 133","CRIPPLE CREEK BACKCOUNTRY","CRIPPLE CREEK BACKCOUNTRY"," Carbondale CO","","","","Carbondale","CO","81623","US","US","Carbondale","CO",""]
["C006897","NORM'S SKI & BIKE","247","62 MARTELL COURT","NORM'S SKI & BIKE","NORM'S SKI & BIKE"," KEENE NH","","","","KEENE","NH","03431","US","US","KEENE","NH",""]
["C006900","SNOWCREST JR HIGH","230","ATTN: DAVID JENKINS","SNOWCREST JR HIGH","SNOWCREST JR HIGH"," EDEN UT","","","","EDEN","UT","84310-9746","US","US","EDEN","UT",""]
["C006902","BLACK TIE SKI RENTALS OF MAMMOTH LK","2647","PO BOX 860","BLACK TIE SKI RENTALS OF MAMMOTH LK","BLACK TIE SKI RENTALS OF MAMMOTH LK"," MAMMOTH LAKES CA","","","","MAMMOTH LAKES","CA","93546","US","US","MAMMOTH LAKES","CA",""]
["C006902","BLACK TIE SKI RENTALS OF MAMMOTH LK","865","PO BOX 860","BLACK TIE SKI RENTALS OF MAMMOTH LK","BLACK TIE SKI RENTALS OF MAMMOTH LK"," MAMMOTH LAKES CA","","","","MAMMOTH LAKES","CA","93546","US","US","MAMMOTH LAKES","CA",""]
["C006903","NATURFI","326","139 SNYDER LANE","NATURFI","NATURFI"," SCOTRUN PA","","","","SCOTRUN","PA","18355","US","US","SCOTRUN","PA",""]
["C006904","LINTON HOSPITALITY LLC THE REX HOTEL","2011","812 PINE ST","LINTON HOSPITALITY LLC THE REX HOTEL","LINTON HOSPITALITY LLC THE REX HOTEL"," GREENTOWN PA","","","","GREENTOWN","PA","18426","US","US","PHILADELPHIA","PA",""]
["C006904","LINTON HOSPITALITY LLC THE REX HOTEL","327","812 PINE ST","LINTON HOSPITALITY LLC THE REX HOTEL","LINTON HOSPITALITY LLC THE REX HOTEL"," PHILADELPHIA PA","","","","PHILADELPHIA","PA","19107","US","US","PHILADELPHIA","PA",""]
["C006905","THE HIKER BOX","1266","HIKER BOX LLC","THE HIKER BOX","THE HIKER BOX"," EAGLE RIVER WI","","","","EAGLE RIVER","WI","54521","US","US","EAGLE RIVER","WI",""]
["C006905","THE HIKER BOX","3266","HIKER BOX LLC","THE HIKER BOX","THE HIKER BOX"," EAGLE RIVER WI","","","","EAGLE RIVER","WI","54521","US","US","EAGLE RIVER","WI",""]
["C006906","WRIGHT COUNTY","2012","10 2ND ST NW","WRIGHT COUNTY","WRIGHT COUNTY"," BUFFALO MN","","","","BUFFALO","MN","55313","US","US","BUFFALO","MN",""]
["C006906","WRIGHT COUNTY","332","10 2ND ST NW","WRIGHT COUNTY","WRIGHT COUNTY"," BUFFALO MN","","","","BUFFALO","MN","55313","US","US","BUFFALO","MN",""]
["C006909","SPORTSMANS WAREHOUSE","1328","ACCOUNTS PAYABLE","SPORTSMANS WAREHOUSE","SPORTSMANS WAREHOUSE"," MIDVALE UT","","","","MIDVALE","UT","84047","US","US","MIDVALE","UT",""]
["C006909","SPORTSMANS WAREHOUSE","3320","ACCOUNTS PAYABLE","SPORTSMANS WAREHOUSE","SPORTSMANS WAREHOUSE"," WEST JORDAN UT","","","","WEST JORDAN","UT","84081","US","US","MIDVALE","UT",""]
["C006909","SPORTSMANS WAREHOUSE","3321","ACCOUNTS PAYABLE","SPORTSMANS WAREHOUSE","SPORTSMANS WAREHOUSE"," SOLDOTNA AK","","","","SOLDOTNA","AK","99669-8033","US","US","MIDVALE","UT",""]
["C006909","SPORTSMANS WAREHOUSE","3322","ACCOUNTS PAYABLE","SPORTSMANS WAREHOUSE","SPORTSMANS WAREHOUSE"," NAMPA ID","","","","NAMPA","ID","83687","US","US","MIDVALE","UT",""]
["C006909","SPORTSMANS WAREHOUSE","3323","ACCOUNTS PAYABLE","SPORTSMANS WAREHOUSE","SPORTSMANS WAREHOUSE"," HELENA MT","","","","HELENA","MT","59602","US","US","MIDVALE","UT",""]
["C006909","SPORTSMANS WAREHOUSE","3324","ACCOUNTS PAYABLE","SPORTSMANS WAREHOUSE","SPORTSMANS WAREHOUSE"," WASILLA AK","","","","WASILLA","AK","99654","US","US","MIDVALE","UT",""]
["C006909","SPORTSMANS WAREHOUSE","3325","ACCOUNTS PAYABLE","SPORTSMANS WAREHOUSE","SPORTSMANS WAREHOUSE"," LEWISTON ID","","","","LEWISTON","ID","83501","US","US","MIDVALE","UT",""]
["C006909","SPORTSMANS WAREHOUSE","3326","ACCOUNTS PAYABLE","SPORTSMANS WAREHOUSE","SPORTSMANS WAREHOUSE"," SALT LAKE CITY UT","","","","SALT LAKE CITY","UT","84104","US","US","MIDVALE","UT",""]
["C006909","SPORTSMANS WAREHOUSE","3327","ACCOUNTS PAYABLE","SPORTSMANS WAREHOUSE","SPORTSMANS WAREHOUSE"," FAIRBANKS AK","","","","FAIRBANKS","AK","99701","US","US","MIDVALE","UT",""]
["C006909","SPORTSMANS WAREHOUSE","3328","ACCOUNTS PAYABLE","SPORTSMANS WAREHOUSE","SPORTSMANS WAREHOUSE"," COLORADO SPRINGS CO","","","","COLORADO SPRINGS","CO","80909","US","US","MIDVALE","UT",""]
["C006909","SPORTSMANS WAREHOUSE","3329","ACCOUNTS PAYABLE","SPORTSMANS WAREHOUSE","SPORTSMANS WAREHOUSE"," PROVO UT","","","","PROVO","UT","84601","US","US","MIDVALE","UT",""]
["C006909","SPORTSMANS WAREHOUSE","3330","ACCOUNTS PAYABLE","SPORTSMANS WAREHOUSE","SPORTSMANS WAREHOUSE"," RIVERDALE UT","","","","RIVERDALE","UT","84405","US","US","MIDVALE","UT",""]
["C006909","SPORTSMANS WAREHOUSE","3331","ACCOUNTS PAYABLE","SPORTSMANS WAREHOUSE","SPORTSMANS WAREHOUSE"," MERIDIAN ID","","","","MERIDIAN","ID","83642","US","US","MIDVALE","UT",""]
["C006909","SPORTSMANS WAREHOUSE","3332","ACCOUNTS PAYABLE","SPORTSMANS WAREHOUSE","SPORTSMANS WAREHOUSE"," IDAHO FALLS ID","","","","IDAHO FALLS","ID","83406","US","US","MIDVALE","UT",""]
["C006909","SPORTSMANS WAREHOUSE","3333","ACCOUNTS PAYABLE","SPORTSMANS WAREHOUSE","SPORTSMANS WAREHOUSE"," LOVELAND CO","","","","LOVELAND","CO","80538","US","US","MIDVALE","UT",""]
["C006909","SPORTSMANS WAREHOUSE","3334","ACCOUNTS PAYABLE","SPORTSMANS WAREHOUSE","SPORTSMANS WAREHOUSE"," KENNEWICK WA","","","","KENNEWICK","WA","99336","US","US","MIDVALE","UT",""]
["C006909","SPORTSMANS WAREHOUSE","3335","ACCOUNTS PAYABLE","SPORTSMANS WAREHOUSE","SPORTSMANS WAREHOUSE"," MIDVALE UT","","","","MIDVALE","UT","84047","US","US","MIDVALE","UT",""]
["C006909","SPORTSMANS WAREHOUSE","3336","ACCOUNTS PAYABLE","SPORTSMANS WAREHOUSE","SPORTSMANS WAREHOUSE"," MISSOULA MT","","","","MISSOULA","MT","59808","US","US","MIDVALE","UT",""]
["C006909","SPORTSMANS WAREHOUSE","3337","ACCOUNTS PAYABLE","SPORTSMANS WAREHOUSE","SPORTSMANS WAREHOUSE"," TWIN FALLS ID","","","","TWIN FALLS","ID","83301","US","US","MIDVALE","UT",""]
["C006909","SPORTSMANS WAREHOUSE","3338","ACCOUNTS PAYABLE","SPORTSMANS WAREHOUSE","SPORTSMANS WAREHOUSE"," THORNTON CO","","","","THORNTON","CO","80260","US","US","MIDVALE","UT",""]
["C006909","SPORTSMANS WAREHOUSE","3339","ACCOUNTS PAYABLE","SPORTSMANS WAREHOUSE","SPORTSMANS WAREHOUSE"," ANCHORAGE AK","","","","ANCHORAGE","AK","99515","US","US","MIDVALE","UT",""]
["C006909","SPORTSMANS WAREHOUSE","3340","ACCOUNTS PAYABLE","SPORTSMANS WAREHOUSE","SPORTSMANS WAREHOUSE"," FIFE WA","","","","FIFE","WA","98424","US","US","MIDVALE","UT",""]
["C006918","WEBYSHOPS.COM","296","7901 BOULEVARD 26, STE 200","WEBYSHOPS.COM","WEBYSHOPS.COM"," NORTH RICHLAND HILLS TX","","","","NORTH RICHLAND HILLS","TX","76180","US","US","NORTH RICHLAND HILLS","TX",""]
["C006921","FORTRESS BIKES","300","194 MAIN ST","FORTRESS BIKES","FORTRESS BIKES"," HURLEYVILLE NY","","","","HURLEYVILLE","NY","12747","US","US","HURLEYVILLE","NY",""]
["C006922","SPOKE N SPORT","1988","2019 S MINNESOTA AVE","SPOKE N SPORT","SPOKE N SPORT"," BROOKINGS SD","","","","BROOKINGS","SD","57006","US","US","SIOUX FALLS","SD",""]
["C006922","SPOKE N SPORT","1989","2019 S MINNESOTA AVE","SPOKE N SPORT","SPOKE N SPORT"," SIOUX FALLS SD","","","","SIOUX FALLS","SD","57105","US","US","SIOUX FALLS","SD",""]
["C006922","SPOKE N SPORT","301","2019 S MINNESOTA AVE","SPOKE N SPORT","SPOKE N SPORT"," SIOUX FALLS SD","","","","SIOUX FALLS","SD","57105","US","US","SIOUX FALLS","SD",""]
["C006931","PLAY IT AGAIN SPORTS SYRACUSE","1995","CUSE ENTERPRISES LLC","PLAY IT AGAIN SPORTS SYRACUSE","PLAY IT AGAIN SPORTS SYRACUSE"," SYRACUSE NY","","","","SYRACUSE","NY","13214","US","US","N. SYRACUSE","NY",""]
["C006931","PLAY IT AGAIN SPORTS SYRACUSE","317","CUSE ENTERPRISES LLC","PLAY IT AGAIN SPORTS SYRACUSE","PLAY IT AGAIN SPORTS SYRACUSE"," N. SYRACUSE NY","","","","N. SYRACUSE","NY","13212","US","US","N. SYRACUSE","NY",""]
["C006934","MICHIGAN TECHNOLOGICAL UNIVERSITY","313","308 LAKESHORE CENTER","MICHIGAN TECHNOLOGICAL UNIVERSITY","MICHIGAN TECHNOLOGICAL UNIVERSITY"," HOUGHTON MI","","","","HOUGHTON","MI","49931-1295","US","US","HOUGHTON","MI",""]
["C006935","TRAILFITTERS INC","1300","FITGERS COMPLEX","TRAILFITTERS INC","TRAILFITTERS INC"," DULUTH MN","","","","DULUTH","MN","55802","US","US","DULUTH","MN",""]
["C006937","ICEBOX MOUNTAIN SPORTS","2425","311 PTARMIGEN ST","ICEBOX MOUNTAIN SPORTS","ICEBOX MOUNTAIN SPORTS"," FRASER CO","","","","FRASER","CO","80442","US","US","GOLDEN","CO",""]
["C006937","ICEBOX MOUNTAIN SPORTS","656","311 PTARMIGEN ST","ICEBOX MOUNTAIN SPORTS","ICEBOX MOUNTAIN SPORTS"," GOLDEN CO","","","","GOLDEN","CO","80403","US","US","GOLDEN","CO",""]
["C006944","BLACK TIE SKI RENTALS OF NORTH TAHO","86","12219 BUSINESS PARK DR","BLACK TIE SKI RENTALS OF NORTH TAHO","BLACK TIE SKI RENTALS OF NORTH TAHO"," TRUCKEE CA","","","","TRUCKEE","CA","96161","US","US","TRUCKEE","CA",""]
["C006951","CARLISLES INC","625","86 CONGRESS ST","CARLISLES INC","CARLISLES INC"," RUMFORD ME","","","","RUMFORD","ME","04276","US","US","RUMFORD","ME",""]
["C006955","ALPEN HAUS SKI CENTER","1665","48 GRENADIER PLACE","ALPEN HAUS SKI CENTER","ALPEN HAUS SKI CENTER"," PAGOSA SPRINGS CO","","","","PAGOSA SPRINGS","CO","81147","US","US","PAGOSA SPRINGS","CO",""]
["C006955","ALPEN HAUS SKI CENTER","88","48 GRENADIER PLACE","ALPEN HAUS SKI CENTER","ALPEN HAUS SKI CENTER"," PAGOSA SPRINGS CO","","","","PAGOSA SPRINGS","CO","81147","US","US","PAGOSA SPRINGS","CO",""]
["C006959","OURLAND OUTDOOR","156","5000 GREENBAG RD","OURLAND OUTDOOR","OURLAND OUTDOOR"," MORGANTOWN WV","","","","MORGANTOWN","WV","26501","US","US","MORGANTOWN","WV",""]
["C006962","EASTSIDE SKI AND SPORT","2452","GMF INVESTMENTS","EASTSIDE SKI AND SPORT","EASTSIDE SKI AND SPORT"," REDMOND WA","","","","REDMOND","WA","98052","US","US","WOODINVILLE","WA",""]
["C006962","EASTSIDE SKI AND SPORT","706","GMF INVESTMENTS","EASTSIDE SKI AND SPORT","EASTSIDE SKI AND SPORT"," WOODINVILLE WA","","","","WOODINVILLE","WA","98072","US","US","WOODINVILLE","WA",""]
["C006964","GRANLIBAKKEN MGMT","1933","PO BOX 6329","GRANLIBAKKEN MGMT","GRANLIBAKKEN MGMT"," TAHOE CITY CA","","","","TAHOE CITY","CA","96145","US","US","TAHOE CITY","CA",""]
["C006964","GRANLIBAKKEN MGMT","212","PO BOX 6329","GRANLIBAKKEN MGMT","GRANLIBAKKEN MGMT"," TAHOE CITY CA","","","","TAHOE CITY","CA","96145","US","US","TAHOE CITY","CA",""]
["C006967","ACTIVE ENDEAVORS OF DAVENPORT","213","3950 ELMORE AVE","ACTIVE ENDEAVORS OF DAVENPORT","ACTIVE ENDEAVORS OF DAVENPORT"," DAVENPORT IA","","","","DAVENPORT","IA","52807","US","US","DAVENPORT","IA",""]
["C006973","WILDERNESS WAY OUTFITTERS INC","2431","44370 STERLING HWY","WILDERNESS WAY OUTFITTERS INC","WILDERNESS WAY OUTFITTERS INC"," FIFE WA","","","","FIFE","WA","98424","US","US","SOLDOTNA","AK",""]
["C006973","WILDERNESS WAY OUTFITTERS INC","678","44370 STERLING HWY","WILDERNESS WAY OUTFITTERS INC","WILDERNESS WAY OUTFITTERS INC"," SOLDOTNA AK","","","","SOLDOTNA","AK","99669","US","US","SOLDOTNA","AK",""]
["C006975","LAPLAND LAKE","127","STONEY CREEK NORDIC INC.","LAPLAND LAKE","LAPLAND LAKE"," NORTHVILLE NY","","","","NORTHVILLE","NY","12134","US","US","NORTHVILLE","NY",""]
["C006976","CAMP SAVER LLC","183","695 W 1700 S BLDG 12","CAMP SAVER LLC","CAMP SAVER LLC"," LOGAN UT","","","","LOGAN","UT","84321","US","US","LOGAN","UT",""]
["C006984","NEXT ADVENTURE","1464","426 SE GRAND AVE","NEXT ADVENTURE","NEXT ADVENTURE"," PORTLAND OR","","","","PORTLAND","OR","97214","US","US","PORTLAND","OR",""]
["C006984","NEXT ADVENTURE","3529","426 SE GRAND AVE","NEXT ADVENTURE","NEXT ADVENTURE"," PORTLAND OR","","","","PORTLAND","OR","97202","US","US","PORTLAND","OR",""]
["C006986","MONTANA ARMAMENT GROUP LLC","2124","PO BOX 11674","MONTANA ARMAMENT GROUP LLC","MONTANA ARMAMENT GROUP LLC"," BELGRADE MT","","","","BELGRADE","MT","59714","US","US","BOZEMAN","MT",""]
["C006986","MONTANA ARMAMENT GROUP LLC","480","PO BOX 11674","MONTANA ARMAMENT GROUP LLC","MONTANA ARMAMENT GROUP LLC"," BOZEMAN MT","","","","BOZEMAN","MT","59719","US","US","BOZEMAN","MT",""]
["C006987","THE GREAT OUTDOORS CO","1383","10 S SELIG AVE","THE GREAT OUTDOORS CO","THE GREAT OUTDOORS CO"," MONTROSE CO","","","","MONTROSE","CO","81401","US","US","MONTROSE","CO",""]
["C006989","TWIN STATE ELECTRIC","1413","PO BOX 995","TWIN STATE ELECTRIC","TWIN STATE ELECTRIC"," WILDER VT","","","","WILDER","VT","05088","US","US","WILDER","VT",""]
["C006989","TWIN STATE ELECTRIC","3493","PO BOX 995","TWIN STATE ELECTRIC","TWIN STATE ELECTRIC"," WILDER VT","","","","WILDER","VT","05088","US","US","WILDER","VT",""]
["C006990","TYGART MOUNTAIN SPORTS","1416","57 POND STREET","TYGART MOUNTAIN SPORTS","TYGART MOUNTAIN SPORTS"," LUDLOW VT","","","","LUDLOW","VT","05149","US","US","LUDLOW","VT",""]
["C006991","ACTION SPORTS","525","1384 MONTAUK HWY","ACTION SPORTS","ACTION SPORTS"," OAKDALE NY","","","","OAKDALE","NY","11769","US","US","OAKDALE","NY",""]
["C006992","GRAND JUNCTION SKI AND CYCLERY","1472","DBA THE BOARD AND BUCKLE","GRAND JUNCTION SKI AND CYCLERY","GRAND JUNCTION SKI AND CYCLERY"," GRAND JUNCTION CO","","","","GRAND JUNCTION","CO","81501","US","US","GRAND JUNCTION","CO",""]
["C006993","BOONE MOUNTAIN SPORTS","2839","2962 EVERGREEN PKWY","BOONE MOUNTAIN SPORTS","BOONE MOUNTAIN SPORTS"," EVERGREEN CO","","","","EVERGREEN","CO","80439","US","US","EVERGREEN","CO",""]
["C006993","BOONE MOUNTAIN SPORTS","959","2962 EVERGREEN PKWY","BOONE MOUNTAIN SPORTS","BOONE MOUNTAIN SPORTS"," EVERGREEN CO","","","","EVERGREEN","CO","80439","US","US","EVERGREEN","CO",""]
["C006998","HIDDEN VALLEY RESORT","1361","SEVEN SPRINGS MOUNTAIN RESORT","HIDDEN VALLEY RESORT","HIDDEN VALLEY RESORT"," SEVEN SPRINGS PA","","","","SEVEN SPRINGS","PA","15622","US","US","SEVEN SPRINGS","PA",""]
["C006998","HIDDEN VALLEY RESORT","3361","SEVEN SPRINGS MOUNTAIN RESORT","HIDDEN VALLEY RESORT","HIDDEN VALLEY RESORT"," HIDDEN VALLEY PA","","","","HIDDEN VALLEY","PA","15502","US","US","SEVEN SPRINGS","PA",""]
["C006999","ACTIVE ENDEAVORS","936","4520 UNIVERSITY AVE, STE 130","ACTIVE ENDEAVORS","ACTIVE ENDEAVORS"," WEST DES MOINES IA","","","","WEST DES MOINES","IA","50266","US","US","WEST DES MOINES","IA",""]
["C007003","WANDERLUST OUTFITTERS INC","440","120 STATE STREET","WANDERLUST OUTFITTERS INC","WANDERLUST OUTFITTERS INC"," ST JOSEPH MI","","","","ST JOSEPH","MI","49085","US","US","ST JOSEPH","MI",""]
["C007004","OUTPOST SPORTS SOUTH HAVEN","442","114 DYCKMAN AVE","OUTPOST SPORTS SOUTH HAVEN","OUTPOST SPORTS SOUTH HAVEN"," SOUTH HAVEN MI","","","","SOUTH HAVEN","MI","49090","US","US","SOUTH HAVEN","MI",""]
["C007008","SCHOOL DISTRICT OF LODI","2117","115 SCHOOL ST","SCHOOL DISTRICT OF LODI","SCHOOL DISTRICT OF LODI"," LODI WI","","","","LODI","WI","53555","US","US","LODI","WI",""]
["C007008","SCHOOL DISTRICT OF LODI","464","115 SCHOOL ST","SCHOOL DISTRICT OF LODI","SCHOOL DISTRICT OF LODI"," LODI WI","","","","LODI","WI","53555","US","US","LODI","WI",""]
["C007010","SLIPPING GEARS INC SLIPPING GEARS CYCLING","451","753 STILLWATER","SLIPPING GEARS INC SLIPPING GEARS CYCLING","SLIPPING GEARS INC SLIPPING GEARS CYCLING"," BANGOR ME","","","","BANGOR","ME","04401","US","US","BANGOR","ME",""]
["C007011","BLACK TIE SKI RENTAL- JACKSON HOLE","454","1715 HIGH SCHOOL RD SUITE 210","BLACK TIE SKI RENTAL- JACKSON HOLE","BLACK TIE SKI RENTAL- JACKSON HOLE"," JACKSON WY","","","","JACKSON","WY","83014","US","US","JACKSON","WY",""]
["C007012","CASCADES OUTDOOR STORE","1375","PO BOX 96","CASCADES OUTDOOR STORE","CASCADES OUTDOOR STORE"," WINTHROP WA","","","","WINTHROP","WA","98862","US","US","WINTHROP","WA",""]
["C007012","CASCADES OUTDOOR STORE","3368","PO BOX 96","CASCADES OUTDOOR STORE","CASCADES OUTDOOR STORE"," WINTHROP WA","","","","WINTHROP","WA","98862","US","US","WINTHROP","WA",""]
["C007028","ROCKTOWN ADVENTURES","1434","303 N MAIN ST","ROCKTOWN ADVENTURES","ROCKTOWN ADVENTURES"," ROCKFORD IL","","","","ROCKFORD","IL","61101","US","US","ROCKFORD","IL",""]
["C007028","ROCKTOWN ADVENTURES","3511","303 N MAIN ST","ROCKTOWN ADVENTURES","ROCKTOWN ADVENTURES"," ROCKFORD IL","","","","ROCKFORD","IL","61107","US","US","ROCKFORD","IL",""]
["C007029","WHITTAKER MOUNTAINEERING","2149","PO BOX W","WHITTAKER MOUNTAINEERING","WHITTAKER MOUNTAINEERING"," ASHFORD WA","","","","ASHFORD","WA","98304","US","US","ASHFORD","WA",""]
["C007029","WHITTAKER MOUNTAINEERING","536","PO BOX W","WHITTAKER MOUNTAINEERING","WHITTAKER MOUNTAINEERING"," ASHFORD WA","","","","ASHFORD","WA","98304","US","US","ASHFORD","WA",""]
["C007032","ANDES SKI SHOP LLC","970","PO Box 1080","ANDES SKI SHOP LLC","ANDES SKI SHOP LLC"," Conway NH","","","","Conway","NH","03812","US","US","Conway","NH",""]
["C007033","THE GEARAGE","1426","142 remination st","THE GEARAGE","THE GEARAGE"," FORT COLLINS CO","","","","FORT COLLINS","CO","80524","US","US","FORT COLLINS","CO",""]
["C007041","NEW ENGLAND SKI & SCUBA","297","60 WINDSOR AVE ROUTE 83","NEW ENGLAND SKI & SCUBA","NEW ENGLAND SKI & SCUBA"," VERNON ROCKVILLE CT","","","","VERNON ROCKVILLE","CT","06066","US","US","VERNON ROCKVILLE","CT",""]
["C007045","OUTDOOR VENTURES","1187","PO BOX 148","OUTDOOR VENTURES","OUTDOOR VENTURES"," HAYWARD WI","","","","HAYWARD","WI","54843","US","US","HAYWARD","WI",""]
["C007045","OUTDOOR VENTURES","3212","PO BOX 148","OUTDOOR VENTURES","OUTDOOR VENTURES"," HAYWARD WI","","","","HAYWARD","WI","54843","US","US","HAYWARD","WI",""]
["C007049","STRAIGHTLINE PRODUCTS","1982","PO BOX 774887","STRAIGHTLINE PRODUCTS","STRAIGHTLINE PRODUCTS"," STEAMBOAT SPRINGS CO","","","","STEAMBOAT SPRINGS","CO","80487","US","US","STEAMBOAT SPRINGS","CO",""]
["C007049","STRAIGHTLINE PRODUCTS","285","PO BOX 774887","STRAIGHTLINE PRODUCTS","STRAIGHTLINE PRODUCTS"," STEAMBOAT SPRINGS CO","","","","STEAMBOAT SPRINGS","CO","80477-4887","US","US","STEAMBOAT SPRINGS","CO",""]
["C007059","CONFLUENCE KAYAKS LLC","1246","2301 7TH STREET","CONFLUENCE KAYAKS LLC","CONFLUENCE KAYAKS LLC"," DENVER CO","","","","DENVER","CO","80211","US","US","DENVER","CO",""]
["C007060","TAHOE MOUNTAIN SPORTS","1960","11200 DONNER PASS ROAD","TAHOE MOUNTAIN SPORTS","TAHOE MOUNTAIN SPORTS"," TRUCKEE CA","","","","TRUCKEE","CA","96161","US","US","TRUCKEE","CA",""]
["C007060","TAHOE MOUNTAIN SPORTS","253","11200 DONNER PASS ROAD","TAHOE MOUNTAIN SPORTS","TAHOE MOUNTAIN SPORTS"," TRUCKEE CA","","","","TRUCKEE","CA","96161","US","US","TRUCKEE","CA",""]
["C007065","VALLEY BIKE AND SKI WERKS LLC","1143","PO BOX 673","VALLEY BIKE AND SKI WERKS LLC","VALLEY BIKE AND SKI WERKS LLC"," HADLEY MA","","","","HADLEY","MA","01035","US","US","HADLEY","MA",""]
["C007065","VALLEY BIKE AND SKI WERKS LLC","3184","PO BOX 673","VALLEY BIKE AND SKI WERKS LLC","VALLEY BIKE AND SKI WERKS LLC"," HADLEY MA","","","","HADLEY","MA","01035","US","US","HADLEY","MA",""]
["C007072","WILDERNESS EXCHANGE UNLIMITED CO","1220","2401 15TH ST STE 100","WILDERNESS EXCHANGE UNLIMITED CO","WILDERNESS EXCHANGE UNLIMITED CO"," DENVER CO","","","","DENVER","CO","80202","US","US","DENVER","CO",""]
["C007072","WILDERNESS EXCHANGE UNLIMITED CO","3234","2401 15TH ST STE 100","WILDERNESS EXCHANGE UNLIMITED CO","WILDERNESS EXCHANGE UNLIMITED CO"," DENVER CO","","","","DENVER","CO","80211","US","US","DENVER","CO",""]
["C007072","WILDERNESS EXCHANGE UNLIMITED CO","3235","2401 15TH ST STE 100","WILDERNESS EXCHANGE UNLIMITED CO","WILDERNESS EXCHANGE UNLIMITED CO"," DENVER CO","","","","DENVER","CO","80211","US","US","DENVER","CO",""]
["C007073","OURAY MOUNTAIN SPORTS","1973","PO BOX 500","OURAY MOUNTAIN SPORTS","OURAY MOUNTAIN SPORTS"," OURAY CO","","","","OURAY","CO","81427","US","US","OURAY","CO",""]
["C007073","OURAY MOUNTAIN SPORTS","269","PO BOX 500","OURAY MOUNTAIN SPORTS","OURAY MOUNTAIN SPORTS"," OURAY CO","","","","OURAY","CO","81427","US","US","OURAY","CO",""]
["C007078","THE GREEN ROOM","1940","3211 W. MACARTHUR BLVD","THE GREEN ROOM","THE GREEN ROOM"," FOUNTAIN VALLEY CA","","","","FOUNTAIN VALLEY","CA","92708","US","US","SANTA ANA","CA",""]
["C007078","THE GREEN ROOM","1941","3211 W. MACARTHUR BLVD","THE GREEN ROOM","THE GREEN ROOM"," MAMMOTH LAKES CA","","","","MAMMOTH LAKES","CA","93546","US","US","SANTA ANA","CA",""]
["C007078","THE GREEN ROOM","224","3211 W. MACARTHUR BLVD","THE GREEN ROOM","THE GREEN ROOM"," SANTA ANA CA","","","","SANTA ANA","CA","92704","US","US","SANTA ANA","CA",""]
["C007079","OUTDOOR DIVAS","1330","520 E LIONSHEAD CIRCLE, C-8","OUTDOOR DIVAS","OUTDOOR DIVAS"," VAIL CO","","","","VAIL","CO","81657","US","US","VAIL","CO",""]
["C007079","OUTDOOR DIVAS","3342","520 E LIONSHEAD CIRCLE, C-8","OUTDOOR DIVAS","OUTDOOR DIVAS"," VAIL CO","","","","VAIL","CO","81657","US","US","VAIL","CO",""]
["C007080","DOCS OUTDOOR SPORTS LLC","1336","PO BOX 1215","DOCS OUTDOOR SPORTS LLC","DOCS OUTDOOR SPORTS LLC"," SOUTH FORK CO","","","","SOUTH FORK","CO","81154","US","US","SOUTH FORK","CO",""]
["C007080","DOCS OUTDOOR SPORTS LLC","3344","PO BOX 1215","DOCS OUTDOOR SPORTS LLC","DOCS OUTDOOR SPORTS LLC"," SOUTH FORK CO","","","","SOUTH FORK","CO","81154","US","US","SOUTH FORK","CO",""]
["C007082","BLACK TIE SKI RENTAL OF STEAMBOAT","1313","1625 MID VALLEY DR","BLACK TIE SKI RENTAL OF STEAMBOAT","BLACK TIE SKI RENTAL OF STEAMBOAT"," STEAMBOAT SPRINGS CO","","","","STEAMBOAT SPRINGS","CO","80487","US","US","STEAMBOAT SPRINGS","CO",""]
["C007085","STRAWBERRY STATION","338","17481 HIGHWAY 50","STRAWBERRY STATION","STRAWBERRY STATION"," TWIN BRIDGES CA","","","","TWIN BRIDGES","CA","95735","US","US","TWIN BRIDGES","CA",""]
["C007086","RUTABAGA","1317","RUTABAGA PADDLESPORTS LLC","RUTABAGA","RUTABAGA"," MADISON WI","","","","MADISON","WI","53716","US","US","MADISON","WI",""]
["C007096","GREAT GLENN TRAILS","2077","PO BOX 278","GREAT GLENN TRAILS","GREAT GLENN TRAILS"," GORHAM NH","","","","GORHAM","NH","03581","US","US","GORHAM","NH",""]
["C007096","GREAT GLENN TRAILS","429","PO BOX 278","GREAT GLENN TRAILS","GREAT GLENN TRAILS"," GORHAM NH","","","","GORHAM","NH","03581","US","US","GORHAM","NH",""]
["C007098","COVERED BRIDGE SPORTS","422","WDC INC","COVERED BRIDGE SPORTS","COVERED BRIDGE SPORTS"," DOVER NH","","","","DOVER","NH","03820","US","US","DOVER","NH",""]
["C007099","GEAR UP AND GET OUT THERE","1293","PO BOX 2107","GEAR UP AND GET OUT THERE","GEAR UP AND GET OUT THERE"," CASPER WY","","","","CASPER","WY","82602","US","US","CASPER","WY",""]
["C007099","GEAR UP AND GET OUT THERE","3288","PO BOX 2107","GEAR UP AND GET OUT THERE","GEAR UP AND GET OUT THERE"," CASPER WY","","","","CASPER","WY","82601","US","US","CASPER","WY",""]
["C007102","GORHAM BIKE & SKI","2014","693 CONGRESS ST","GORHAM BIKE & SKI","GORHAM BIKE & SKI"," WATERVILLE ME","","","","WATERVILLE","ME","04901","US","US","PORTLAND","ME",""]
["C007102","GORHAM BIKE & SKI","2015","693 CONGRESS ST","GORHAM BIKE & SKI","GORHAM BIKE & SKI"," NORTH CONWAY NH","","","","NORTH CONWAY","NH","03860","US","US","PORTLAND","ME",""]
["C007102","GORHAM BIKE & SKI","2016","693 CONGRESS ST","GORHAM BIKE & SKI","GORHAM BIKE & SKI"," JACKSON NH","","","","JACKSON","NH","03846","US","US","PORTLAND","ME",""]
["C007102","GORHAM BIKE & SKI","339","693 CONGRESS ST","GORHAM BIKE & SKI","GORHAM BIKE & SKI"," PORTLAND ME","","","","PORTLAND","ME","04102","US","US","PORTLAND","ME",""]
["C007106","TRUE NORTH ADVENTUREWARE","2034","PO BOX 973","TRUE NORTH ADVENTUREWARE","TRUE NORTH ADVENTUREWARE"," BETHEL ME","","","","BETHEL","ME","04217","US","US","BETHEL","ME",""]
["C007106","TRUE NORTH ADVENTUREWARE","352","PO BOX 973","TRUE NORTH ADVENTUREWARE","TRUE NORTH ADVENTUREWARE"," BETHEL ME","","","","BETHEL","ME","04217","US","US","BETHEL","ME",""]
["C007110","AKERS SKI INC","2013","PO BOX 293","AKERS SKI INC","AKERS SKI INC"," ANDOVER ME","","","","ANDOVER","ME","04216","US","US","ANDOVER","ME",""]
["C007110","AKERS SKI INC","335","PO BOX 293","AKERS SKI INC","AKERS SKI INC"," ANDOVER ME","","","","ANDOVER","ME","04216-0293","US","US","ANDOVER","ME",""]
["C007112","MOUNTAIN HARDWARE AND SPORTS","1259","PO BOX 2913","MOUNTAIN HARDWARE AND SPORTS","MOUNTAIN HARDWARE AND SPORTS"," TRUCKEE CA","","","","TRUCKEE","CA","96161","US","US","TRUCKEE","CA",""]
["C007112","MOUNTAIN HARDWARE AND SPORTS","3263","PO BOX 2913","MOUNTAIN HARDWARE AND SPORTS","MOUNTAIN HARDWARE AND SPORTS"," TRUCKEE CA","","","","TRUCKEE","CA","96161","US","US","TRUCKEE","CA",""]
["C007114","PROVISIONS","378","102 W LUDINGTON AVE","PROVISIONS","PROVISIONS"," LUDINGTON MI","","","","LUDINGTON","MI","49431","US","US","LUDINGTON","MI",""]
["C007116","R & L FRYE SPECIAL PRODUCT CO.","379","CROSS CNTRY SKI HEADQUARTERS, LLC","R & L FRYE SPECIAL PRODUCT CO.","R & L FRYE SPECIAL PRODUCT CO."," ROSCOMMON MI","","","","ROSCOMMON","MI","48653","US","US","ROSCOMMON","MI",""]
["C007118","SURPLUS OUTLET INC","383","200 SHELDON AVE","SURPLUS OUTLET INC","SURPLUS OUTLET INC"," HOUGHTON MI","","","","HOUGHTON","MI","49931","US","US","HOUGHTON","MI",""]
["C007119","CRYSTAL MOUNTAIN RESORT","360","12500 CRYSTAL MTN DR","CRYSTAL MOUNTAIN RESORT","CRYSTAL MOUNTAIN RESORT"," THOMPSONVILLE MI","","","","THOMPSONVILLE","MI","49683","US","US","THOMPSONVILLE","MI",""]
["C007120","ABR TRAILS","353","ABR INC","ABR TRAILS","ABR TRAILS"," IRONWOOD MI","","","","IRONWOOD","MI","49938","US","US","IRONWOOD","MI",""]
["C007121","BEARCUB OUTFITTERS","354","321 EAST LAKE ST","BEARCUB OUTFITTERS","BEARCUB OUTFITTERS"," PETOSKEY MI","","","","PETOSKEY","MI","49770","US","US","PETOSKEY","MI",""]
["C007124","LANDSHARKS","372","306 BUTLER STREET","LANDSHARKS","LANDSHARKS"," SAUGATUCK MI","","","","SAUGATUCK","MI","49453","US","US","SAUGATUCK","MI",""]
["C007129","CRYSTAL SKI SHOP","515","1933 28TH ST","CRYSTAL SKI SHOP","CRYSTAL SKI SHOP"," BOULDER CO","","","","BOULDER","CO","80301","US","US","BOULDER","CO",""]
["C007136","ALTA SKI SHOP","2120","PO BOX 8007","ALTA SKI SHOP","ALTA SKI SHOP"," ALTA UT","","","","ALTA","UT","84092","US","US","ALTA","UT",""]
["C007136","ALTA SKI SHOP","469","PO BOX 8007","ALTA SKI SHOP","ALTA SKI SHOP"," ALTA UT","","","","ALTA","UT","84092","US","US","ALTA","UT",""]
["C007147","DOUGS SPORTS - HOOD RIVER","459","101 OAK AVE","DOUGS SPORTS - HOOD RIVER","DOUGS SPORTS - HOOD RIVER"," HOOD RIVER OR","","","","HOOD RIVER","OR","97031","US","US","HOOD RIVER","OR",""]
["C007153","LEISURE SPORTS","2159","PO BOX 11510","LEISURE SPORTS","LEISURE SPORTS"," JACKSON WY","","","","JACKSON","WY","83001","US","US","JACKSON","WY",""]
["C007153","LEISURE SPORTS","553","PO BOX 11510","LEISURE SPORTS","LEISURE SPORTS"," JACKSON WY","","","","JACKSON","WY","83002","US","US","JACKSON","WY",""]
["C007155","SHERPERS INC","545","5750 S 108TH ST","SHERPERS INC","SHERPERS INC"," HALES CORNERS WI","","","","HALES CORNERS","WI","53130-1947","US","US","HALES CORNERS","WI",""]
["C007157","TOURIGHT BICYCLE SHOP","402","124 2ND ST. NE","TOURIGHT BICYCLE SHOP","TOURIGHT BICYCLE SHOP"," LITTLE FALLS MN","","","","LITTLE FALLS","MN","56345","US","US","LITTLE FALLS","MN",""]
["C007160","BEAR VALLEY MOUNTAIN RESORT","2066","PO BOX 5038","BEAR VALLEY MOUNTAIN RESORT","BEAR VALLEY MOUNTAIN RESORT"," BEAR VALLEY CA","","","","BEAR VALLEY","CA","95223","US","US","BEAR VALLEY","CA",""]
["C007160","BEAR VALLEY MOUNTAIN RESORT","403","PO BOX 5038","BEAR VALLEY MOUNTAIN RESORT","BEAR VALLEY MOUNTAIN RESORT"," BEAR VALLEY CA","","","","BEAR VALLEY","CA","95223","US","US","BEAR VALLEY","CA",""]
["C007168","PAGOSA MOUNTAIN SPORTS LLC","2113","PO BOX 1378","PAGOSA MOUNTAIN SPORTS LLC","PAGOSA MOUNTAIN SPORTS LLC"," PAGOSA SPRINGS CO","","","","PAGOSA SPRINGS","CO","81147","US","US","PAGOSA SPRINGS","CO",""]
["C007168","PAGOSA MOUNTAIN SPORTS LLC","453","PO BOX 1378","PAGOSA MOUNTAIN SPORTS LLC","PAGOSA MOUNTAIN SPORTS LLC"," PAGOSA SPRINGS CO","","","","PAGOSA SPRINGS","CO","81147","US","US","PAGOSA SPRINGS","CO",""]
["C007169","SHERIDAN SPORT STOP LTD","1442","208 N MAIN","SHERIDAN SPORT STOP LTD","SHERIDAN SPORT STOP LTD"," SHERIDAN WY","","","","SHERIDAN","WY","82801","US","US","SHERIDAN","WY",""]
["C007172","HIGH ALTITUDE","496","788 NOTCH RD","HIGH ALTITUDE","HIGH ALTITUDE"," MENDON VT","","","","MENDON","VT","05701","US","US","MENDON","VT",""]
["C007175","LENNYS SHOE & APPAREL","2137","359 N MAIN ST","LENNYS SHOE & APPAREL","LENNYS SHOE & APPAREL"," WILLISTON VT","","","","WILLISTON","VT","05495","US","US","BARRE","VT",""]
["C007175","LENNYS SHOE & APPAREL","2138","359 N MAIN ST","LENNYS SHOE & APPAREL","LENNYS SHOE & APPAREL"," SAINT ALBANS VT","","","","SAINT ALBANS","VT","05478","US","US","BARRE","VT",""]
["C007175","LENNYS SHOE & APPAREL","510","359 N MAIN ST","LENNYS SHOE & APPAREL","LENNYS SHOE & APPAREL"," BARRE VT","","","","BARRE","VT","05641","US","US","BARRE","VT",""]
["C007176","THE SKI RENTER AT MAMMOTH","2115","PO BOX 7028","THE SKI RENTER AT MAMMOTH","THE SKI RENTER AT MAMMOTH"," MAMMOTH LAKES CA","","","","MAMMOTH LAKES","CA","93546","US","US","MAMMOTH LAKES","CA",""]
["C007176","THE SKI RENTER AT MAMMOTH","462","PO BOX 7028","THE SKI RENTER AT MAMMOTH","THE SKI RENTER AT MAMMOTH"," MAMMOTH LAKES CA","","","","MAMMOTH LAKES","CA","93546","US","US","MAMMOTH LAKES","CA",""]
["C007176","THE SKI RENTER AT MAMMOTH","71169","PO BOX 7028","THE SKI RENTER AT MAMMOTH","THE SKI RENTER AT MAMMOTH"," Underwood WA","","","","Underwood","WA","98651","US","US","MAMMOTH LAKES","CA",""]
["C007180","CLEARWATER SPORTS","489","4147 MAIN ST","CLEARWATER SPORTS","CLEARWATER SPORTS"," WAITSFIELD VT","","","","WAITSFIELD","VT","05673","US","US","WAITSFIELD","VT",""]
["C007188","ALPINE SPORTS","1391","PO BOX 1359","ALPINE SPORTS","ALPINE SPORTS"," BRECKENRIDGE CO","","","","BRECKENRIDGE","CO","80424","US","US","BRECKENRIDGE","CO",""]
["C007188","ALPINE SPORTS","3374","PO BOX 1359","ALPINE SPORTS","ALPINE SPORTS"," BRECKENRIDGE CO","","","","BRECKENRIDGE","CO","80424","US","US","BRECKENRIDGE","CO",""]
["C007188","ALPINE SPORTS","3375","PO BOX 1359","ALPINE SPORTS","ALPINE SPORTS"," BRECKENRIDGE CO","","","","BRECKENRIDGE","CO","80424","US","US","BRECKENRIDGE","CO",""]
["C007200","SKI AND SNOWBOARD EXPRESS","2143","PO Box 373","SKI AND SNOWBOARD EXPRESS","SKI AND SNOWBOARD EXPRESS"," RICHMOND VT","","","","RICHMOND","VT","05477","US","US","Richmond","VT",""]
["C007200","SKI AND SNOWBOARD EXPRESS","519","PO Box 373","SKI AND SNOWBOARD EXPRESS","SKI AND SNOWBOARD EXPRESS"," Richmond VT","","","","Richmond","VT","05477-0373","US","US","Richmond","VT",""]
["C007203","TRAVEL AND NATURE","702","45 WATER ST","TRAVEL AND NATURE","TRAVEL AND NATURE"," EXETER NH","","","","EXETER","NH","03833","US","US","EXETER","NH",""]
["C007209","PLAY IT AGAIN SPORTS - DUBLIN, CA","660","6841 DUBLIN BLVD","PLAY IT AGAIN SPORTS - DUBLIN, CA","PLAY IT AGAIN SPORTS - DUBLIN, CA"," DUBLIN CA","","","","DUBLIN","CA","94568","US","US","DUBLIN","CA",""]
["C007213","CRAW DADDY OUTDOORS","155","PO BOX 5","CRAW DADDY OUTDOORS","CRAW DADDY OUTDOORS"," WAVERLY IA","","","","WAVERLY","IA","50677","US","US","WAVERLY","IA",""]
["C007213","CRAW DADDY OUTDOORS","1854","PO BOX 5","CRAW DADDY OUTDOORS","CRAW DADDY OUTDOORS"," WAVERLY IA","","","","WAVERLY","IA","50677","US","US","WAVERLY","IA",""]
["C007220","BOARDWORKS TECH SHOP","636","1215 RAILROAD AVE","BOARDWORKS TECH SHOP","BOARDWORKS TECH SHOP"," BELLINGHAM WA","","","","BELLINGHAM","WA","98225","US","US","BELLINGHAM","WA",""]
["C007223","GUN WORLD LLC GUN WORLD & ARCHERY","633","2516 NODDLE LANE","GUN WORLD LLC GUN WORLD & ARCHERY","GUN WORLD LLC GUN WORLD & ARCHERY"," ELKO NV","","","","ELKO","NV","89801","US","US","ELKO","NV",""]
["C007225","NORTHBOUND OUTFITTERS","121","6041 W. M-72","NORTHBOUND OUTFITTERS","NORTHBOUND OUTFITTERS"," GRAYLING MI","","","","GRAYLING","MI","49738","US","US","GRAYLING","MI",""]
["C007229","BILLS SKI RENTALS","655","131 HWY 91","BILLS SKI RENTALS","BILLS SKI RENTALS"," LEADVILLE CO","","","","LEADVILLE","CO","80461","US","US","LEADVILLE","CO",""]
["C007230","PROSPECTOR OUTFITTERS INC","2422","PO BOX 1090","PROSPECTOR OUTFITTERS INC","PROSPECTOR OUTFITTERS INC"," FAIRBANKS AK","","","","FAIRBANKS","AK","99701","US","US","VALDEZ","AK",""]
["C007230","PROSPECTOR OUTFITTERS INC","2423","PO BOX 1090","PROSPECTOR OUTFITTERS INC","PROSPECTOR OUTFITTERS INC"," AUBURN WA","","","","AUBURN","WA","98001","US","US","VALDEZ","AK",""]
["C007230","PROSPECTOR OUTFITTERS INC","2424","PO BOX 1090","PROSPECTOR OUTFITTERS INC","PROSPECTOR OUTFITTERS INC"," VALDEZ AK","","","","VALDEZ","AK","99686","US","US","VALDEZ","AK",""]
["C007230","PROSPECTOR OUTFITTERS INC","651","PO BOX 1090","PROSPECTOR OUTFITTERS INC","PROSPECTOR OUTFITTERS INC"," VALDEZ AK","","","","VALDEZ","AK","99686","US","US","VALDEZ","AK",""]
["C007236","ROUTE 96 POWER AND PADDLE","687","1035 OWEGO RD","ROUTE 96 POWER AND PADDLE","ROUTE 96 POWER AND PADDLE"," CANDOR NY","","","","CANDOR","NY","13743","US","US","CANDOR","NY",""]
["C007237","LOUP LOUP SKI RENTAL SHOP LLC","700","2 MUNDINGER LANE","LOUP LOUP SKI RENTAL SHOP LLC","LOUP LOUP SKI RENTAL SHOP LLC"," OMAK WA","","","","OMAK","WA","98841","US","US","OMAK","WA",""]
["C007243","THRUWAY SPORTING GOODS","190","78 OAK STREET","THRUWAY SPORTING GOODS","THRUWAY SPORTING GOODS"," WALDEN NY","","","","WALDEN","NY","12586","US","US","WALDEN","NY",""]
["C007247","SKIER'S PEAK INVESTMENTS LLC","1591","2867 ORCHARD LAKE RD","SKIER'S PEAK INVESTMENTS LLC","SKIER'S PEAK INVESTMENTS LLC"," KEEGO HARBOR MI","","","","KEEGO HARBOR","MI","48320","US","US","KEEGO HARBOR","MI",""]
["C007253","CAMOFIRE LLC BLACK OVIS","2445","2305 S 1070 W STE A","CAMOFIRE LLC BLACK OVIS","CAMOFIRE LLC BLACK OVIS"," WEST VALLEY CITY UT","","","","WEST VALLEY CITY","UT","84120","US","US","WEST VALLEY","UT",""]
["C007253","CAMOFIRE LLC BLACK OVIS","695","2305 S 1070 W STE A","CAMOFIRE LLC BLACK OVIS","CAMOFIRE LLC BLACK OVIS"," WEST VALLEY UT","","","","WEST VALLEY","UT","84119","US","US","WEST VALLEY","UT",""]
["C007255","BEARPEN MOUNTAIN SPORTS","2439","PO BOX 321","BEARPEN MOUNTAIN SPORTS","BEARPEN MOUNTAIN SPORTS"," PRATTSVILLE NY","","","","PRATTSVILLE","NY","12468","US","US","PRATTSVILLE","NY",""]
["C007255","BEARPEN MOUNTAIN SPORTS","691","PO BOX 321","BEARPEN MOUNTAIN SPORTS","BEARPEN MOUNTAIN SPORTS"," PRATTSVILLE NY","","","","PRATTSVILLE","NY","12468","US","US","PRATTSVILLE","NY",""]
["C007262","PIERRE'S POLARIS","561","7504 NE 175TH","PIERRE'S POLARIS","PIERRE'S POLARIS"," KENMORE WA","","","","KENMORE","WA","98028","US","US","KENMORE","WA",""]
["C007265","HILTONS TENT CITY","85","565 MASSACHUSETTS AVE","HILTONS TENT CITY","HILTONS TENT CITY"," CAMBRIDGE MA","","","","CAMBRIDGE","MA","02139","US","US","CAMBRIDGE","MA",""]
["C007270","AMS MOUNTAIN SHOP","543","22131 SOUTH F ST.","AMS MOUNTAIN SHOP","AMS MOUNTAIN SHOP"," TALKEETNA AK","","","","TALKEETNA","AK","99676","US","US","TALKEETNA","AK",""]
["C007272","GREAT OUTDOOR STORE","552","201 EAST 10TH STREET","GREAT OUTDOOR STORE","GREAT OUTDOOR STORE"," SIOUX FALLS SD","","","","SIOUX FALLS","SD","57104","US","US","SIOUX FALLS","SD",""]
["C007274","SOLSTICE OUTDOORS","1640","PO BOX 222","SOLSTICE OUTDOORS","SOLSTICE OUTDOORS"," ASHLAND WI","","","","ASHLAND","WI","54806","US","US","ASHLAND","WI",""]
["C007274","SOLSTICE OUTDOORS","1641","PO BOX 222","SOLSTICE OUTDOORS","SOLSTICE OUTDOORS"," ASHLAND WI","","","","ASHLAND","WI","54806","US","US","ASHLAND","WI",""]
["C007274","SOLSTICE OUTDOORS","33","PO BOX 222","SOLSTICE OUTDOORS","SOLSTICE OUTDOORS"," ASHLAND WI","","","","ASHLAND","WI","54806","US","US","ASHLAND","WI",""]
["C007281","HARBORSIDE CYCLE & SPORT","608","119 N. SECOND AVE","HARBORSIDE CYCLE & SPORT","HARBORSIDE CYCLE & SPORT"," ALPENA MI","","","","ALPENA","MI","49707","US","US","ALPENA","MI",""]
["C007287","DIVAL SAFETY EQUIPMENT","675","1721 NIAGRA ST","DIVAL SAFETY EQUIPMENT","DIVAL SAFETY EQUIPMENT"," BUFFALO NY","","","","BUFFALO","NY","14207","US","US","BUFFALO","NY",""]
["C007288","NEW HEADINGS LLC","2404","51 DOWNS RD","NEW HEADINGS LLC","NEW HEADINGS LLC"," MONROE CT","","","","MONROE","CT","06468","US","US","MONROE","CT",""]
["C007288","NEW HEADINGS LLC","2405","51 DOWNS RD","NEW HEADINGS LLC","NEW HEADINGS LLC"," ANSONIA CT","","","","ANSONIA","CT","06401","US","US","MONROE","CT",""]
["C007288","NEW HEADINGS LLC","622","51 DOWNS RD","NEW HEADINGS LLC","NEW HEADINGS LLC"," MONROE CT","","","","MONROE","CT","06468","US","US","MONROE","CT",""]
["C007289","JOE FIX ITS INC","629","20 W MAIN STREET","JOE FIX ITS INC","JOE FIX ITS INC"," GOSHEN NY","","","","GOSHEN","NY","10924","US","US","GOSHEN","NY",""]
["C007291","CRYSTAL LAKE WATER SPORTS INC CRYSTAL LAKE ADVENTURE SPORTS","2409","PO BOX 200","CRYSTAL LAKE WATER SPORTS INC CRYSTAL LAKE ADVENTURE SPORTS","CRYSTAL LAKE WATER SPORTS INC CRYSTAL LAKE ADVENTURE SPORTS"," BEULAH MI","","","","BEULAH","MI","49617","US","US","BEULAH","MI",""]
["C007291","CRYSTAL LAKE WATER SPORTS INC CRYSTAL LAKE ADVENTURE SPORTS","2410","PO BOX 200","CRYSTAL LAKE WATER SPORTS INC CRYSTAL LAKE ADVENTURE SPORTS","CRYSTAL LAKE WATER SPORTS INC CRYSTAL LAKE ADVENTURE SPORTS"," FRANKFORT MI","","","","FRANKFORT","MI","49635","US","US","BEULAH","MI",""]
["C007291","CRYSTAL LAKE WATER SPORTS INC CRYSTAL LAKE ADVENTURE SPORTS","627","PO BOX 200","CRYSTAL LAKE WATER SPORTS INC CRYSTAL LAKE ADVENTURE SPORTS","CRYSTAL LAKE WATER SPORTS INC CRYSTAL LAKE ADVENTURE SPORTS"," BEULAH MI","","","","BEULAH","MI","49617","US","US","BEULAH","MI",""]
["C007298","HOSTEL SHOPPE LTD","631","3201 JOHN JOANIS DR","HOSTEL SHOPPE LTD","HOSTEL SHOPPE LTD"," STEVENS POINT WI","","","","STEVENS POINT","WI","54482","US","US","STEVENS POINT","WI",""]
["C007307","BOARD PARADISE","583","BULL CITY RIDE SHOP INC","BOARD PARADISE","BOARD PARADISE"," GREENSBORO NC","","","","GREENSBORO","NC","27405","US","US","GREENSBORO","NC",""]
["C007312","WATERBURY SPORTS","819","46 S MAIN STREET","WATERBURY SPORTS","WATERBURY SPORTS"," WATERBURY VT","","","","WATERBURY","VT","05676","US","US","WATERBURY","VT",""]
["C007320","FERDL ASTER SKI SHOP","948","8330 MAYFIELD RD","FERDL ASTER SKI SHOP","FERDL ASTER SKI SHOP"," CHESTERLAND OH","","","","CHESTERLAND","OH","44026","US","US","CHESTERLAND","OH",""]
["C007340","CUNNINGHAMS SKI BARN INC","1487","PO BOX 47","CUNNINGHAMS SKI BARN INC","CUNNINGHAMS SKI BARN INC"," NORTH CREEK NY","","","","NORTH CREEK","NY","12853","US","US","NORTH CREEK","NY",""]
["C007340","CUNNINGHAMS SKI BARN INC","3557","PO BOX 47","CUNNINGHAMS SKI BARN INC","CUNNINGHAMS SKI BARN INC"," NORTH CREEK NY","","","","NORTH CREEK","NY","12853","US","US","NORTH CREEK","NY",""]
["C007340","CUNNINGHAMS SKI BARN INC","3558","PO BOX 47","CUNNINGHAMS SKI BARN INC","CUNNINGHAMS SKI BARN INC"," LAKE PLACID NY","","","","LAKE PLACID","NY","12946","US","US","NORTH CREEK","NY",""]
["C007356","NEW MOON SKI AND BIKE","1004","15569 US HWY 63","NEW MOON SKI AND BIKE","NEW MOON SKI AND BIKE"," HAYWARD WI","","","","HAYWARD","WI","54843","US","US","HAYWARD","WI",""]
["C007385","FORBUSH CORNER INC","1286","6782 PEBBLE BEACH DR","FORBUSH CORNER INC","FORBUSH CORNER INC"," GAYLORD MI","","","","GAYLORD","MI","49735","US","US","GAYLORD","MI",""]
["C007385","FORBUSH CORNER INC","3280","6782 PEBBLE BEACH DR","FORBUSH CORNER INC","FORBUSH CORNER INC"," GAYLORD MI","","","","GAYLORD","MI","49735","US","US","GAYLORD","MI",""]
["C007394","RODGERS SKI & SPORT","1133","5 RAILROAD ST","RODGERS SKI & SPORT","RODGERS SKI & SPORT"," LINCOLN NH","","","","LINCOLN","NH","03251","US","US","LINCOLN","NH",""]
["C007407","BASIN SKI SHOP","1113","RCL, INC","BASIN SKI SHOP","BASIN SKI SHOP"," KILLINGTON VT","","","","KILLINGTON","VT","05751","US","US","KILLINGTON","VT",""]
["C007407","BASIN SKI SHOP","3165","RCL, INC","BASIN SKI SHOP","BASIN SKI SHOP"," KILLINGTON VT","","","","KILLINGTON","VT","05751","US","US","KILLINGTON","VT",""]
["C007411","POWER PLAY SPORTS","1120","PO BOX 1307","POWER PLAY SPORTS","POWER PLAY SPORTS"," MORRISVILLE VT","","","","MORRISVILLE","VT","05661","US","US","MORRISVILLE","VT",""]
["C007411","POWER PLAY SPORTS","3171","PO BOX 1307","POWER PLAY SPORTS","POWER PLAY SPORTS"," WATERBURY VT","","","","WATERBURY","VT","05676","US","US","MORRISVILLE","VT",""]
["C007411","POWER PLAY SPORTS","3172","PO BOX 1307","POWER PLAY SPORTS","POWER PLAY SPORTS"," MORRISVILLE VT","","","","MORRISVILLE","VT","05661","US","US","MORRISVILLE","VT",""]
["C007414","GOLD RUN NORDIC CENTER","1950","TOWN OF BRECKENRIDGE","GOLD RUN NORDIC CENTER","GOLD RUN NORDIC CENTER"," BRECKENRIDGE CO","","","","BRECKENRIDGE","CO","80424","US","US","BRECKENRIDGE","CO",""]
["C007414","GOLD RUN NORDIC CENTER","239","TOWN OF BRECKENRIDGE","GOLD RUN NORDIC CENTER","GOLD RUN NORDIC CENTER"," BRECKENRIDGE CO","","","","BRECKENRIDGE","CO","80424","US","US","BRECKENRIDGE","CO",""]
["C007431","MOUNTAINMAN OUTDOOR SUPPLY CO","1005","PO BOX 1146","MOUNTAINMAN OUTDOOR SUPPLY CO","MOUNTAINMAN OUTDOOR SUPPLY CO"," OLD FORGE NY","","","","OLD FORGE","NY","13420","US","US","OLD FORGE","NY",""]
["C007431","MOUNTAINMAN OUTDOOR SUPPLY CO","2865","PO BOX 1146","MOUNTAINMAN OUTDOOR SUPPLY CO","MOUNTAINMAN OUTDOOR SUPPLY CO"," SARATOGA SPRINGS NY","","","","SARATOGA SPRINGS","NY","12866","US","US","OLD FORGE","NY",""]
["C007431","MOUNTAINMAN OUTDOOR SUPPLY CO","2866","PO BOX 1146","MOUNTAINMAN OUTDOOR SUPPLY CO","MOUNTAINMAN OUTDOOR SUPPLY CO"," OLD FORGE NY","","","","OLD FORGE","NY","13420","US","US","OLD FORGE","NY",""]
["C007432","MOUNTAIN OPS","1109","4081 MOUNTAIN RD","MOUNTAIN OPS","MOUNTAIN OPS"," STOWE VT","","","","STOWE","VT","05672","US","US","STOWE","VT",""]
["C007438","TETON MOUNTAINEERING","1000","PO BOX 1533","TETON MOUNTAINEERING","TETON MOUNTAINEERING"," JACKSON WY","","","","JACKSON","WY","83001","US","US","JACKSON","WY",""]
["C007438","TETON MOUNTAINEERING","2863","PO BOX 1533","TETON MOUNTAINEERING","TETON MOUNTAINEERING"," JACKSON WY","","","","JACKSON","WY","83001","US","US","JACKSON","WY",""]
["C007456","FOUR SEASONS RECREATIONAL OUTFITTER","1056","PO BOX 4573","FOUR SEASONS RECREATIONAL OUTFITTER","FOUR SEASONS RECREATIONAL OUTFITTER"," BEND OR","","","","BEND","OR","97707","US","US","BEND","OR",""]
["C007456","FOUR SEASONS RECREATIONAL OUTFITTER","3127","PO BOX 4573","FOUR SEASONS RECREATIONAL OUTFITTER","FOUR SEASONS RECREATIONAL OUTFITTER"," BEND OR","","","","BEND","OR","97707","US","US","BEND","OR",""]
["C007459","OUTFITTER - THE","976","153 E  MAIN STREET","OUTFITTER - THE","OUTFITTER - THE"," HARBOR SPRINGS MI","","","","HARBOR SPRINGS","MI","49740","US","US","HARBOR SPRINGS","MI",""]
["C007496","SIERRA CREST CORP BLUE ZONE SPORTS","1397","2480 PRECISION DRIVE UNIT H","SIERRA CREST CORP BLUE ZONE SPORTS","SIERRA CREST CORP BLUE ZONE SPORTS"," MINDEN NV","","","","MINDEN","NV","89423","US","US","MINDEN","NV",""]
["C007496","SIERRA CREST CORP BLUE ZONE SPORTS","3379","2480 PRECISION DRIVE UNIT H","SIERRA CREST CORP BLUE ZONE SPORTS","SIERRA CREST CORP BLUE ZONE SPORTS"," CARSON CITY NV","","","","CARSON CITY","NV","89705","US","US","MINDEN","NV",""]
["C007496","SIERRA CREST CORP BLUE ZONE SPORTS","3380","2480 PRECISION DRIVE UNIT H","SIERRA CREST CORP BLUE ZONE SPORTS","SIERRA CREST CORP BLUE ZONE SPORTS"," SOUTH LAKE TAHOE CA","","","","SOUTH LAKE TAHOE","CA","96150","US","US","MINDEN","NV",""]
["C007496","SIERRA CREST CORP BLUE ZONE SPORTS","3381","2480 PRECISION DRIVE UNIT H","SIERRA CREST CORP BLUE ZONE SPORTS","SIERRA CREST CORP BLUE ZONE SPORTS"," ROSEVILLE CA","","","","ROSEVILLE","CA","95678","US","US","MINDEN","NV",""]
["C007509","ADIRONDACK ALL SEASONS OUTFITTERS","1996","114 YORKSHIRE DR","ADIRONDACK ALL SEASONS OUTFITTERS","ADIRONDACK ALL SEASONS OUTFITTERS"," NORTH CREEK NY","","","","NORTH CREEK","NY","12853","US","US","EAST NORWICH","NY",""]
["C007509","ADIRONDACK ALL SEASONS OUTFITTERS","320","114 YORKSHIRE DR","ADIRONDACK ALL SEASONS OUTFITTERS","ADIRONDACK ALL SEASONS OUTFITTERS"," EAST NORWICH NY","","","","EAST NORWICH","NY","11732","US","US","EAST NORWICH","NY",""]
["C007510","JIBIJ LLC","1022","","JIBIJ LLC","JIBIJ LLC"," SALT LAKE CITY UT","","","","SALT LAKE CITY","UT","84109-2246","US","US","SALT LAKE CITY","UT",""]
["C007510","JIBIJ LLC","2874","","JIBIJ LLC","JIBIJ LLC"," PARK CITY UT","","","","PARK CITY","UT","84060","US","US","SALT LAKE CITY","UT",""]
["C007516","SLOPESTYLE SKI & RIDE SHOP","1100","EDB SKI LLC","SLOPESTYLE SKI & RIDE SHOP","SLOPESTYLE SKI & RIDE SHOP"," MONTPELIER VT","","","","MONTPELIER","VT","05602","US","US","MONTPELIER","VT",""]
["C007529","BEAVER BROOK OUTFITTERS","1303","PO BOX 96","BEAVER BROOK OUTFITTERS","BEAVER BROOK OUTFITTERS"," WEVERTOWN NY","","","","WEVERTOWN","NY","12886","US","US","WEVERTOWN","NY",""]
["C007529","BEAVER BROOK OUTFITTERS","3292","PO BOX 96","BEAVER BROOK OUTFITTERS","BEAVER BROOK OUTFITTERS"," WEVERTOWN NY","","","","WEVERTOWN","NY","12886","US","US","WEVERTOWN","NY",""]
["C007535","FIRST TRAX SPORTS SHOP","1296","5 MOUNTAIN PARK PLAZA","FIRST TRAX SPORTS SHOP","FIRST TRAX SPORTS SHOP"," WEST DOVER VT","","","","WEST DOVER","VT","05356","US","US","WEST DOVER","VT",""]
["C007539","CHINA PEAK MTN RESORT","1139","PO BOX 236","CHINA PEAK MTN RESORT","CHINA PEAK MTN RESORT"," LAKESHORE CA","","","","LAKESHORE","CA","93634","US","US","LAKESHORE","CA",""]
["C007539","CHINA PEAK MTN RESORT","3181","PO BOX 236","CHINA PEAK MTN RESORT","CHINA PEAK MTN RESORT"," LAKESHORE CA","","","","LAKESHORE","CA","93634","US","US","LAKESHORE","CA",""]
["C007539","CHINA PEAK MTN RESORT","3182","PO BOX 236","CHINA PEAK MTN RESORT","CHINA PEAK MTN RESORT"," FRESNO CA","","","","FRESNO","CA","93710","US","US","LAKESHORE","CA",""]
["C007544","SWITCHBACK SPORTS","1969","PO 681195","SWITCHBACK SPORTS","SWITCHBACK SPORTS"," PARK CITY UT","","","","PARK CITY","UT","84060","US","US","PARK CITY","UT",""]
["C007544","SWITCHBACK SPORTS","1970","PO 681195","SWITCHBACK SPORTS","SWITCHBACK SPORTS"," STEAMBOAT SPRINGS CO","","","","STEAMBOAT SPRINGS","CO","80487","US","US","PARK CITY","UT",""]
["C007544","SWITCHBACK SPORTS","1971","PO 681195","SWITCHBACK SPORTS","SWITCHBACK SPORTS"," STEAMBOAT SPRINGS CO","","","","STEAMBOAT SPRINGS","CO","80477","US","US","PARK CITY","UT",""]
["C007544","SWITCHBACK SPORTS","267","PO 681195","SWITCHBACK SPORTS","SWITCHBACK SPORTS"," PARK CITY UT","","","","PARK CITY","UT","84068","US","US","PARK CITY","UT",""]
["C007562","TOTEM POLE SKI SHOP","524","16 1/2 POND ST","TOTEM POLE SKI SHOP","TOTEM POLE SKI SHOP"," LUDLOW VT","","","","LUDLOW","VT","05149","US","US","LUDLOW","VT",""]
["C007563","UMIAK OUTFITTERS","2145","849 SOUTH MAIN ST","UMIAK OUTFITTERS","UMIAK OUTFITTERS"," SOUTH BURLINGTON VT","","","","SOUTH BURLINGTON","VT","05403","US","US","STOWE","VT",""]
["C007563","UMIAK OUTFITTERS","527","849 SOUTH MAIN ST","UMIAK OUTFITTERS","UMIAK OUTFITTERS"," STOWE VT","","","","STOWE","VT","05672","US","US","STOWE","VT",""]
["C007566","FIRST STOP SKI SHOP INC","653","8474 ROUTE 4","FIRST STOP SKI SHOP INC","FIRST STOP SKI SHOP INC"," KILLINGTON VT","","","","KILLINGTON","VT","05751","US","US","KILLINGTON","VT",""]
["C007572","WEST SHORE SPORTS","2478","ISLAND DREAM INC","WEST SHORE SPORTS","WEST SHORE SPORTS"," HOMEWOOD CA","","","","HOMEWOOD","CA","96141","US","US","HOMEWOOD","CA",""]
["C007572","WEST SHORE SPORTS","750","ISLAND DREAM INC","WEST SHORE SPORTS","WEST SHORE SPORTS"," HOMEWOOD CA","","","","HOMEWOOD","CA","96141","US","US","HOMEWOOD","CA",""]
["C007574","MOUNT BOHEMIA","1388","BLACK BEAR INC","MOUNT BOHEMIA","MOUNT BOHEMIA"," HOUGHTON MI","","","","HOUGHTON","MI","49931","US","US","HOUGHTON","MI",""]
["C007574","MOUNT BOHEMIA","3371","BLACK BEAR INC","MOUNT BOHEMIA","MOUNT BOHEMIA"," HOUGHTON MI","","","","HOUGHTON","MI","49931","US","US","HOUGHTON","MI",""]
["C007574","MOUNT BOHEMIA","3372","BLACK BEAR INC","MOUNT BOHEMIA","MOUNT BOHEMIA"," MOHAWK MI","","","","MOHAWK","MI","49950","US","US","HOUGHTON","MI",""]
["C007595","BLUE MOUNTAIN RESORT","1659","18575 JAMBOREE ROAD SUITE 500","BLUE MOUNTAIN RESORT","BLUE MOUNTAIN RESORT"," PALMERTON PA","","","","PALMERTON","PA","18071","US","US","IRVINE","CA",""]
["C007595","BLUE MOUNTAIN RESORT","61","18575 JAMBOREE ROAD SUITE 500","BLUE MOUNTAIN RESORT","BLUE MOUNTAIN RESORT"," IRVINE CA","","","","IRVINE","CA","92618","US","US","IRVINE","CA",""]
["C007599","WILDSIDE ADVENTURE COMPANY LLC","745","880 HWY 12  STE #1","WILDSIDE ADVENTURE COMPANY LLC","WILDSIDE ADVENTURE COMPANY LLC"," BARABOO WI","","","","BARABOO","WI","53913","US","US","BARABOO","WI",""]
["C007602","DRUMMONDS MOUNTAIN SHOP INC","694","RTE 302","DRUMMONDS MOUNTAIN SHOP INC","DRUMMONDS MOUNTAIN SHOP INC"," BRETTON WOODS NH","","","","BRETTON WOODS","NH","03575","US","US","BRETTON WOODS","NH",""]
["C007603","VERTICAL ILLUSIONS","988","2433 DELLS PARKWAY","VERTICAL ILLUSIONS","VERTICAL ILLUSIONS"," WISCONSIN DELLS WI","","","","WISCONSIN DELLS","WI","53965","US","US","WISCONSIN DELLS","WI",""]
["C007606","WASATCH ADVENTURE GUIDES","2163","PO BOX 2236","WASATCH ADVENTURE GUIDES","WASATCH ADVENTURE GUIDES"," PARK CITY UT","","","","PARK CITY","UT","84098","US","US","PARK CITY","UT",""]
["C007606","WASATCH ADVENTURE GUIDES","564","PO BOX 2236","WASATCH ADVENTURE GUIDES","WASATCH ADVENTURE GUIDES"," PARK CITY UT","","","","PARK CITY","UT","84060","US","US","PARK CITY","UT",""]
["C007611","RAINIER MOUNTAIN SPORTZ LLC","1245","JACLYNN HAWKINS","RAINIER MOUNTAIN SPORTZ LLC","RAINIER MOUNTAIN SPORTZ LLC"," ASHFORD WA","","","","ASHFORD","WA","98304","US","US","ASHFORD","WA",""]
["C007634","ENDLESSLY OUTDOORS COMPANY","109","8 COVINGTON STREET","ENDLESSLY OUTDOORS COMPANY","ENDLESSLY OUTDOORS COMPANY"," PERRY NY","","","","PERRY","NY","14550","US","US","PERRY","NY",""]
["C007634","ENDLESSLY OUTDOORS COMPANY","1669","8 COVINGTON STREET","ENDLESSLY OUTDOORS COMPANY","ENDLESSLY OUTDOORS COMPANY"," SILVER SPRINGS NY","","","","SILVER SPRINGS","NY","14550","US","US","PERRY","NY",""]
["C007657","MOUNT MASSIVE GOLF COURSE & SNOWSHO","1660","PO BOX 730","MOUNT MASSIVE GOLF COURSE & SNOWSHO","MOUNT MASSIVE GOLF COURSE & SNOWSHO"," LEADVILLE CO","","","","LEADVILLE","CO","80461","US","US","LEADVILLE","CO",""]
["C007657","MOUNT MASSIVE GOLF COURSE & SNOWSHO","70","PO BOX 730","MOUNT MASSIVE GOLF COURSE & SNOWSHO","MOUNT MASSIVE GOLF COURSE & SNOWSHO"," LEADVILLE CO","","","","LEADVILLE","CO","80461","US","US","LEADVILLE","CO",""]
["C007663","ALL SEASON OUTFITTERS","77","4505 COMMERCIAL DR","ALL SEASON OUTFITTERS","ALL SEASON OUTFITTERS"," NEW HARTFORD NY","","","","NEW HARTFORD","NY","13413","US","US","NEW HARTFORD","NY",""]
["C007666","GRASSE RIVER OUTFITTERS","1421","45 MAIN STREET","GRASSE RIVER OUTFITTERS","GRASSE RIVER OUTFITTERS"," CANTON NY","","","","CANTON","NY","13617","US","US","CANTON","NY",""]
["C007689","MOUNTAIN SKILLS ROCK GUIDES LLC","2065","PO BOX 206","MOUNTAIN SKILLS ROCK GUIDES LLC","MOUNTAIN SKILLS ROCK GUIDES LLC"," ARROYO SECO NM","","","","ARROYO SECO","NM","87514","US","US","ARROYO SECO","NM",""]
["C007689","MOUNTAIN SKILLS ROCK GUIDES LLC","400","PO BOX 206","MOUNTAIN SKILLS ROCK GUIDES LLC","MOUNTAIN SKILLS ROCK GUIDES LLC"," ARROYO SECO NM","","","","ARROYO SECO","NM","87514","US","US","ARROYO SECO","NM",""]
["C007697","ASPEN CTR ENVIRONMENTAL SCIENCES","473","100 PUPPY SMITH ST","ASPEN CTR ENVIRONMENTAL SCIENCES","ASPEN CTR ENVIRONMENTAL SCIENCES"," ASPEN CO","","","","ASPEN","CO","81611","US","US","ASPEN","CO",""]
["C007700","LONG PATH OUTFITTERS LLC","284","75 SOUTH BROADWAY","LONG PATH OUTFITTERS LLC","LONG PATH OUTFITTERS LLC"," NYACK NY","","","","NYACK","NY","10960","US","US","NYACK","NY",""]
["C007704","TRAILSIDE RECREATION","280","11090 N WESTON DR STE 3","TRAILSIDE RECREATION","TRAILSIDE RECREATION"," MEQUON WI","","","","MEQUON","WI","53092","US","US","MEQUON","WI",""]
["C007705","START LINE SERVICES","278","14795 MCNAUGHT RD","START LINE SERVICES","START LINE SERVICES"," CABLE WI","","","","CABLE","WI","54821","US","US","CABLE","WI",""]
["C007714","CENTER BOULDER LAKE ENVIRONMENTAL LEARNING","370","125 BOHANNON HALL","CENTER BOULDER LAKE ENVIRONMENTAL LEARNING","CENTER BOULDER LAKE ENVIRONMENTAL LEARNING"," DULUTH MN","","","","DULUTH","MN","55812","US","US","DULUTH","MN",""]
["C007743","MOUNTAIN LIFE SUPPLY CO LLC","2110","PO BOX 2799","MOUNTAIN LIFE SUPPLY CO LLC","MOUNTAIN LIFE SUPPLY CO LLC"," RUNNING SPRINGS CA","","","","RUNNING SPRINGS","CA","92382","US","US","RUNNING SPRINGS","CA",""]
["C007743","MOUNTAIN LIFE SUPPLY CO LLC","446","PO BOX 2799","MOUNTAIN LIFE SUPPLY CO LLC","MOUNTAIN LIFE SUPPLY CO LLC"," RUNNING SPRINGS CA","","","","RUNNING SPRINGS","CA","92382","US","US","RUNNING SPRINGS","CA",""]
["C007751","LAKEWOOD SKI AND SPORT, LLC","1205","15309 STATE HWY 32","LAKEWOOD SKI AND SPORT, LLC","LAKEWOOD SKI AND SPORT, LLC"," LAKEWOOD WI","","","","LAKEWOOD","WI","54138","US","US","LAKEWOOD","WI",""]
["C007754","JAGALOON","2114","TYSON BAKER","JAGALOON","JAGALOON"," LOGAN UT","","","","LOGAN","UT","84321","US","US","LOGAN","UT",""]
["C007754","JAGALOON","455","TYSON BAKER","JAGALOON","JAGALOON"," LOGAN UT","","","","LOGAN","UT","84321","US","US","LOGAN","UT",""]
["C007756","INDIAN COUNTRY SPORTS","591","17 SOUTH FRONT ST","INDIAN COUNTRY SPORTS","INDIAN COUNTRY SPORTS"," L' ANSE MI","","","","L' ANSE","MI","49946","US","US","L&#x27; ANSE","MI",""]
["C007757","EVERGREEN OUTFITTERS","684","61 WATER ST","EVERGREEN OUTFITTERS","EVERGREEN OUTFITTERS"," MAYVILLE NY","","","","MAYVILLE","NY","14757","US","US","MAYVILLE","NY",""]
["C007764","GREAT LAKES OUTPOST","2450","4611 IVANREST AVE SW","GREAT LAKES OUTPOST","GREAT LAKES OUTPOST"," GRANDVILLE MI","","","","GRANDVILLE","MI","49418","US","US","GRANDVILLE","MI",""]
["C007764","GREAT LAKES OUTPOST","703","4611 IVANREST AVE SW","GREAT LAKES OUTPOST","GREAT LAKES OUTPOST"," GRANDVILLE MI","","","","GRANDVILLE","MI","49418","US","US","GRANDVILLE","MI",""]
["C007766","WOLF RIDGE ELC","1034","6282 CRANBERRY RD","WOLF RIDGE ELC","WOLF RIDGE ELC"," FINLAND MN","","","","FINLAND","MN","55603","US","US","FINLAND","MN",""]
["C007766","WOLF RIDGE ELC","182983","6282 CRANBERRY RD","WOLF RIDGE ELC","WOLF RIDGE ELC","","","","","","","","US","US","FINLAND","MN",""]
["C007776","HERITAGE OUTDOORS LEITZ SPORTS CENTER #572","1485","718 ASHMUN ST","HERITAGE OUTDOORS LEITZ SPORTS CENTER #572","HERITAGE OUTDOORS LEITZ SPORTS CENTER #572"," SAULT SAINTE MARIE MI","","","","SAULT SAINTE MARIE","MI","49783","US","US","SAULT SAINTE MARIE","MI",""]
["C007777","NICOLLET BIKE & SKI","1545","RINEHART LLC","NICOLLET BIKE & SKI","NICOLLET BIKE & SKI"," MANKATO MN","","","","MANKATO","MN","56001","US","US","MANKATO","MN",""]
["C007777","NICOLLET BIKE & SKI","289880","RINEHART LLC","NICOLLET BIKE & SKI","NICOLLET BIKE & SKI"," Mankato MN","","","","Mankato","MN","56001-3452","US","US","MANKATO","MN",""]
["C007778","WILDERNESS SPORTS","1524","107 E  DIVISION ST","WILDERNESS SPORTS","WILDERNESS SPORTS"," ISHPEMING MI","","","","ISHPEMING","MI","49849","US","US","ISHPEMING","MI",""]
["C007779","BOSTON SKI & TENNIS","1525","EAST BASIN SPORTS INC","BOSTON SKI & TENNIS","BOSTON SKI & TENNIS"," NEWTON MA","","","","NEWTON","MA","02464","US","US","NEWTON","MA",""]
["C007782","LAKE PLACID SKI AND BOARD SHOP INC","1574","2532 MAIN ST","LAKE PLACID SKI AND BOARD SHOP INC","LAKE PLACID SKI AND BOARD SHOP INC"," LAKE PLACID NY","","","","LAKE PLACID","NY","12946","US","US","LAKE PLACID","NY",""]
["C007854","FREE FLIGHT","1551","WALSH INC.","FREE FLIGHT","FREE FLIGHT"," DUBUQUE IA","","","","DUBUQUE","IA","52002","US","US","DUBUQUE","IA",""]
["C007858","PROCTOR SKI INC","318","195 DANIEL WEBSTER HIGHWAY","PROCTOR SKI INC","PROCTOR SKI INC"," NASHUA NH","","","","NASHUA","NH","03060","US","US","NASHUA","NH",""]
["C007862","WACHUSETT MTN SKI SHOP","29","499 MOUNTAIN RD","WACHUSETT MTN SKI SHOP","WACHUSETT MTN SKI SHOP"," PRINCETON MA","","","","PRINCETON","MA","01541","US","US","PRINCETON","MA",""]
["C007864","KEN JONES SKI MART","1582","KEN JONES INC","KEN JONES SKI MART","KEN JONES SKI MART"," MANCHESTER NH","","","","MANCHESTER","NH","03103","US","US","MANCHESTER","NH",""]
["C007864","KEN JONES SKI MART","3756","KEN JONES INC","KEN JONES SKI MART","KEN JONES SKI MART"," MANCHESTER NH","","","","MANCHESTER","NH","03103","US","US","MANCHESTER","NH",""]
["C007865","XSports LLC","2446","PO BOX 30","XSports LLC","XSports LLC"," FRASER CO","","","","FRASER","CO","80442","US","US","WINTER PARK","CO",""]
["C007865","XSports LLC","696","PO BOX 30","XSports LLC","XSports LLC"," WINTER PARK CO","","","","WINTER PARK","CO","80482","US","US","WINTER PARK","CO",""]
["C007866","MOUNTAINEER","2496","1866 NYS RTE 73","MOUNTAINEER","MOUNTAINEER"," KEENE VALLEY NY","","","","KEENE VALLEY","NY","12943","US","US","KEENE VALLEY","NY",""]
["C007866","MOUNTAINEER","790","1866 NYS RTE 73","MOUNTAINEER","MOUNTAINEER"," KEENE VALLEY NY","","","","KEENE VALLEY","NY","12943","US","US","KEENE VALLEY","NY",""]
["C007869","CROSS COUNTRY SPORTS INC","1373","507 OAK ST","CROSS COUNTRY SPORTS INC","CROSS COUNTRY SPORTS INC"," CALUMET MI","","","","CALUMET","MI","49913","US","US","CALUMET","MI",""]
["C007869","CROSS COUNTRY SPORTS INC","3367","507 OAK ST","CROSS COUNTRY SPORTS INC","CROSS COUNTRY SPORTS INC"," HOUGHTON MI","","","","HOUGHTON","MI","49931","US","US","CALUMET","MI",""]
["C007870","CV SPORTS CENTER","1065","PO BOX 1292","CV SPORTS CENTER","CV SPORTS CENTER"," ZEPHYR COVE NV","","","","ZEPHYR COVE","NV","89448","US","US","ZEPHYR COVE","NV",""]
["C007870","CV SPORTS CENTER","3130","PO BOX 1292","CV SPORTS CENTER","CV SPORTS CENTER"," CARSON CITY NV","","","","CARSON CITY","NV","89705","US","US","ZEPHYR COVE","NV",""]
["C007870","CV SPORTS CENTER","3131","PO BOX 1292","CV SPORTS CENTER","CV SPORTS CENTER"," STATELINE NV","","","","STATELINE","NV","89449","US","US","ZEPHYR COVE","NV",""]
["C007874","HOBBY WHEEL","1130","1435 E CLOVERLAND","HOBBY WHEEL","HOBBY WHEEL"," IRONWOOD MI","","","","IRONWOOD","MI","49938","US","US","IRONWOOD","MI",""]
["C007876","IDAHO MOUNTAIN TRADING","1497","474 SHOUP AVE","IDAHO MOUNTAIN TRADING","IDAHO MOUNTAIN TRADING"," IDAHO FALLS ID","","","","IDAHO FALLS","ID","83402","US","US","IDAHO FALLS","ID",""]
["C007876","IDAHO MOUNTAIN TRADING","3588","474 SHOUP AVE","IDAHO MOUNTAIN TRADING","IDAHO MOUNTAIN TRADING"," IDAHO FALLS ID","","","","IDAHO FALLS","ID","83402","US","US","IDAHO FALLS","ID",""]
["C007880","SPORTS LURE","1568","66 S MAIN","SPORTS LURE","SPORTS LURE"," BUFFALO WY","","","","BUFFALO","WY","82834","US","US","BUFFALO","WY",""]
["C007881","SUGAR BOWL CORP.","1071","PO BOX 5","SUGAR BOWL CORP.","SUGAR BOWL CORP."," NORDEN CA","","","","NORDEN","CA","95724","US","US","NORDEN","CA",""]
["C007881","SUGAR BOWL CORP.","3134","PO BOX 5","SUGAR BOWL CORP.","SUGAR BOWL CORP."," NORDEN CA","","","","NORDEN","CA","95724","US","US","NORDEN","CA",""]
["C007883","GEORGS SKI SHOP","1323","PO BOX 190183","GEORGS SKI SHOP","GEORGS SKI SHOP"," BRIAN HEAD UT","","","","BRIAN HEAD","UT","84719","US","US","BRIAN HEAD","UT",""]
["C007883","GEORGS SKI SHOP","3319","PO BOX 190183","GEORGS SKI SHOP","GEORGS SKI SHOP"," BRIAN HEAD UT","","","","BRIAN HEAD","UT","84719","US","US","BRIAN HEAD","UT",""]
["C007890","SPORT THOMA","2432","371 RT. 3","SPORT THOMA","SPORT THOMA"," BARTLETT NH","","","","BARTLETT","NH","03838","US","US","LINCOLN","NH",""]
["C007890","SPORT THOMA","680","371 RT. 3","SPORT THOMA","SPORT THOMA"," LINCOLN NH","","","","LINCOLN","NH","03251","US","US","LINCOLN","NH",""]
["C007891","DUSTYS SNOWBOARD & SKI","484","1975 WALLA WALLA AVE","DUSTYS SNOWBOARD & SKI","DUSTYS SNOWBOARD & SKI"," WALLA WALLA WA","","","","WALLA WALLA","WA","99362","US","US","WALLA WALLA","WA",""]
["C007893","OUTFITTERS SKI SHOP","1195","2221 MARIETTA AVE","OUTFITTERS SKI SHOP","OUTFITTERS SKI SHOP"," LANCASTER PA","","","","LANCASTER","PA","17603","US","US","LANCASTER","PA",""]
["C007899","PLAY IT AGAIN SPORTS - PORTLAND, ME #11291","1258","VISCOUNT SPORTING GOODS","PLAY IT AGAIN SPORTS - PORTLAND, ME #11291","PLAY IT AGAIN SPORTS - PORTLAND, ME #11291"," PORTLAND ME","","","","PORTLAND","ME","04101","US","US","PORTLAND","ME",""]
["C007899","PLAY IT AGAIN SPORTS - PORTLAND, ME #11291","3262","VISCOUNT SPORTING GOODS","PLAY IT AGAIN SPORTS - PORTLAND, ME #11291","PLAY IT AGAIN SPORTS - PORTLAND, ME #11291"," BIDDEFORD ME","","","","BIDDEFORD","ME","04005","US","US","PORTLAND","ME",""]
["C007900","GEAR WEST SKI & RUN","1352","1786 WEST WAYZATA BLVD, B","GEAR WEST SKI & RUN","GEAR WEST SKI & RUN"," LONG LAKE MN","","","","LONG LAKE","MN","55356","US","US","LONG LAKE","MN",""]
["C007900","GEAR WEST SKI & RUN","3355","1786 WEST WAYZATA BLVD, B","GEAR WEST SKI & RUN","GEAR WEST SKI & RUN"," LONG LAKE MN","","","","LONG LAKE","MN","55356","US","US","LONG LAKE","MN",""]
["C007907","OTTO'S SKI SHOP","1269","PO BOX 531","OTTO'S SKI SHOP","OTTO'S SKI SHOP"," SANDY OR","","","","SANDY","OR","97055","US","US","SANDY","OR",""]
["C007907","OTTO'S SKI SHOP","3268","PO BOX 531","OTTO'S SKI SHOP","OTTO'S SKI SHOP"," SANDY OR","","","","SANDY","OR","97055","US","US","SANDY","OR",""]
["C007910","BANGOR OUTFITTERS","539","EPIC SPORTS","BANGOR OUTFITTERS","BANGOR OUTFITTERS"," BANGOR ME","","","","BANGOR","ME","04401","US","US","BANGOR","ME",""]
["C007911","FOOTLOOSE SPORTS","1580","PO BOX 1929","FOOTLOOSE SPORTS","FOOTLOOSE SPORTS"," MAMMOTH LAKES CA","","","","MAMMOTH LAKES","CA","93546","US","US","MAMMOTH LAKES","CA",""]
["C007911","FOOTLOOSE SPORTS","3753","PO BOX 1929","FOOTLOOSE SPORTS","FOOTLOOSE SPORTS"," MAMMOTH LAKES CA","","","","MAMMOTH LAKES","CA","93546","US","US","MAMMOTH LAKES","CA",""]
["C007914","RETAIL CONCEPTS INC","1081404","10225 MULA RD.","RETAIL CONCEPTS INC","RETAIL CONCEPTS INC"," Murray UT","","","","Murray","UT","84107-7227","US","US","STAFFORD","TX",""]
["C007914","RETAIL CONCEPTS INC","1889","10225 MULA RD.","RETAIL CONCEPTS INC","RETAIL CONCEPTS INC"," WESTFORD MA","","","","WESTFORD","MA","01886","US","US","STAFFORD","TX",""]
["C007914","RETAIL CONCEPTS INC","1890","10225 MULA RD.","RETAIL CONCEPTS INC","RETAIL CONCEPTS INC"," PLAINVIEW NY","","","","PLAINVIEW","NY","11803","US","US","STAFFORD","TX",""]
["C007914","RETAIL CONCEPTS INC","1891","10225 MULA RD.","RETAIL CONCEPTS INC","RETAIL CONCEPTS INC"," SPRING TX","","","","SPRING","TX","77380","US","US","STAFFORD","TX",""]
["C007914","RETAIL CONCEPTS INC","1892","10225 MULA RD.","RETAIL CONCEPTS INC","RETAIL CONCEPTS INC"," NORMAN OK","","","","NORMAN","OK","73072","US","US","STAFFORD","TX",""]
["C007914","RETAIL CONCEPTS INC","1893","10225 MULA RD.","RETAIL CONCEPTS INC","RETAIL CONCEPTS INC"," CHARLOTTE NC","","","","CHARLOTTE","NC","28277","US","US","STAFFORD","TX",""]
["C007914","RETAIL CONCEPTS INC","1894","10225 MULA RD.","RETAIL CONCEPTS INC","RETAIL CONCEPTS INC"," PHOENIX AZ","","","","PHOENIX","AZ","85028","US","US","STAFFORD","TX",""]
["C007914","RETAIL CONCEPTS INC","1895","10225 MULA RD.","RETAIL CONCEPTS INC","RETAIL CONCEPTS INC"," HANOVER MD","","","","HANOVER","MD","21076","US","US","STAFFORD","TX",""]
["C007914","RETAIL CONCEPTS INC","1896","10225 MULA RD.","RETAIL CONCEPTS INC","RETAIL CONCEPTS INC"," ARLINGTON TX","","","","ARLINGTON","TX","76015","US","US","STAFFORD","TX",""]
["C007914","RETAIL CONCEPTS INC","1897","10225 MULA RD.","RETAIL CONCEPTS INC","RETAIL CONCEPTS INC"," DALLAS TX","","","","DALLAS","TX","75243","US","US","STAFFORD","TX",""]
["C007914","RETAIL CONCEPTS INC","1898","10225 MULA RD.","RETAIL CONCEPTS INC","RETAIL CONCEPTS INC"," FRANKLIN TN","","","","FRANKLIN","TN","37067","US","US","STAFFORD","TX",""]
["C007914","RETAIL CONCEPTS INC","1899","10225 MULA RD.","RETAIL CONCEPTS INC","RETAIL CONCEPTS INC"," WOBURN MA","","","","WOBURN","MA","01801","US","US","STAFFORD","TX",""]
["C007914","RETAIL CONCEPTS INC","1900","10225 MULA RD.","RETAIL CONCEPTS INC","RETAIL CONCEPTS INC"," HOUSTON TX","","","","HOUSTON","TX","77099","US","US","STAFFORD","TX",""]
["C007914","RETAIL CONCEPTS INC","1901","10225 MULA RD.","RETAIL CONCEPTS INC","RETAIL CONCEPTS INC"," FORT WORTH TX","","","","FORT WORTH","TX","76132","US","US","STAFFORD","TX",""]
["C007914","RETAIL CONCEPTS INC","1902","10225 MULA RD.","RETAIL CONCEPTS INC","RETAIL CONCEPTS INC"," AVON MA","","","","AVON","MA","02322","US","US","STAFFORD","TX",""]
["C007914","RETAIL CONCEPTS INC","1903","10225 MULA RD.","RETAIL CONCEPTS INC","RETAIL CONCEPTS INC"," HOUSTON TX","","","","HOUSTON","TX","77069","US","US","STAFFORD","TX",""]
["C007914","RETAIL CONCEPTS INC","1904","10225 MULA RD.","RETAIL CONCEPTS INC","RETAIL CONCEPTS INC"," STAFFORD TX","","","","STAFFORD","TX","77477","US","US","STAFFORD","TX",""]
["C007914","RETAIL CONCEPTS INC","1905","10225 MULA RD.","RETAIL CONCEPTS INC","RETAIL CONCEPTS INC"," OKLAHOMA CITY OK","","","","OKLAHOMA CITY","OK","73120","US","US","STAFFORD","TX",""]
["C007914","RETAIL CONCEPTS INC","1906","10225 MULA RD.","RETAIL CONCEPTS INC","RETAIL CONCEPTS INC"," CINCINNATI OH","","","","CINCINNATI","OH","45236","US","US","STAFFORD","TX",""]
["C007914","RETAIL CONCEPTS INC","1907","10225 MULA RD.","RETAIL CONCEPTS INC","RETAIL CONCEPTS INC"," HOUSTON TX","","","","HOUSTON","TX","77057","US","US","STAFFORD","TX",""]
["C007914","RETAIL CONCEPTS INC","1908","10225 MULA RD.","RETAIL CONCEPTS INC","RETAIL CONCEPTS INC"," WEBSTER TX","","","","WEBSTER","TX","77598","US","US","STAFFORD","TX",""]
["C007914","RETAIL CONCEPTS INC","1909","10225 MULA RD.","RETAIL CONCEPTS INC","RETAIL CONCEPTS INC"," KATY TX","","","","KATY","TX","77494","US","US","STAFFORD","TX",""]
["C007914","RETAIL CONCEPTS INC","1910","10225 MULA RD.","RETAIL CONCEPTS INC","RETAIL CONCEPTS INC"," AUSTIN TX","","","","AUSTIN","TX","78757","US","US","STAFFORD","TX",""]
["C007914","RETAIL CONCEPTS INC","1911","10225 MULA RD.","RETAIL CONCEPTS INC","RETAIL CONCEPTS INC"," GRAPEVINE TX","","","","GRAPEVINE","TX","76051","US","US","STAFFORD","TX",""]
["C007914","RETAIL CONCEPTS INC","1912","10225 MULA RD.","RETAIL CONCEPTS INC","RETAIL CONCEPTS INC"," TULSA OK","","","","TULSA","OK","74133","US","US","STAFFORD","TX",""]
["C007914","RETAIL CONCEPTS INC","1913","10225 MULA RD.","RETAIL CONCEPTS INC","RETAIL CONCEPTS INC"," CONCORD NC","","","","CONCORD","NC","28027","US","US","STAFFORD","TX",""]
["C007914","RETAIL CONCEPTS INC","1914","10225 MULA RD.","RETAIL CONCEPTS INC","RETAIL CONCEPTS INC"," SAN ANTONIO TX","","","","SAN ANTONIO","TX","78216","US","US","STAFFORD","TX",""]
["C007914","RETAIL CONCEPTS INC","1915","10225 MULA RD.","RETAIL CONCEPTS INC","RETAIL CONCEPTS INC"," HOUSTON TX","","","","HOUSTON","TX","77057","US","US","STAFFORD","TX",""]
["C007914","RETAIL CONCEPTS INC","1916","10225 MULA RD.","RETAIL CONCEPTS INC","RETAIL CONCEPTS INC"," HOUSTON TX","","","","HOUSTON","TX","77069","US","US","STAFFORD","TX",""]
["C007914","RETAIL CONCEPTS INC","1917","10225 MULA RD.","RETAIL CONCEPTS INC","RETAIL CONCEPTS INC"," MIAMI FL","","","","MIAMI","FL","33176","US","US","STAFFORD","TX",""]
["C007914","RETAIL CONCEPTS INC","1918","10225 MULA RD.","RETAIL CONCEPTS INC","RETAIL CONCEPTS INC"," LAWRENCEVILLE GA","","","","LAWRENCEVILLE","GA","30043","US","US","STAFFORD","TX",""]
["C007914","RETAIL CONCEPTS INC","1919","10225 MULA RD.","RETAIL CONCEPTS INC","RETAIL CONCEPTS INC"," NASHVILLE TN","","","","NASHVILLE","TN","37214","US","US","STAFFORD","TX",""]
["C007914","RETAIL CONCEPTS INC","1920","10225 MULA RD.","RETAIL CONCEPTS INC","RETAIL CONCEPTS INC"," GAITHERSBURG MD","","","","GAITHERSBURG","MD","20878","US","US","STAFFORD","TX",""]
["C007914","RETAIL CONCEPTS INC","1921","10225 MULA RD.","RETAIL CONCEPTS INC","RETAIL CONCEPTS INC"," FALLS CHURCH VA","","","","FALLS CHURCH","VA","22044","US","US","STAFFORD","TX",""]
["C007914","RETAIL CONCEPTS INC","1922","10225 MULA RD.","RETAIL CONCEPTS INC","RETAIL CONCEPTS INC"," CHANTILLY VA","","","","CHANTILLY","VA","20151","US","US","STAFFORD","TX",""]
["C007914","RETAIL CONCEPTS INC","1923","10225 MULA RD.","RETAIL CONCEPTS INC","RETAIL CONCEPTS INC"," SAN ANTONIO TX","","","","SAN ANTONIO","TX","78257","US","US","STAFFORD","TX",""]
["C007914","RETAIL CONCEPTS INC","1924","10225 MULA RD.","RETAIL CONCEPTS INC","RETAIL CONCEPTS INC"," AVON CO","","","","AVON","CO","81620","US","US","STAFFORD","TX",""]
["C007914","RETAIL CONCEPTS INC","1925","10225 MULA RD.","RETAIL CONCEPTS INC","RETAIL CONCEPTS INC"," NORTH CONWAY NH","","","","NORTH CONWAY","NH","03860","US","US","STAFFORD","TX",""]
["C007914","RETAIL CONCEPTS INC","1926","10225 MULA RD.","RETAIL CONCEPTS INC","RETAIL CONCEPTS INC"," AVON CT","","","","AVON","CT","06001","US","US","STAFFORD","TX",""]
["C007914","RETAIL CONCEPTS INC","1927","10225 MULA RD.","RETAIL CONCEPTS INC","RETAIL CONCEPTS INC"," SILVERTHORNE CO","","","","SILVERTHORNE","CO","80498","US","US","STAFFORD","TX",""]
["C007914","RETAIL CONCEPTS INC","1928","10225 MULA RD.","RETAIL CONCEPTS INC","RETAIL CONCEPTS INC"," HOUSTON TX","","","","HOUSTON","TX","77099","US","US","STAFFORD","TX",""]
["C007914","RETAIL CONCEPTS INC","1929","10225 MULA RD.","RETAIL CONCEPTS INC","RETAIL CONCEPTS INC"," FRISCO TX","","","","FRISCO","TX","75034","US","US","STAFFORD","TX",""]
["C007914","RETAIL CONCEPTS INC","1930","10225 MULA RD.","RETAIL CONCEPTS INC","RETAIL CONCEPTS INC"," PEMBROKE MA","","","","PEMBROKE","MA","02359","US","US","STAFFORD","TX",""]
["C007914","RETAIL CONCEPTS INC","1931","10225 MULA RD.","RETAIL CONCEPTS INC","RETAIL CONCEPTS INC"," MAMMOTH LAKES CA","","","","MAMMOTH LAKES","CA","93546","US","US","STAFFORD","TX",""]
["C007914","RETAIL CONCEPTS INC","1932","10225 MULA RD.","RETAIL CONCEPTS INC","RETAIL CONCEPTS INC"," PARK CITY UT","","","","PARK CITY","UT","84098","US","US","STAFFORD","TX",""]
["C007914","RETAIL CONCEPTS INC","206","10225 MULA RD.","RETAIL CONCEPTS INC","RETAIL CONCEPTS INC"," STAFFORD TX","","","","STAFFORD","TX","77477","US","US","STAFFORD","TX",""]
["C007916","FONTANA SPORTS SPECIALTIES","2836","ATTN: BOB STEINMETZ","FONTANA SPORTS SPECIALTIES","FONTANA SPORTS SPECIALTIES"," MADISON WI","","","","MADISON","WI","53703","US","US","MADISON","WI",""]
["C007916","FONTANA SPORTS SPECIALTIES","952","ATTN: BOB STEINMETZ","FONTANA SPORTS SPECIALTIES","FONTANA SPORTS SPECIALTIES"," MADISON WI","","","","MADISON","WI","53703","US","US","MADISON","WI",""]
["C007923","SPORTS & STORES, INC","2570","16200 GOLF CLUB ROAD #302","SPORTS & STORES, INC","SPORTS & STORES, INC"," REDONDO BEACH CA","","","","REDONDO BEACH","CA","90278","US","US","WESTON","FL",""]
["C007923","SPORTS & STORES, INC","2571","16200 GOLF CLUB ROAD #302","SPORTS & STORES, INC","SPORTS & STORES, INC"," MIAMI FL","","","","MIAMI","FL","33166","US","US","WESTON","FL",""]
["C007923","SPORTS & STORES, INC","2572","16200 GOLF CLUB ROAD #302","SPORTS & STORES, INC","SPORTS & STORES, INC"," MIAMI FL","","","","MIAMI","FL","33166","US","US","WESTON","FL",""]
["C007923","SPORTS & STORES, INC","826","16200 GOLF CLUB ROAD #302","SPORTS & STORES, INC","SPORTS & STORES, INC"," WESTON FL","","","","WESTON","FL","33326","US","US","WESTON","FL",""]
["C007928","CAMPMOR","2165","PO BOX 680-ADP","CAMPMOR","CAMPMOR"," UPPER SADDLE RIVER NJ","","","","UPPER SADDLE RIVER","NJ","07458","US","US","MAHWAH","NJ",""]
["C007928","CAMPMOR","2166","PO BOX 680-ADP","CAMPMOR","CAMPMOR"," PARAMUS NJ","","","","PARAMUS","NJ","07653","US","US","MAHWAH","NJ",""]
["C007928","CAMPMOR","2167","PO BOX 680-ADP","CAMPMOR","CAMPMOR"," MAHWAH NJ","","","","MAHWAH","NJ","07430","US","US","MAHWAH","NJ",""]
["C007928","CAMPMOR","568","PO BOX 680-ADP","CAMPMOR","CAMPMOR"," MAHWAH NJ","","","","MAHWAH","NJ","07430","US","US","MAHWAH","NJ",""]
["C007929","SNOWBASIN RENTAL SHOP","1943","ATN: CYNTHIA MORGAN/ACCOUNTING DEPT","SNOWBASIN RENTAL SHOP","SNOWBASIN RENTAL SHOP"," HUNTSVILLE UT","","","","HUNTSVILLE","UT","84317","US","US","HUNTSVILLE","UT",""]
["C007929","SNOWBASIN RENTAL SHOP","1944","ATN: CYNTHIA MORGAN/ACCOUNTING DEPT","SNOWBASIN RENTAL SHOP","SNOWBASIN RENTAL SHOP"," HUNTSVILLE UT","","","","HUNTSVILLE","UT","84317","US","US","HUNTSVILLE","UT",""]
["C007929","SNOWBASIN RENTAL SHOP","1945","ATN: CYNTHIA MORGAN/ACCOUNTING DEPT","SNOWBASIN RENTAL SHOP","SNOWBASIN RENTAL SHOP"," HUNTSVILLE UT","","","","HUNTSVILLE","UT","84317","US","US","HUNTSVILLE","UT",""]
["C007929","SNOWBASIN RENTAL SHOP","226","ATN: CYNTHIA MORGAN/ACCOUNTING DEPT","SNOWBASIN RENTAL SHOP","SNOWBASIN RENTAL SHOP"," HUNTSVILLE UT","","","","HUNTSVILLE","UT","84317","US","US","HUNTSVILLE","UT",""]
["C007932","SPORTS STOP","699","67 MAIN ST","SPORTS STOP","SPORTS STOP"," WENHAM MA","","","","WENHAM","MA","01984","US","US","WENHAM","MA",""]
["C007936","PIRAGIS NORTHWOODS CO","343","105 N CENTRAL AVE","PIRAGIS NORTHWOODS CO","PIRAGIS NORTHWOODS CO"," ELY MN","","","","ELY","MN","55731","US","US","ELY","MN",""]
["C007938","YEAGERS SPORTING GOODS","1070","3101 NORTHWEST AVE","YEAGERS SPORTING GOODS","YEAGERS SPORTING GOODS"," BELLINGHAM WA","","","","BELLINGHAM","WA","98225","US","US","BELLINGHAM","WA",""]
["C007939","DOVER SPORTS","349","161 PORTLAND AVE","DOVER SPORTS","DOVER SPORTS"," DOVER NH","","","","DOVER","NH","03820","US","US","DOVER","NH",""]
["C007941","HERGERT SPORT CENTER","949","1232 N SAWYER ST","HERGERT SPORT CENTER","HERGERT SPORT CENTER"," OSHKOSH WI","","","","OSHKOSH","WI","54902-3377","US","US","OSHKOSH","WI",""]
["C007943","SPORTWORKS LTD","2488","PO BOX 2131","SPORTWORKS LTD","SPORTWORKS LTD"," DUXBURY MA","","","","DUXBURY","MA","02332","US","US","DUXBURY","MA",""]
["C007943","SPORTWORKS LTD","770","PO BOX 2131","SPORTWORKS LTD","SPORTWORKS LTD"," DUXBURY MA","","","","DUXBURY","MA","02332","US","US","DUXBURY","MA",""]
["C007947","FOGGY MOUNTAIN SHOP","1006","134 FRANKLIN ST","FOGGY MOUNTAIN SHOP","FOGGY MOUNTAIN SHOP"," JUNEAU AK","","","","JUNEAU","AK","99801","US","US","JUNEAU","AK",""]
["C007952","COLE SPORT","1579","PO BOX 3509","COLE SPORT","COLE SPORT"," PARK CITY UT","","","","PARK CITY","UT","84060","US","US","PARK CITY","UT",""]
["C007952","COLE SPORT","3752","PO BOX 3509","COLE SPORT","COLE SPORT"," PARK CITY UT","","","","PARK CITY","UT","84060","US","US","PARK CITY","UT",""]
["C007953","SNOWSHOE THOMPSON'S","1980","PO BOX 16808","SNOWSHOE THOMPSON'S","SNOWSHOE THOMPSON'S"," SOUTH LAKE TAHOE CA","","","","SOUTH LAKE TAHOE","CA","96151","US","US","SOUTH LAKE TAHOE","CA",""]
["C007953","SNOWSHOE THOMPSON'S","279","PO BOX 16808","SNOWSHOE THOMPSON'S","SNOWSHOE THOMPSON'S"," SOUTH LAKE TAHOE CA","","","","SOUTH LAKE TAHOE","CA","96151","US","US","SOUTH LAKE TAHOE","CA",""]
["C007961","SPORTS LTD","1588","22642 VENTURA BLVD","SPORTS LTD","SPORTS LTD"," WOODLAND HILLS CA","","","","WOODLAND HILLS","CA","91364","US","US","WOODLAND HILLS","CA",""]
["C007961","SPORTS LTD","3765","22642 VENTURA BLVD","SPORTS LTD","SPORTS LTD"," WOODLAND HILLS CA","","","","WOODLAND HILLS","CA","91364","US","US","WOODLAND HILLS","CA",""]
["C007964","CROSSED SABERS","2079","421 ROUTE 44","CROSSED SABERS","CROSSED SABERS"," RAYNHAM MA","","","","RAYNHAM","MA","02767","US","US","RAYNHAM","MA",""]
["C007964","CROSSED SABERS","431","421 ROUTE 44","CROSSED SABERS","CROSSED SABERS"," RAYNHAM MA","","","","RAYNHAM","MA","02767","US","US","RAYNHAM","MA",""]
["C007966","LAND PARK SKI & SPORT","965","4207 FREEPORT BLVD","LAND PARK SKI & SPORT","LAND PARK SKI & SPORT"," SACRAMENTO CA","","","","SACRAMENTO","CA","95822","US","US","SACRAMENTO","CA",""]
["C007968","WHITE PASS CO INC","1942","48935 US HWY 12","WHITE PASS CO INC","WHITE PASS CO INC"," NACHES WA","","","","NACHES","WA","98937","US","US","NACHES","WA",""]
["C007968","WHITE PASS CO INC","225","48935 US HWY 12","WHITE PASS CO INC","WHITE PASS CO INC"," NACHES WA","","","","NACHES","WA","98937-9507","US","US","NACHES","WA",""]
["C007969","DOWN WIND SPORTS SOUTH INC","2406","514 N THIRD ST","DOWN WIND SPORTS SOUTH INC","DOWN WIND SPORTS SOUTH INC"," MUNISING MI","","","","MUNISING","MI","49862","US","US","MARQUETTE","MI",""]
["C007969","DOWN WIND SPORTS SOUTH INC","2407","514 N THIRD ST","DOWN WIND SPORTS SOUTH INC","DOWN WIND SPORTS SOUTH INC"," HOUGHTON MI","","","","HOUGHTON","MI","49931","US","US","MARQUETTE","MI",""]
["C007969","DOWN WIND SPORTS SOUTH INC","624","514 N THIRD ST","DOWN WIND SPORTS SOUTH INC","DOWN WIND SPORTS SOUTH INC"," MARQUETTE MI","","","","MARQUETTE","MI","49855","US","US","MARQUETTE","MI",""]
["C007973","PICHES SKI SHOP INC","1536","318 GILFORD AVE-RT 11A","PICHES SKI SHOP INC","PICHES SKI SHOP INC"," GILFORD NH","","","","GILFORD","NH","03249","US","US","GILFORD","NH",""]
["C007976","ALPIN HAUS SKI SHOP","1562","4850 RTE 30 N","ALPIN HAUS SKI SHOP","ALPIN HAUS SKI SHOP"," AMSTERDAM NY","","","","AMSTERDAM","NY","12010","US","US","AMSTERDAM","NY",""]
["C007976","ALPIN HAUS SKI SHOP","3662","4850 RTE 30 N","ALPIN HAUS SKI SHOP","ALPIN HAUS SKI SHOP"," CLIFTON PARK NY","","","","CLIFTON PARK","NY","12065","US","US","AMSTERDAM","NY",""]
["C007979","EAST BURKE SPORTS","2429","PO BOX 189","EAST BURKE SPORTS","EAST BURKE SPORTS"," EAST BURKE VT","","","","EAST BURKE","VT","05832","US","US","EAST BURKE","VT",""]
["C007979","EAST BURKE SPORTS","676","PO BOX 189","EAST BURKE SPORTS","EAST BURKE SPORTS"," EAST BURKE VT","","","","EAST BURKE","VT","05832","US","US","EAST BURKE","VT",""]
["C007980","940 SNOWBOARDS INC","1184","948 STATE ROUTE 940","940 SNOWBOARDS INC","940 SNOWBOARDS INC"," WHITE HAVEN PA","","","","WHITE HAVEN","PA","18661","US","US","WHITE HAVEN","PA",""]
["C007984","DURANGO SPORTING GOODS","692","GARDENSWARTZ OUTDOORS","DURANGO SPORTING GOODS","DURANGO SPORTING GOODS"," DURANGO CO","","","","DURANGO","CO","81301","US","US","DURANGO","CO",""]
["C007985","NORTH STAR CYCLERY","1003","100 MAIN ST","NORTH STAR CYCLERY","NORTH STAR CYCLERY"," BURLINGTON VT","","","","BURLINGTON","VT","05401","US","US","BURLINGTON","VT",""]
["C007986","THE SPORTSMAN","885","129 N MAIN STREET","THE SPORTSMAN","THE SPORTSMAN"," LOGAN UT","","","","LOGAN","UT","84321","US","US","LOGAN","UT",""]
["C007988","SUNDANCE MOUNTAIN OUTFITTERS","1307","8841 N ALPINE LOOP RD","SUNDANCE MOUNTAIN OUTFITTERS","SUNDANCE MOUNTAIN OUTFITTERS"," SUNDANCE UT","","","","SUNDANCE","UT","84604","US","US","SUNDANCE","UT",""]
["C007988","SUNDANCE MOUNTAIN OUTFITTERS","3298","8841 N ALPINE LOOP RD","SUNDANCE MOUNTAIN OUTFITTERS","SUNDANCE MOUNTAIN OUTFITTERS"," SUNDANCE UT","","","","SUNDANCE","UT","84604","US","US","SUNDANCE","UT",""]
["C007990","MOUNTAIN CHALET","572","15 N NEVADA AVENUE","MOUNTAIN CHALET","MOUNTAIN CHALET"," COLORADO SPRINGS CO","","","","COLORADO SPRINGS","CO","80903","US","US","COLORADO SPRINGS","CO",""]
["C007993","OUTDOOR GEAR EXCHANGE - THE","1635","37 CHURCH ST","OUTDOOR GEAR EXCHANGE - THE","OUTDOOR GEAR EXCHANGE - THE"," LINCOLN VT","","","","LINCOLN","VT","05443","US","US","BURLINGTON","VT",""]
["C007993","OUTDOOR GEAR EXCHANGE - THE","26","37 CHURCH ST","OUTDOOR GEAR EXCHANGE - THE","OUTDOOR GEAR EXCHANGE - THE"," BURLINGTON VT","","","","BURLINGTON","VT","05401","US","US","BURLINGTON","VT",""]
["C007996","BLAUER SKI RENTALS","2161","PO BOX 1111","BLAUER SKI RENTALS","BLAUER SKI RENTALS"," BIG BEAR LAKE CA","","","","BIG BEAR LAKE","CA","92315","US","US","BIG BEAR LAKE","CA",""]
["C007996","BLAUER SKI RENTALS","559","PO BOX 1111","BLAUER SKI RENTALS","BLAUER SKI RENTALS"," BIG BEAR LAKE CA","","","","BIG BEAR LAKE","CA","92315","US","US","BIG BEAR LAKE","CA",""]
["C007997","ROGUE SKI SHOP","4","309 E JACKSON","ROGUE SKI SHOP","ROGUE SKI SHOP"," MEDFORD OR","","","","MEDFORD","OR","97501","US","US","MEDFORD","OR",""]
["C007998","INN SHOP OF SQUAW VALLEY","141","PO BOX 2621","INN SHOP OF SQUAW VALLEY","INN SHOP OF SQUAW VALLEY"," OLYMPIC VALLEY CA","","","","OLYMPIC VALLEY","CA","96146","US","US","OLYMPIC VALLEY","CA",""]
["C007998","INN SHOP OF SQUAW VALLEY","1847","PO BOX 2621","INN SHOP OF SQUAW VALLEY","INN SHOP OF SQUAW VALLEY"," OLYMPIC VALLEY CA","","","","OLYMPIC VALLEY","CA","96146","US","US","OLYMPIC VALLEY","CA",""]
["C008002","SPORTSMAN & SKI HAUS - THE","1955","CROWN ENTERPRISES","SPORTSMAN & SKI HAUS - THE","SPORTSMAN & SKI HAUS - THE"," WHITEFISH MT","","","","WHITEFISH","MT","59937","US","US","KALISPELL","MT",""]
["C008002","SPORTSMAN & SKI HAUS - THE","1956","CROWN ENTERPRISES","SPORTSMAN & SKI HAUS - THE","SPORTSMAN & SKI HAUS - THE"," WHITEFISH MT","","","","WHITEFISH","MT","59937","US","US","KALISPELL","MT",""]
["C008002","SPORTSMAN & SKI HAUS - THE","1957","CROWN ENTERPRISES","SPORTSMAN & SKI HAUS - THE","SPORTSMAN & SKI HAUS - THE"," MOSCOW ID","","","","MOSCOW","ID","83843","US","US","KALISPELL","MT",""]
["C008002","SPORTSMAN & SKI HAUS - THE","250","CROWN ENTERPRISES","SPORTSMAN & SKI HAUS - THE","SPORTSMAN & SKI HAUS - THE"," KALISPELL MT","","","","KALISPELL","MT","59901","US","US","KALISPELL","MT",""]
["C008003","MOUNTAIN GOAT","632","4886 MAIN ST","MOUNTAIN GOAT","MOUNTAIN GOAT"," MANCHESTER CENTER VT","","","","MANCHESTER CENTER","VT","05255","US","US","MANCHESTER CENTER","VT",""]
["C008005","SUN N SNOW SKI SHOP","1378","6240 E M-115","SUN N SNOW SKI SHOP","SUN N SNOW SKI SHOP"," CADILLAC MI","","","","CADILLAC","MI","49601","US","US","CADILLAC","MI",""]
["C008006","SNO HAUS SKI SHOP","1558","ACCOUNTS PAYABLE MANAGER","SNO HAUS SKI SHOP","SNO HAUS SKI SHOP"," HUNTINGTON STATION NY","","","","HUNTINGTON STATION","NY","11746","US","US","HUNTINGTON STATION","NY",""]
["C008006","SNO HAUS SKI SHOP","3657","ACCOUNTS PAYABLE MANAGER","SNO HAUS SKI SHOP","SNO HAUS SKI SHOP"," HEMPSTEAD NY","","","","HEMPSTEAD","NY","11550","US","US","HUNTINGTON STATION","NY",""]
["C008006","SNO HAUS SKI SHOP","3658","ACCOUNTS PAYABLE MANAGER","SNO HAUS SKI SHOP","SNO HAUS SKI SHOP"," HEMPSTEAD NY","","","","HEMPSTEAD","NY","11550","US","US","HUNTINGTON STATION","NY",""]
["C008006","SNO HAUS SKI SHOP","3659","ACCOUNTS PAYABLE MANAGER","SNO HAUS SKI SHOP","SNO HAUS SKI SHOP"," HUNTINGTON STATION NY","","","","HUNTINGTON STATION","NY","11746","US","US","HUNTINGTON STATION","NY",""]
["C008008","CRYSTAL MTN RESORT","1972","THE MOUNTAIN SHOP","CRYSTAL MTN RESORT","CRYSTAL MTN RESORT"," CRYSTAL MOUNTAIN WA","","","","CRYSTAL MOUNTAIN","WA","98022","US","US","ENUMCLAW","WA",""]
["C008008","CRYSTAL MTN RESORT","268","THE MOUNTAIN SHOP","CRYSTAL MTN RESORT","CRYSTAL MTN RESORT"," ENUMCLAW WA","","","","ENUMCLAW","WA","98022","US","US","ENUMCLAW","WA",""]
["C008009","SPORT SYSTEMS INC","1061","6915 MONTGOMERY BLVD NE","SPORT SYSTEMS INC","SPORT SYSTEMS INC"," ALBUQUERQUE NM","","","","ALBUQUERQUE","NM","87109","US","US","ALBUQUERQUE","NM",""]
["C008011","APPALACHIAN SKI & OUTDOORS INC","1475","131 S ALLEN ST","APPALACHIAN SKI & OUTDOORS INC","APPALACHIAN SKI & OUTDOORS INC"," STATE COLLEGE PA","","","","STATE COLLEGE","PA","16801","US","US","STATE COLLEGE","PA",""]
["C008011","APPALACHIAN SKI & OUTDOORS INC","3538","131 S ALLEN ST","APPALACHIAN SKI & OUTDOORS INC","APPALACHIAN SKI & OUTDOORS INC"," STATE COLLEGE PA","","","","STATE COLLEGE","PA","16801","US","US","STATE COLLEGE","PA",""]
["C008015","SKI CHALET","1018","1041 YOUNGSTOWN RD","SKI CHALET","SKI CHALET"," NILES OH","","","","NILES","OH","44446","US","US","NILES","OH",""]
["C008016","STURTEVANTS SPORTS","1530","SKI PNW LLC","STURTEVANTS SPORTS","STURTEVANTS SPORTS"," BELLEVUE WA","","","","BELLEVUE","WA","98004","US","US","BELLEVUE","WA",""]
["C008016","STURTEVANTS SPORTS","3624","SKI PNW LLC","STURTEVANTS SPORTS","STURTEVANTS SPORTS"," REDMOND WA","","","","REDMOND","WA","98052","US","US","BELLEVUE","WA",""]
["C008016","STURTEVANTS SPORTS","3625","SKI PNW LLC","STURTEVANTS SPORTS","STURTEVANTS SPORTS"," TACOMA WA","","","","TACOMA","WA","98409","US","US","BELLEVUE","WA",""]
["C008016","STURTEVANTS SPORTS","3626","SKI PNW LLC","STURTEVANTS SPORTS","STURTEVANTS SPORTS"," BELLEVUE WA","","","","BELLEVUE","WA","98005","US","US","BELLEVUE","WA",""]
["C008017","ALPINE OPTIONS INC","1332","1726 SUGARBUSH ACCESS RD","ALPINE OPTIONS INC","ALPINE OPTIONS INC"," WARREN VT","","","","WARREN","VT","05674","US","US","WARREN","VT",""]
["C008018","ARAPAHOE BASIN SKI AREA","2073","PO BOX 5808","ARAPAHOE BASIN SKI AREA","ARAPAHOE BASIN SKI AREA"," DILLON CO","","","","DILLON","CO","80435","US","US","DILLON","CO",""]
["C008018","ARAPAHOE BASIN SKI AREA","413","PO BOX 5808","ARAPAHOE BASIN SKI AREA","ARAPAHOE BASIN SKI AREA"," DILLON CO","","","","DILLON","CO","80435","US","US","DILLON","CO",""]
["C008019","TIMBERLINE LODGE","1047","RLK AND CO","TIMBERLINE LODGE","TIMBERLINE LODGE"," GOVERNMENT CAMP OR","","","","GOVERNMENT CAMP","OR","97028","US","US","GOVERNMENT CAMP","OR",""]
["C008019","TIMBERLINE LODGE","3123","RLK AND CO","TIMBERLINE LODGE","TIMBERLINE LODGE"," GOVERNMENT CAMP OR","","","","GOVERNMENT CAMP","OR","97028","US","US","GOVERNMENT CAMP","OR",""]
["C008022","BASE CAMP - THE","2654","5 WEST BROADWAY","BASE CAMP - THE","BASE CAMP - THE"," HELENA MT","","","","HELENA","MT","59601","US","US","HELENA","MT",""]
["C008022","BASE CAMP - THE","2655","5 WEST BROADWAY","BASE CAMP - THE","BASE CAMP - THE"," BILLINGS MT","","","","BILLINGS","MT","59102","US","US","HELENA","MT",""]
["C008022","BASE CAMP - THE","876","5 WEST BROADWAY","BASE CAMP - THE","BASE CAMP - THE"," HELENA MT","","","","HELENA","MT","59601","US","US","HELENA","MT",""]
["C008028","SIERRA AT TAHOE","376","BOOTH CREEK SKI HOLDINGS INC","SIERRA AT TAHOE","SIERRA AT TAHOE"," TWIN BRIDGES CA","","","","TWIN BRIDGES","CA","95735","US","US","TWIN BRIDGES","CA",""]
["C008029","MAINE SPORT OUTFITTERS","184","MAINE SPORT INC","MAINE SPORT OUTFITTERS","MAINE SPORT OUTFITTERS"," ROCKPORT ME","","","","ROCKPORT","ME","04856","US","US","ROCKPORT","ME",""]
["C008029","MAINE SPORT OUTFITTERS","1880","MAINE SPORT INC","MAINE SPORT OUTFITTERS","MAINE SPORT OUTFITTERS"," ROCKPORT ME","","","","ROCKPORT","ME","04856","US","US","ROCKPORT","ME",""]
["C008030","NICHOLS SKI SHOP","1096","21938 MICHIGAN AVE","NICHOLS SKI SHOP","NICHOLS SKI SHOP"," DEARBORN MI","","","","DEARBORN","MI","48124","US","US","DEARBORN","MI",""]
["C008030","NICHOLS SKI SHOP","3155","21938 MICHIGAN AVE","NICHOLS SKI SHOP","NICHOLS SKI SHOP"," BRIGHTON MI","","","","BRIGHTON","MI","48114","US","US","DEARBORN","MI",""]
["C008030","NICHOLS SKI SHOP","3156","21938 MICHIGAN AVE","NICHOLS SKI SHOP","NICHOLS SKI SHOP"," WATERFORD MI","","","","WATERFORD","MI","48329","US","US","DEARBORN","MI",""]
["C008032","BOYNE COUNTRY SPORTS","2051","1200 BAY VIEW RD","BOYNE COUNTRY SPORTS","BOYNE COUNTRY SPORTS"," GRAND RAPIDS MI","","","","GRAND RAPIDS","MI","49506","US","US","PETOSKEY","MI",""]
["C008032","BOYNE COUNTRY SPORTS","2052","1200 BAY VIEW RD","BOYNE COUNTRY SPORTS","BOYNE COUNTRY SPORTS"," CARRABASSETT VALLEY ME","","","","CARRABASSETT VALLEY","ME","04947","US","US","PETOSKEY","MI",""]
["C008032","BOYNE COUNTRY SPORTS","2053","1200 BAY VIEW RD","BOYNE COUNTRY SPORTS","BOYNE COUNTRY SPORTS"," NEWRY ME","","","","NEWRY","ME","04261","US","US","PETOSKEY","MI",""]
["C008032","BOYNE COUNTRY SPORTS","2054","1200 BAY VIEW RD","BOYNE COUNTRY SPORTS","BOYNE COUNTRY SPORTS"," BIG SKY MT","","","","BIG SKY","MT","59716","US","US","PETOSKEY","MI",""]
["C008032","BOYNE COUNTRY SPORTS","2055","1200 BAY VIEW RD","BOYNE COUNTRY SPORTS","BOYNE COUNTRY SPORTS"," PETOSKEY MI","","","","PETOSKEY","MI","49770","US","US","PETOSKEY","MI",""]
["C008032","BOYNE COUNTRY SPORTS","2056","1200 BAY VIEW RD","BOYNE COUNTRY SPORTS","BOYNE COUNTRY SPORTS"," TRAVERSE CITY MI","","","","TRAVERSE CITY","MI","49684","US","US","PETOSKEY","MI",""]
["C008032","BOYNE COUNTRY SPORTS","2057","1200 BAY VIEW RD","BOYNE COUNTRY SPORTS","BOYNE COUNTRY SPORTS"," BRIGHTON UT","","","","BRIGHTON","UT","84121-9740","US","US","PETOSKEY","MI",""]
["C008032","BOYNE COUNTRY SPORTS","2058","1200 BAY VIEW RD","BOYNE COUNTRY SPORTS","BOYNE COUNTRY SPORTS"," KINGFIELD ME","","","","KINGFIELD","ME","04947","US","US","PETOSKEY","MI",""]
["C008032","BOYNE COUNTRY SPORTS","2059","1200 BAY VIEW RD","BOYNE COUNTRY SPORTS","BOYNE COUNTRY SPORTS"," SNOQUALMIE PASS WA","","","","SNOQUALMIE PASS","WA","98068","US","US","PETOSKEY","MI",""]
["C008032","BOYNE COUNTRY SPORTS","2060","1200 BAY VIEW RD","BOYNE COUNTRY SPORTS","BOYNE COUNTRY SPORTS"," LINCOLN NH","","","","LINCOLN","NH","03251","US","US","PETOSKEY","MI",""]
["C008032","BOYNE COUNTRY SPORTS","2061","1200 BAY VIEW RD","BOYNE COUNTRY SPORTS","BOYNE COUNTRY SPORTS"," WIXOM MI","","","","WIXOM","MI","48393","US","US","PETOSKEY","MI",""]
["C008032","BOYNE COUNTRY SPORTS","2062","1200 BAY VIEW RD","BOYNE COUNTRY SPORTS","BOYNE COUNTRY SPORTS"," LINCOLN NH","","","","LINCOLN","NH","03251","US","US","PETOSKEY","MI",""]
["C008032","BOYNE COUNTRY SPORTS","396","1200 BAY VIEW RD","BOYNE COUNTRY SPORTS","BOYNE COUNTRY SPORTS"," PETOSKEY MI","","","","PETOSKEY","MI","49770","US","US","PETOSKEY","MI",""]
["C008033","VILLAGE BIKE & SKI SHOP","2849","PO BOX 3822","VILLAGE BIKE & SKI SHOP","VILLAGE BIKE & SKI SHOP"," BEND OR","","","","BEND","OR","97707","US","US","BEND","OR",""]
["C008033","VILLAGE BIKE & SKI SHOP","974","PO BOX 3822","VILLAGE BIKE & SKI SHOP","VILLAGE BIKE & SKI SHOP"," BEND OR","","","","BEND","OR","97707","US","US","BEND","OR",""]
["C008034","SNOWFLAKE SKI SHOP","1539","TWO FOUR FIVE SNOWBOARD CO","SNOWFLAKE SKI SHOP","SNOWFLAKE SKI SHOP"," LOCKPORT NY","","","","LOCKPORT","NY","14094","US","US","LOCKPORT","NY",""]
["C008034","SNOWFLAKE SKI SHOP","3638","TWO FOUR FIVE SNOWBOARD CO","SNOWFLAKE SKI SHOP","SNOWFLAKE SKI SHOP"," GLENWOOD NY","","","","GLENWOOD","NY","14069","US","US","LOCKPORT","NY",""]
["C008034","SNOWFLAKE SKI SHOP","3639","TWO FOUR FIVE SNOWBOARD CO","SNOWFLAKE SKI SHOP","SNOWFLAKE SKI SHOP"," LOCKPORT NY","","","","LOCKPORT","NY","14094","US","US","LOCKPORT","NY",""]
["C008038","MOUNTAIN MAN SKI SHOP","1511","2735 N REYNOLDS RD","MOUNTAIN MAN SKI SHOP","MOUNTAIN MAN SKI SHOP"," TOLEDO OH","","","","TOLEDO","OH","43615","US","US","TOLEDO","OH",""]
["C008038","MOUNTAIN MAN SKI SHOP","3605","2735 N REYNOLDS RD","MOUNTAIN MAN SKI SHOP","MOUNTAIN MAN SKI SHOP"," TOLEDO OH","","","","TOLEDO","OH","43615","US","US","TOLEDO","OH",""]
["C008040","ARCADIAN SHOP","2131","PO BOX 1637","ARCADIAN SHOP","ARCADIAN SHOP"," LENOX MA","","","","LENOX","MA","01240","US","US","LENOX","MA",""]
["C008040","ARCADIAN SHOP","501","PO BOX 1637","ARCADIAN SHOP","ARCADIAN SHOP"," LENOX MA","","","","LENOX","MA","01240","US","US","LENOX","MA",""]
["C008041","PLAY IT AGAIN SPORTS - LATHAM #10966","199","SPORTING AROUND INC","PLAY IT AGAIN SPORTS - LATHAM #10966","PLAY IT AGAIN SPORTS - LATHAM #10966"," LATHAM NY","","","","LATHAM","NY","12110","US","US","LATHAM","NY",""]
["C008043","SKI RACK INC - THE","1016","85 MAIN ST","SKI RACK INC - THE","SKI RACK INC - THE"," BURLINGTON VT","","","","BURLINGTON","VT","05401","US","US","BURLINGTON","VT",""]
["C008044","VAIL RESORTS MANAGEMENT COMPANY","15","390 INTERLOCKEN CRESENT, STE 7000","VAIL RESORTS MANAGEMENT COMPANY","VAIL RESORTS MANAGEMENT COMPANY"," BROOMFIELD CO","","","","BROOMFIELD","CO","80021","US","US","BROOMFIELD","CO",""]
["C008044","VAIL RESORTS MANAGEMENT COMPANY","1606","390 INTERLOCKEN CRESENT, STE 7000","VAIL RESORTS MANAGEMENT COMPANY","VAIL RESORTS MANAGEMENT COMPANY"," BRECKENRIDGE CO","","","","BRECKENRIDGE","CO","80424","US","US","BROOMFIELD","CO",""]
["C008044","VAIL RESORTS MANAGEMENT COMPANY","1607","390 INTERLOCKEN CRESENT, STE 7000","VAIL RESORTS MANAGEMENT COMPANY","VAIL RESORTS MANAGEMENT COMPANY"," MERCERSBURG PA","","","","MERCERSBURG","PA","17236","US","US","BROOMFIELD","CO",""]
["C008044","VAIL RESORTS MANAGEMENT COMPANY","1608","390 INTERLOCKEN CRESENT, STE 7000","VAIL RESORTS MANAGEMENT COMPANY","VAIL RESORTS MANAGEMENT COMPANY"," WEST DOVER VT","","","","WEST DOVER","VT","05356","US","US","BROOMFIELD","CO",""]
["C008044","VAIL RESORTS MANAGEMENT COMPANY","1609","390 INTERLOCKEN CRESENT, STE 7000","VAIL RESORTS MANAGEMENT COMPANY","VAIL RESORTS MANAGEMENT COMPANY"," AVON CO","","","","AVON","CO","81620","US","US","BROOMFIELD","CO",""]
["C008044","VAIL RESORTS MANAGEMENT COMPANY","1610","390 INTERLOCKEN CRESENT, STE 7000","VAIL RESORTS MANAGEMENT COMPANY","VAIL RESORTS MANAGEMENT COMPANY"," GYPSUM CO","","","","GYPSUM","CO","81637","US","US","BROOMFIELD","CO",""]
["C008044","VAIL RESORTS MANAGEMENT COMPANY","1611","390 INTERLOCKEN CRESENT, STE 7000","VAIL RESORTS MANAGEMENT COMPANY","VAIL RESORTS MANAGEMENT COMPANY"," VAIL CO","","","","VAIL","CO","81657","US","US","BROOMFIELD","CO",""]
["C008044","VAIL RESORTS MANAGEMENT COMPANY","1612","390 INTERLOCKEN CRESENT, STE 7000","VAIL RESORTS MANAGEMENT COMPANY","VAIL RESORTS MANAGEMENT COMPANY"," VAIL CO","","","","VAIL","CO","81657","US","US","BROOMFIELD","CO",""]
["C008044","VAIL RESORTS MANAGEMENT COMPANY","1613","390 INTERLOCKEN CRESENT, STE 7000","VAIL RESORTS MANAGEMENT COMPANY","VAIL RESORTS MANAGEMENT COMPANY"," SKYKOMISH WA","","","","SKYKOMISH","WA","98288","US","US","BROOMFIELD","CO",""]
["C008044","VAIL RESORTS MANAGEMENT COMPANY","1614","390 INTERLOCKEN CRESENT, STE 7000","VAIL RESORTS MANAGEMENT COMPANY","VAIL RESORTS MANAGEMENT COMPANY"," AVON CO","","","","AVON","CO","81620","US","US","BROOMFIELD","CO",""]
["C008044","VAIL RESORTS MANAGEMENT COMPANY","1615","390 INTERLOCKEN CRESENT, STE 7000","VAIL RESORTS MANAGEMENT COMPANY","VAIL RESORTS MANAGEMENT COMPANY"," KEYSTONE CO","","","","KEYSTONE","CO","80435","US","US","BROOMFIELD","CO",""]
["C008044","VAIL RESORTS MANAGEMENT COMPANY","1616","390 INTERLOCKEN CRESENT, STE 7000","VAIL RESORTS MANAGEMENT COMPANY","VAIL RESORTS MANAGEMENT COMPANY"," HIDDEN VALLEY PA","","","","HIDDEN VALLEY","PA","15502","US","US","BROOMFIELD","CO",""]
["C008044","VAIL RESORTS MANAGEMENT COMPANY","1617","390 INTERLOCKEN CRESENT, STE 7000","VAIL RESORTS MANAGEMENT COMPANY","VAIL RESORTS MANAGEMENT COMPANY"," VAIL CO","","","","VAIL","CO","81657","US","US","BROOMFIELD","CO",""]
["C008044","VAIL RESORTS MANAGEMENT COMPANY","1618","390 INTERLOCKEN CRESENT, STE 7000","VAIL RESORTS MANAGEMENT COMPANY","VAIL RESORTS MANAGEMENT COMPANY"," VAIL CO","","","","VAIL","CO","81657","US","US","BROOMFIELD","CO",""]
["C008044","VAIL RESORTS MANAGEMENT COMPANY","1619","390 INTERLOCKEN CRESENT, STE 7000","VAIL RESORTS MANAGEMENT COMPANY","VAIL RESORTS MANAGEMENT COMPANY"," KIRKWOOD CA","","","","KIRKWOOD","CA","95646","US","US","BROOMFIELD","CO",""]
["C008044","VAIL RESORTS MANAGEMENT COMPANY","1620","390 INTERLOCKEN CRESENT, STE 7000","VAIL RESORTS MANAGEMENT COMPANY","VAIL RESORTS MANAGEMENT COMPANY"," SOUTH LAKE TAHOE CA","","","","SOUTH LAKE TAHOE","CA","96150","US","US","BROOMFIELD","CO",""]
["C008044","VAIL RESORTS MANAGEMENT COMPANY","1621","390 INTERLOCKEN CRESENT, STE 7000","VAIL RESORTS MANAGEMENT COMPANY","VAIL RESORTS MANAGEMENT COMPANY"," KEYSTONE CO","","","","KEYSTONE","CO","80435","US","US","BROOMFIELD","CO",""]
["C008044","VAIL RESORTS MANAGEMENT COMPANY","1622","390 INTERLOCKEN CRESENT, STE 7000","VAIL RESORTS MANAGEMENT COMPANY","VAIL RESORTS MANAGEMENT COMPANY"," KIRKWOOD CA","","","","KIRKWOOD","CA","95646","US","US","BROOMFIELD","CO",""]
["C008044","VAIL RESORTS MANAGEMENT COMPANY","1623","390 INTERLOCKEN CRESENT, STE 7000","VAIL RESORTS MANAGEMENT COMPANY","VAIL RESORTS MANAGEMENT COMPANY"," TRUCKEE CA","","","","TRUCKEE","CA","96161","US","US","BROOMFIELD","CO",""]
["C008044","VAIL RESORTS MANAGEMENT COMPANY","1624","390 INTERLOCKEN CRESENT, STE 7000","VAIL RESORTS MANAGEMENT COMPANY","VAIL RESORTS MANAGEMENT COMPANY"," AVON CO","","","","AVON","CO","81620","US","US","BROOMFIELD","CO",""]
["C008044","VAIL RESORTS MANAGEMENT COMPANY","1625","390 INTERLOCKEN CRESENT, STE 7000","VAIL RESORTS MANAGEMENT COMPANY","VAIL RESORTS MANAGEMENT COMPANY"," HASTINGS MN","","","","HASTINGS","MN","55033","US","US","BROOMFIELD","CO",""]
["C008044","VAIL RESORTS MANAGEMENT COMPANY","1626","390 INTERLOCKEN CRESENT, STE 7000","VAIL RESORTS MANAGEMENT COMPANY","VAIL RESORTS MANAGEMENT COMPANY"," STOWE VT","","","","STOWE","VT","05672","US","US","BROOMFIELD","CO",""]
["C008044","VAIL RESORTS MANAGEMENT COMPANY","1627","390 INTERLOCKEN CRESENT, STE 7000","VAIL RESORTS MANAGEMENT COMPANY","VAIL RESORTS MANAGEMENT COMPANY"," PARK CITY UT","","","","PARK CITY","UT","84098","US","US","BROOMFIELD","CO",""]
["C008044","VAIL RESORTS MANAGEMENT COMPANY","1628","390 INTERLOCKEN CRESENT, STE 7000","VAIL RESORTS MANAGEMENT COMPANY","VAIL RESORTS MANAGEMENT COMPANY"," KIRKWOOD CA","","","","KIRKWOOD","CA","95646","US","US","BROOMFIELD","CO",""]
["C008044","VAIL RESORTS MANAGEMENT COMPANY","1629","390 INTERLOCKEN CRESENT, STE 7000","VAIL RESORTS MANAGEMENT COMPANY","VAIL RESORTS MANAGEMENT COMPANY"," PARK CITY UT","","","","PARK CITY","UT","84060","US","US","BROOMFIELD","CO",""]
["C008044","VAIL RESORTS MANAGEMENT COMPANY","1630","390 INTERLOCKEN CRESENT, STE 7000","VAIL RESORTS MANAGEMENT COMPANY","VAIL RESORTS MANAGEMENT COMPANY"," BRECKENRIDGE CO","","","","BRECKENRIDGE","CO","80424","US","US","BROOMFIELD","CO",""]
["C008045","WASATCH MOUNTAIN TOURING","532","702 EAST 100 S","WASATCH MOUNTAIN TOURING","WASATCH MOUNTAIN TOURING"," SALT LAKE CITY UT","","","","SALT LAKE CITY","UT","84102","US","US","SALT LAKE CITY","UT",""]
["C008047","ROTARY SPORT SHOP","1502","555 LORDSHIP BLVD","ROTARY SPORT SHOP","ROTARY SPORT SHOP"," STRATFORD CT","","","","STRATFORD","CT","06614","US","US","STRATFORD","CT",""]
["C008047","ROTARY SPORT SHOP","3597","555 LORDSHIP BLVD","ROTARY SPORT SHOP","ROTARY SPORT SHOP"," STRATFORD CT","","","","STRATFORD","CT","06614","US","US","STRATFORD","CT",""]
["C008049","BACKCOUNTRY-THE","2850","PO BOX 6706","BACKCOUNTRY-THE","BACKCOUNTRY-THE"," TRUCKEE CA","","","","TRUCKEE","CA","96161","US","US","TAHOE CITY","CA",""]
["C008049","BACKCOUNTRY-THE","978","PO BOX 6706","BACKCOUNTRY-THE","BACKCOUNTRY-THE"," TAHOE CITY CA","","","","TAHOE CITY","CA","96145","US","US","TAHOE CITY","CA",""]
["C008050","MAMMOTH MOUNTAINEERING SUPPLY","1975","PO BOX 2297","MAMMOTH MOUNTAINEERING SUPPLY","MAMMOTH MOUNTAINEERING SUPPLY"," MAMMOTH LAKES CA","","","","MAMMOTH LAKES","CA","93546","US","US","MAMMOTH LAKES","CA",""]
["C008050","MAMMOTH MOUNTAINEERING SUPPLY","1976","PO BOX 2297","MAMMOTH MOUNTAINEERING SUPPLY","MAMMOTH MOUNTAINEERING SUPPLY"," BISHOP CA","","","","BISHOP","CA","93514","US","US","MAMMOTH LAKES","CA",""]
["C008050","MAMMOTH MOUNTAINEERING SUPPLY","1977","PO BOX 2297","MAMMOTH MOUNTAINEERING SUPPLY","MAMMOTH MOUNTAINEERING SUPPLY"," MAMMOTH LAKES CA","","","","MAMMOTH LAKES","CA","93546","US","US","MAMMOTH LAKES","CA",""]
["C008050","MAMMOTH MOUNTAINEERING SUPPLY","1978","PO BOX 2297","MAMMOTH MOUNTAINEERING SUPPLY","MAMMOTH MOUNTAINEERING SUPPLY"," BISHOP CA","","","","BISHOP","CA","93514","US","US","MAMMOTH LAKES","CA",""]
["C008050","MAMMOTH MOUNTAINEERING SUPPLY","272","PO BOX 2297","MAMMOTH MOUNTAINEERING SUPPLY","MAMMOTH MOUNTAINEERING SUPPLY"," MAMMOTH LAKES CA","","","","MAMMOTH LAKES","CA","93546","US","US","MAMMOTH LAKES","CA",""]
["C008053","GEIGERS SPORTING GOODS","1581","14710 DETROIT AVE","GEIGERS SPORTING GOODS","GEIGERS SPORTING GOODS"," LAKEWOOD OH","","","","LAKEWOOD","OH","44107","US","US","LAKEWOOD","OH",""]
["C008053","GEIGERS SPORTING GOODS","3754","14710 DETROIT AVE","GEIGERS SPORTING GOODS","GEIGERS SPORTING GOODS"," CHAGRIN FALLS OH","","","","CHAGRIN FALLS","OH","44022","US","US","LAKEWOOD","OH",""]
["C008053","GEIGERS SPORTING GOODS","3755","14710 DETROIT AVE","GEIGERS SPORTING GOODS","GEIGERS SPORTING GOODS"," CHAGRIN FALLS OH","","","","CHAGRIN FALLS","OH","44022","US","US","LAKEWOOD","OH",""]
["C008056","LEISURETIME OF SOUTHBURY INC","1239","RTE 67","LEISURETIME OF SOUTHBURY INC","LEISURETIME OF SOUTHBURY INC"," SOUTHBURY CT","","","","SOUTHBURY","CT","06488","US","US","SOUTHBURY","CT",""]
["C008057","SKI PRO INC","1478","2110 E CAMELBACK","SKI PRO INC","SKI PRO INC"," PHOENIX AZ","","","","PHOENIX","AZ","85016","US","US","PHOENIX","AZ",""]
["C008057","SKI PRO INC","3541","2110 E CAMELBACK","SKI PRO INC","SKI PRO INC"," RENO NV","","","","RENO","NV","89511","US","US","PHOENIX","AZ",""]
["C008057","SKI PRO INC","3542","2110 E CAMELBACK","SKI PRO INC","SKI PRO INC"," TEMPE AZ","","","","TEMPE","AZ","85281","US","US","PHOENIX","AZ",""]
["C008057","SKI PRO INC","3543","2110 E CAMELBACK","SKI PRO INC","SKI PRO INC"," MESA AZ","","","","MESA","AZ","85201","US","US","PHOENIX","AZ",""]
["C008057","SKI PRO INC","3544","2110 E CAMELBACK","SKI PRO INC","SKI PRO INC"," PHOENIX AZ","","","","PHOENIX","AZ","85016","US","US","PHOENIX","AZ",""]
["C008058","ARLBERG SPORTS","547","25 N WENATCHEE","ARLBERG SPORTS","ARLBERG SPORTS"," WENATCHEE WA","","","","WENATCHEE","WA","98801","US","US","WENATCHEE","WA",""]
["C008059","TRAILBLAZER","211","1 SHORELINE DRIVE","TRAILBLAZER","TRAILBLAZER"," GUILFORD CT","","","","GUILFORD","CT","06437","US","US","GUILFORD","CT",""]
["C008060","NORDIC SKIER","1194","47 N MAIN ST","NORDIC SKIER","NORDIC SKIER"," WOLFEBORO NH","","","","WOLFEBORO","NH","03894","US","US","WOLFEBORO","NH",""]
["C008060","NORDIC SKIER","3215","47 N MAIN ST","NORDIC SKIER","NORDIC SKIER"," WOLFEBORO NH","","","","WOLFEBORO","NH","03894","US","US","WOLFEBORO","NH",""]
["C008061","WINDHAM MT SKI SHOP","1025","CHARLES E VAN ETTEN SKI SHOP INC","WINDHAM MT SKI SHOP","WINDHAM MT SKI SHOP"," WINDHAM NY","","","","WINDHAM","NY","12496","US","US","WINDHAM","NY",""]
["C008061","WINDHAM MT SKI SHOP","2876","CHARLES E VAN ETTEN SKI SHOP INC","WINDHAM MT SKI SHOP","WINDHAM MT SKI SHOP"," ASHLAND NY","","","","ASHLAND","NY","12407","US","US","WINDHAM","NY",""]
["C008061","WINDHAM MT SKI SHOP","2877","CHARLES E VAN ETTEN SKI SHOP INC","WINDHAM MT SKI SHOP","WINDHAM MT SKI SHOP"," WINDHAM NY","","","","WINDHAM","NY","12496","US","US","WINDHAM","NY",""]
["C008063","BACKCOUNTRY GEAR LIMITED","1008","1855 W 2nd Ave","BACKCOUNTRY GEAR LIMITED","BACKCOUNTRY GEAR LIMITED"," Eugene OR","","","","Eugene","OR","97402-4179","US","US","Eugene","OR",""]
["C008068","SPORTS UNLIMITED INC","713","346 GODSHALL DRIVE","SPORTS UNLIMITED INC","SPORTS UNLIMITED INC"," HARLEYSVILLE PA","","","","HARLEYSVILLE","PA","19438","US","US","HARLEYSVILLE","PA",""]
["C008069","HIGH ADVENTURE SKI & BIKE","1326","1054 TROY SCHENECTADY RD","HIGH ADVENTURE SKI & BIKE","HIGH ADVENTURE SKI & BIKE"," LATHAM NY","","","","LATHAM","NY","12110","US","US","LATHAM","NY",""]
["C008071","ALTERRA MOUNTAIN COMPANY","2151","ATTN ACCOUNTS PAYABLE RENTAL/RETAIL","ALTERRA MOUNTAIN COMPANY","ALTERRA MOUNTAIN COMPANY"," WINTER PARK CO","","","","WINTER PARK","CO","80482","US","US","DENVER","CO",""]
["C008071","ALTERRA MOUNTAIN COMPANY","2152","ATTN ACCOUNTS PAYABLE RENTAL/RETAIL","ALTERRA MOUNTAIN COMPANY","ALTERRA MOUNTAIN COMPANY"," SNOWSHOE WV","","","","SNOWSHOE","WV","26209","US","US","DENVER","CO",""]
["C008071","ALTERRA MOUNTAIN COMPANY","2153","ATTN ACCOUNTS PAYABLE RENTAL/RETAIL","ALTERRA MOUNTAIN COMPANY","ALTERRA MOUNTAIN COMPANY"," STEAMBOAT SPRINGS CO","","","","STEAMBOAT SPRINGS","CO","80487","US","US","DENVER","CO",""]
["C008071","ALTERRA MOUNTAIN COMPANY","2154","ATTN ACCOUNTS PAYABLE RENTAL/RETAIL","ALTERRA MOUNTAIN COMPANY","ALTERRA MOUNTAIN COMPANY"," VAIL CO","","","","VAIL","CO","81657","US","US","DENVER","CO",""]
["C008071","ALTERRA MOUNTAIN COMPANY","544","ATTN ACCOUNTS PAYABLE RENTAL/RETAIL","ALTERRA MOUNTAIN COMPANY","ALTERRA MOUNTAIN COMPANY"," DENVER CO","","","","DENVER","CO","80216","US","US","DENVER","CO",""]
["C008072","SKI SHOP PLUS - THE","1082","859 EDDIE DOWLING HWY RT","SKI SHOP PLUS - THE","SKI SHOP PLUS - THE"," NORTH SMITHFIELD RI","","","","NORTH SMITHFIELD","RI","02896","US","US","NORTH SMITHFIELD","RI",""]
["C008073","THE SKI COMPANY MOUNTAIN SPORTS","1483","VJR SKI CORPORATION","THE SKI COMPANY MOUNTAIN SPORTS","THE SKI COMPANY MOUNTAIN SPORTS"," ROCHESTER NY","","","","ROCHESTER","NY","14623","US","US","ROCHESTER","NY",""]
["C008073","THE SKI COMPANY MOUNTAIN SPORTS","3553","VJR SKI CORPORATION","THE SKI COMPANY MOUNTAIN SPORTS","THE SKI COMPANY MOUNTAIN SPORTS"," ROCHESTER NY","","","","ROCHESTER","NY","14618","US","US","ROCHESTER","NY",""]
["C008073","THE SKI COMPANY MOUNTAIN SPORTS","3554","VJR SKI CORPORATION","THE SKI COMPANY MOUNTAIN SPORTS","THE SKI COMPANY MOUNTAIN SPORTS"," TULLY NY","","","","TULLY","NY","13159","US","US","ROCHESTER","NY",""]
["C008073","THE SKI COMPANY MOUNTAIN SPORTS","3555","VJR SKI CORPORATION","THE SKI COMPANY MOUNTAIN SPORTS","THE SKI COMPANY MOUNTAIN SPORTS"," WILLIAMSVILLE NY","","","","WILLIAMSVILLE","NY","14221","US","US","ROCHESTER","NY",""]
["C008073","THE SKI COMPANY MOUNTAIN SPORTS","3556","VJR SKI CORPORATION","THE SKI COMPANY MOUNTAIN SPORTS","THE SKI COMPANY MOUNTAIN SPORTS"," BLOOMFIELD NY","","","","BLOOMFIELD","NY","14469","US","US","ROCHESTER","NY",""]
["C008077","HIGH COUNTRY SPORTS","1359","465 W MT PLEASANT AVE","HIGH COUNTRY SPORTS","HIGH COUNTRY SPORTS"," LIVINGSTON NJ","","","","LIVINGSTON","NJ","07039","US","US","LIVINGSTON","NJ",""]
["C008078","ACTION SPORTS","1542","324 W MAIN ST","ACTION SPORTS","ACTION SPORTS"," BRANFORD CT","","","","BRANFORD","CT","06405","US","US","BRANFORD","CT",""]
["C008078","ACTION SPORTS","3641","324 W MAIN ST","ACTION SPORTS","ACTION SPORTS"," BRANFORD CT","","","","BRANFORD","CT","06405","US","US","BRANFORD","CT",""]
["C008079","BRICK WHEELS","575","736 E 8TH ST","BRICK WHEELS","BRICK WHEELS"," TRAVERSE CITY MI","","","","TRAVERSE CITY","MI","49686","US","US","TRAVERSE CITY","MI",""]
["C008080","BRISTLECONE MTN SPORTS","588","781 E. VALLEY ROAD","BRISTLECONE MTN SPORTS","BRISTLECONE MTN SPORTS"," BASALT CO","","","","BASALT","CO","81621","US","US","BASALT","CO",""]
["C008082","WILLARDS SPORTS","1088","PO BOX 2696","WILLARDS SPORTS","WILLARDS SPORTS"," OLYMPIC VALLEY CA","","","","OLYMPIC VALLEY","CA","96146","US","US","OLYMPIC VALLEY","CA",""]
["C008082","WILLARDS SPORTS","3149","PO BOX 2696","WILLARDS SPORTS","WILLARDS SPORTS"," TAHOE CITY CA","","","","TAHOE CITY","CA","96145","US","US","OLYMPIC VALLEY","CA",""]
["C008102","MISSION RIDGE SKI AREA","2449","7500 MISSION RIDGE RD","MISSION RIDGE SKI AREA","MISSION RIDGE SKI AREA"," WENATCHEE WA","","","","WENATCHEE","WA","98801","US","US","WENATCHEE","WA",""]
["C008102","MISSION RIDGE SKI AREA","701","7500 MISSION RIDGE RD","MISSION RIDGE SKI AREA","MISSION RIDGE SKI AREA"," WENATCHEE WA","","","","WENATCHEE","WA","98807","US","US","WENATCHEE","WA",""]
["C008112","ASPEN EAST INC","2430","SURF THE EARTH SNOWBOARDS","ASPEN EAST INC","ASPEN EAST INC"," KILLINGTON VT","","","","KILLINGTON","VT","05751","US","US","KILLINGTON","VT",""]
["C008112","ASPEN EAST INC","677","SURF THE EARTH SNOWBOARDS","ASPEN EAST INC","ASPEN EAST INC"," KILLINGTON VT","","","","KILLINGTON","VT","05751","US","US","KILLINGTON","VT",""]
["C008116","BACKCOUNTRY.COM","2414","1678 W REDSTONE CTR DR","BACKCOUNTRY.COM","BACKCOUNTRY.COM"," CHRISTIANSBURG VA","","","","CHRISTIANSBURG","VA","24073","US","US","PARK CITY","UT",""]
["C008116","BACKCOUNTRY.COM","2415","1678 W REDSTONE CTR DR","BACKCOUNTRY.COM","BACKCOUNTRY.COM"," WEST VALLEY CITY UT","","","","WEST VALLEY CITY","UT","84119","US","US","PARK CITY","UT",""]
["C008116","BACKCOUNTRY.COM","2416","1678 W REDSTONE CTR DR","BACKCOUNTRY.COM","BACKCOUNTRY.COM"," WEST VALLEY UT","","","","WEST VALLEY","UT","84119","US","US","PARK CITY","UT",""]
["C008116","BACKCOUNTRY.COM","2417","1678 W REDSTONE CTR DR","BACKCOUNTRY.COM","BACKCOUNTRY.COM"," SAN DIEGO CA","","","","SAN DIEGO","CA","92103","US","US","PARK CITY","UT",""]
["C008116","BACKCOUNTRY.COM","35611","1678 W REDSTONE CTR DR","BACKCOUNTRY.COM","BACKCOUNTRY.COM"," SALT LAKE CITY UT","","","","SALT LAKE CITY","UT","84102","US","US","PARK CITY","UT",""]
["C008116","BACKCOUNTRY.COM","35612","1678 W REDSTONE CTR DR","BACKCOUNTRY.COM","BACKCOUNTRY.COM"," SALT LAKE CITY UT","","","","SALT LAKE CITY","UT","84106","US","US","PARK CITY","UT",""]
["C008116","BACKCOUNTRY.COM","638","1678 W REDSTONE CTR DR","BACKCOUNTRY.COM","BACKCOUNTRY.COM"," PARK CITY UT","","","","PARK CITY","UT","84098","US","US","PARK CITY","UT",""]
["C008126","BANGOR SKI RACK","1575","24 LONGVIEW DR","BANGOR SKI RACK","BANGOR SKI RACK"," BANGOR ME","","","","BANGOR","ME","04401","US","US","BANGOR","ME",""]
["C008126","BANGOR SKI RACK","3748","24 LONGVIEW DR","BANGOR SKI RACK","BANGOR SKI RACK"," BANGOR ME","","","","BANGOR","ME","04401","US","US","BANGOR","ME",""]
["C008127","INTERNATIONAL MTN EQUIPMENT","2840","PO BOX 494","INTERNATIONAL MTN EQUIPMENT","INTERNATIONAL MTN EQUIPMENT"," NORTH CONWAY NH","","","","NORTH CONWAY","NH","03860","US","US","NORTH CONWAY","NH",""]
["C008127","INTERNATIONAL MTN EQUIPMENT","960","PO BOX 494","INTERNATIONAL MTN EQUIPMENT","INTERNATIONAL MTN EQUIPMENT"," NORTH CONWAY NH","","","","NORTH CONWAY","NH","03860","US","US","NORTH CONWAY","NH",""]
["C008128","SKI DEN SPORTS","1251","1231 SCALP AVE","SKI DEN SPORTS","SKI DEN SPORTS"," JOHNSTOWN PA","","","","JOHNSTOWN","PA","15904","US","US","JOHNSTOWN","PA",""]
["C008129","COLDEN SKI RENTAL","80","8843 STATE RD","COLDEN SKI RENTAL","COLDEN SKI RENTAL"," COLDEN NY","","","","COLDEN","NY","14033","US","US","COLDEN","NY",""]
["C008133","POTTER BROS SKI SHOPS","1500","57 CITY VIEW TERRACE","POTTER BROS SKI SHOPS","POTTER BROS SKI SHOPS"," KINGSTON NY","","","","KINGSTON","NY","12401","US","US","KINGSTON","NY",""]
["C008133","POTTER BROS SKI SHOPS","3591","57 CITY VIEW TERRACE","POTTER BROS SKI SHOPS","POTTER BROS SKI SHOPS"," POUGHKEEPSIE NY","","","","POUGHKEEPSIE","NY","12603","US","US","KINGSTON","NY",""]
["C008133","POTTER BROS SKI SHOPS","3592","57 CITY VIEW TERRACE","POTTER BROS SKI SHOPS","POTTER BROS SKI SHOPS"," KILLINGTON VT","","","","KILLINGTON","VT","05751","US","US","KINGSTON","NY",""]
["C008133","POTTER BROS SKI SHOPS","3593","57 CITY VIEW TERRACE","POTTER BROS SKI SHOPS","POTTER BROS SKI SHOPS"," FISHKILL NY","","","","FISHKILL","NY","12524","US","US","KINGSTON","NY",""]
["C008133","POTTER BROS SKI SHOPS","3594","57 CITY VIEW TERRACE","POTTER BROS SKI SHOPS","POTTER BROS SKI SHOPS"," MIDDLETOWN NY","","","","MIDDLETOWN","NY","10940","US","US","KINGSTON","NY",""]
["C008133","POTTER BROS SKI SHOPS","3595","57 CITY VIEW TERRACE","POTTER BROS SKI SHOPS","POTTER BROS SKI SHOPS"," HANCOCK MA","","","","HANCOCK","MA","01237","US","US","KINGSTON","NY",""]
["C008134","HI TEMPO SKI SHOP","1477","3959 N HWY 61","HI TEMPO SKI SHOP","HI TEMPO SKI SHOP"," WHITE BEAR LAKE MN","","","","WHITE BEAR LAKE","MN","55110","US","US","WHITE BEAR LAKE","MN",""]
["C008134","HI TEMPO SKI SHOP","3540","3959 N HWY 61","HI TEMPO SKI SHOP","HI TEMPO SKI SHOP"," WHITE BEAR LAKE MN","","","","WHITE BEAR LAKE","MN","55110","US","US","WHITE BEAR LAKE","MN",""]
["C008142","CADILLAC MOUNTAIN INC","1081","26 COTTAGE ST","CADILLAC MOUNTAIN INC","CADILLAC MOUNTAIN INC"," BAR HARBOR ME","","","","BAR HARBOR","ME","04609","US","US","BAR HARBOR","ME",""]
["C008142","CADILLAC MOUNTAIN INC","3143","26 COTTAGE ST","CADILLAC MOUNTAIN INC","CADILLAC MOUNTAIN INC"," BANGOR ME","","","","BANGOR","ME","04401","US","US","BAR HARBOR","ME",""]
["C008142","CADILLAC MOUNTAIN INC","3144","26 COTTAGE ST","CADILLAC MOUNTAIN INC","CADILLAC MOUNTAIN INC"," ELLSWORTH ME","","","","ELLSWORTH","ME","04605","US","US","BAR HARBOR","ME",""]
["C008144","SUNSPORTS","282","191 S GOLDEN STATE BLVD","SUNSPORTS","SUNSPORTS"," TURLOCK CA","","","","TURLOCK","CA","95380","US","US","TURLOCK","CA",""]
["C008145","GENE TAYLORS","2362","104 MANTEY HEIGHTS DRIVE","GENE TAYLORS","GENE TAYLORS"," GUNNISON CO","","","","GUNNISON","CO","81230","US","US","GRAND JUNCTION","CO",""]
["C008145","GENE TAYLORS","2363","104 MANTEY HEIGHTS DRIVE","GENE TAYLORS","GENE TAYLORS"," SNOWMASS VILLAGE CO","","","","SNOWMASS VILLAGE","CO","81615","US","US","GRAND JUNCTION","CO",""]
["C008145","GENE TAYLORS","578","104 MANTEY HEIGHTS DRIVE","GENE TAYLORS","GENE TAYLORS"," GRAND JUNCTION CO","","","","GRAND JUNCTION","CO","81501","US","US","GRAND JUNCTION","CO",""]
["C008147","BOB WARD & SONS INC","169","3015 PAXSON","BOB WARD & SONS INC","BOB WARD & SONS INC"," MISSOULA MT","","","","MISSOULA","MT","59801","US","US","MISSOULA","MT",""]
["C008147","BOB WARD & SONS INC","1867","3015 PAXSON","BOB WARD & SONS INC","BOB WARD & SONS INC"," HELENA MT","","","","HELENA","MT","59602","US","US","MISSOULA","MT",""]
["C008147","BOB WARD & SONS INC","1868","3015 PAXSON","BOB WARD & SONS INC","BOB WARD & SONS INC"," BOZEMAN MT","","","","BOZEMAN","MT","59715","US","US","MISSOULA","MT",""]
["C008147","BOB WARD & SONS INC","1869","3015 PAXSON","BOB WARD & SONS INC","BOB WARD & SONS INC"," BUTTE MT","","","","BUTTE","MT","59701","US","US","MISSOULA","MT",""]
["C008147","BOB WARD & SONS INC","1870","3015 PAXSON","BOB WARD & SONS INC","BOB WARD & SONS INC"," HAMILTON MT","","","","HAMILTON","MT","59840","US","US","MISSOULA","MT",""]
["C008147","BOB WARD & SONS INC","1871","3015 PAXSON","BOB WARD & SONS INC","BOB WARD & SONS INC"," MISSOULA MT","","","","MISSOULA","MT","59801","US","US","MISSOULA","MT",""]
["C008153","POWDER HOUSE","1584","311 SW CENTURY DR","POWDER HOUSE","POWDER HOUSE"," BEND OR","","","","BEND","OR","97702","US","US","BEND","OR",""]
["C008153","POWDER HOUSE","3757","311 SW CENTURY DR","POWDER HOUSE","POWDER HOUSE"," BEND OR","","","","BEND","OR","97702","US","US","BEND","OR",""]
["C008155","BOBS CHALET","185","91 Pine St","BOBS CHALET","BOBS CHALET"," Bristol CT","","","","Bristol","CT","06010-6962","US","US","Bristol","CT",""]
["C008155","BOBS CHALET","1881","91 Pine St","BOBS CHALET","BOBS CHALET"," AVON CT","","","","AVON","CT","06001","US","US","Bristol","CT",""]
["C008155","BOBS CHALET","35614","91 Pine St","BOBS CHALET","BOBS CHALET"," Burlington CT","","","","Burlington","CT","06013","US","US","Bristol","CT",""]
["C008156","LES MOISE INC","1535","10130 N. PORT WASHINGTON RD","LES MOISE INC","LES MOISE INC"," MEQUON WI","","","","MEQUON","WI","53092","US","US","MEQUON","WI",""]
["C008156","LES MOISE INC","3632","10130 N. PORT WASHINGTON RD","LES MOISE INC","LES MOISE INC"," BROOKFIELD WI","","","","BROOKFIELD","WI","53045","US","US","MEQUON","WI",""]
["C008160","NORTHERN SKI WORKS","1424","PO BOX 147","NORTHERN SKI WORKS","NORTHERN SKI WORKS"," KILLINGTON VT","","","","KILLINGTON","VT","05751","US","US","KILLINGTON","VT",""]
["C008160","NORTHERN SKI WORKS","3499","PO BOX 147","NORTHERN SKI WORKS","NORTHERN SKI WORKS"," KILLINGTON VT","","","","KILLINGTON","VT","05751","US","US","KILLINGTON","VT",""]
["C008160","NORTHERN SKI WORKS","3500","PO BOX 147","NORTHERN SKI WORKS","NORTHERN SKI WORKS"," LUDLOW VT","","","","LUDLOW","VT","05149","US","US","KILLINGTON","VT",""]
["C008172","TAHOE SPORTS LTD","851","4000 LAKE TAHOE BLVD","TAHOE SPORTS LTD","TAHOE SPORTS LTD"," SOUTH LAKE TAHOE CA","","","","SOUTH LAKE TAHOE","CA","96150","US","US","SOUTH LAKE TAHOE","CA",""]
["C008185","SHEPHERD & SCHALLER","928","324 SCOTT ST","SHEPHERD & SCHALLER","SHEPHERD & SCHALLER"," WAUSAU WI","","","","WAUSAU","WI","54403","US","US","WAUSAU","WI",""]
["C008196","PAGOSA SKI RENTALS","2150","PO BOX 1739","PAGOSA SKI RENTALS","PAGOSA SKI RENTALS"," PAGOSA SPRINGS CO","","","","PAGOSA SPRINGS","CO","81147","US","US","PAGOSA SPRINGS","CO",""]
["C008196","PAGOSA SKI RENTALS","538","PO BOX 1739","PAGOSA SKI RENTALS","PAGOSA SKI RENTALS"," PAGOSA SPRINGS CO","","","","PAGOSA SPRINGS","CO","81147","US","US","PAGOSA SPRINGS","CO",""]
["C008197","CONTINENTAL SKI & BIKE","307","1305 E FIRST ST","CONTINENTAL SKI & BIKE","CONTINENTAL SKI & BIKE"," DULUTH MN","","","","DULUTH","MN","55805","US","US","DULUTH","MN",""]
["C008205","VALLEY BICYCLES","365","219 S FIRST ST","VALLEY BICYCLES","VALLEY BICYCLES"," HAMILTON MT","","","","HAMILTON","MT","59840","US","US","HAMILTON","MT",""]
["C008208","MARTINS SPORT SHOP","2381","PO BOX 540","MARTINS SPORT SHOP","MARTINS SPORT SHOP"," NISSWA MN","","","","NISSWA","MN","56468","US","US","NISSWA","MN",""]
["C008208","MARTINS SPORT SHOP","600","PO BOX 540","MARTINS SPORT SHOP","MARTINS SPORT SHOP"," NISSWA MN","","","","NISSWA","MN","56468","US","US","NISSWA","MN",""]
["C008210","STARTING GATE SKI SHOP","1345","PO BOX 1222","STARTING GATE SKI SHOP","STARTING GATE SKI SHOP"," BUSHKILL PA","","","","BUSHKILL","PA","18324","US","US","BUSHKILL","PA",""]
["C008210","STARTING GATE SKI SHOP","3349","PO BOX 1222","STARTING GATE SKI SHOP","STARTING GATE SKI SHOP"," EAST STROUDSBURG PA","","","","EAST STROUDSBURG","PA","18302","US","US","BUSHKILL","PA",""]
["C008212","PEAK SPORTS","1304","207 NW 2ND","PEAK SPORTS","PEAK SPORTS"," CORVALLIS OR","","","","CORVALLIS","OR","97330","US","US","CORVALLIS","OR",""]
["C008212","PEAK SPORTS","3293","207 NW 2ND","PEAK SPORTS","PEAK SPORTS"," CORVALLIS OR","","","","CORVALLIS","OR","97330","US","US","CORVALLIS","OR",""]
["C008214","KENVER LTD","1066","PO BOX 59","KENVER LTD","KENVER LTD"," SOUTH EGREMONT MA","","","","SOUTH EGREMONT","MA","01258","US","US","SOUTH EGREMONT","MA",""]
["C008214","KENVER LTD","3132","PO BOX 59","KENVER LTD","KENVER LTD"," SOUTH EGREMONT MA","","","","SOUTH EGREMONT","MA","01258","US","US","SOUTH EGREMONT","MA",""]
["C008219","BACKWOODS MTN SPORTS","1231","PO BOX 1508","BACKWOODS MTN SPORTS","BACKWOODS MTN SPORTS"," KETCHUM ID","","","","KETCHUM","ID","83340","US","US","KETCHUM","ID",""]
["C008219","BACKWOODS MTN SPORTS","3241","PO BOX 1508","BACKWOODS MTN SPORTS","BACKWOODS MTN SPORTS"," KETCHUM ID","","","","KETCHUM","ID","83340","US","US","KETCHUM","ID",""]
["C008223","NORTHERN LIGHTS LTD","50","639 WILTON RD","NORTHERN LIGHTS LTD","NORTHERN LIGHTS LTD"," FARMINGTON ME","","","","FARMINGTON","ME","04938","US","US","FARMINGTON","ME",""]
["C008224","S & W SPORTS","537","296 S MAIN ST","S & W SPORTS","S & W SPORTS"," CONCORD NH","","","","CONCORD","NH","03301","US","US","CONCORD","NH",""]
["C008226","ZELLERS SKI & SPORTS INC","341","1212 MARINE ST","ZELLERS SKI & SPORTS INC","ZELLERS SKI & SPORTS INC"," GREEN BAY WI","","","","GREEN BAY","WI","54301","US","US","GREEN BAY","WI",""]
["C008232","KEVIN SMITHS SPORTS CONNECTION","1086","PO BOX 1037","KEVIN SMITHS SPORTS CONNECTION","KEVIN SMITHS SPORTS CONNECTION"," SAINT ALBANS VT","","","","SAINT ALBANS","VT","05478","US","US","SAINT ALBANS","VT",""]
["C008232","KEVIN SMITHS SPORTS CONNECTION","3148","PO BOX 1037","KEVIN SMITHS SPORTS CONNECTION","KEVIN SMITHS SPORTS CONNECTION"," SAINT ALBANS VT","","","","SAINT ALBANS","VT","05478","US","US","SAINT ALBANS","VT",""]
["C008239","TOP OF THE SLOPE","1350","100 S MAIN ST","TOP OF THE SLOPE","TOP OF THE SLOPE"," WILKES BARRE PA","","","","WILKES BARRE","PA","18701","US","US","WILKES BARRE","PA",""]
["C008248","STREIFF SPORTING GOODS","1168","34480 550TH AVE","STREIFF SPORTING GOODS","STREIFF SPORTING GOODS"," WARROAD MN","","","","WARROAD","MN","56763","US","US","WARROAD","MN",""]
["C008252","SHORELINE OF TAHOE","1023","PO BOX 3509","SHORELINE OF TAHOE","SHORELINE OF TAHOE"," STATELINE NV","","","","STATELINE","NV","89449","US","US","STATELINE","NV",""]
["C008252","SHORELINE OF TAHOE","2875","PO BOX 3509","SHORELINE OF TAHOE","SHORELINE OF TAHOE"," STATELINE NV","","","","STATELINE","NV","89449","US","US","STATELINE","NV",""]
["C008253","BRUNDAGE MTN CO","2644","PO BOX 1062","BRUNDAGE MTN CO","BRUNDAGE MTN CO"," MCCALL ID","","","","MCCALL","ID","83638","US","US","MCCALL","ID",""]
["C008253","BRUNDAGE MTN CO","859","PO BOX 1062","BRUNDAGE MTN CO","BRUNDAGE MTN CO"," MCCALL ID","","","","MCCALL","ID","83638","US","US","MCCALL","ID",""]
["C008262","TRIPLE DIAMOND SKI SHOP, NO SCHOOL SNOWBOARD SHOP","129","85 Old 108 Loop","TRIPLE DIAMOND SKI SHOP, NO SCHOOL SNOWBOARD SHOP","TRIPLE DIAMOND SKI SHOP, NO SCHOOL SNOWBOARD SHOP"," Jeffersonville VT","","","","Jeffersonville","VT","05464-9465","US","US","Jeffersonville","VT",""]
["C008270","L L BEAN INC","1315","ACCOUNTS PAYABLE","L L BEAN INC","L L BEAN INC"," FREEPORT ME","","","","FREEPORT","ME","04033","US","US","FREEPORT","ME",""]
["C008270","L L BEAN INC","3306","ACCOUNTS PAYABLE","L L BEAN INC","L L BEAN INC"," FREEPORT ME","","","","FREEPORT","ME","04033","US","US","FREEPORT","ME",""]
["C008270","L L BEAN INC","3307","ACCOUNTS PAYABLE","L L BEAN INC","L L BEAN INC"," FREEPORT ME","","","","FREEPORT","ME","04032","US","US","FREEPORT","ME",""]
["C008270","L L BEAN INC","3308","ACCOUNTS PAYABLE","L L BEAN INC","L L BEAN INC"," COLUMBUS OH","","","","COLUMBUS","OH","43219","US","US","FREEPORT","ME",""]
["C008270","L L BEAN INC","3309","ACCOUNTS PAYABLE","L L BEAN INC","L L BEAN INC"," MANSFIELD MA","","","","MANSFIELD","MA","02048","US","US","FREEPORT","ME",""]
["C008270","L L BEAN INC","3310","ACCOUNTS PAYABLE","L L BEAN INC","L L BEAN INC"," FREEPORT ME","","","","FREEPORT","ME","04032","US","US","FREEPORT","ME",""]
["C008270","L L BEAN INC","3311","ACCOUNTS PAYABLE","L L BEAN INC","L L BEAN INC"," FREEPORT ME","","","","FREEPORT","ME","04034","US","US","FREEPORT","ME",""]
["C008270","L L BEAN INC","3312","ACCOUNTS PAYABLE","L L BEAN INC","L L BEAN INC"," FREEPORT ME","","","","FREEPORT","ME","04033","US","US","FREEPORT","ME",""]
["C008270","L L BEAN INC","3313","ACCOUNTS PAYABLE","L L BEAN INC","L L BEAN INC"," WEST LEBANON NH","","","","WEST LEBANON","NH","03784","US","US","FREEPORT","ME",""]
["C008270","L L BEAN INC","3314","ACCOUNTS PAYABLE","L L BEAN INC","L L BEAN INC"," BURLINGTON MA","","","","BURLINGTON","MA","01803","US","US","FREEPORT","ME",""]
["C008278","SIERRA NEVADA ADVENTURE CO","2853","PO BOX 1027","SIERRA NEVADA ADVENTURE CO","SIERRA NEVADA ADVENTURE CO"," ARNOLD CA","","","","ARNOLD","CA","95223","US","US","ARNOLD","CA",""]
["C008278","SIERRA NEVADA ADVENTURE CO","985","PO BOX 1027","SIERRA NEVADA ADVENTURE CO","SIERRA NEVADA ADVENTURE CO"," ARNOLD CA","","","","ARNOLD","CA","95223","US","US","ARNOLD","CA",""]
["C008281","ATTITUDE SPORTS INC","310","209A N MACY ST","ATTITUDE SPORTS INC","ATTITUDE SPORTS INC"," FOND DU LAC WI","","","","FOND DU LAC","WI","54935","US","US","FOND DU LAC","WI",""]
["C008283","RECREATIONAL EQUIP INC","112","PO BOX 1938","RECREATIONAL EQUIP INC","RECREATIONAL EQUIP INC"," SUMNER WA","","","","SUMNER","WA","98390","US","US","SUMNER","WA",""]
["C008283","RECREATIONAL EQUIP INC","1672","PO BOX 1938","RECREATIONAL EQUIP INC","RECREATIONAL EQUIP INC"," BUFORD GA","","","","BUFORD","GA","30518","US","US","SUMNER","WA",""]
["C008283","RECREATIONAL EQUIP INC","1673","PO BOX 1938","RECREATIONAL EQUIP INC","RECREATIONAL EQUIP INC"," BOSTON MA","","","","BOSTON","MA","02215","US","US","SUMNER","WA",""]
["C008283","RECREATIONAL EQUIP INC","1674","PO BOX 1938","RECREATIONAL EQUIP INC","RECREATIONAL EQUIP INC"," SANDY UT","","","","SANDY","UT","84070","US","US","SUMNER","WA",""]
["C008283","RECREATIONAL EQUIP INC","1675","PO BOX 1938","RECREATIONAL EQUIP INC","RECREATIONAL EQUIP INC"," NORTH CONWAY NH","","","","NORTH CONWAY","NH","03860","US","US","SUMNER","WA",""]
["C008283","RECREATIONAL EQUIP INC","1676","PO BOX 1938","RECREATIONAL EQUIP INC","RECREATIONAL EQUIP INC"," ALPHARETTA GA","","","","ALPHARETTA","GA","30022-4847","US","US","SUMNER","WA",""]
["C008283","RECREATIONAL EQUIP INC","1677","PO BOX 1938","RECREATIONAL EQUIP INC","RECREATIONAL EQUIP INC"," LAWRENCEVILLE NJ","","","","LAWRENCEVILLE","NJ","08648","US","US","SUMNER","WA",""]
["C008283","RECREATIONAL EQUIP INC","1678","PO BOX 1938","RECREATIONAL EQUIP INC","RECREATIONAL EQUIP INC"," LYNNWOOD WA","","","","LYNNWOOD","WA","98037","US","US","SUMNER","WA",""]
["C008283","RECREATIONAL EQUIP INC","1679","PO BOX 1938","RECREATIONAL EQUIP INC","RECREATIONAL EQUIP INC"," RANCHO CUCAMONGA CA","","","","RANCHO CUCAMONGA","CA","91739","US","US","SUMNER","WA",""]
["C008283","RECREATIONAL EQUIP INC","1680","PO BOX 1938","RECREATIONAL EQUIP INC","RECREATIONAL EQUIP INC"," ENCINITAS CA","","","","ENCINITAS","CA","92024","US","US","SUMNER","WA",""]
["C008283","RECREATIONAL EQUIP INC","1681","PO BOX 1938","RECREATIONAL EQUIP INC","RECREATIONAL EQUIP INC"," ROCKVILLE MD","","","","ROCKVILLE","MD","20852","US","US","SUMNER","WA",""]
["C008283","RECREATIONAL EQUIP INC","1682","PO BOX 1938","RECREATIONAL EQUIP INC","RECREATIONAL EQUIP INC"," TUKWILA WA","","","","TUKWILA","WA","98188","US","US","SUMNER","WA",""]
["C008283","RECREATIONAL EQUIP INC","1683","PO BOX 1938","RECREATIONAL EQUIP INC","RECREATIONAL EQUIP INC"," BURBANK CA","","","","BURBANK","CA","91504","US","US","SUMNER","WA",""]
["C008283","RECREATIONAL EQUIP INC","1684","PO BOX 1938","RECREATIONAL EQUIP INC","RECREATIONAL EQUIP INC"," WILLISTON VT","","","","WILLISTON","VT","05495","US","US","SUMNER","WA",""]
["C008283","RECREATIONAL EQUIP INC","1687","PO BOX 1938","RECREATIONAL EQUIP INC","RECREATIONAL EQUIP INC"," DUBLIN CA","","","","DUBLIN","CA","94568","US","US","SUMNER","WA",""]
["C008283","RECREATIONAL EQUIP INC","1688","PO BOX 1938","RECREATIONAL EQUIP INC","RECREATIONAL EQUIP INC"," COLUMBIA MD","","","","COLUMBIA","MD","21045","US","US","SUMNER","WA",""]
["C008283","RECREATIONAL EQUIP INC","1689","PO BOX 1938","RECREATIONAL EQUIP INC","RECREATIONAL EQUIP INC"," KENT WA","","","","KENT","WA","98032-4803","US","US","SUMNER","WA",""]
["C008283","RECREATIONAL EQUIP INC","1690","PO BOX 1938","RECREATIONAL EQUIP INC","RECREATIONAL EQUIP INC"," SEATTLE WA","","","","SEATTLE","WA","98109-5429","US","US","SUMNER","WA",""]
["C008283","RECREATIONAL EQUIP INC","1691","PO BOX 1938","RECREATIONAL EQUIP INC","RECREATIONAL EQUIP INC"," BERKELEY CA","","","","BERKELEY","CA","94702","US","US","SUMNER","WA",""]
["C008283","RECREATIONAL EQUIP INC","1692","PO BOX 1938","RECREATIONAL EQUIP INC","RECREATIONAL EQUIP INC"," PORTLAND OR","","","","PORTLAND","OR","97209","US","US","SUMNER","WA",""]
["C008283","RECREATIONAL EQUIP INC","1693","PO BOX 1938","RECREATIONAL EQUIP INC","RECREATIONAL EQUIP INC"," MANHATTAN BEACH CA","","","","MANHATTAN BEACH","CA","90266-3701","US","US","SUMNER","WA",""]
["C008283","RECREATIONAL EQUIP INC","1694","PO BOX 1938","RECREATIONAL EQUIP INC","RECREATIONAL EQUIP INC"," BLOOMINGTON MN","","","","BLOOMINGTON","MN","55420","US","US","SUMNER","WA",""]
["C008283","RECREATIONAL EQUIP INC","1695","PO BOX 1938","RECREATIONAL EQUIP INC","RECREATIONAL EQUIP INC"," ANCHORAGE AK","","","","ANCHORAGE","AK","99503","US","US","SUMNER","WA",""]
["C008283","RECREATIONAL EQUIP INC","1696","PO BOX 1938","RECREATIONAL EQUIP INC","RECREATIONAL EQUIP INC"," TUSTIN CA","","","","TUSTIN","CA","92782","US","US","SUMNER","WA",""]
["C008283","RECREATIONAL EQUIP INC","1697","PO BOX 1938","RECREATIONAL EQUIP INC","RECREATIONAL EQUIP INC"," DENVER CO","","","","DENVER","CO","80202","US","US","SUMNER","WA",""]
["C008283","RECREATIONAL EQUIP INC","1698","PO BOX 1938","RECREATIONAL EQUIP INC","RECREATIONAL EQUIP INC"," SALT LAKE CITY UT","","","","SALT LAKE CITY","UT","84109","US","US","SUMNER","WA",""]
["C008283","RECREATIONAL EQUIP INC","1699","PO BOX 1938","RECREATIONAL EQUIP INC","RECREATIONAL EQUIP INC"," BELLEVUE WA","","","","BELLEVUE","WA","98004","US","US","SUMNER","WA",""]
["C008283","RECREATIONAL EQUIP INC","1700","PO BOX 1938","RECREATIONAL EQUIP INC","RECREATIONAL EQUIP INC"," SACRAMENTO CA","","","","SACRAMENTO","CA","95815","US","US","SUMNER","WA",""]
["C008283","RECREATIONAL EQUIP INC","1701","PO BOX 1938","RECREATIONAL EQUIP INC","RECREATIONAL EQUIP INC"," SAN JOSE CA","","","","SAN JOSE","CA","95130","US","US","SUMNER","WA",""]
["C008283","RECREATIONAL EQUIP INC","1702","PO BOX 1938","RECREATIONAL EQUIP INC","RECREATIONAL EQUIP INC"," SPOKANE WA","","","","SPOKANE","WA","99201","US","US","SUMNER","WA",""]
["C008283","RECREATIONAL EQUIP INC","1703","PO BOX 1938","RECREATIONAL EQUIP INC","RECREATIONAL EQUIP INC"," CHANDLER AZ","","","","CHANDLER","AZ","85226","US","US","SUMNER","WA",""]
["C008283","RECREATIONAL EQUIP INC","1704","PO BOX 1938","RECREATIONAL EQUIP INC","RECREATIONAL EQUIP INC"," READING MA","","","","READING","MA","01867","US","US","SUMNER","WA",""]
["C008283","RECREATIONAL EQUIP INC","1705","PO BOX 1938","RECREATIONAL EQUIP INC","RECREATIONAL EQUIP INC"," SAN DIEGO CA","","","","SAN DIEGO","CA","92111","US","US","SUMNER","WA",""]
["C008283","RECREATIONAL EQUIP INC","1706","PO BOX 1938","RECREATIONAL EQUIP INC","RECREATIONAL EQUIP INC"," ALBUQUERQUE NM","","","","ALBUQUERQUE","NM","87107","US","US","SUMNER","WA",""]
["C008283","RECREATIONAL EQUIP INC","1707","PO BOX 1938","RECREATIONAL EQUIP INC","RECREATIONAL EQUIP INC"," AUSTIN TX","","","","AUSTIN","TX","78759","US","US","SUMNER","WA",""]
["C008283","RECREATIONAL EQUIP INC","1708","PO BOX 1938","RECREATIONAL EQUIP INC","RECREATIONAL EQUIP INC"," ATLANTA GA","","","","ATLANTA","GA","30329","US","US","SUMNER","WA",""]
["C008283","RECREATIONAL EQUIP INC","1709","PO BOX 1938","RECREATIONAL EQUIP INC","RECREATIONAL EQUIP INC"," BAILEY'S CROSSROADS VA","","","","BAILEY'S CROSSROADS","VA","22041","US","US","SUMNER","WA",""]
["C008283","RECREATIONAL EQUIP INC","1710","PO BOX 1938","RECREATIONAL EQUIP INC","RECREATIONAL EQUIP INC"," TIGARD OR","","","","TIGARD","OR","97224","US","US","SUMNER","WA",""]
["C008283","RECREATIONAL EQUIP INC","1711","PO BOX 1938","RECREATIONAL EQUIP INC","RECREATIONAL EQUIP INC"," CONSHOHOCKEN PA","","","","CONSHOHOCKEN","PA","19428-1219","US","US","SUMNER","WA",""]
["C008283","RECREATIONAL EQUIP INC","1712","PO BOX 1938","RECREATIONAL EQUIP INC","RECREATIONAL EQUIP INC"," SAN CARLOS CA","","","","SAN CARLOS","CA","94070","US","US","SUMNER","WA",""]
["C008283","RECREATIONAL EQUIP INC","1713","PO BOX 1938","RECREATIONAL EQUIP INC","RECREATIONAL EQUIP INC"," NORTHRIDGE CA","","","","NORTHRIDGE","CA","91324","US","US","SUMNER","WA",""]
["C008283","RECREATIONAL EQUIP INC","1714","PO BOX 1938","RECREATIONAL EQUIP INC","RECREATIONAL EQUIP INC"," NORTHBROOK IL","","","","NORTHBROOK","IL","60062","US","US","SUMNER","WA",""]
["C008283","RECREATIONAL EQUIP INC","1716","PO BOX 1938","RECREATIONAL EQUIP INC","RECREATIONAL EQUIP INC"," CARY NC","","","","CARY","NC","27511","US","US","SUMNER","WA",""]
["C008283","RECREATIONAL EQUIP INC","1717","PO BOX 1938","RECREATIONAL EQUIP INC","RECREATIONAL EQUIP INC"," ROSEVILLE MN","","","","ROSEVILLE","MN","55113-2723","US","US","SUMNER","WA",""]
["C008283","RECREATIONAL EQUIP INC","1718","PO BOX 1938","RECREATIONAL EQUIP INC","RECREATIONAL EQUIP INC"," EUGENE OR","","","","EUGENE","OR","97401-2578","US","US","SUMNER","WA",""]
["C008283","RECREATIONAL EQUIP INC","1719","PO BOX 1938","RECREATIONAL EQUIP INC","RECREATIONAL EQUIP INC"," BOULDER CO","","","","BOULDER","CO","80301-1003","US","US","SUMNER","WA",""]
["C008283","RECREATIONAL EQUIP INC","1720","PO BOX 1938","RECREATIONAL EQUIP INC","RECREATIONAL EQUIP INC"," DALLAS TX","","","","DALLAS","TX","75244","US","US","SUMNER","WA",""]
["C008283","RECREATIONAL EQUIP INC","1721","PO BOX 1938","RECREATIONAL EQUIP INC","RECREATIONAL EQUIP INC"," CONCORD CA","","","","CONCORD","CA","94520","US","US","SUMNER","WA",""]
["C008283","RECREATIONAL EQUIP INC","1722","PO BOX 1938","RECREATIONAL EQUIP INC","RECREATIONAL EQUIP INC"," BOISE ID","","","","BOISE","ID","83704","US","US","SUMNER","WA",""]
["C008283","RECREATIONAL EQUIP INC","1723","PO BOX 1938","RECREATIONAL EQUIP INC","RECREATIONAL EQUIP INC"," MADISON WI","","","","MADISON","WI","53719","US","US","SUMNER","WA",""]
["C008283","RECREATIONAL EQUIP INC","1724","PO BOX 1938","RECREATIONAL EQUIP INC","RECREATIONAL EQUIP INC"," FORT COLLINS CO","","","","FORT COLLINS","CO","80525","US","US","SUMNER","WA",""]
["C008283","RECREATIONAL EQUIP INC","1725","PO BOX 1938","RECREATIONAL EQUIP INC","RECREATIONAL EQUIP INC"," LAKEWOOD CO","","","","LAKEWOOD","CO","80123","US","US","SUMNER","WA",""]
["C008283","RECREATIONAL EQUIP INC","1726","PO BOX 1938","RECREATIONAL EQUIP INC","RECREATIONAL EQUIP INC"," OAKBROOK TERRACE IL","","","","OAKBROOK TERRACE","IL","60181","US","US","SUMNER","WA",""]
["C008283","RECREATIONAL EQUIP INC","1727","PO BOX 1938","RECREATIONAL EQUIP INC","RECREATIONAL EQUIP INC"," KENNEWICK WA","","","","KENNEWICK","WA","99336","US","US","SUMNER","WA",""]
["C008283","RECREATIONAL EQUIP INC","1728","PO BOX 1938","RECREATIONAL EQUIP INC","RECREATIONAL EQUIP INC"," ATLANTA GA","","","","ATLANTA","GA","30338","US","US","SUMNER","WA",""]
["C008283","RECREATIONAL EQUIP INC","1729","PO BOX 1938","RECREATIONAL EQUIP INC","RECREATIONAL EQUIP INC"," HOUSTON TX","","","","HOUSTON","TX","77063","US","US","SUMNER","WA",""]
["C008283","RECREATIONAL EQUIP INC","1730","PO BOX 1938","RECREATIONAL EQUIP INC","RECREATIONAL EQUIP INC"," PHOENIX AZ","","","","PHOENIX","AZ","85032-7671","US","US","SUMNER","WA",""]
["C008283","RECREATIONAL EQUIP INC","1731","PO BOX 1938","RECREATIONAL EQUIP INC","RECREATIONAL EQUIP INC"," FRAMINGHAM MA","","","","FRAMINGHAM","MA","01701","US","US","SUMNER","WA",""]
["C008283","RECREATIONAL EQUIP INC","1732","PO BOX 1938","RECREATIONAL EQUIP INC","RECREATIONAL EQUIP INC"," NORTHVILLE MI","","","","NORTHVILLE","MI","48167","US","US","SUMNER","WA",""]
["C008283","RECREATIONAL EQUIP INC","1733","PO BOX 1938","RECREATIONAL EQUIP INC","RECREATIONAL EQUIP INC"," SAINT LOUIS MO","","","","SAINT LOUIS","MO","63144","US","US","SUMNER","WA",""]
["C008283","RECREATIONAL EQUIP INC","1734","PO BOX 1938","RECREATIONAL EQUIP INC","RECREATIONAL EQUIP INC"," BROOKFIELD WI","","","","BROOKFIELD","WI","53005","US","US","SUMNER","WA",""]
["C008283","RECREATIONAL EQUIP INC","1736","PO BOX 1938","RECREATIONAL EQUIP INC","RECREATIONAL EQUIP INC"," LUTHERVILLE TIMONIUM MD","","","","LUTHERVILLE TIMONIUM","MD","21093","US","US","SUMNER","WA",""]
["C008283","RECREATIONAL EQUIP INC","1737","PO BOX 1938","RECREATIONAL EQUIP INC","RECREATIONAL EQUIP INC"," ARCADIA CA","","","","ARCADIA","CA","91006","US","US","SUMNER","WA",""]
["C008283","RECREATIONAL EQUIP INC","1738","PO BOX 1938","RECREATIONAL EQUIP INC","RECREATIONAL EQUIP INC"," BRENTWOOD TN","","","","BRENTWOOD","TN","37027","US","US","SUMNER","WA",""]
["C008283","RECREATIONAL EQUIP INC","1739","PO BOX 1938","RECREATIONAL EQUIP INC","RECREATIONAL EQUIP INC"," BELLINGHAM WA","","","","BELLINGHAM","WA","98225","US","US","SUMNER","WA",""]
["C008283","RECREATIONAL EQUIP INC","1740","PO BOX 1938","RECREATIONAL EQUIP INC","RECREATIONAL EQUIP INC"," TROY MI","","","","TROY","MI","48083","US","US","SUMNER","WA",""]
["C008283","RECREATIONAL EQUIP INC","1741","PO BOX 1938","RECREATIONAL EQUIP INC","RECREATIONAL EQUIP INC"," RENO NV","","","","RENO","NV","89502","US","US","SUMNER","WA",""]
["C008283","RECREATIONAL EQUIP INC","1742","PO BOX 1938","RECREATIONAL EQUIP INC","RECREATIONAL EQUIP INC"," COLORADO SPRINGS CO","","","","COLORADO SPRINGS","CO","80920-3162","US","US","SUMNER","WA",""]
["C008283","RECREATIONAL EQUIP INC","1743","PO BOX 1938","RECREATIONAL EQUIP INC","RECREATIONAL EQUIP INC"," GRAND JUNCTION CO","","","","GRAND JUNCTION","CO","81505","US","US","SUMNER","WA",""]
["C008283","RECREATIONAL EQUIP INC","1744","PO BOX 1938","RECREATIONAL EQUIP INC","RECREATIONAL EQUIP INC"," FREMONT CA","","","","FREMONT","CA","94538","US","US","SUMNER","WA",""]
["C008283","RECREATIONAL EQUIP INC","1745","PO BOX 1938","RECREATIONAL EQUIP INC","RECREATIONAL EQUIP INC"," MISSOULA MT","","","","MISSOULA","MT","59808","US","US","SUMNER","WA",""]
["C008283","RECREATIONAL EQUIP INC","1746","PO BOX 1938","RECREATIONAL EQUIP INC","RECREATIONAL EQUIP INC"," CORTE MADERA CA","","","","CORTE MADERA","CA","94925","US","US","SUMNER","WA",""]
["C008283","RECREATIONAL EQUIP INC","1747","PO BOX 1938","RECREATIONAL EQUIP INC","RECREATIONAL EQUIP INC"," SUMNER WA","","","","SUMNER","WA","98352","US","US","SUMNER","WA",""]
["C008283","RECREATIONAL EQUIP INC","1748","PO BOX 1938","RECREATIONAL EQUIP INC","RECREATIONAL EQUIP INC"," FRESNO CA","","","","FRESNO","CA","93720","US","US","SUMNER","WA",""]
["C008283","RECREATIONAL EQUIP INC","1749","PO BOX 1938","RECREATIONAL EQUIP INC","RECREATIONAL EQUIP INC"," SAN FRANCISCO CA","","","","SAN FRANCISCO","CA","94103-4923","US","US","SUMNER","WA",""]
["C008283","RECREATIONAL EQUIP INC","1750","PO BOX 1938","RECREATIONAL EQUIP INC","RECREATIONAL EQUIP INC"," FAIRFAX VA","","","","FAIRFAX","VA","22030","US","US","SUMNER","WA",""]
["C008283","RECREATIONAL EQUIP INC","1751","PO BOX 1938","RECREATIONAL EQUIP INC","RECREATIONAL EQUIP INC"," CHARLOTTE NC","","","","CHARLOTTE","NC","28216","US","US","SUMNER","WA",""]
["C008283","RECREATIONAL EQUIP INC","1752","PO BOX 1938","RECREATIONAL EQUIP INC","RECREATIONAL EQUIP INC"," DURHAM NC","","","","DURHAM","NC","27713","US","US","SUMNER","WA",""]
["C008283","RECREATIONAL EQUIP INC","1754","PO BOX 1938","RECREATIONAL EQUIP INC","RECREATIONAL EQUIP INC"," FOLSOM CA","","","","FOLSOM","CA","95630","US","US","SUMNER","WA",""]
["C008283","RECREATIONAL EQUIP INC","1755","PO BOX 1938","RECREATIONAL EQUIP INC","RECREATIONAL EQUIP INC"," TUCSON AZ","","","","TUCSON","AZ","85705","US","US","SUMNER","WA",""]
["C008283","RECREATIONAL EQUIP INC","1756","PO BOX 1938","RECREATIONAL EQUIP INC","RECREATIONAL EQUIP INC"," MARINA CA","","","","MARINA","CA","93933","US","US","SUMNER","WA",""]
["C008283","RECREATIONAL EQUIP INC","1757","PO BOX 1938","RECREATIONAL EQUIP INC","RECREATIONAL EQUIP INC"," SANTA BARBARA CA","","","","SANTA BARBARA","CA","93101","US","US","SUMNER","WA",""]
["C008283","RECREATIONAL EQUIP INC","1758","PO BOX 1938","RECREATIONAL EQUIP INC","RECREATIONAL EQUIP INC"," NORWALK CT","","","","NORWALK","CT","06854","US","US","SUMNER","WA",""]
["C008283","RECREATIONAL EQUIP INC","1759","PO BOX 1938","RECREATIONAL EQUIP INC","RECREATIONAL EQUIP INC"," CARLE PLACE NY","","","","CARLE PLACE","NY","11514","US","US","SUMNER","WA",""]
["C008283","RECREATIONAL EQUIP INC","1760","PO BOX 1938","RECREATIONAL EQUIP INC","RECREATIONAL EQUIP INC"," YONKERS NY","","","","YONKERS","NY","10710","US","US","SUMNER","WA",""]
["C008283","RECREATIONAL EQUIP INC","1761","PO BOX 1938","RECREATIONAL EQUIP INC","RECREATIONAL EQUIP INC"," PARAMUS NJ","","","","PARAMUS","NJ","07652","US","US","SUMNER","WA",""]
["C008283","RECREATIONAL EQUIP INC","1762","PO BOX 1938","RECREATIONAL EQUIP INC","RECREATIONAL EQUIP INC"," GREENVILLE SC","","","","GREENVILLE","SC","29607","US","US","SUMNER","WA",""]
["C008283","RECREATIONAL EQUIP INC","1763","PO BOX 1938","RECREATIONAL EQUIP INC","RECREATIONAL EQUIP INC"," INDIANAPOLIS IN","","","","INDIANAPOLIS","IN","46250","US","US","SUMNER","WA",""]
["C008283","RECREATIONAL EQUIP INC","1764","PO BOX 1938","RECREATIONAL EQUIP INC","RECREATIONAL EQUIP INC"," WEST HARTFORD CT","","","","WEST HARTFORD","CT","06110","US","US","SUMNER","WA",""]
["C008283","RECREATIONAL EQUIP INC","1765","PO BOX 1938","RECREATIONAL EQUIP INC","RECREATIONAL EQUIP INC"," PORTLAND OR","","","","PORTLAND","OR","97086","US","US","SUMNER","WA",""]
["C008283","RECREATIONAL EQUIP INC","1766","PO BOX 1938","RECREATIONAL EQUIP INC","RECREATIONAL EQUIP INC"," ISSAQUAH WA","","","","ISSAQUAH","WA","98027","US","US","SUMNER","WA",""]
["C008283","RECREATIONAL EQUIP INC","1768","PO BOX 1938","RECREATIONAL EQUIP INC","RECREATIONAL EQUIP INC"," BILLINGS MT","","","","BILLINGS","MT","59106","US","US","SUMNER","WA",""]
["C008283","RECREATIONAL EQUIP INC","1769","PO BOX 1938","RECREATIONAL EQUIP INC","RECREATIONAL EQUIP INC"," WESTBROOK ME","","","","WESTBROOK","ME","04092","US","US","SUMNER","WA",""]
["C008283","RECREATIONAL EQUIP INC","1770","PO BOX 1938","RECREATIONAL EQUIP INC","RECREATIONAL EQUIP INC"," BEDFORD PA","","","","BEDFORD","PA","15522","US","US","SUMNER","WA",""]
["C008283","RECREATIONAL EQUIP INC","1771","PO BOX 1938","RECREATIONAL EQUIP INC","RECREATIONAL EQUIP INC"," LEBANON TN","","","","LEBANON","TN","37090","US","US","SUMNER","WA",""]
["C008283","RECREATIONAL EQUIP INC","1772","PO BOX 1938","RECREATIONAL EQUIP INC","RECREATIONAL EQUIP INC"," STOCKTON CA","","","","STOCKTON","CA","95207","US","US","SUMNER","WA",""]
["C008283","RECREATIONAL EQUIP INC","1773","PO BOX 1938","RECREATIONAL EQUIP INC","RECREATIONAL EQUIP INC"," ANN ARBOR MI","","","","ANN ARBOR","MI","48103","US","US","SUMNER","WA",""]
["C008283","RECREATIONAL EQUIP INC","1774","PO BOX 1938","RECREATIONAL EQUIP INC","RECREATIONAL EQUIP INC"," KENNESAW GA","","","","KENNESAW","GA","30144","US","US","SUMNER","WA",""]
["C008283","RECREATIONAL EQUIP INC","1775","PO BOX 1938","RECREATIONAL EQUIP INC","RECREATIONAL EQUIP INC"," SANTA FE NM","","","","SANTA FE","NM","87501","US","US","SUMNER","WA",""]
["C008283","RECREATIONAL EQUIP INC","1776","PO BOX 1938","RECREATIONAL EQUIP INC","RECREATIONAL EQUIP INC"," SAN ANTONIO TX","","","","SAN ANTONIO","TX","78230","US","US","SUMNER","WA",""]
["C008283","RECREATIONAL EQUIP INC","1777","PO BOX 1938","RECREATIONAL EQUIP INC","RECREATIONAL EQUIP INC"," CINCINNATI OH","","","","CINCINNATI","OH","45209","US","US","SUMNER","WA",""]
["C008283","RECREATIONAL EQUIP INC","1778","PO BOX 1938","RECREATIONAL EQUIP INC","RECREATIONAL EQUIP INC"," MEDFORD OR","","","","MEDFORD","OR","97501","US","US","SUMNER","WA",""]
["C008283","RECREATIONAL EQUIP INC","1779","PO BOX 1938","RECREATIONAL EQUIP INC","RECREATIONAL EQUIP INC"," WOODBRIDGE VA","","","","WOODBRIDGE","VA","22191","US","US","SUMNER","WA",""]
["C008283","RECREATIONAL EQUIP INC","1780","PO BOX 1938","RECREATIONAL EQUIP INC","RECREATIONAL EQUIP INC"," MARLTON NJ","","","","MARLTON","NJ","08053","US","US","SUMNER","WA",""]
["C008283","RECREATIONAL EQUIP INC","1781","PO BOX 1938","RECREATIONAL EQUIP INC","RECREATIONAL EQUIP INC"," PLANO TX","","","","PLANO","TX","75093","US","US","SUMNER","WA",""]
["C008283","RECREATIONAL EQUIP INC","1782","PO BOX 1938","RECREATIONAL EQUIP INC","RECREATIONAL EQUIP INC"," JACKSONVILLE FL","","","","JACKSONVILLE","FL","32246","US","US","SUMNER","WA",""]
["C008283","RECREATIONAL EQUIP INC","1783","PO BOX 1938","RECREATIONAL EQUIP INC","RECREATIONAL EQUIP INC"," CHICAGO IL","","","","CHICAGO","IL","60642","US","US","SUMNER","WA",""]
["C008283","RECREATIONAL EQUIP INC","1784","PO BOX 1938","RECREATIONAL EQUIP INC","RECREATIONAL EQUIP INC"," LAS VEGAS NV","","","","LAS VEGAS","NV","89145","US","US","SUMNER","WA",""]
["C008283","RECREATIONAL EQUIP INC","1785","PO BOX 1938","RECREATIONAL EQUIP INC","RECREATIONAL EQUIP INC"," ASHEVILLE NC","","","","ASHEVILLE","NC","28803","US","US","SUMNER","WA",""]
["C008283","RECREATIONAL EQUIP INC","1787","PO BOX 1938","RECREATIONAL EQUIP INC","RECREATIONAL EQUIP INC"," OXNARD CA","","","","OXNARD","CA","93036","US","US","SUMNER","WA",""]
["C008283","RECREATIONAL EQUIP INC","1789","PO BOX 1938","RECREATIONAL EQUIP INC","RECREATIONAL EQUIP INC"," OVERLAND PARK KS","","","","OVERLAND PARK","KS","66223","US","US","SUMNER","WA",""]
["C008283","RECREATIONAL EQUIP INC","1790","PO BOX 1938","RECREATIONAL EQUIP INC","RECREATIONAL EQUIP INC"," MCLEAN VA","","","","MCLEAN","VA","22102","US","US","SUMNER","WA",""]
["C008283","RECREATIONAL EQUIP INC","1791","PO BOX 1938","RECREATIONAL EQUIP INC","RECREATIONAL EQUIP INC"," SILVERDALE WA","","","","SILVERDALE","WA","98383","US","US","SUMNER","WA",""]
["C008283","RECREATIONAL EQUIP INC","1792","PO BOX 1938","RECREATIONAL EQUIP INC","RECREATIONAL EQUIP INC"," HUNTINGTON BEACH CA","","","","HUNTINGTON BEACH","CA","92647","US","US","SUMNER","WA",""]
["C008283","RECREATIONAL EQUIP INC","1793","PO BOX 1938","RECREATIONAL EQUIP INC","RECREATIONAL EQUIP INC"," PITTSBURG PA","","","","PITTSBURG","PA","15203","US","US","SUMNER","WA",""]
["C008283","RECREATIONAL EQUIP INC","1794","PO BOX 1938","RECREATIONAL EQUIP INC","RECREATIONAL EQUIP INC"," OLYMPIA WA","","","","OLYMPIA","WA","98502","US","US","SUMNER","WA",""]
["C008283","RECREATIONAL EQUIP INC","1795","PO BOX 1938","RECREATIONAL EQUIP INC","RECREATIONAL EQUIP INC"," EAST HANOVER NJ","","","","EAST HANOVER","NJ","07936","US","US","SUMNER","WA",""]
["C008283","RECREATIONAL EQUIP INC","1796","PO BOX 1938","RECREATIONAL EQUIP INC","RECREATIONAL EQUIP INC"," BEND OR","","","","BEND","OR","97702","US","US","SUMNER","WA",""]
["C008283","RECREATIONAL EQUIP INC","1797","PO BOX 1938","RECREATIONAL EQUIP INC","RECREATIONAL EQUIP INC"," PITTSBURGH PA","","","","PITTSBURGH","PA","15205","US","US","SUMNER","WA",""]
["C008283","RECREATIONAL EQUIP INC","1798","PO BOX 1938","RECREATIONAL EQUIP INC","RECREATIONAL EQUIP INC"," GOODYEAR AZ","","","","GOODYEAR","AZ","85395","US","US","SUMNER","WA",""]
["C008283","RECREATIONAL EQUIP INC","1801","PO BOX 1938","RECREATIONAL EQUIP INC","RECREATIONAL EQUIP INC"," GREENWOOD VILLAGE CO","","","","GREENWOOD VILLAGE","CO","80111","US","US","SUMNER","WA",""]
["C008283","RECREATIONAL EQUIP INC","1803","PO BOX 1938","RECREATIONAL EQUIP INC","RECREATIONAL EQUIP INC"," GLEN ALLEN VA","","","","GLEN ALLEN","VA","23060","US","US","SUMNER","WA",""]
["C008283","RECREATIONAL EQUIP INC","1804","PO BOX 1938","RECREATIONAL EQUIP INC","RECREATIONAL EQUIP INC"," ROCHESTER NY","","","","ROCHESTER","NY","14620","US","US","SUMNER","WA",""]
["C008283","RECREATIONAL EQUIP INC","1805","PO BOX 1938","RECREATIONAL EQUIP INC","RECREATIONAL EQUIP INC"," BEACHWOOD OH","","","","BEACHWOOD","OH","44122","US","US","SUMNER","WA",""]
["C008283","RECREATIONAL EQUIP INC","1806","PO BOX 1938","RECREATIONAL EQUIP INC","RECREATIONAL EQUIP INC"," CHATTANOOGA TN","","","","CHATTANOOGA","TN","37421","US","US","SUMNER","WA",""]
["C008283","RECREATIONAL EQUIP INC","1807","PO BOX 1938","RECREATIONAL EQUIP INC","RECREATIONAL EQUIP INC"," FLAGSTAFF AZ","","","","FLAGSTAFF","AZ","86001","US","US","SUMNER","WA",""]
["C008283","RECREATIONAL EQUIP INC","1808","PO BOX 1938","RECREATIONAL EQUIP INC","RECREATIONAL EQUIP INC"," KEIZER OR","","","","KEIZER","OR","97303","US","US","SUMNER","WA",""]
["C008283","RECREATIONAL EQUIP INC","1809","PO BOX 1938","RECREATIONAL EQUIP INC","RECREATIONAL EQUIP INC"," COLUMBUS OH","","","","COLUMBUS","OH","43219","US","US","SUMNER","WA",""]
["C008283","RECREATIONAL EQUIP INC","1810","PO BOX 1938","RECREATIONAL EQUIP INC","RECREATIONAL EQUIP INC"," FAIRBANKS AK","","","","FAIRBANKS","AK","99701","US","US","SUMNER","WA",""]
["C008283","RECREATIONAL EQUIP INC","1811","PO BOX 1938","RECREATIONAL EQUIP INC","RECREATIONAL EQUIP INC"," MEMPHIS TN","","","","MEMPHIS","TN","38119","US","US","SUMNER","WA",""]
["C008283","RECREATIONAL EQUIP INC","1812","PO BOX 1938","RECREATIONAL EQUIP INC","RECREATIONAL EQUIP INC"," VERNON HILLS IL","","","","VERNON HILLS","IL","60661","US","US","SUMNER","WA",""]
["C008283","RECREATIONAL EQUIP INC","1813","PO BOX 1938","RECREATIONAL EQUIP INC","RECREATIONAL EQUIP INC"," WOODLAND HILLS CA","","","","WOODLAND HILLS","CA","91367","US","US","SUMNER","WA",""]
["C008283","RECREATIONAL EQUIP INC","1814","PO BOX 1938","RECREATIONAL EQUIP INC","RECREATIONAL EQUIP INC"," KING OF PRUSSIA PA","","","","KING OF PRUSSIA","PA","19406","US","US","SUMNER","WA",""]
["C008283","RECREATIONAL EQUIP INC","1815","PO BOX 1938","RECREATIONAL EQUIP INC","RECREATIONAL EQUIP INC"," BOZEMAN MT","","","","BOZEMAN","MT","59718","US","US","SUMNER","WA",""]
["C008283","RECREATIONAL EQUIP INC","1816","PO BOX 1938","RECREATIONAL EQUIP INC","RECREATIONAL EQUIP INC"," DILLON CO","","","","DILLON","CO","80435","US","US","SUMNER","WA",""]
["C008283","RECREATIONAL EQUIP INC","1817","PO BOX 1938","RECREATIONAL EQUIP INC","RECREATIONAL EQUIP INC"," MAPLE GROVE MN","","","","MAPLE GROVE","MN","55369","US","US","SUMNER","WA",""]
["C008283","RECREATIONAL EQUIP INC","1818","PO BOX 1938","RECREATIONAL EQUIP INC","RECREATIONAL EQUIP INC"," Sunnyvale CA","","","","Sunnyvale","CA","94087-1936","US","US","SUMNER","WA",""]
["C008283","RECREATIONAL EQUIP INC","1819","PO BOX 1938","RECREATIONAL EQUIP INC","RECREATIONAL EQUIP INC"," SANTA MONICA CA","","","","SANTA MONICA","CA","90401","US","US","SUMNER","WA",""]
["C008283","RECREATIONAL EQUIP INC","1820","PO BOX 1938","RECREATIONAL EQUIP INC","RECREATIONAL EQUIP INC"," ROSEVILLE CA","","","","ROSEVILLE","CA","95678","US","US","SUMNER","WA",""]
["C008283","RECREATIONAL EQUIP INC","1821","PO BOX 1938","RECREATIONAL EQUIP INC","RECREATIONAL EQUIP INC"," SANTA ROSA CA","","","","SANTA ROSA","CA","95407","US","US","SUMNER","WA",""]
["C008283","RECREATIONAL EQUIP INC","1825","PO BOX 1938","RECREATIONAL EQUIP INC","RECREATIONAL EQUIP INC"," HENDERSON NV","","","","HENDERSON","NV","89052","US","US","SUMNER","WA",""]
["C008283","RECREATIONAL EQUIP INC","1826","PO BOX 1938","RECREATIONAL EQUIP INC","RECREATIONAL EQUIP INC"," RALEIGH NC","","","","RALEIGH","NC","27609","US","US","SUMNER","WA",""]
["C008283","RECREATIONAL EQUIP INC","1827","PO BOX 1938","RECREATIONAL EQUIP INC","RECREATIONAL EQUIP INC"," AUSTIN TX","","","","AUSTIN","TX","78703","US","US","SUMNER","WA",""]
["C008283","RECREATIONAL EQUIP INC","1828","PO BOX 1938","RECREATIONAL EQUIP INC","RECREATIONAL EQUIP INC"," PINEVILLE NC","","","","PINEVILLE","NC","28134","US","US","SUMNER","WA",""]
["C008283","RECREATIONAL EQUIP INC","1829","PO BOX 1938","RECREATIONAL EQUIP INC","RECREATIONAL EQUIP INC"," GREENSBORO NC","","","","GREENSBORO","NC","27410","US","US","SUMNER","WA",""]
["C008283","RECREATIONAL EQUIP INC","1830","PO BOX 1938","RECREATIONAL EQUIP INC","RECREATIONAL EQUIP INC"," TACOMA WA","","","","TACOMA","WA","98409","US","US","SUMNER","WA",""]
["C008283","RECREATIONAL EQUIP INC","1831","PO BOX 1938","RECREATIONAL EQUIP INC","RECREATIONAL EQUIP INC"," HILLSBORO OR","","","","HILLSBORO","OR","97124","US","US","SUMNER","WA",""]
["C008283","RECREATIONAL EQUIP INC","1832","PO BOX 1938","RECREATIONAL EQUIP INC","RECREATIONAL EQUIP INC"," CRANSTON RI","","","","CRANSTON","RI","02920","US","US","SUMNER","WA",""]
["C008283","RECREATIONAL EQUIP INC","1833","PO BOX 1938","RECREATIONAL EQUIP INC","RECREATIONAL EQUIP INC"," KALISPELL MT","","","","KALISPELL","MT","59901","US","US","SUMNER","WA",""]
["C008283","RECREATIONAL EQUIP INC","1834","PO BOX 1938","RECREATIONAL EQUIP INC","RECREATIONAL EQUIP INC"," HINGHAM MA","","","","HINGHAM","MA","02043","US","US","SUMNER","WA",""]
["C008283","RECREATIONAL EQUIP INC","1835","PO BOX 1938","RECREATIONAL EQUIP INC","RECREATIONAL EQUIP INC"," NEW YORK NY","","","","NEW YORK","NY","10012","US","US","SUMNER","WA",""]
["C008283","RECREATIONAL EQUIP INC","486801","PO BOX 1938","RECREATIONAL EQUIP INC","RECREATIONAL EQUIP INC"," HOUSTON TX","","","","HOUSTON","TX","77064","US","US","SUMNER","WA",""]
["C008283","RECREATIONAL EQUIP INC","486802","PO BOX 1938","RECREATIONAL EQUIP INC","RECREATIONAL EQUIP INC"," WASHINGTON DC DC","","","","WASHINGTON DC","DC","20002","US","US","SUMNER","WA",""]
["C008283","RECREATIONAL EQUIP INC","486803","PO BOX 1938","RECREATIONAL EQUIP INC","RECREATIONAL EQUIP INC"," TAMPA FL","","","","TAMPA","FL","33607","US","US","SUMNER","WA",""]
["C008283","RECREATIONAL EQUIP INC","486804","PO BOX 1938","RECREATIONAL EQUIP INC","RECREATIONAL EQUIP INC"," BIRMINGAHM AL","","","","BIRMINGAHM","AL","35243","US","US","SUMNER","WA",""]
["C008283","RECREATIONAL EQUIP INC","486805","PO BOX 1938","RECREATIONAL EQUIP INC","RECREATIONAL EQUIP INC"," APPLETON WI","","","","APPLETON","WI","54914","US","US","SUMNER","WA",""]
["C008283","RECREATIONAL EQUIP INC","486806","PO BOX 1938","RECREATIONAL EQUIP INC","RECREATIONAL EQUIP INC"," FARMINGTON UT","","","","FARMINGTON","UT","84025","US","US","SUMNER","WA",""]
["C008283","RECREATIONAL EQUIP INC","486807","PO BOX 1938","RECREATIONAL EQUIP INC","RECREATIONAL EQUIP INC"," WICHITA KS","","","","WICHITA","KS","67226","US","US","SUMNER","WA",""]
["C008283","RECREATIONAL EQUIP INC","486808","PO BOX 1938","RECREATIONAL EQUIP INC","RECREATIONAL EQUIP INC"," BELLEVUE WA","","","","BELLEVUE","WA","98004","US","US","SUMNER","WA",""]
["C008283","RECREATIONAL EQUIP INC","486809","PO BOX 1938","RECREATIONAL EQUIP INC","RECREATIONAL EQUIP INC"," BELLEVUE WA","","","","BELLEVUE","WA","98004","US","US","SUMNER","WA",""]
["C008283","RECREATIONAL EQUIP INC","486810","PO BOX 1938","RECREATIONAL EQUIP INC","RECREATIONAL EQUIP INC"," GREENWOOD VILLAGE CO","","","","GREENWOOD VILLAGE","CO","80111","US","US","SUMNER","WA",""]
["C008283","RECREATIONAL EQUIP INC","486811","PO BOX 1938","RECREATIONAL EQUIP INC","RECREATIONAL EQUIP INC"," TALLAHASSEE FL","","","","TALLAHASSEE","FL","32312","US","US","SUMNER","WA",""]
["C008283","RECREATIONAL EQUIP INC","486812","PO BOX 1938","RECREATIONAL EQUIP INC","RECREATIONAL EQUIP INC"," PIGEON FORGE TN","","","","PIGEON FORGE","TN","37863","US","US","SUMNER","WA",""]
["C008283","RECREATIONAL EQUIP INC","486813","PO BOX 1938","RECREATIONAL EQUIP INC","RECREATIONAL EQUIP INC"," BOCA RATON FL","","","","BOCA RATON","FL","33434","US","US","SUMNER","WA",""]
["C008283","RECREATIONAL EQUIP INC","486814","PO BOX 1938","RECREATIONAL EQUIP INC","RECREATIONAL EQUIP INC"," CAMBRIDGE MA","","","","CAMBRIDGE","MA","02141","US","US","SUMNER","WA",""]
["C008283","RECREATIONAL EQUIP INC","486815","PO BOX 1938","RECREATIONAL EQUIP INC","RECREATIONAL EQUIP INC"," MECHANICSBURG PA","","","","MECHANICSBURG","PA","17050","US","US","SUMNER","WA",""]
["C008283","RECREATIONAL EQUIP INC","486816","PO BOX 1938","RECREATIONAL EQUIP INC","RECREATIONAL EQUIP INC"," ORLAND PARK IL","","","","ORLAND PARK","IL","60462","US","US","SUMNER","WA",""]
["C008283","RECREATIONAL EQUIP INC","486817","PO BOX 1938","RECREATIONAL EQUIP INC","RECREATIONAL EQUIP INC"," SANTA CRUZ CA","","","","SANTA CRUZ","CA","95065","US","US","SUMNER","WA",""]
["C008283","RECREATIONAL EQUIP INC","486818","PO BOX 1938","RECREATIONAL EQUIP INC","RECREATIONAL EQUIP INC"," Palm Beach Gardens FL","","","","Palm Beach Gardens","FL","33410","US","US","SUMNER","WA",""]
["C008283","RECREATIONAL EQUIP INC","486819","PO BOX 1938","RECREATIONAL EQUIP INC","RECREATIONAL EQUIP INC"," Jackson WY","","","","Jackson","WY","83001","US","US","SUMNER","WA",""]
["C008283","RECREATIONAL EQUIP INC","486820","PO BOX 1938","RECREATIONAL EQUIP INC","RECREATIONAL EQUIP INC"," TOWN AND COUNTRY MO","","","","TOWN AND COUNTRY","MO","63017","US","US","SUMNER","WA",""]
["C008283","RECREATIONAL EQUIP INC","486821","PO BOX 1938","RECREATIONAL EQUIP INC","RECREATIONAL EQUIP INC"," Glenwood Springs CO","","","","Glenwood Springs","CO","81601","US","US","SUMNER","WA",""]
["C008283","RECREATIONAL EQUIP INC","486822","PO BOX 1938","RECREATIONAL EQUIP INC","RECREATIONAL EQUIP INC"," Athens GA","","","","Athens","GA","30606","US","US","SUMNER","WA",""]
["C008283","RECREATIONAL EQUIP INC","486823","PO BOX 1938","RECREATIONAL EQUIP INC","RECREATIONAL EQUIP INC"," Mount Pleasant SC","","","","Mount Pleasant","SC","29464","US","US","SUMNER","WA",""]
["C008283","RECREATIONAL EQUIP INC","486824","PO BOX 1938","RECREATIONAL EQUIP INC","RECREATIONAL EQUIP INC"," Gretna NE","","","","Gretna","NE","68028","US","US","SUMNER","WA",""]
["C008283","RECREATIONAL EQUIP INC","486825","PO BOX 1938","RECREATIONAL EQUIP INC","RECREATIONAL EQUIP INC"," Gainesville FL","","","","Gainesville","FL","32608","US","US","SUMNER","WA",""]
["C008287","CASCADE CROSS COUNTRY CENTER","1301","PO BOX 888","CASCADE CROSS COUNTRY CENTER","CASCADE CROSS COUNTRY CENTER"," LAKE PLACID NY","","","","LAKE PLACID","NY","12946","US","US","LAKE PLACID","NY",""]
["C008287","CASCADE CROSS COUNTRY CENTER","3291","PO BOX 888","CASCADE CROSS COUNTRY CENTER","CASCADE CROSS COUNTRY CENTER"," LAKE PLACID NY","","","","LAKE PLACID","NY","12946","US","US","LAKE PLACID","NY",""]
["C008288","NORTHWOODS OUTFITTERS INC","177","PO BOX 160","NORTHWOODS OUTFITTERS INC","NORTHWOODS OUTFITTERS INC"," GREENVILLE ME","","","","GREENVILLE","ME","04441","US","US","GREENVILLE","ME",""]
["C008288","NORTHWOODS OUTFITTERS INC","1876","PO BOX 160","NORTHWOODS OUTFITTERS INC","NORTHWOODS OUTFITTERS INC"," GREENVILLE ME","","","","GREENVILLE","ME","04441","US","US","GREENVILLE","ME",""]
["C008289","TAHOE DONNER ASSOC","2858","11509 NORTHWOODS BLVD","TAHOE DONNER ASSOC","TAHOE DONNER ASSOC"," TRUCKEE CA","","","","TRUCKEE","CA","96161","US","US","TRUCKEE","CA",""]
["C008289","TAHOE DONNER ASSOC","993","11509 NORTHWOODS BLVD","TAHOE DONNER ASSOC","TAHOE DONNER ASSOC"," TRUCKEE CA","","","","TRUCKEE","CA","96161","US","US","TRUCKEE","CA",""]
["C008293","SPORT LOFT SKI SHOP","1038","RIVERS + HAJJAR SALES","SPORT LOFT SKI SHOP","SPORT LOFT SKI SHOP"," FITCHBURG MA","","","","FITCHBURG","MA","01420","US","US","FITCHBURG","MA",""]
["C008293","SPORT LOFT SKI SHOP","2885","RIVERS + HAJJAR SALES","SPORT LOFT SKI SHOP","SPORT LOFT SKI SHOP"," ACTON MA","","","","ACTON","MA","01720","US","US","FITCHBURG","MA",""]
["C008293","SPORT LOFT SKI SHOP","2886","RIVERS + HAJJAR SALES","SPORT LOFT SKI SHOP","SPORT LOFT SKI SHOP"," AMHERST NH","","","","AMHERST","NH","03031","US","US","FITCHBURG","MA",""]
["C008293","SPORT LOFT SKI SHOP","2887","RIVERS + HAJJAR SALES","SPORT LOFT SKI SHOP","SPORT LOFT SKI SHOP"," CHELMSFORD MA","","","","CHELMSFORD","MA","01824","US","US","FITCHBURG","MA",""]
["C008293","SPORT LOFT SKI SHOP","2888","RIVERS + HAJJAR SALES","SPORT LOFT SKI SHOP","SPORT LOFT SKI SHOP"," WEST BOYLSTON MA","","","","WEST BOYLSTON","MA","01583","US","US","FITCHBURG","MA",""]
["C008294","PRINCETON SKI SHOP","1501","6239 FALLS RD","PRINCETON SKI SHOP","PRINCETON SKI SHOP"," BALTIMORE MD","","","","BALTIMORE","MD","21209","US","US","BALTIMORE","MD",""]
["C008294","PRINCETON SKI SHOP","3596","6239 FALLS RD","PRINCETON SKI SHOP","PRINCETON SKI SHOP"," COLUMBIA MD","","","","COLUMBIA","MD","21044","US","US","BALTIMORE","MD",""]
["C008299","PLYMOUTH SKI & SPORTS INC","1105","97 MAIN ST","PLYMOUTH SKI & SPORTS INC","PLYMOUTH SKI & SPORTS INC"," PLYMOUTH NH","","","","PLYMOUTH","NH","03264","US","US","PLYMOUTH","NH",""]
["C008303","VIKING SKI SHOP INC","1522","PO BOX 468","VIKING SKI SHOP INC","VIKING SKI SHOP INC"," MOUNT PROSPECT IL","","","","MOUNT PROSPECT","IL","60056-0468","US","US","MOUNT PROSPECT","IL",""]
["C008303","VIKING SKI SHOP INC","3617","PO BOX 468","VIKING SKI SHOP INC","VIKING SKI SHOP INC"," LAKE BARRINGTON IL","","","","LAKE BARRINGTON","IL","60010","US","US","MOUNT PROSPECT","IL",""]
["C008303","VIKING SKI SHOP INC","3618","PO BOX 468","VIKING SKI SHOP INC","VIKING SKI SHOP INC"," BARRINGTON IL","","","","BARRINGTON","IL","60010","US","US","MOUNT PROSPECT","IL",""]
["C008303","VIKING SKI SHOP INC","3619","PO BOX 468","VIKING SKI SHOP INC","VIKING SKI SHOP INC"," CHICAGO IL","","","","CHICAGO","IL","60647","US","US","MOUNT PROSPECT","IL",""]
["C008304","NOTB","1566","SKI HAUS","NOTB","NOTB"," SALEM NH","","","","SALEM","NH","03079","US","US","SALEM","NH",""]
["C008304","NOTB","3738","SKI HAUS","NOTB","NOTB"," SALEM NH","","","","SALEM","NH","03079","US","US","SALEM","NH",""]
["C008304","NOTB","3739","SKI HAUS","NOTB","NOTB"," FRAMINGHAM MA","","","","FRAMINGHAM","MA","01702","US","US","SALEM","NH",""]
["C008305","THE HOUSE","2437","200 S OWASSO BLVD","THE HOUSE","THE HOUSE"," BAKERSFIELD CA","","","","BAKERSFIELD","CA","93308","US","US","SAINT PAUL","MN",""]
["C008305","THE HOUSE","2438","200 S OWASSO BLVD","THE HOUSE","THE HOUSE"," LITTLE CANADA MN","","","","LITTLE CANADA","MN","55112","US","US","SAINT PAUL","MN",""]
["C008305","THE HOUSE","689","200 S OWASSO BLVD","THE HOUSE","THE HOUSE"," SAINT PAUL MN","","","","SAINT PAUL","MN","55117","US","US","SAINT PAUL","MN",""]
["C008306","SPRING STREET SPORTS INC","78","12 W SPRING ST","SPRING STREET SPORTS INC","SPRING STREET SPORTS INC"," CHIPPEWA FALLS WI","","","","CHIPPEWA FALLS","WI","54729","US","US","CHIPPEWA FALLS","WI",""]
["C008309","SKI SHACK","2428","PO BOX 1","SKI SHACK","SKI SHACK"," HAYDEN LAKE ID","","","","HAYDEN LAKE","ID","83835","US","US","HAYDEN LAKE","ID",""]
["C008309","SKI SHACK","666","PO BOX 1","SKI SHACK","SKI SHACK"," HAYDEN LAKE ID","","","","HAYDEN LAKE","ID","83835","US","US","HAYDEN LAKE","ID",""]
["C008311","TRAIL HEAD MOUNTAIN SPORT","1651","PO BOX 7788","TRAIL HEAD MOUNTAIN SPORT","TRAIL HEAD MOUNTAIN SPORT"," MISSOULA MT","","","","MISSOULA","MT","59802","US","US","MISSOULA","MT",""]
["C008311","TRAIL HEAD MOUNTAIN SPORT","46","PO BOX 7788","TRAIL HEAD MOUNTAIN SPORT","TRAIL HEAD MOUNTAIN SPORT"," MISSOULA MT","","","","MISSOULA","MT","59807","US","US","MISSOULA","MT",""]
["C008315","PINNACLE SKI & SPORTS","2562","MAZEL TEC INC","PINNACLE SKI & SPORTS","PINNACLE SKI & SPORTS"," STOWE VT","","","","STOWE","VT","05672","US","US","STOWE","VT",""]
["C008315","PINNACLE SKI & SPORTS","2563","MAZEL TEC INC","PINNACLE SKI & SPORTS","PINNACLE SKI & SPORTS"," STOWE VT","","","","STOWE","VT","05672","US","US","STOWE","VT",""]
["C008315","PINNACLE SKI & SPORTS","817","MAZEL TEC INC","PINNACLE SKI & SPORTS","PINNACLE SKI & SPORTS"," STOWE VT","","","","STOWE","VT","05672","US","US","STOWE","VT",""]
["C008316","VENTURE SPORTS INC","2370","PO BOX 3268","VENTURE SPORTS INC","VENTURE SPORTS INC"," Edwards CO","","","","Edwards","CO","81632","US","US","AVON","CO",""]
["C008316","VENTURE SPORTS INC","585","PO BOX 3268","VENTURE SPORTS INC","VENTURE SPORTS INC"," AVON CO","","","","AVON","CO","81620","US","US","AVON","CO",""]
["C008318","PINE NEEDLE MOUNTAINEERING","785","835 MAIN ST STE 112","PINE NEEDLE MOUNTAINEERING","PINE NEEDLE MOUNTAINEERING"," DURANGO CO","","","","DURANGO","CO","81301","US","US","DURANGO","CO",""]
["C008320","PRO SHOP","1151","1104 15TH AVE","PRO SHOP","PRO SHOP"," LONGVIEW WA","","","","LONGVIEW","WA","98632","US","US","LONGVIEW","WA",""]
["C008321","PETER GLENN SKI & SPORTS - #B12","1496","GREEN MOUNTAIN CORP","PETER GLENN SKI & SPORTS - #B12","PETER GLENN SKI & SPORTS - #B12"," FORT LAUDERDALE FL","","","","FORT LAUDERDALE","FL","33311","US","US","FORT LAUDERDALE","FL",""]
["C008321","PETER GLENN SKI & SPORTS - #B12","3571","GREEN MOUNTAIN CORP","PETER GLENN SKI & SPORTS - #B12","PETER GLENN SKI & SPORTS - #B12"," KENNESAW GA","","","","KENNESAW","GA","30144","US","US","FORT LAUDERDALE","FL",""]
["C008321","PETER GLENN SKI & SPORTS - #B12","3572","GREEN MOUNTAIN CORP","PETER GLENN SKI & SPORTS - #B12","PETER GLENN SKI & SPORTS - #B12"," ORLANDO FL","","","","ORLANDO","FL","32819","US","US","FORT LAUDERDALE","FL",""]
["C008321","PETER GLENN SKI & SPORTS - #B12","3573","GREEN MOUNTAIN CORP","PETER GLENN SKI & SPORTS - #B12","PETER GLENN SKI & SPORTS - #B12"," MIAMI FL","","","","MIAMI","FL","33156","US","US","FORT LAUDERDALE","FL",""]
["C008321","PETER GLENN SKI & SPORTS - #B12","3574","GREEN MOUNTAIN CORP","PETER GLENN SKI & SPORTS - #B12","PETER GLENN SKI & SPORTS - #B12"," ORLANDO FL","","","","ORLANDO","FL","32819","US","US","FORT LAUDERDALE","FL",""]
["C008321","PETER GLENN SKI & SPORTS - #B12","3575","GREEN MOUNTAIN CORP","PETER GLENN SKI & SPORTS - #B12","PETER GLENN SKI & SPORTS - #B12"," SAINT JOHNSBURY VT","","","","SAINT JOHNSBURY","VT","05819","US","US","FORT LAUDERDALE","FL",""]
["C008321","PETER GLENN SKI & SPORTS - #B12","3576","GREEN MOUNTAIN CORP","PETER GLENN SKI & SPORTS - #B12","PETER GLENN SKI & SPORTS - #B12"," JUNO BEACH FL","","","","JUNO BEACH","FL","33408","US","US","FORT LAUDERDALE","FL",""]
["C008321","PETER GLENN SKI & SPORTS - #B12","3577","GREEN MOUNTAIN CORP","PETER GLENN SKI & SPORTS - #B12","PETER GLENN SKI & SPORTS - #B12"," FORT LAUDERDALE FL","","","","FORT LAUDERDALE","FL","33311","US","US","FORT LAUDERDALE","FL",""]
["C008321","PETER GLENN SKI & SPORTS - #B12","3578","GREEN MOUNTAIN CORP","PETER GLENN SKI & SPORTS - #B12","PETER GLENN SKI & SPORTS - #B12"," DELRAY BEACH FL","","","","DELRAY BEACH","FL","33444","US","US","FORT LAUDERDALE","FL",""]
["C008321","PETER GLENN SKI & SPORTS - #B12","3579","GREEN MOUNTAIN CORP","PETER GLENN SKI & SPORTS - #B12","PETER GLENN SKI & SPORTS - #B12"," TAMPA FL","","","","TAMPA","FL","33614","US","US","FORT LAUDERDALE","FL",""]
["C008321","PETER GLENN SKI & SPORTS - #B12","3580","GREEN MOUNTAIN CORP","PETER GLENN SKI & SPORTS - #B12","PETER GLENN SKI & SPORTS - #B12"," ALTAMONTE SPRINGS FL","","","","ALTAMONTE SPRINGS","FL","32714","US","US","FORT LAUDERDALE","FL",""]
["C008321","PETER GLENN SKI & SPORTS - #B12","3581","GREEN MOUNTAIN CORP","PETER GLENN SKI & SPORTS - #B12","PETER GLENN SKI & SPORTS - #B12"," BARRE VT","","","","BARRE","VT","05641","US","US","FORT LAUDERDALE","FL",""]
["C008321","PETER GLENN SKI & SPORTS - #B12","3582","GREEN MOUNTAIN CORP","PETER GLENN SKI & SPORTS - #B12","PETER GLENN SKI & SPORTS - #B12"," FORT LAUDERDALE FL","","","","FORT LAUDERDALE","FL","33304","US","US","FORT LAUDERDALE","FL",""]
["C008321","PETER GLENN SKI & SPORTS - #B12","3583","GREEN MOUNTAIN CORP","PETER GLENN SKI & SPORTS - #B12","PETER GLENN SKI & SPORTS - #B12"," SANDY SPRINGS GA","","","","SANDY SPRINGS","GA","30328","US","US","FORT LAUDERDALE","FL",""]
["C008321","PETER GLENN SKI & SPORTS - #B12","3584","GREEN MOUNTAIN CORP","PETER GLENN SKI & SPORTS - #B12","PETER GLENN SKI & SPORTS - #B12"," JACKSONVILLE FL","","","","JACKSONVILLE","FL","32218","US","US","FORT LAUDERDALE","FL",""]
["C008321","PETER GLENN SKI & SPORTS - #B12","3585","GREEN MOUNTAIN CORP","PETER GLENN SKI & SPORTS - #B12","PETER GLENN SKI & SPORTS - #B12"," WEST PALM BEACH FL","","","","WEST PALM BEACH","FL","33409","US","US","FORT LAUDERDALE","FL",""]
["C008321","PETER GLENN SKI & SPORTS - #B12","3586","GREEN MOUNTAIN CORP","PETER GLENN SKI & SPORTS - #B12","PETER GLENN SKI & SPORTS - #B12"," MIAMI FL","","","","MIAMI","FL","33169","US","US","FORT LAUDERDALE","FL",""]
["C008321","PETER GLENN SKI & SPORTS - #B12","3587","GREEN MOUNTAIN CORP","PETER GLENN SKI & SPORTS - #B12","PETER GLENN SKI & SPORTS - #B12"," RICHMOND VA","","","","RICHMOND","VA","23297","US","US","FORT LAUDERDALE","FL",""]
["C008322","VIKING SKI SHOP","592","770 RTE 3","VIKING SKI SHOP","VIKING SKI SHOP"," PLATTSBURGH NY","","","","PLATTSBURGH","NY","12901","US","US","PLATTSBURGH","NY",""]
["C008325","AVIES SKI SPORTS INC","1017","100 MAIN ST","AVIES SKI SPORTS INC","AVIES SKI SPORTS INC"," WESTERLY RI","","","","WESTERLY","RI","02891","US","US","WESTERLY","RI",""]
["C008326","PRO SKI SERVICE","1170","112 WEST SECOND ST","PRO SKI SERVICE","PRO SKI SERVICE"," NORTH BEND WA","","","","NORTH BEND","WA","98045","US","US","NORTH BEND","WA",""]
["C008326","PRO SKI SERVICE","3202","112 WEST SECOND ST","PRO SKI SERVICE","PRO SKI SERVICE"," NORTH BEND WA","","","","NORTH BEND","WA","98045","US","US","NORTH BEND","WA",""]
["C008328","KING KEYSER SPORTING GOODS","1514","41 S WASHINGTON ST","KING KEYSER SPORTING GOODS","KING KEYSER SPORTING GOODS"," HINSDALE IL","","","","HINSDALE","IL","60521","US","US","HINSDALE","IL",""]
["C008328","KING KEYSER SPORTING GOODS","3611","41 S WASHINGTON ST","KING KEYSER SPORTING GOODS","KING KEYSER SPORTING GOODS"," HINSDALE IL","","","","HINSDALE","IL","60521","US","US","HINSDALE","IL",""]
["C008330","MAUI NORTH","2637","316 CORNELIA ST SUITE 13","MAUI NORTH","MAUI NORTH"," LAKE PLACID NY","","","","LAKE PLACID","NY","12946","US","US","PLATTSBURGH","NY",""]
["C008330","MAUI NORTH","2638","316 CORNELIA ST SUITE 13","MAUI NORTH","MAUI NORTH"," PLATTSBURGH NY","","","","PLATTSBURGH","NY","12901","US","US","PLATTSBURGH","NY",""]
["C008330","MAUI NORTH","847","316 CORNELIA ST SUITE 13","MAUI NORTH","MAUI NORTH"," PLATTSBURGH NY","","","","PLATTSBURGH","NY","12901","US","US","PLATTSBURGH","NY",""]
["C008331","ALPINE SHOP","1492","ALPINE TRACKS INC","ALPINE SHOP","ALPINE SHOP"," SOUTH BURLINGTON VT","","","","SOUTH BURLINGTON","VT","05403","US","US","SOUTH BURLINGTON","VT",""]
["C008331","ALPINE SHOP","3561","ALPINE TRACKS INC","ALPINE SHOP","ALPINE SHOP"," SO BURLINGTON VT","","","","SO BURLINGTON","VT","05403","US","US","SOUTH BURLINGTON","VT",""]
["C008331","ALPINE SHOP","691602","ALPINE TRACKS INC","ALPINE SHOP","ALPINE SHOP"," SOUTH BURLINGTON VT","","","","SOUTH BURLINGTON","VT","05403","US","US","SOUTH BURLINGTON","VT",""]
["C008331","ALPINE SHOP","691603","ALPINE TRACKS INC","ALPINE SHOP","ALPINE SHOP"," SOUTH BURLINGTON VT","","","","SOUTH BURLINGTON","VT","05403","US","US","SOUTH BURLINGTON","VT",""]
["C008335","SILVER MOUNTAIN SPORTS","2366","701 BUNKER AVE, STE 113","SILVER MOUNTAIN SPORTS","SILVER MOUNTAIN SPORTS"," KELLOGG ID","","","","KELLOGG","ID","83837","US","US","KELLOGG","ID",""]
["C008335","SILVER MOUNTAIN SPORTS","2367","701 BUNKER AVE, STE 113","SILVER MOUNTAIN SPORTS","SILVER MOUNTAIN SPORTS"," KELLOGG ID","","","","KELLOGG","ID","83837","US","US","KELLOGG","ID",""]
["C008335","SILVER MOUNTAIN SPORTS","581","701 BUNKER AVE, STE 113","SILVER MOUNTAIN SPORTS","SILVER MOUNTAIN SPORTS"," KELLOGG ID","","","","KELLOGG","ID","83837","US","US","KELLOGG","ID",""]
["C008336","SQUAW VALLEY SKI HOLDINGS, LLC","173","ATTENTION: ACCOUNTS PAYABLE","SQUAW VALLEY SKI HOLDINGS, LLC","SQUAW VALLEY SKI HOLDINGS, LLC"," OLYMPIC VALLEY CA","","","","OLYMPIC VALLEY","CA","96146","US","US","OLYMPIC VALLEY","CA",""]
["C008336","SQUAW VALLEY SKI HOLDINGS, LLC","1872","ATTENTION: ACCOUNTS PAYABLE","SQUAW VALLEY SKI HOLDINGS, LLC","SQUAW VALLEY SKI HOLDINGS, LLC"," VERDI NV","","","","VERDI","NV","89439","US","US","OLYMPIC VALLEY","CA",""]
["C008337","ERIKS BIKE SHOP INC","1403","550 KASOTA AVE SE","ERIKS BIKE SHOP INC","ERIKS BIKE SHOP INC"," MINNEAPOLIS MN","","","","MINNEAPOLIS","MN","55414","US","US","MINNEAPOLIS","MN",""]
["C008337","ERIKS BIKE SHOP INC","3482","550 KASOTA AVE SE","ERIKS BIKE SHOP INC","ERIKS BIKE SHOP INC"," MADISON WI","","","","MADISON","WI","53711","US","US","MINNEAPOLIS","MN",""]
["C008337","ERIKS BIKE SHOP INC","3483","550 KASOTA AVE SE","ERIKS BIKE SHOP INC","ERIKS BIKE SHOP INC"," EDEN PRAIRIE MN","","","","EDEN PRAIRIE","MN","55344","US","US","MINNEAPOLIS","MN",""]
["C008337","ERIKS BIKE SHOP INC","3484","550 KASOTA AVE SE","ERIKS BIKE SHOP INC","ERIKS BIKE SHOP INC"," MAPLE GROVE MN","","","","MAPLE GROVE","MN","55369","US","US","MINNEAPOLIS","MN",""]
["C008337","ERIKS BIKE SHOP INC","3485","550 KASOTA AVE SE","ERIKS BIKE SHOP INC","ERIKS BIKE SHOP INC"," MINNEAPOLIS MN","","","","MINNEAPOLIS","MN","55414","US","US","MINNEAPOLIS","MN",""]
["C008337","ERIKS BIKE SHOP INC","3486","550 KASOTA AVE SE","ERIKS BIKE SHOP INC","ERIKS BIKE SHOP INC"," OAKDALE MN","","","","OAKDALE","MN","55128","US","US","MINNEAPOLIS","MN",""]
["C008337","ERIKS BIKE SHOP INC","3487","550 KASOTA AVE SE","ERIKS BIKE SHOP INC","ERIKS BIKE SHOP INC"," BLOOMINGTON MN","","","","BLOOMINGTON","MN","55420","US","US","MINNEAPOLIS","MN",""]
["C008337","ERIKS BIKE SHOP INC","3488","550 KASOTA AVE SE","ERIKS BIKE SHOP INC","ERIKS BIKE SHOP INC"," SHOREVIEW MN","","","","SHOREVIEW","MN","55126","US","US","MINNEAPOLIS","MN",""]
["C008337","ERIKS BIKE SHOP INC","3489","550 KASOTA AVE SE","ERIKS BIKE SHOP INC","ERIKS BIKE SHOP INC"," SAINT LOUIS PARK MN","","","","SAINT LOUIS PARK","MN","55426","US","US","MINNEAPOLIS","MN",""]
["C008337","ERIKS BIKE SHOP INC","3490","550 KASOTA AVE SE","ERIKS BIKE SHOP INC","ERIKS BIKE SHOP INC"," COON RAPIDS MN","","","","COON RAPIDS","MN","55433","US","US","MINNEAPOLIS","MN",""]
["C008339","SKI HAUS","1934","1611 RTE 22","SKI HAUS","SKI HAUS"," NEW MILFORD CT","","","","NEW MILFORD","CT","06776","US","US","BREWSTER","NY",""]
["C008339","SKI HAUS","1935","1611 RTE 22","SKI HAUS","SKI HAUS"," WAPPINGERS FALLS NY","","","","WAPPINGERS FALLS","NY","12590","US","US","BREWSTER","NY",""]
["C008339","SKI HAUS","215","1611 RTE 22","SKI HAUS","SKI HAUS"," BREWSTER NY","","","","BREWSTER","NY","10509","US","US","BREWSTER","NY",""]
["C008342","MEADOWLARK SKI & SPORTS","864","38858 PIONEER BLVD","MEADOWLARK SKI & SPORTS","MEADOWLARK SKI & SPORTS"," SANDY OR","","","","SANDY","OR","97055","US","US","SANDY","OR",""]
["C008343","JORGENSENS INC","1370","980 S COVE VIEW RD","JORGENSENS INC","JORGENSENS INC"," RICHFIELD UT","","","","RICHFIELD","UT","84701","US","US","RICHFIELD","UT",""]
["C008344","BEAVER SPORTS","1653","3480 COLLEGE RD","BEAVER SPORTS","BEAVER SPORTS"," AUBURN WA","","","","AUBURN","WA","98001","US","US","FAIRBANKS","AK",""]
["C008344","BEAVER SPORTS","48","3480 COLLEGE RD","BEAVER SPORTS","BEAVER SPORTS"," FAIRBANKS AK","","","","FAIRBANKS","AK","99709","US","US","FAIRBANKS","AK",""]
["C008345","LATITUDE 45 BICYCLES & FITNESS","2674","476 W MITCHELL","LATITUDE 45 BICYCLES & FITNESS","LATITUDE 45 BICYCLES & FITNESS"," PETOSKEY MI","","","","PETOSKEY","MI","49770","US","US","PETOSKEY","MI",""]
["C008345","LATITUDE 45 BICYCLES & FITNESS","896","476 W MITCHELL","LATITUDE 45 BICYCLES & FITNESS","LATITUDE 45 BICYCLES & FITNESS"," PETOSKEY MI","","","","PETOSKEY","MI","49770","US","US","PETOSKEY","MI",""]
["C008346","ALPINE SHOP LTD","1510","440 N KIRKWOOD ROAD","ALPINE SHOP LTD","ALPINE SHOP LTD"," SAINT LOUIS MO","","","","SAINT LOUIS","MO","63122","US","US","SAINT LOUIS","MO",""]
["C008346","ALPINE SHOP LTD","3603","440 N KIRKWOOD ROAD","ALPINE SHOP LTD","ALPINE SHOP LTD"," CHESTERFIELD MO","","","","CHESTERFIELD","MO","63017","US","US","SAINT LOUIS","MO",""]
["C008346","ALPINE SHOP LTD","3604","440 N KIRKWOOD ROAD","ALPINE SHOP LTD","ALPINE SHOP LTD"," ST LOUIS MO","","","","ST LOUIS","MO","63122","US","US","SAINT LOUIS","MO",""]
["C008347","BARRIES SKI AND SPORTS","1048","BONNEVILLE RIDGE LLC","BARRIES SKI AND SPORTS","BARRIES SKI AND SPORTS"," POCATELLO ID","","","","POCATELLO","ID","83201","US","US","POCATELLO","ID",""]
["C008348","SIERRA TRADING POST","1175","PO BOX 9171","SIERRA TRADING POST","SIERRA TRADING POST"," FRAMINGHAM MA","","","","FRAMINGHAM","MA","01701","US","US","FRAMINGHAM","MA",""]
["C008348","SIERRA TRADING POST","3207","PO BOX 9171","SIERRA TRADING POST","SIERRA TRADING POST"," CHEYENNE WY","","","","CHEYENNE","WY","82007","US","US","FRAMINGHAM","MA",""]
["C008348","SIERRA TRADING POST","3208","PO BOX 9171","SIERRA TRADING POST","SIERRA TRADING POST"," CHEYENNE WY","","","","CHEYENNE","WY","82007","US","US","FRAMINGHAM","MA",""]
["C008350","STRAIGHT RIVER SPORTS + FITNESS,INC","1433","222 W BRIDGE ST","STRAIGHT RIVER SPORTS + FITNESS,INC","STRAIGHT RIVER SPORTS + FITNESS,INC"," OWATONNA MN","","","","OWATONNA","MN","55060","US","US","OWATONNA","MN",""]
["C008352","PURITAN CLOTHING","1244","PO BOX 730","PURITAN CLOTHING","PURITAN CLOTHING"," HYANNIS MA","","","","HYANNIS","MA","02601","US","US","HYANNIS","MA",""]
["C008352","PURITAN CLOTHING","3255","PO BOX 730","PURITAN CLOTHING","PURITAN CLOTHING"," HYANNIS MA","","","","HYANNIS","MA","02601","US","US","HYANNIS","MA",""]
["C008352","PURITAN CLOTHING","3256","PO BOX 730","PURITAN CLOTHING","PURITAN CLOTHING"," HYANNIS MA","","","","HYANNIS","MA","02601","US","US","HYANNIS","MA",""]
["C008352","PURITAN CLOTHING","3257","PO BOX 730","PURITAN CLOTHING","PURITAN CLOTHING"," HYANNIS MA","","","","HYANNIS","MA","02601","US","US","HYANNIS","MA",""]
["C008353","SKINNY SKIS","1959","PO BOX 3610","SKINNY SKIS","SKINNY SKIS"," JACKSON WY","","","","JACKSON","WY","83001","US","US","JACKSON","WY",""]
["C008353","SKINNY SKIS","252","PO BOX 3610","SKINNY SKIS","SKINNY SKIS"," JACKSON WY","","","","JACKSON","WY","83001","US","US","JACKSON","WY",""]
["C008357","FITNESS FANATICS","533","8919 EAST EUCLID AVE","FITNESS FANATICS","FITNESS FANATICS"," MILLWOOD WA","","","","MILLWOOD","WA","99212","US","US","MILLWOOD","WA",""]
["C008359","BODINS INC","2412","PO BOX 687","BODINS INC","BODINS INC"," BAYFIELD WI","","","","BAYFIELD","WI","54814","US","US","BAYFIELD","WI",""]
["C008359","BODINS INC","635","PO BOX 687","BODINS INC","BODINS INC"," BAYFIELD WI","","","","BAYFIELD","WI","54814","US","US","BAYFIELD","WI",""]
["C008361","ZIMMERMANNS SKI AND SNOWBOARD","1531","NUMBER 2 ROCKLAND ST","ZIMMERMANNS SKI AND SNOWBOARD","ZIMMERMANNS SKI AND SNOWBOARD"," NASHUA NH","","","","NASHUA","NH","03064","US","US","NASHUA","NH",""]
["C008361","ZIMMERMANNS SKI AND SNOWBOARD","3627","NUMBER 2 ROCKLAND ST","ZIMMERMANNS SKI AND SNOWBOARD","ZIMMERMANNS SKI AND SNOWBOARD"," NASHUA NH","","","","NASHUA","NH","03060","US","US","NASHUA","NH",""]
["C008363","PUTNAMS SPORTS","1585","2998 LAFAYETTE RD","PUTNAMS SPORTS","PUTNAMS SPORTS"," PORTSMOUTH NH","","","","PORTSMOUTH","NH","03801","US","US","PORTSMOUTH","NH",""]
["C008363","PUTNAMS SPORTS","3758","2998 LAFAYETTE RD","PUTNAMS SPORTS","PUTNAMS SPORTS"," PORTSMOUTH NH","","","","PORTSMOUTH","NH","03801","US","US","PORTSMOUTH","NH",""]
["C008365","FITZHARRIS SKI & SPORT","2157","105 7TH AVE S","FITZHARRIS SKI & SPORT","FITZHARRIS SKI & SPORT"," ST CLOUD MN","","","","ST CLOUD","MN","56301","US","US","SAINT CLOUD","MN",""]
["C008365","FITZHARRIS SKI & SPORT","549","105 7TH AVE S","FITZHARRIS SKI & SPORT","FITZHARRIS SKI & SPORT"," SAINT CLOUD MN","","","","SAINT CLOUD","MN","56301","US","US","SAINT CLOUD","MN",""]
["C008366","ALPINE SKI CENTER","2440","3440-B TYNECASTLE HWY","ALPINE SKI CENTER","ALPINE SKI CENTER"," CHARLOTTE NC","","","","CHARLOTTE","NC","28203","US","US","BANNER ELK","NC",""]
["C008366","ALPINE SKI CENTER","2441","3440-B TYNECASTLE HWY","ALPINE SKI CENTER","ALPINE SKI CENTER"," GREENVILLE SC","","","","GREENVILLE","SC","29615-3500","US","US","BANNER ELK","NC",""]
["C008366","ALPINE SKI CENTER","2442","3440-B TYNECASTLE HWY","ALPINE SKI CENTER","ALPINE SKI CENTER"," JOHNSON CITY TN","","","","JOHNSON CITY","TN","37601","US","US","BANNER ELK","NC",""]
["C008366","ALPINE SKI CENTER","2443","3440-B TYNECASTLE HWY","ALPINE SKI CENTER","ALPINE SKI CENTER"," KNOXVILLE TN","","","","KNOXVILLE","TN","37919","US","US","BANNER ELK","NC",""]
["C008366","ALPINE SKI CENTER","2444","3440-B TYNECASTLE HWY","ALPINE SKI CENTER","ALPINE SKI CENTER"," RALEIGH NC","","","","RALEIGH","NC","27617","US","US","BANNER ELK","NC",""]
["C008366","ALPINE SKI CENTER","693","3440-B TYNECASTLE HWY","ALPINE SKI CENTER","ALPINE SKI CENTER"," BANNER ELK NC","","","","BANNER ELK","NC","28604","US","US","BANNER ELK","NC",""]
["C008370","BENSON SKI & SPORT","137","BENSON LUMBER AND HARDWARE","BENSON SKI & SPORT","BENSON SKI & SPORT"," DERRY NH","","","","DERRY","NH","03038","US","US","DERRY","NH",""]
["C008370","BENSON SKI & SPORT","1846","BENSON LUMBER AND HARDWARE","BENSON SKI & SPORT","BENSON SKI & SPORT"," DERRY NH","","","","DERRY","NH","03038","US","US","DERRY","NH",""]
["C008372","JAMESTOWN CYCLE","1498","10 HARRISON ST","JAMESTOWN CYCLE","JAMESTOWN CYCLE"," JAMESTOWN NY","","","","JAMESTOWN","NY","14701","US","US","JAMESTOWN","NY",""]
["C008373","JANS LTD.","2846","PO BOX 280","JANS LTD.","JANS LTD."," KAMAS UT","","","","KAMAS","UT","84036","US","US","PARK CITY","UT",""]
["C008373","JANS LTD.","2847","PO BOX 280","JANS LTD.","JANS LTD."," PARK CITY UT","","","","PARK CITY","UT","84060","US","US","PARK CITY","UT",""]
["C008373","JANS LTD.","2848","PO BOX 280","JANS LTD.","JANS LTD."," PARK CITY UT","","","","PARK CITY","UT","84060","US","US","PARK CITY","UT",""]
["C008373","JANS LTD.","972","PO BOX 280","JANS LTD.","JANS LTD."," PARK CITY UT","","","","PARK CITY","UT","84060","US","US","PARK CITY","UT",""]
["C008376","SPORTS ODYSSEY","1226","63 MAIN ST","SPORTS ODYSSEY","SPORTS ODYSSEY"," LUDLOW VT","","","","LUDLOW","VT","05149","US","US","LUDLOW","VT",""]
["C008376","SPORTS ODYSSEY","3238","63 MAIN ST","SPORTS ODYSSEY","SPORTS ODYSSEY"," LUDLOW VT","","","","LUDLOW","VT","05149","US","US","LUDLOW","VT",""]
["C008378","BIGHORN WILDERNESS","167","206 5TH ST SOUTH","BIGHORN WILDERNESS","BIGHORN WILDERNESS"," GREAT FALLS MT","","","","GREAT FALLS","MT","59405","US","US","GREAT FALLS","MT",""]
["C008379","EDGE SKI PACK PADDLE - THE","63","107 N UNION AVE","EDGE SKI PACK PADDLE - THE","EDGE SKI PACK PADDLE - THE"," PUEBLO CO","","","","PUEBLO","CO","81003","US","US","PUEBLO","CO",""]
["C008381","TYROL SKI & SPORTS","1570","1923 2ND ST SW","TYROL SKI & SPORTS","TYROL SKI & SPORTS"," ROCHESTER MN","","","","ROCHESTER","MN","55902","US","US","ROCHESTER","MN",""]
["C008381","TYROL SKI & SPORTS","3743","1923 2ND ST SW","TYROL SKI & SPORTS","TYROL SKI & SPORTS"," ROCHESTER MN","","","","ROCHESTER","MN","55902","US","US","ROCHESTER","MN",""]
["C008382","KITTERY TRADING POST","1534","301 US ROUTE 1","KITTERY TRADING POST","KITTERY TRADING POST"," KITTERY ME","","","","KITTERY","ME","03904-5510","US","US","KITTERY","ME",""]
["C008382","KITTERY TRADING POST","3630","301 US ROUTE 1","KITTERY TRADING POST","KITTERY TRADING POST"," DOVER NH","","","","DOVER","NH","03820","US","US","KITTERY","ME",""]
["C008382","KITTERY TRADING POST","3631","301 US ROUTE 1","KITTERY TRADING POST","KITTERY TRADING POST"," YORK ME","","","","YORK","ME","03909","US","US","KITTERY","ME",""]
["C008385","MELS TRADING POST","1553","105 S BROWN ST","MELS TRADING POST","MELS TRADING POST"," RHINELANDER WI","","","","RHINELANDER","WI","54501-3454","US","US","RHINELANDER","WI",""]
["C008386","SYLVAN PEAK ENTERPRISES","2568","PO BOX 463","SYLVAN PEAK ENTERPRISES","SYLVAN PEAK ENTERPRISES"," RED LODGE MT","","","","RED LODGE","MT","59068","US","US","RED LODGE","MT",""]
["C008386","SYLVAN PEAK ENTERPRISES","823","PO BOX 463","SYLVAN PEAK ENTERPRISES","SYLVAN PEAK ENTERPRISES"," RED LODGE MT","","","","RED LODGE","MT","59068","US","US","RED LODGE","MT",""]
["C008387","CHARTER SPORTS","142","C-O THE CHARTER","CHARTER SPORTS","CHARTER SPORTS"," AVON CO","","","","AVON","CO","81620","US","US","AVON","CO",""]
["C008387","CHARTER SPORTS","1848","C-O THE CHARTER","CHARTER SPORTS","CHARTER SPORTS"," MINTURN CO","","","","MINTURN","CO","81645","US","US","AVON","CO",""]
["C008389","PLAY IT AGAIN SPORTS - BOISE #11218","2484","RAN INC","PLAY IT AGAIN SPORTS - BOISE #11218","PLAY IT AGAIN SPORTS - BOISE #11218"," BOISE ID","","","","BOISE","ID","83709","US","US","BOISE","ID",""]
["C008389","PLAY IT AGAIN SPORTS - BOISE #11218","760","RAN INC","PLAY IT AGAIN SPORTS - BOISE #11218","PLAY IT AGAIN SPORTS - BOISE #11218"," BOISE ID","","","","BOISE","ID","83704","US","US","BOISE","ID",""]
["C008391","SKI AND SPORT OF WESTPORT","2649","877 POST ROAD E","SKI AND SPORT OF WESTPORT","SKI AND SPORT OF WESTPORT"," RIDGEFIELD CT","","","","RIDGEFIELD","CT","06877","US","US","WESTPORT","CT",""]
["C008391","SKI AND SPORT OF WESTPORT","867","877 POST ROAD E","SKI AND SPORT OF WESTPORT","SKI AND SPORT OF WESTPORT"," WESTPORT CT","","","","WESTPORT","CT","06880","US","US","WESTPORT","CT",""]
["C008395","POWDER HOUSE","1379","PO BOX 284","POWDER HOUSE","POWDER HOUSE"," BUELLTON CA","","","","BUELLTON","CA","93427","US","US","BUELLTON","CA",""]
["C008395","POWDER HOUSE","3370","PO BOX 284","POWDER HOUSE","POWDER HOUSE"," SOUTH LAKE TAHOE CA","","","","SOUTH LAKE TAHOE","CA","96150","US","US","BUELLTON","CA",""]
["C008396","KITTREDGE SPORTS","1636","PO BOX 598","KITTREDGE SPORTS","KITTREDGE SPORTS"," MAMMOTH LAKES CA","","","","MAMMOTH LAKES","CA","93546","US","US","MAMMOTH LAKES","CA",""]
["C008396","KITTREDGE SPORTS","27","PO BOX 598","KITTREDGE SPORTS","KITTREDGE SPORTS"," MAMMOTH LAKES CA","","","","MAMMOTH LAKES","CA","93546","US","US","MAMMOTH LAKES","CA",""]
["C008400","MOUNTAIN RECREATION","83","MOUNTAIN RECREATION INC","MOUNTAIN RECREATION","MOUNTAIN RECREATION"," GRASS VALLEY CA","","","","GRASS VALLEY","CA","95945","US","US","GRASS VALLEY","CA",""]
["C008401","JAYS SPORTING GOODS","1532","8800 S CLARE AVE","JAYS SPORTING GOODS","JAYS SPORTING GOODS"," CLARE MI","","","","CLARE","MI","48617","US","US","CLARE","MI",""]
["C008401","JAYS SPORTING GOODS","3628","8800 S CLARE AVE","JAYS SPORTING GOODS","JAYS SPORTING GOODS"," GAYLORD MI","","","","GAYLORD","MI","49735","US","US","CLARE","MI",""]
["C008406","PLAY IT AGAIN SPORTS - ANN ARBOR","1450","2461 W STADIUM BLVD","PLAY IT AGAIN SPORTS - ANN ARBOR","PLAY IT AGAIN SPORTS - ANN ARBOR"," ANN ARBOR MI","","","","ANN ARBOR","MI","48103","US","US","ANN ARBOR","MI",""]
["C008407","GRANITE CHIEF INC","1083","11368 DONNER PASS RD","GRANITE CHIEF INC","GRANITE CHIEF INC"," TRUCKEE CA","","","","TRUCKEE","CA","96161-4963","US","US","TRUCKEE","CA",""]
["C008410","MCU SPORTS","1499","822 JEFFERSON ST","MCU SPORTS","MCU SPORTS"," BOISE ID","","","","BOISE","ID","83702","US","US","BOISE","ID",""]
["C008410","MCU SPORTS","3589","822 JEFFERSON ST","MCU SPORTS","MCU SPORTS"," BOISE ID","","","","BOISE","ID","83702","US","US","BOISE","ID",""]
["C008410","MCU SPORTS","3590","822 JEFFERSON ST","MCU SPORTS","MCU SPORTS"," BOISE ID","","","","BOISE","ID","83702","US","US","BOISE","ID",""]
["C008414","GOLF & SKI WHSE","1480","290 PLAINFIELD RD","GOLF & SKI WHSE","GOLF & SKI WHSE"," WEST LEBANON NH","","","","WEST LEBANON","NH","03784","US","US","WEST LEBANON","NH",""]
["C008414","GOLF & SKI WHSE","3545","290 PLAINFIELD RD","GOLF & SKI WHSE","GOLF & SKI WHSE"," SCARBOROUGH ME","","","","SCARBOROUGH","ME","04074","US","US","WEST LEBANON","NH",""]
["C008414","GOLF & SKI WHSE","3546","290 PLAINFIELD RD","GOLF & SKI WHSE","GOLF & SKI WHSE"," GREENLAND NH","","","","GREENLAND","NH","03840","US","US","WEST LEBANON","NH",""]
["C008414","GOLF & SKI WHSE","3547","290 PLAINFIELD RD","GOLF & SKI WHSE","GOLF & SKI WHSE"," HUDSON NH","","","","HUDSON","NH","03051","US","US","WEST LEBANON","NH",""]
["C008414","GOLF & SKI WHSE","3548","290 PLAINFIELD RD","GOLF & SKI WHSE","GOLF & SKI WHSE"," WEST LEBANON NH","","","","WEST LEBANON","NH","03784","US","US","WEST LEBANON","NH",""]
["C008414","GOLF & SKI WHSE","3549","290 PLAINFIELD RD","GOLF & SKI WHSE","GOLF & SKI WHSE"," DIXVILLE NH","","","","DIXVILLE","NH","03576","US","US","WEST LEBANON","NH",""]
["C008415","MT BACHELOR INC","1637","PO BOX 1000","MT BACHELOR INC","MT BACHELOR INC"," BEND OR","","","","BEND","OR","97702","US","US","BEND","OR",""]
["C008415","MT BACHELOR INC","30","PO BOX 1000","MT BACHELOR INC","MT BACHELOR INC"," BEND OR","","","","BEND","OR","97709","US","US","BEND","OR",""]
["C008421","JOES SPORTING GOODS-SKI SHOP","708","33 COUNTY RD B","JOES SPORTING GOODS-SKI SHOP","JOES SPORTING GOODS-SKI SHOP"," SAINT PAUL MN","","","","SAINT PAUL","MN","55117","US","US","SAINT PAUL","MN",""]
["C008423","MT HOOD MEADOWS","1654","PO BOX 470","MT HOOD MEADOWS","MT HOOD MEADOWS"," MOUNT HOOD OR","","","","MOUNT HOOD","OR","97041","US","US","MOUNT HOOD","OR",""]
["C008423","MT HOOD MEADOWS","49","PO BOX 470","MT HOOD MEADOWS","MT HOOD MEADOWS"," MOUNT HOOD OR","","","","MOUNT HOOD","OR","97041","US","US","MOUNT HOOD","OR",""]
["C008424","BERGS NORDIC SKI SHOP","1576","367 W 13TH AVE","BERGS NORDIC SKI SHOP","BERGS NORDIC SKI SHOP"," EUGENE OR","","","","EUGENE","OR","97401","US","US","EUGENE","OR",""]
["C008426","PLAY IT AGAIN SPORTS 10190","2067","BRUNO INVESTMENTS LLC","PLAY IT AGAIN SPORTS 10190","PLAY IT AGAIN SPORTS 10190"," FIFE WA","","","","FIFE","WA","98424","US","US","ANCHORAGE","AK",""]
["C008426","PLAY IT AGAIN SPORTS 10190","2068","BRUNO INVESTMENTS LLC","PLAY IT AGAIN SPORTS 10190","PLAY IT AGAIN SPORTS 10190"," AUBURN WA","","","","AUBURN","WA","98001","US","US","ANCHORAGE","AK",""]
["C008426","PLAY IT AGAIN SPORTS 10190","405","BRUNO INVESTMENTS LLC","PLAY IT AGAIN SPORTS 10190","PLAY IT AGAIN SPORTS 10190"," ANCHORAGE AK","","","","ANCHORAGE","AK","99503","US","US","ANCHORAGE","AK",""]
["C008427","PLAY IT AGAIN SPORTS - NORTH READING #10641","540","CCSS MGMT CORP","PLAY IT AGAIN SPORTS - NORTH READING #10641","PLAY IT AGAIN SPORTS - NORTH READING #10641"," NORTH READING MA","","","","NORTH READING","MA","01864","US","US","NORTH READING","MA",""]
["C008428","SPORTS BASEMENT LLC","2018","PO BOX 29570","SPORTS BASEMENT LLC","SPORTS BASEMENT LLC"," SAN FRANCISCO CA","","","","SAN FRANCISCO","CA","91432","US","US","SAN FRANCISCO","CA",""]
["C008428","SPORTS BASEMENT LLC","2019","PO BOX 29570","SPORTS BASEMENT LLC","SPORTS BASEMENT LLC"," SAN FRANCISCO CA","","","","SAN FRANCISCO","CA","94103","US","US","SAN FRANCISCO","CA",""]
["C008428","SPORTS BASEMENT LLC","2020","PO BOX 29570","SPORTS BASEMENT LLC","SPORTS BASEMENT LLC"," WALNUT CREEK CA","","","","WALNUT CREEK","CA","94598","US","US","SAN FRANCISCO","CA",""]
["C008428","SPORTS BASEMENT LLC","2021","PO BOX 29570","SPORTS BASEMENT LLC","SPORTS BASEMENT LLC"," SAN RAMON CA","","","","SAN RAMON","CA","94583","US","US","SAN FRANCISCO","CA",""]
["C008428","SPORTS BASEMENT LLC","2022","PO BOX 29570","SPORTS BASEMENT LLC","SPORTS BASEMENT LLC"," FOUNTAIN VALLEY CA","","","","FOUNTAIN VALLEY","CA","92708","US","US","SAN FRANCISCO","CA",""]
["C008428","SPORTS BASEMENT LLC","2023","PO BOX 29570","SPORTS BASEMENT LLC","SPORTS BASEMENT LLC"," OAKLAND CA","","","","OAKLAND","CA","94607","US","US","SAN FRANCISCO","CA",""]
["C008428","SPORTS BASEMENT LLC","2024","PO BOX 29570","SPORTS BASEMENT LLC","SPORTS BASEMENT LLC"," CAMPBELL CA","","","","CAMPBELL","CA","95008","US","US","SAN FRANCISCO","CA",""]
["C008428","SPORTS BASEMENT LLC","2025","PO BOX 29570","SPORTS BASEMENT LLC","SPORTS BASEMENT LLC"," SAN FRANCISCO CA","","","","SAN FRANCISCO","CA","94129","US","US","SAN FRANCISCO","CA",""]
["C008428","SPORTS BASEMENT LLC","2026","PO BOX 29570","SPORTS BASEMENT LLC","SPORTS BASEMENT LLC"," SANTA ROSA CA","","","","SANTA ROSA","CA","95407","US","US","SAN FRANCISCO","CA",""]
["C008428","SPORTS BASEMENT LLC","2027","PO BOX 29570","SPORTS BASEMENT LLC","SPORTS BASEMENT LLC"," SAN RAMON CA","","","","SAN RAMON","CA","94583","US","US","SAN FRANCISCO","CA",""]
["C008428","SPORTS BASEMENT LLC","2028","PO BOX 29570","SPORTS BASEMENT LLC","SPORTS BASEMENT LLC"," SUNNYVALE CA","","","","SUNNYVALE","CA","94085","US","US","SAN FRANCISCO","CA",""]
["C008428","SPORTS BASEMENT LLC","2029","PO BOX 29570","SPORTS BASEMENT LLC","SPORTS BASEMENT LLC"," SANTA ROSA CA","","","","SANTA ROSA","CA","95407","US","US","SAN FRANCISCO","CA",""]
["C008428","SPORTS BASEMENT LLC","2030","PO BOX 29570","SPORTS BASEMENT LLC","SPORTS BASEMENT LLC"," SAN RAMON CA","","","","SAN RAMON","CA","94583","US","US","SAN FRANCISCO","CA",""]
["C008428","SPORTS BASEMENT LLC","2031","PO BOX 29570","SPORTS BASEMENT LLC","SPORTS BASEMENT LLC"," NOVATO CA","","","","NOVATO","CA","94945","US","US","SAN FRANCISCO","CA",""]
["C008428","SPORTS BASEMENT LLC","2032","PO BOX 29570","SPORTS BASEMENT LLC","SPORTS BASEMENT LLC"," REDWOOD CITY CA","","","","REDWOOD CITY","CA","94063","US","US","SAN FRANCISCO","CA",""]
["C008428","SPORTS BASEMENT LLC","2033","PO BOX 29570","SPORTS BASEMENT LLC","SPORTS BASEMENT LLC"," BERKELEY CA","","","","BERKELEY","CA","94703","US","US","SAN FRANCISCO","CA",""]
["C008428","SPORTS BASEMENT LLC","348","PO BOX 29570","SPORTS BASEMENT LLC","SPORTS BASEMENT LLC"," SAN FRANCISCO CA","","","","SAN FRANCISCO","CA","94129-0570","US","US","SAN FRANCISCO","CA",""]
["C008429","MR BIKE & SKI","65","1016 LUDINGTON ST","MR BIKE & SKI","MR BIKE & SKI"," ESCANABA MI","","","","ESCANABA","MI","49829","US","US","ESCANABA","MI",""]
["C008430","JACKSON HOLE MOUNTAIN RESORT","1512","PO BOX 290","JACKSON HOLE MOUNTAIN RESORT","JACKSON HOLE MOUNTAIN RESORT"," TETON VILLAGE WY","","","","TETON VILLAGE","WY","83025","US","US","TETON VILLAGE","WY",""]
["C008430","JACKSON HOLE MOUNTAIN RESORT","3606","PO BOX 290","JACKSON HOLE MOUNTAIN RESORT","JACKSON HOLE MOUNTAIN RESORT"," WILSON WY","","","","WILSON","WY","83014","US","US","TETON VILLAGE","WY",""]
["C008430","JACKSON HOLE MOUNTAIN RESORT","3607","PO BOX 290","JACKSON HOLE MOUNTAIN RESORT","JACKSON HOLE MOUNTAIN RESORT"," TETON VILLAGE WY","","","","TETON VILLAGE","WY","83025","US","US","TETON VILLAGE","WY",""]
["C008430","JACKSON HOLE MOUNTAIN RESORT","3608","PO BOX 290","JACKSON HOLE MOUNTAIN RESORT","JACKSON HOLE MOUNTAIN RESORT"," JACKSON WY","","","","JACKSON","WY","83001","US","US","TETON VILLAGE","WY",""]
["C008430","JACKSON HOLE MOUNTAIN RESORT","3609","PO BOX 290","JACKSON HOLE MOUNTAIN RESORT","JACKSON HOLE MOUNTAIN RESORT"," JACKSON WY","","","","JACKSON","WY","83001","US","US","TETON VILLAGE","WY",""]
["C008436","SPORTSMENS DEN","1587","SPORTSMENS DEN INC","SPORTSMENS DEN","SPORTSMENS DEN"," MOUNT SHASTA CA","","","","MOUNT SHASTA","CA","96067","US","US","MOUNT SHASTA","CA",""]
["C008436","SPORTSMENS DEN","3763","SPORTSMENS DEN INC","SPORTSMENS DEN","SPORTSMENS DEN"," MOUNT SHASTA CA","","","","MOUNT SHASTA","CA","96067","US","US","MOUNT SHASTA","CA",""]
["C008436","SPORTSMENS DEN","3764","SPORTSMENS DEN INC","SPORTSMENS DEN","SPORTSMENS DEN"," KLAMATH FALLS OR","","","","KLAMATH FALLS","OR","97601","US","US","MOUNT SHASTA","CA",""]
["C008437","BERKSHIRE OUTFITTERS","337","STEPHEN BLAZETEWSKI","BERKSHIRE OUTFITTERS","BERKSHIRE OUTFITTERS"," ADAMS MA","","","","ADAMS","MA","01220","US","US","ADAMS","MA",""]
["C008438","CHRISTY SPORTS CORP","1563","875 PARFET ST","CHRISTY SPORTS CORP","CHRISTY SPORTS CORP"," LAKEWOOD CO","","","","LAKEWOOD","CO","80215","US","US","LAKEWOOD","CO",""]
["C008438","CHRISTY SPORTS CORP","3663","875 PARFET ST","CHRISTY SPORTS CORP","CHRISTY SPORTS CORP"," TAOS NM","","","","TAOS","NM","87571","US","US","LAKEWOOD","CO",""]
["C008438","CHRISTY SPORTS CORP","3664","875 PARFET ST","CHRISTY SPORTS CORP","CHRISTY SPORTS CORP"," TAOS SKI VALLEY NM","","","","TAOS SKI VALLEY","NM","87525","US","US","LAKEWOOD","CO",""]
["C008438","CHRISTY SPORTS CORP","3665","875 PARFET ST","CHRISTY SPORTS CORP","CHRISTY SPORTS CORP"," TAOS SKI VALLEY NM","","","","TAOS SKI VALLEY","NM","87525","US","US","LAKEWOOD","CO",""]
["C008438","CHRISTY SPORTS CORP","3666","875 PARFET ST","CHRISTY SPORTS CORP","CHRISTY SPORTS CORP"," SANTE FE NM","","","","SANTE FE","NM","87501","US","US","LAKEWOOD","CO",""]
["C008438","CHRISTY SPORTS CORP","3667","875 PARFET ST","CHRISTY SPORTS CORP","CHRISTY SPORTS CORP"," SNOWMASS VILLAGE CO","","","","SNOWMASS VILLAGE","CO","81615","US","US","LAKEWOOD","CO",""]
["C008438","CHRISTY SPORTS CORP","3668","875 PARFET ST","CHRISTY SPORTS CORP","CHRISTY SPORTS CORP"," AVON CO","","","","AVON","CO","81620","US","US","LAKEWOOD","CO",""]
["C008438","CHRISTY SPORTS CORP","3669","875 PARFET ST","CHRISTY SPORTS CORP","CHRISTY SPORTS CORP"," BRECKENRIDGE CO","","","","BRECKENRIDGE","CO","80424","US","US","LAKEWOOD","CO",""]
["C008438","CHRISTY SPORTS CORP","3670","875 PARFET ST","CHRISTY SPORTS CORP","CHRISTY SPORTS CORP"," KEYSTONE CO","","","","KEYSTONE","CO","80435","US","US","LAKEWOOD","CO",""]
["C008438","CHRISTY SPORTS CORP","3671","875 PARFET ST","CHRISTY SPORTS CORP","CHRISTY SPORTS CORP"," BRECKENRIDGE CO","","","","BRECKENRIDGE","CO","80424","US","US","LAKEWOOD","CO",""]
["C008438","CHRISTY SPORTS CORP","3672","875 PARFET ST","CHRISTY SPORTS CORP","CHRISTY SPORTS CORP"," AVON CO","","","","AVON","CO","81620","US","US","LAKEWOOD","CO",""]
["C008438","CHRISTY SPORTS CORP","3673","875 PARFET ST","CHRISTY SPORTS CORP","CHRISTY SPORTS CORP"," STEAMBOAT SPRINGS CO","","","","STEAMBOAT SPRINGS","CO","80487","US","US","LAKEWOOD","CO",""]
["C008438","CHRISTY SPORTS CORP","3674","875 PARFET ST","CHRISTY SPORTS CORP","CHRISTY SPORTS CORP"," STEAMBOAT SPRINGS CO","","","","STEAMBOAT SPRINGS","CO","80487","US","US","LAKEWOOD","CO",""]
["C008438","CHRISTY SPORTS CORP","3675","875 PARFET ST","CHRISTY SPORTS CORP","CHRISTY SPORTS CORP"," STEAMBOAT SPRINGS CO","","","","STEAMBOAT SPRINGS","CO","80487","US","US","LAKEWOOD","CO",""]
["C008438","CHRISTY SPORTS CORP","3676","875 PARFET ST","CHRISTY SPORTS CORP","CHRISTY SPORTS CORP"," STEAMBOAT SPRINGS CO","","","","STEAMBOAT SPRINGS","CO","80477","US","US","LAKEWOOD","CO",""]
["C008438","CHRISTY SPORTS CORP","3677","875 PARFET ST","CHRISTY SPORTS CORP","CHRISTY SPORTS CORP"," WINTER PARK CO","","","","WINTER PARK","CO","80482","US","US","LAKEWOOD","CO",""]
["C008438","CHRISTY SPORTS CORP","3678","875 PARFET ST","CHRISTY SPORTS CORP","CHRISTY SPORTS CORP"," AVON CO","","","","AVON","CO","81620","US","US","LAKEWOOD","CO",""]
["C008438","CHRISTY SPORTS CORP","3679","875 PARFET ST","CHRISTY SPORTS CORP","CHRISTY SPORTS CORP"," STEAMBOAT SPRINGS CO","","","","STEAMBOAT SPRINGS","CO","80477","US","US","LAKEWOOD","CO",""]
["C008438","CHRISTY SPORTS CORP","3680","875 PARFET ST","CHRISTY SPORTS CORP","CHRISTY SPORTS CORP"," TELLURIDE CO","","","","TELLURIDE","CO","81435","US","US","LAKEWOOD","CO",""]
["C008438","CHRISTY SPORTS CORP","3681","875 PARFET ST","CHRISTY SPORTS CORP","CHRISTY SPORTS CORP"," SALT LAKE CITY UT","","","","SALT LAKE CITY","UT","84124","US","US","LAKEWOOD","CO",""]
["C008438","CHRISTY SPORTS CORP","3682","875 PARFET ST","CHRISTY SPORTS CORP","CHRISTY SPORTS CORP"," BIG SKY MT","","","","BIG SKY","MT","59716","US","US","LAKEWOOD","CO",""]
["C008438","CHRISTY SPORTS CORP","3683","875 PARFET ST","CHRISTY SPORTS CORP","CHRISTY SPORTS CORP"," CRESTED BUTTE CO","","","","CRESTED BUTTE","CO","81224","US","US","LAKEWOOD","CO",""]
["C008438","CHRISTY SPORTS CORP","3684","875 PARFET ST","CHRISTY SPORTS CORP","CHRISTY SPORTS CORP"," LITTLETON CO","","","","LITTLETON","CO","80123","US","US","LAKEWOOD","CO",""]
["C008438","CHRISTY SPORTS CORP","3685","875 PARFET ST","CHRISTY SPORTS CORP","CHRISTY SPORTS CORP"," GREENWOOD VILLAGE CO","","","","GREENWOOD VILLAGE","CO","80111","US","US","LAKEWOOD","CO",""]
["C008438","CHRISTY SPORTS CORP","3686","875 PARFET ST","CHRISTY SPORTS CORP","CHRISTY SPORTS CORP"," DENVER CO","","","","DENVER","CO","80206","US","US","LAKEWOOD","CO",""]
["C008438","CHRISTY SPORTS CORP","3687","875 PARFET ST","CHRISTY SPORTS CORP","CHRISTY SPORTS CORP"," COLORADO SPRINGS CO","","","","COLORADO SPRINGS","CO","80918","US","US","LAKEWOOD","CO",""]
["C008438","CHRISTY SPORTS CORP","3688","875 PARFET ST","CHRISTY SPORTS CORP","CHRISTY SPORTS CORP"," BOULDER CO","","","","BOULDER","CO","80301","US","US","LAKEWOOD","CO",""]
["C008438","CHRISTY SPORTS CORP","3689","875 PARFET ST","CHRISTY SPORTS CORP","CHRISTY SPORTS CORP"," KEYSTONE CO","","","","KEYSTONE","CO","80435","US","US","LAKEWOOD","CO",""]
["C008438","CHRISTY SPORTS CORP","3690","875 PARFET ST","CHRISTY SPORTS CORP","CHRISTY SPORTS CORP"," DILLON CO","","","","DILLON","CO","80435","US","US","LAKEWOOD","CO",""]
["C008438","CHRISTY SPORTS CORP","3691","875 PARFET ST","CHRISTY SPORTS CORP","CHRISTY SPORTS CORP"," FRISCO CO","","","","FRISCO","CO","80443","US","US","LAKEWOOD","CO",""]
["C008438","CHRISTY SPORTS CORP","3692","875 PARFET ST","CHRISTY SPORTS CORP","CHRISTY SPORTS CORP"," BRECKENRIDGE CO","","","","BRECKENRIDGE","CO","80424","US","US","LAKEWOOD","CO",""]
["C008438","CHRISTY SPORTS CORP","3693","875 PARFET ST","CHRISTY SPORTS CORP","CHRISTY SPORTS CORP"," COPPER MOUNTAIN CO","","","","COPPER MOUNTAIN","CO","80443","US","US","LAKEWOOD","CO",""]
["C008438","CHRISTY SPORTS CORP","3694","875 PARFET ST","CHRISTY SPORTS CORP","CHRISTY SPORTS CORP"," BRECKENRIDGE CO","","","","BRECKENRIDGE","CO","80424","US","US","LAKEWOOD","CO",""]
["C008438","CHRISTY SPORTS CORP","3695","875 PARFET ST","CHRISTY SPORTS CORP","CHRISTY SPORTS CORP"," VAIL CO","","","","VAIL","CO","81657","US","US","LAKEWOOD","CO",""]
["C008438","CHRISTY SPORTS CORP","3696","875 PARFET ST","CHRISTY SPORTS CORP","CHRISTY SPORTS CORP"," AVON CO","","","","AVON","CO","81620","US","US","LAKEWOOD","CO",""]
["C008438","CHRISTY SPORTS CORP","3697","875 PARFET ST","CHRISTY SPORTS CORP","CHRISTY SPORTS CORP"," CENTENNIAL CO","","","","CENTENNIAL","CO","80112","US","US","LAKEWOOD","CO",""]
["C008438","CHRISTY SPORTS CORP","3698","875 PARFET ST","CHRISTY SPORTS CORP","CHRISTY SPORTS CORP"," CRESTED BUTTE CO","","","","CRESTED BUTTE","CO","81225","US","US","LAKEWOOD","CO",""]
["C008438","CHRISTY SPORTS CORP","3699","875 PARFET ST","CHRISTY SPORTS CORP","CHRISTY SPORTS CORP"," STEAMBOAT SPRINGS CO","","","","STEAMBOAT SPRINGS","CO","80487","US","US","LAKEWOOD","CO",""]
["C008438","CHRISTY SPORTS CORP","3700","875 PARFET ST","CHRISTY SPORTS CORP","CHRISTY SPORTS CORP"," STEAMBOAT SPRINGS CO","","","","STEAMBOAT SPRINGS","CO","80487","US","US","LAKEWOOD","CO",""]
["C008438","CHRISTY SPORTS CORP","3701","875 PARFET ST","CHRISTY SPORTS CORP","CHRISTY SPORTS CORP"," SNOWMASS VILLAGE CO","","","","SNOWMASS VILLAGE","CO","81615","US","US","LAKEWOOD","CO",""]
["C008438","CHRISTY SPORTS CORP","3702","875 PARFET ST","CHRISTY SPORTS CORP","CHRISTY SPORTS CORP"," PARK CITY UT","","","","PARK CITY","UT","84060","US","US","LAKEWOOD","CO",""]
["C008438","CHRISTY SPORTS CORP","3703","875 PARFET ST","CHRISTY SPORTS CORP","CHRISTY SPORTS CORP"," SNOWBIRD UT","","","","SNOWBIRD","UT","84092","US","US","LAKEWOOD","CO",""]
["C008438","CHRISTY SPORTS CORP","3704","875 PARFET ST","CHRISTY SPORTS CORP","CHRISTY SPORTS CORP"," WINTER PARK CO","","","","WINTER PARK","CO","80482","US","US","LAKEWOOD","CO",""]
["C008438","CHRISTY SPORTS CORP","3705","875 PARFET ST","CHRISTY SPORTS CORP","CHRISTY SPORTS CORP"," ENGLEWOOD CO","","","","ENGLEWOOD","CO","80112","US","US","LAKEWOOD","CO",""]
["C008438","CHRISTY SPORTS CORP","3706","875 PARFET ST","CHRISTY SPORTS CORP","CHRISTY SPORTS CORP"," FRISCO CO","","","","FRISCO","CO","80443","US","US","LAKEWOOD","CO",""]
["C008438","CHRISTY SPORTS CORP","3707","875 PARFET ST","CHRISTY SPORTS CORP","CHRISTY SPORTS CORP"," COPPER MOUNTAIN CO","","","","COPPER MOUNTAIN","CO","80443","US","US","LAKEWOOD","CO",""]
["C008438","CHRISTY SPORTS CORP","3708","875 PARFET ST","CHRISTY SPORTS CORP","CHRISTY SPORTS CORP"," LAKEWOOD CO","","","","LAKEWOOD","CO","80215","US","US","LAKEWOOD","CO",""]
["C008438","CHRISTY SPORTS CORP","3709","875 PARFET ST","CHRISTY SPORTS CORP","CHRISTY SPORTS CORP"," LAKEWOOD CO","","","","LAKEWOOD","CO","80401","US","US","LAKEWOOD","CO",""]
["C008438","CHRISTY SPORTS CORP","3710","875 PARFET ST","CHRISTY SPORTS CORP","CHRISTY SPORTS CORP"," BRECKENRIDGE CO","","","","BRECKENRIDGE","CO","80424","US","US","LAKEWOOD","CO",""]
["C008438","CHRISTY SPORTS CORP","3711","875 PARFET ST","CHRISTY SPORTS CORP","CHRISTY SPORTS CORP"," TAOS NM","","","","TAOS","NM","87571","US","US","LAKEWOOD","CO",""]
["C008438","CHRISTY SPORTS CORP","3712","875 PARFET ST","CHRISTY SPORTS CORP","CHRISTY SPORTS CORP"," TAOS SKI VALLEY NM","","","","TAOS SKI VALLEY","NM","87525","US","US","LAKEWOOD","CO",""]
["C008438","CHRISTY SPORTS CORP","3713","875 PARFET ST","CHRISTY SPORTS CORP","CHRISTY SPORTS CORP"," TAOS SKI VALLEY NM","","","","TAOS SKI VALLEY","NM","87525","US","US","LAKEWOOD","CO",""]
["C008438","CHRISTY SPORTS CORP","3714","875 PARFET ST","CHRISTY SPORTS CORP","CHRISTY SPORTS CORP"," VAIL CO","","","","VAIL","CO","81658","US","US","LAKEWOOD","CO",""]
["C008438","CHRISTY SPORTS CORP","3715","875 PARFET ST","CHRISTY SPORTS CORP","CHRISTY SPORTS CORP"," PLACERVILLE CO","","","","PLACERVILLE","CO","81430","US","US","LAKEWOOD","CO",""]
["C008438","CHRISTY SPORTS CORP","3716","875 PARFET ST","CHRISTY SPORTS CORP","CHRISTY SPORTS CORP"," SALT LAKE CITY UT","","","","SALT LAKE CITY","UT","84115","US","US","LAKEWOOD","CO",""]
["C008438","CHRISTY SPORTS CORP","3717","875 PARFET ST","CHRISTY SPORTS CORP","CHRISTY SPORTS CORP"," LAKEWOOD CO","","","","LAKEWOOD","CO","80215","US","US","LAKEWOOD","CO",""]
["C008438","CHRISTY SPORTS CORP","3718","875 PARFET ST","CHRISTY SPORTS CORP","CHRISTY SPORTS CORP"," LAKEWOOD CO","","","","LAKEWOOD","CO","80215","US","US","LAKEWOOD","CO",""]
["C008438","CHRISTY SPORTS CORP","3719","875 PARFET ST","CHRISTY SPORTS CORP","CHRISTY SPORTS CORP"," FRISCO CO","","","","FRISCO","CO","80443","US","US","LAKEWOOD","CO",""]
["C008438","CHRISTY SPORTS CORP","3720","875 PARFET ST","CHRISTY SPORTS CORP","CHRISTY SPORTS CORP"," BRECKENRIDGE CO","","","","BRECKENRIDGE","CO","80424","US","US","LAKEWOOD","CO",""]
["C008438","CHRISTY SPORTS CORP","3721","875 PARFET ST","CHRISTY SPORTS CORP","CHRISTY SPORTS CORP"," BRECHENRIDGE CO","","","","BRECHENRIDGE","CO","80424","US","US","LAKEWOOD","CO",""]
["C008438","CHRISTY SPORTS CORP","3722","875 PARFET ST","CHRISTY SPORTS CORP","CHRISTY SPORTS CORP"," STEAMBOAT SPRINGS CO","","","","STEAMBOAT SPRINGS","CO","80487","US","US","LAKEWOOD","CO",""]
["C008438","CHRISTY SPORTS CORP","3723","875 PARFET ST","CHRISTY SPORTS CORP","CHRISTY SPORTS CORP"," STEAMBOAT SPRINGS CO","","","","STEAMBOAT SPRINGS","CO","80487","US","US","LAKEWOOD","CO",""]
["C008438","CHRISTY SPORTS CORP","3724","875 PARFET ST","CHRISTY SPORTS CORP","CHRISTY SPORTS CORP"," TELLURIDE CO","","","","TELLURIDE","CO","81435","US","US","LAKEWOOD","CO",""]
["C008438","CHRISTY SPORTS CORP","3725","875 PARFET ST","CHRISTY SPORTS CORP","CHRISTY SPORTS CORP"," TELLURIDE CO","","","","TELLURIDE","CO","81435","US","US","LAKEWOOD","CO",""]
["C008438","CHRISTY SPORTS CORP","3726","875 PARFET ST","CHRISTY SPORTS CORP","CHRISTY SPORTS CORP"," PARK CITY UT","","","","PARK CITY","UT","84060","US","US","LAKEWOOD","CO",""]
["C008438","CHRISTY SPORTS CORP","3727","875 PARFET ST","CHRISTY SPORTS CORP","CHRISTY SPORTS CORP"," PARK CITY UT","","","","PARK CITY","UT","84060","US","US","LAKEWOOD","CO",""]
["C008438","CHRISTY SPORTS CORP","3728","875 PARFET ST","CHRISTY SPORTS CORP","CHRISTY SPORTS CORP"," PARK CITY UT","","","","PARK CITY","UT","84060","US","US","LAKEWOOD","CO",""]
["C008438","CHRISTY SPORTS CORP","3729","875 PARFET ST","CHRISTY SPORTS CORP","CHRISTY SPORTS CORP"," PARK CITY UT","","","","PARK CITY","UT","84098","US","US","LAKEWOOD","CO",""]
["C008438","CHRISTY SPORTS CORP","3730","875 PARFET ST","CHRISTY SPORTS CORP","CHRISTY SPORTS CORP"," GOLDEN CO","","","","GOLDEN","CO","80403","US","US","LAKEWOOD","CO",""]
["C008438","CHRISTY SPORTS CORP","3731","875 PARFET ST","CHRISTY SPORTS CORP","CHRISTY SPORTS CORP"," COLORADO SPRINGS CO","","","","COLORADO SPRINGS","CO","80920","US","US","LAKEWOOD","CO",""]
["C008438","CHRISTY SPORTS CORP","3732","875 PARFET ST","CHRISTY SPORTS CORP","CHRISTY SPORTS CORP"," ARVADA CO","","","","ARVADA","CO","80003","US","US","LAKEWOOD","CO",""]
["C008438","CHRISTY SPORTS CORP","3733","875 PARFET ST","CHRISTY SPORTS CORP","CHRISTY SPORTS CORP"," CRESTED BUTTE CO","","","","CRESTED BUTTE","CO","81225","US","US","LAKEWOOD","CO",""]
["C008438","CHRISTY SPORTS CORP","3734","875 PARFET ST","CHRISTY SPORTS CORP","CHRISTY SPORTS CORP"," GYPSUM CO","","","","GYPSUM","CO","81637","US","US","LAKEWOOD","CO",""]
["C008438","CHRISTY SPORTS CORP","3735","875 PARFET ST","CHRISTY SPORTS CORP","CHRISTY SPORTS CORP"," BROOMFIELD CO","","","","BROOMFIELD","CO","80021","US","US","LAKEWOOD","CO",""]
["C008438","CHRISTY SPORTS CORP","3736","875 PARFET ST","CHRISTY SPORTS CORP","CHRISTY SPORTS CORP"," FORT COLLINS CO","","","","FORT COLLINS","CO","80525","US","US","LAKEWOOD","CO",""]
["C008442","TONKA CYCLE AND SKI","872","CHANHASSEN BIKE &amp; SKI INC","TONKA CYCLE AND SKI","TONKA CYCLE AND SKI"," HOPKINS MN","","","","HOPKINS","MN","55343-8852","US","US","HOPKINS","MN",""]
["C008443","SKI STATION","2855","2132 GRAND AVENUE","SKI STATION","SKI STATION"," RED LODGE MT","","","","RED LODGE","MT","59068","US","US","BILLINGS","MT",""]
["C008443","SKI STATION","989","2132 GRAND AVENUE","SKI STATION","SKI STATION"," BILLINGS MT","","","","BILLINGS","MT","59102","US","US","BILLINGS","MT",""]
["C008454","SKI WINDHAM OPERATING CORP WINDHAM MOUNTAIN SPORTS","166","PO BOX 459","SKI WINDHAM OPERATING CORP WINDHAM MOUNTAIN SPORTS","SKI WINDHAM OPERATING CORP WINDHAM MOUNTAIN SPORTS"," WINDHAM NY","","","","WINDHAM","NY","12496","US","US","WINDHAM","NY",""]
["C008454","SKI WINDHAM OPERATING CORP WINDHAM MOUNTAIN SPORTS","1864","PO BOX 459","SKI WINDHAM OPERATING CORP WINDHAM MOUNTAIN SPORTS","SKI WINDHAM OPERATING CORP WINDHAM MOUNTAIN SPORTS"," WINDHAM NY","","","","WINDHAM","NY","12496","US","US","WINDHAM","NY",""]
["C008454","SKI WINDHAM OPERATING CORP WINDHAM MOUNTAIN SPORTS","1865","PO BOX 459","SKI WINDHAM OPERATING CORP WINDHAM MOUNTAIN SPORTS","SKI WINDHAM OPERATING CORP WINDHAM MOUNTAIN SPORTS"," WINDHAM NY","","","","WINDHAM","NY","12496","US","US","WINDHAM","NY",""]
["C008458","US OUTDOOR STORE","517","600 NW 14TH AVENUE","US OUTDOOR STORE","US OUTDOOR STORE"," PORTLAND OR","","","","PORTLAND","OR","97209","US","US","PORTLAND","OR",""]
["C008459","BOBOS MOGUL MOUSE SKI AND BOARD","1516","PO BOX 10206","BOBOS MOGUL MOUSE SKI AND BOARD","BOBOS MOGUL MOUSE SKI AND BOARD"," RENO NV","","","","RENO","NV","89510","US","US","RENO","NV",""]
["C008459","BOBOS MOGUL MOUSE SKI AND BOARD","3612","PO BOX 10206","BOBOS MOGUL MOUSE SKI AND BOARD","BOBOS MOGUL MOUSE SKI AND BOARD"," RENO NV","","","","RENO","NV","89502","US","US","RENO","NV",""]
["C008460","SPORTHAUS NORTHWEST INC","1504","326 COLUMBIA CENTER BLVD","SPORTHAUS NORTHWEST INC","SPORTHAUS NORTHWEST INC"," KENNEWICK WA","","","","KENNEWICK","WA","99336","US","US","KENNEWICK","WA",""]
["C008465","BJS SPORT SHOP","2837","PO BOX 619","BJS SPORT SHOP","BJS SPORT SHOP"," MINOCQUA WI","","","","MINOCQUA","WI","54548","US","US","MINOCQUA","WI",""]
["C008465","BJS SPORT SHOP","955","PO BOX 619","BJS SPORT SHOP","BJS SPORT SHOP"," MINOCQUA WI","","","","MINOCQUA","WI","54548","US","US","MINOCQUA","WI",""]
["C008468","GREAT OUTDOOR SHOP","1533","PO BOX 787","GREAT OUTDOOR SHOP","GREAT OUTDOOR SHOP"," PINEDALE WY","","","","PINEDALE","WY","82941","US","US","PINEDALE","WY",""]
["C008468","GREAT OUTDOOR SHOP","3629","PO BOX 787","GREAT OUTDOOR SHOP","GREAT OUTDOOR SHOP"," PINEDALE WY","","","","PINEDALE","WY","82941","US","US","PINEDALE","WY",""]
["C008471","VAIL RESORTS RETAIL","133868","390 INTERLOCKEN CRESCENT","VAIL RESORTS RETAIL","VAIL RESORTS RETAIL"," BROOMFIELD CO","","","","BROOMFIELD","CO","80021","US","US","BROOMFIELD","CO",""]
["C008471","VAIL RESORTS RETAIL","2705","390 INTERLOCKEN CRESCENT","VAIL RESORTS RETAIL","VAIL RESORTS RETAIL"," WEST DOVER VT","","","","WEST DOVER","VT","05356","US","US","BROOMFIELD","CO",""]
["C008471","VAIL RESORTS RETAIL","2706","390 INTERLOCKEN CRESCENT","VAIL RESORTS RETAIL","VAIL RESORTS RETAIL"," WEST DOVER VT","","","","WEST DOVER","VT","05357","US","US","BROOMFIELD","CO",""]
["C008471","VAIL RESORTS RETAIL","2707","390 INTERLOCKEN CRESCENT","VAIL RESORTS RETAIL","VAIL RESORTS RETAIL"," WEST DOVER VT","","","","WEST DOVER","VT","05358","US","US","BROOMFIELD","CO",""]
["C008471","VAIL RESORTS RETAIL","2708","390 INTERLOCKEN CRESCENT","VAIL RESORTS RETAIL","VAIL RESORTS RETAIL"," WEST DOVER VT","","","","WEST DOVER","VT","05356","US","US","BROOMFIELD","CO",""]
["C008471","VAIL RESORTS RETAIL","2709","390 INTERLOCKEN CRESCENT","VAIL RESORTS RETAIL","VAIL RESORTS RETAIL"," WEST DOVER VT","","","","WEST DOVER","VT","05359","US","US","BROOMFIELD","CO",""]
["C008471","VAIL RESORTS RETAIL","2710","390 INTERLOCKEN CRESCENT","VAIL RESORTS RETAIL","VAIL RESORTS RETAIL"," WEST DOVER VT","","","","WEST DOVER","VT","05360","US","US","BROOMFIELD","CO",""]
["C008471","VAIL RESORTS RETAIL","2711","390 INTERLOCKEN CRESCENT","VAIL RESORTS RETAIL","VAIL RESORTS RETAIL"," WEST DOVER VT","","","","WEST DOVER","VT","05361","US","US","BROOMFIELD","CO",""]
["C008471","VAIL RESORTS RETAIL","2712","390 INTERLOCKEN CRESCENT","VAIL RESORTS RETAIL","VAIL RESORTS RETAIL"," WEST DOVER VT","","","","WEST DOVER","VT","05362","US","US","BROOMFIELD","CO",""]
["C008471","VAIL RESORTS RETAIL","2713","390 INTERLOCKEN CRESCENT","VAIL RESORTS RETAIL","VAIL RESORTS RETAIL"," WEST DOVER VT","","","","WEST DOVER","VT","05363","US","US","BROOMFIELD","CO",""]
["C008471","VAIL RESORTS RETAIL","2714","390 INTERLOCKEN CRESCENT","VAIL RESORTS RETAIL","VAIL RESORTS RETAIL"," HUNTER NY","","","","HUNTER","NY","12442","US","US","BROOMFIELD","CO",""]
["C008471","VAIL RESORTS RETAIL","2715","390 INTERLOCKEN CRESCENT","VAIL RESORTS RETAIL","VAIL RESORTS RETAIL"," HUNTER NY","","","","HUNTER","NY","12442","US","US","BROOMFIELD","CO",""]
["C008471","VAIL RESORTS RETAIL","2716","390 INTERLOCKEN CRESCENT","VAIL RESORTS RETAIL","VAIL RESORTS RETAIL"," HUNTER NY","","","","HUNTER","NY","12442","US","US","BROOMFIELD","CO",""]
["C008471","VAIL RESORTS RETAIL","2717","390 INTERLOCKEN CRESCENT","VAIL RESORTS RETAIL","VAIL RESORTS RETAIL"," WEST DOVER VT","","","","WEST DOVER","VT","05356","US","US","BROOMFIELD","CO",""]
["C008471","VAIL RESORTS RETAIL","2718","390 INTERLOCKEN CRESCENT","VAIL RESORTS RETAIL","VAIL RESORTS RETAIL"," TRUCKEE CA","","","","TRUCKEE","CA","96161","US","US","BROOMFIELD","CO",""]
["C008471","VAIL RESORTS RETAIL","2719","390 INTERLOCKEN CRESCENT","VAIL RESORTS RETAIL","VAIL RESORTS RETAIL"," APPLETON WI","","","","APPLETON","WI","54913","US","US","BROOMFIELD","CO",""]
["C008471","VAIL RESORTS RETAIL","2720","390 INTERLOCKEN CRESCENT","VAIL RESORTS RETAIL","VAIL RESORTS RETAIL"," PARK CITY UT","","","","PARK CITY","UT","84060","US","US","BROOMFIELD","CO",""]
["C008471","VAIL RESORTS RETAIL","2721","390 INTERLOCKEN CRESCENT","VAIL RESORTS RETAIL","VAIL RESORTS RETAIL"," AVON CO","","","","AVON","CO","81620","US","US","BROOMFIELD","CO",""]
["C008471","VAIL RESORTS RETAIL","2722","390 INTERLOCKEN CRESCENT","VAIL RESORTS RETAIL","VAIL RESORTS RETAIL"," AURORA CO","","","","AURORA","CO","80011","US","US","BROOMFIELD","CO",""]
["C008471","VAIL RESORTS RETAIL","2723","390 INTERLOCKEN CRESCENT","VAIL RESORTS RETAIL","VAIL RESORTS RETAIL"," TELLURIDE CO","","","","TELLURIDE","CO","81435","US","US","BROOMFIELD","CO",""]
["C008471","VAIL RESORTS RETAIL","2724","390 INTERLOCKEN CRESCENT","VAIL RESORTS RETAIL","VAIL RESORTS RETAIL"," MOUNTAIN VILLAGE CO","","","","MOUNTAIN VILLAGE","CO","81435","US","US","BROOMFIELD","CO",""]
["C008471","VAIL RESORTS RETAIL","2725","390 INTERLOCKEN CRESCENT","VAIL RESORTS RETAIL","VAIL RESORTS RETAIL"," AURORA CO","","","","AURORA","CO","80011","US","US","BROOMFIELD","CO",""]
["C008471","VAIL RESORTS RETAIL","2726","390 INTERLOCKEN CRESCENT","VAIL RESORTS RETAIL","VAIL RESORTS RETAIL"," AURORA CO","","","","AURORA","CO","80011","US","US","BROOMFIELD","CO",""]
["C008471","VAIL RESORTS RETAIL","2727","390 INTERLOCKEN CRESCENT","VAIL RESORTS RETAIL","VAIL RESORTS RETAIL"," SOUTH LAKE TAHOE CA","","","","SOUTH LAKE TAHOE","CA","96150","US","US","BROOMFIELD","CO",""]
["C008471","VAIL RESORTS RETAIL","2728","390 INTERLOCKEN CRESCENT","VAIL RESORTS RETAIL","VAIL RESORTS RETAIL"," SOUTH LAKE TAHOE CA","","","","SOUTH LAKE TAHOE","CA","96150","US","US","BROOMFIELD","CO",""]
["C008471","VAIL RESORTS RETAIL","2729","390 INTERLOCKEN CRESCENT","VAIL RESORTS RETAIL","VAIL RESORTS RETAIL"," ROSEVILLE CA","","","","ROSEVILLE","CA","95678","US","US","BROOMFIELD","CO",""]
["C008471","VAIL RESORTS RETAIL","2730","390 INTERLOCKEN CRESCENT","VAIL RESORTS RETAIL","VAIL RESORTS RETAIL"," BEAVER CREEK CO","","","","BEAVER CREEK","CO","81620","US","US","BROOMFIELD","CO",""]
["C008471","VAIL RESORTS RETAIL","2731","390 INTERLOCKEN CRESCENT","VAIL RESORTS RETAIL","VAIL RESORTS RETAIL"," STOWE VT","","","","STOWE","VT","05672","US","US","BROOMFIELD","CO",""]
["C008471","VAIL RESORTS RETAIL","2732","390 INTERLOCKEN CRESCENT","VAIL RESORTS RETAIL","VAIL RESORTS RETAIL"," STOWE VT","","","","STOWE","VT","05673","US","US","BROOMFIELD","CO",""]
["C008471","VAIL RESORTS RETAIL","2733","390 INTERLOCKEN CRESCENT","VAIL RESORTS RETAIL","VAIL RESORTS RETAIL"," STOWE VT","","","","STOWE","VT","05674","US","US","BROOMFIELD","CO",""]
["C008471","VAIL RESORTS RETAIL","2734","390 INTERLOCKEN CRESCENT","VAIL RESORTS RETAIL","VAIL RESORTS RETAIL"," STOWE VT","","","","STOWE","VT","05675","US","US","BROOMFIELD","CO",""]
["C008471","VAIL RESORTS RETAIL","2735","390 INTERLOCKEN CRESCENT","VAIL RESORTS RETAIL","VAIL RESORTS RETAIL"," STOWE VT","","","","STOWE","VT","05676","US","US","BROOMFIELD","CO",""]
["C008471","VAIL RESORTS RETAIL","2736","390 INTERLOCKEN CRESCENT","VAIL RESORTS RETAIL","VAIL RESORTS RETAIL"," STOWE VT","","","","STOWE","VT","05677","US","US","BROOMFIELD","CO",""]
["C008471","VAIL RESORTS RETAIL","2737","390 INTERLOCKEN CRESCENT","VAIL RESORTS RETAIL","VAIL RESORTS RETAIL"," STOWE VT","","","","STOWE","VT","05678","US","US","BROOMFIELD","CO",""]
["C008471","VAIL RESORTS RETAIL","2738","390 INTERLOCKEN CRESCENT","VAIL RESORTS RETAIL","VAIL RESORTS RETAIL"," STOWE VT","","","","STOWE","VT","05679","US","US","BROOMFIELD","CO",""]
["C008471","VAIL RESORTS RETAIL","2739","390 INTERLOCKEN CRESCENT","VAIL RESORTS RETAIL","VAIL RESORTS RETAIL"," STOWE VT","","","","STOWE","VT","05680","US","US","BROOMFIELD","CO",""]
["C008471","VAIL RESORTS RETAIL","2740","390 INTERLOCKEN CRESCENT","VAIL RESORTS RETAIL","VAIL RESORTS RETAIL"," STOWE VT","","","","STOWE","VT","05681","US","US","BROOMFIELD","CO",""]
["C008471","VAIL RESORTS RETAIL","2741","390 INTERLOCKEN CRESCENT","VAIL RESORTS RETAIL","VAIL RESORTS RETAIL"," STOWE VT","","","","STOWE","VT","05682","US","US","BROOMFIELD","CO",""]
["C008471","VAIL RESORTS RETAIL","2742","390 INTERLOCKEN CRESCENT","VAIL RESORTS RETAIL","VAIL RESORTS RETAIL"," STOWE","","","","STOWE","","05683","US","US","BROOMFIELD","CO",""]
["C008471","VAIL RESORTS RETAIL","2743","390 INTERLOCKEN CRESCENT","VAIL RESORTS RETAIL","VAIL RESORTS RETAIL"," STOWE","","","","STOWE","","05684","US","US","BROOMFIELD","CO",""]
["C008471","VAIL RESORTS RETAIL","2744","390 INTERLOCKEN CRESCENT","VAIL RESORTS RETAIL","VAIL RESORTS RETAIL"," NEWBURY NH","","","","NEWBURY","NH","03255","US","US","BROOMFIELD","CO",""]
["C008471","VAIL RESORTS RETAIL","2745","390 INTERLOCKEN CRESCENT","VAIL RESORTS RETAIL","VAIL RESORTS RETAIL"," NEWBURY NH","","","","NEWBURY","NH","03256","US","US","BROOMFIELD","CO",""]
["C008471","VAIL RESORTS RETAIL","2746","390 INTERLOCKEN CRESCENT","VAIL RESORTS RETAIL","VAIL RESORTS RETAIL"," NEWBURY NH","","","","NEWBURY","NH","03257","US","US","BROOMFIELD","CO",""]
["C008471","VAIL RESORTS RETAIL","2747","390 INTERLOCKEN CRESCENT","VAIL RESORTS RETAIL","VAIL RESORTS RETAIL"," LUDLOW VT","","","","LUDLOW","VT","05149","US","US","BROOMFIELD","CO",""]
["C008471","VAIL RESORTS RETAIL","2748","390 INTERLOCKEN CRESCENT","VAIL RESORTS RETAIL","VAIL RESORTS RETAIL"," LUDLOW VT","","","","LUDLOW","VT","05150","US","US","BROOMFIELD","CO",""]
["C008471","VAIL RESORTS RETAIL","2749","390 INTERLOCKEN CRESCENT","VAIL RESORTS RETAIL","VAIL RESORTS RETAIL"," LUDLOW VT","","","","LUDLOW","VT","05151","US","US","BROOMFIELD","CO",""]
["C008471","VAIL RESORTS RETAIL","2750","390 INTERLOCKEN CRESCENT","VAIL RESORTS RETAIL","VAIL RESORTS RETAIL"," LUDLOW VT","","","","LUDLOW","VT","05152","US","US","BROOMFIELD","CO",""]
["C008471","VAIL RESORTS RETAIL","2751","390 INTERLOCKEN CRESCENT","VAIL RESORTS RETAIL","VAIL RESORTS RETAIL"," AURORA CO","","","","AURORA","CO","80011","US","US","BROOMFIELD","CO",""]
["C008471","VAIL RESORTS RETAIL","2752","390 INTERLOCKEN CRESCENT","VAIL RESORTS RETAIL","VAIL RESORTS RETAIL"," GLENWOOD SPRINGS CO","","","","GLENWOOD SPRINGS","CO","81601","US","US","BROOMFIELD","CO",""]
["C008471","VAIL RESORTS RETAIL","2753","390 INTERLOCKEN CRESCENT","VAIL RESORTS RETAIL","VAIL RESORTS RETAIL"," AURORA CO","","","","AURORA","CO","80011","US","US","BROOMFIELD","CO",""]
["C008471","VAIL RESORTS RETAIL","2754","390 INTERLOCKEN CRESCENT","VAIL RESORTS RETAIL","VAIL RESORTS RETAIL"," GLENWOOD SPRINGS CO","","","","GLENWOOD SPRINGS","CO","81601","US","US","BROOMFIELD","CO",""]
["C008471","VAIL RESORTS RETAIL","2755","390 INTERLOCKEN CRESCENT","VAIL RESORTS RETAIL","VAIL RESORTS RETAIL"," AURORA CO","","","","AURORA","CO","80011","US","US","BROOMFIELD","CO",""]
["C008471","VAIL RESORTS RETAIL","2756","390 INTERLOCKEN CRESCENT","VAIL RESORTS RETAIL","VAIL RESORTS RETAIL"," BOULDER CO","","","","BOULDER","CO","80302","US","US","BROOMFIELD","CO",""]
["C008471","VAIL RESORTS RETAIL","2757","390 INTERLOCKEN CRESCENT","VAIL RESORTS RETAIL","VAIL RESORTS RETAIL"," TELLURIDE CO","","","","TELLURIDE","CO","81435","US","US","BROOMFIELD","CO",""]
["C008471","VAIL RESORTS RETAIL","2758","390 INTERLOCKEN CRESCENT","VAIL RESORTS RETAIL","VAIL RESORTS RETAIL"," AURORA CO","","","","AURORA","CO","80014","US","US","BROOMFIELD","CO",""]
["C008471","VAIL RESORTS RETAIL","2759","390 INTERLOCKEN CRESCENT","VAIL RESORTS RETAIL","VAIL RESORTS RETAIL"," AURORA CO","","","","AURORA","CO","80014","US","US","BROOMFIELD","CO",""]
["C008471","VAIL RESORTS RETAIL","2760","390 INTERLOCKEN CRESCENT","VAIL RESORTS RETAIL","VAIL RESORTS RETAIL"," LITTLETON CO","","","","LITTLETON","CO","80123","US","US","BROOMFIELD","CO",""]
["C008471","VAIL RESORTS RETAIL","2761","390 INTERLOCKEN CRESCENT","VAIL RESORTS RETAIL","VAIL RESORTS RETAIL"," TELLURIDE CO","","","","TELLURIDE","CO","81435","US","US","BROOMFIELD","CO",""]
["C008471","VAIL RESORTS RETAIL","2762","390 INTERLOCKEN CRESCENT","VAIL RESORTS RETAIL","VAIL RESORTS RETAIL"," VAIL CO","","","","VAIL","CO","81657","US","US","BROOMFIELD","CO",""]
["C008471","VAIL RESORTS RETAIL","2763","390 INTERLOCKEN CRESCENT","VAIL RESORTS RETAIL","VAIL RESORTS RETAIL"," AURORA CO","","","","AURORA","CO","80014","US","US","BROOMFIELD","CO",""]
["C008471","VAIL RESORTS RETAIL","2764","390 INTERLOCKEN CRESCENT","VAIL RESORTS RETAIL","VAIL RESORTS RETAIL"," AURORA CO","","","","AURORA","CO","80011","US","US","BROOMFIELD","CO",""]
["C008471","VAIL RESORTS RETAIL","2765","390 INTERLOCKEN CRESCENT","VAIL RESORTS RETAIL","VAIL RESORTS RETAIL"," BRECKENRIDGE CO","","","","BRECKENRIDGE","CO","80424","US","US","BROOMFIELD","CO",""]
["C008471","VAIL RESORTS RETAIL","2766","390 INTERLOCKEN CRESCENT","VAIL RESORTS RETAIL","VAIL RESORTS RETAIL"," VAIL CO","","","","VAIL","CO","81657","US","US","BROOMFIELD","CO",""]
["C008471","VAIL RESORTS RETAIL","2767","390 INTERLOCKEN CRESCENT","VAIL RESORTS RETAIL","VAIL RESORTS RETAIL"," GLENWOOD SPRINGS CO","","","","GLENWOOD SPRINGS","CO","81601","US","US","BROOMFIELD","CO",""]
["C008471","VAIL RESORTS RETAIL","2768","390 INTERLOCKEN CRESCENT","VAIL RESORTS RETAIL","VAIL RESORTS RETAIL"," TELLURIDE CO","","","","TELLURIDE","CO","81435","US","US","BROOMFIELD","CO",""]
["C008471","VAIL RESORTS RETAIL","2769","390 INTERLOCKEN CRESCENT","VAIL RESORTS RETAIL","VAIL RESORTS RETAIL"," AURORA CO","","","","AURORA","CO","80011","US","US","BROOMFIELD","CO",""]
["C008471","VAIL RESORTS RETAIL","2770","390 INTERLOCKEN CRESCENT","VAIL RESORTS RETAIL","VAIL RESORTS RETAIL"," TELLURIDE CO","","","","TELLURIDE","CO","81435","US","US","BROOMFIELD","CO",""]
["C008471","VAIL RESORTS RETAIL","2771","390 INTERLOCKEN CRESCENT","VAIL RESORTS RETAIL","VAIL RESORTS RETAIL"," VAIL CO","","","","VAIL","CO","81657-3621","US","US","BROOMFIELD","CO",""]
["C008471","VAIL RESORTS RETAIL","2772","390 INTERLOCKEN CRESCENT","VAIL RESORTS RETAIL","VAIL RESORTS RETAIL"," KIRKWOOD CA","","","","KIRKWOOD","CA","95646","US","US","BROOMFIELD","CO",""]
["C008471","VAIL RESORTS RETAIL","2773","390 INTERLOCKEN CRESCENT","VAIL RESORTS RETAIL","VAIL RESORTS RETAIL"," AVON CO","","","","AVON","CO","81620","US","US","BROOMFIELD","CO",""]
["C008471","VAIL RESORTS RETAIL","2774","390 INTERLOCKEN CRESCENT","VAIL RESORTS RETAIL","VAIL RESORTS RETAIL"," AVON CO","","","","AVON","CO","81620","US","US","BROOMFIELD","CO",""]
["C008471","VAIL RESORTS RETAIL","2775","390 INTERLOCKEN CRESCENT","VAIL RESORTS RETAIL","VAIL RESORTS RETAIL"," AURORA CO","","","","AURORA","CO","80011","US","US","BROOMFIELD","CO",""]
["C008471","VAIL RESORTS RETAIL","2776","390 INTERLOCKEN CRESCENT","VAIL RESORTS RETAIL","VAIL RESORTS RETAIL"," STATELINE NV","","","","STATELINE","NV","89449","US","US","BROOMFIELD","CO",""]
["C008471","VAIL RESORTS RETAIL","2777","390 INTERLOCKEN CRESCENT","VAIL RESORTS RETAIL","VAIL RESORTS RETAIL"," SOUTH LAKE TAHOE CA","","","","SOUTH LAKE TAHOE","CA","96150","US","US","BROOMFIELD","CO",""]
["C008471","VAIL RESORTS RETAIL","2778","390 INTERLOCKEN CRESCENT","VAIL RESORTS RETAIL","VAIL RESORTS RETAIL"," BRECKENRIDGE CO","","","","BRECKENRIDGE","CO","80424","US","US","BROOMFIELD","CO",""]
["C008471","VAIL RESORTS RETAIL","2779","390 INTERLOCKEN CRESCENT","VAIL RESORTS RETAIL","VAIL RESORTS RETAIL"," AURORA CO","","","","AURORA","CO","80011","US","US","BROOMFIELD","CO",""]
["C008471","VAIL RESORTS RETAIL","2780","390 INTERLOCKEN CRESCENT","VAIL RESORTS RETAIL","VAIL RESORTS RETAIL"," STOWE VT","","","","STOWE","VT","05672","US","US","BROOMFIELD","CO",""]
["C008471","VAIL RESORTS RETAIL","2781","390 INTERLOCKEN CRESCENT","VAIL RESORTS RETAIL","VAIL RESORTS RETAIL"," HASTINGS MN","","","","HASTINGS","MN","55033","US","US","BROOMFIELD","CO",""]
["C008471","VAIL RESORTS RETAIL","2782","390 INTERLOCKEN CRESCENT","VAIL RESORTS RETAIL","VAIL RESORTS RETAIL"," PARK CITY UT","","","","PARK CITY","UT","84060","US","US","BROOMFIELD","CO",""]
["C008471","VAIL RESORTS RETAIL","2783","390 INTERLOCKEN CRESCENT","VAIL RESORTS RETAIL","VAIL RESORTS RETAIL"," KIRKWOOD CA","","","","KIRKWOOD","CA","95646","US","US","BROOMFIELD","CO",""]
["C008471","VAIL RESORTS RETAIL","2784","390 INTERLOCKEN CRESCENT","VAIL RESORTS RETAIL","VAIL RESORTS RETAIL"," AVON CO","","","","AVON","CO","81620","US","US","BROOMFIELD","CO",""]
["C008471","VAIL RESORTS RETAIL","2785","390 INTERLOCKEN CRESCENT","VAIL RESORTS RETAIL","VAIL RESORTS RETAIL"," PARK CITY UT","","","","PARK CITY","UT","84098-5952","US","US","BROOMFIELD","CO",""]
["C008471","VAIL RESORTS RETAIL","2786","390 INTERLOCKEN CRESCENT","VAIL RESORTS RETAIL","VAIL RESORTS RETAIL"," AURORA CO","","","","AURORA","CO","80011","US","US","BROOMFIELD","CO",""]
["C008471","VAIL RESORTS RETAIL","2787","390 INTERLOCKEN CRESCENT","VAIL RESORTS RETAIL","VAIL RESORTS RETAIL"," BERKELEY CA","","","","BERKELEY","CA","94705","US","US","BROOMFIELD","CO",""]
["C008471","VAIL RESORTS RETAIL","2788","390 INTERLOCKEN CRESCENT","VAIL RESORTS RETAIL","VAIL RESORTS RETAIL"," CONCORD CA","","","","CONCORD","CA","94520","US","US","BROOMFIELD","CO",""]
["C008471","VAIL RESORTS RETAIL","2789","390 INTERLOCKEN CRESCENT","VAIL RESORTS RETAIL","VAIL RESORTS RETAIL"," CORTE MADERA CA","","","","CORTE MADERA","CA","94925","US","US","BROOMFIELD","CO",""]
["C008471","VAIL RESORTS RETAIL","2790","390 INTERLOCKEN CRESCENT","VAIL RESORTS RETAIL","VAIL RESORTS RETAIL"," DUBLIN CA","","","","DUBLIN","CA","94568","US","US","BROOMFIELD","CO",""]
["C008471","VAIL RESORTS RETAIL","2791","390 INTERLOCKEN CRESCENT","VAIL RESORTS RETAIL","VAIL RESORTS RETAIL"," REDWOOD CITY CA","","","","REDWOOD CITY","CA","94063","US","US","BROOMFIELD","CO",""]
["C008471","VAIL RESORTS RETAIL","2792","390 INTERLOCKEN CRESCENT","VAIL RESORTS RETAIL","VAIL RESORTS RETAIL"," SAN JOSE CA","","","","SAN JOSE","CA","95129","US","US","BROOMFIELD","CO",""]
["C008471","VAIL RESORTS RETAIL","2793","390 INTERLOCKEN CRESCENT","VAIL RESORTS RETAIL","VAIL RESORTS RETAIL"," SAINT LOUIS PARK MN","","","","SAINT LOUIS PARK","MN","55426","US","US","BROOMFIELD","CO",""]
["C008471","VAIL RESORTS RETAIL","2794","390 INTERLOCKEN CRESCENT","VAIL RESORTS RETAIL","VAIL RESORTS RETAIL"," SOUTH LAKE TAHOE CA","","","","SOUTH LAKE TAHOE","CA","96150","US","US","BROOMFIELD","CO",""]
["C008471","VAIL RESORTS RETAIL","2795","390 INTERLOCKEN CRESCENT","VAIL RESORTS RETAIL","VAIL RESORTS RETAIL"," AURORA CO","","","","AURORA","CO","80011","US","US","BROOMFIELD","CO",""]
["C008471","VAIL RESORTS RETAIL","2796","390 INTERLOCKEN CRESCENT","VAIL RESORTS RETAIL","VAIL RESORTS RETAIL"," VAIL CO","","","","VAIL","CO","81657","US","US","BROOMFIELD","CO",""]
["C008471","VAIL RESORTS RETAIL","2797","390 INTERLOCKEN CRESCENT","VAIL RESORTS RETAIL","VAIL RESORTS RETAIL"," LONE TREE CO","","","","LONE TREE","CO","80124","US","US","BROOMFIELD","CO",""]
["C008471","VAIL RESORTS RETAIL","2798","390 INTERLOCKEN CRESCENT","VAIL RESORTS RETAIL","VAIL RESORTS RETAIL"," TELLURIDE CO","","","","TELLURIDE","CO","81435","US","US","BROOMFIELD","CO",""]
["C008471","VAIL RESORTS RETAIL","2799","390 INTERLOCKEN CRESCENT","VAIL RESORTS RETAIL","VAIL RESORTS RETAIL"," KEYSTONE CO","","","","KEYSTONE","CO","80435","US","US","BROOMFIELD","CO",""]
["C008471","VAIL RESORTS RETAIL","2800","390 INTERLOCKEN CRESCENT","VAIL RESORTS RETAIL","VAIL RESORTS RETAIL"," WESTMINSTER CO","","","","WESTMINSTER","CO","80021","US","US","BROOMFIELD","CO",""]
["C008471","VAIL RESORTS RETAIL","2801","390 INTERLOCKEN CRESCENT","VAIL RESORTS RETAIL","VAIL RESORTS RETAIL"," PARK CITY UT","","","","PARK CITY","UT","84060","US","US","BROOMFIELD","CO",""]
["C008471","VAIL RESORTS RETAIL","2802","390 INTERLOCKEN CRESCENT","VAIL RESORTS RETAIL","VAIL RESORTS RETAIL"," FRISCO CO","","","","FRISCO","CO","80443","US","US","BROOMFIELD","CO",""]
["C008471","VAIL RESORTS RETAIL","2803","390 INTERLOCKEN CRESCENT","VAIL RESORTS RETAIL","VAIL RESORTS RETAIL"," COLORADO SPRINGS CO","","","","COLORADO SPRINGS","CO","80918","US","US","BROOMFIELD","CO",""]
["C008471","VAIL RESORTS RETAIL","2804","390 INTERLOCKEN CRESCENT","VAIL RESORTS RETAIL","VAIL RESORTS RETAIL"," ARVADA CO","","","","ARVADA","CO","80004","US","US","BROOMFIELD","CO",""]
["C008471","VAIL RESORTS RETAIL","2805","390 INTERLOCKEN CRESCENT","VAIL RESORTS RETAIL","VAIL RESORTS RETAIL"," ROSEVILLE CA","","","","ROSEVILLE","CA","95678","US","US","BROOMFIELD","CO",""]
["C008471","VAIL RESORTS RETAIL","2806","390 INTERLOCKEN CRESCENT","VAIL RESORTS RETAIL","VAIL RESORTS RETAIL"," TAHOE CITY CA","","","","TAHOE CITY","CA","96145","US","US","BROOMFIELD","CO",""]
["C008471","VAIL RESORTS RETAIL","2807","390 INTERLOCKEN CRESCENT","VAIL RESORTS RETAIL","VAIL RESORTS RETAIL"," SOUTH LAKE TAHOE CA","","","","SOUTH LAKE TAHOE","CA","96150-8673","US","US","BROOMFIELD","CO",""]
["C008471","VAIL RESORTS RETAIL","2808","390 INTERLOCKEN CRESCENT","VAIL RESORTS RETAIL","VAIL RESORTS RETAIL"," SILVERTHORNE CO","","","","SILVERTHORNE","CO","80498","US","US","BROOMFIELD","CO",""]
["C008471","VAIL RESORTS RETAIL","2809","390 INTERLOCKEN CRESCENT","VAIL RESORTS RETAIL","VAIL RESORTS RETAIL"," SOUTH LAKE TAHOE CA","","","","SOUTH LAKE TAHOE","CA","96150","US","US","BROOMFIELD","CO",""]
["C008471","VAIL RESORTS RETAIL","2810","390 INTERLOCKEN CRESCENT","VAIL RESORTS RETAIL","VAIL RESORTS RETAIL"," SOUTH LAKE TAHOE CA","","","","SOUTH LAKE TAHOE","CA","96150","US","US","BROOMFIELD","CO",""]
["C008471","VAIL RESORTS RETAIL","2811","390 INTERLOCKEN CRESCENT","VAIL RESORTS RETAIL","VAIL RESORTS RETAIL"," SNOWMASS VILLAGE CO","","","","SNOWMASS VILLAGE","CO","81615","US","US","BROOMFIELD","CO",""]
["C008471","VAIL RESORTS RETAIL","2812","390 INTERLOCKEN CRESCENT","VAIL RESORTS RETAIL","VAIL RESORTS RETAIL"," AVON CO","","","","AVON","CO","81620","US","US","BROOMFIELD","CO",""]
["C008471","VAIL RESORTS RETAIL","2813","390 INTERLOCKEN CRESCENT","VAIL RESORTS RETAIL","VAIL RESORTS RETAIL"," PARK CITY UT","","","","PARK CITY","UT","84060","US","US","BROOMFIELD","CO",""]
["C008471","VAIL RESORTS RETAIL","2814","390 INTERLOCKEN CRESCENT","VAIL RESORTS RETAIL","VAIL RESORTS RETAIL"," BRECKENRIDGE CO","","","","BRECKENRIDGE","CO","80424","US","US","BROOMFIELD","CO",""]
["C008471","VAIL RESORTS RETAIL","2815","390 INTERLOCKEN CRESCENT","VAIL RESORTS RETAIL","VAIL RESORTS RETAIL"," BOULDER CO","","","","BOULDER","CO","80302","US","US","BROOMFIELD","CO",""]
["C008471","VAIL RESORTS RETAIL","2816","390 INTERLOCKEN CRESCENT","VAIL RESORTS RETAIL","VAIL RESORTS RETAIL"," TELLURIDE CO","","","","TELLURIDE","CO","81435","US","US","BROOMFIELD","CO",""]
["C008471","VAIL RESORTS RETAIL","2817","390 INTERLOCKEN CRESCENT","VAIL RESORTS RETAIL","VAIL RESORTS RETAIL"," TRUCKEE CA","","","","TRUCKEE","CA","96161","US","US","BROOMFIELD","CO",""]
["C008471","VAIL RESORTS RETAIL","2818","390 INTERLOCKEN CRESCENT","VAIL RESORTS RETAIL","VAIL RESORTS RETAIL"," KIRKWOOD CA","","","","KIRKWOOD","CA","95646","US","US","BROOMFIELD","CO",""]
["C008471","VAIL RESORTS RETAIL","2819","390 INTERLOCKEN CRESCENT","VAIL RESORTS RETAIL","VAIL RESORTS RETAIL"," AVON CO","","","","AVON","CO","81620","US","US","BROOMFIELD","CO",""]
["C008471","VAIL RESORTS RETAIL","2820","390 INTERLOCKEN CRESCENT","VAIL RESORTS RETAIL","VAIL RESORTS RETAIL"," AURORA CO","","","","AURORA","CO","80011","US","US","BROOMFIELD","CO",""]
["C008471","VAIL RESORTS RETAIL","2821","390 INTERLOCKEN CRESCENT","VAIL RESORTS RETAIL","VAIL RESORTS RETAIL"," AVON CO","","","","AVON","CO","81620","US","US","BROOMFIELD","CO",""]
["C008471","VAIL RESORTS RETAIL","2822","390 INTERLOCKEN CRESCENT","VAIL RESORTS RETAIL","VAIL RESORTS RETAIL"," CRESTED BUTTE CO","","","","CRESTED BUTTE","CO","81225","US","US","BROOMFIELD","CO",""]
["C008471","VAIL RESORTS RETAIL","2823","390 INTERLOCKEN CRESCENT","VAIL RESORTS RETAIL","VAIL RESORTS RETAIL"," AURORA CO","","","","AURORA","CO","800011","US","US","BROOMFIELD","CO",""]
["C008471","VAIL RESORTS RETAIL","2824","390 INTERLOCKEN CRESCENT","VAIL RESORTS RETAIL","VAIL RESORTS RETAIL"," STOWE VT","","","","STOWE","VT","05672","US","US","BROOMFIELD","CO",""]
["C008471","VAIL RESORTS RETAIL","2825","390 INTERLOCKEN CRESCENT","VAIL RESORTS RETAIL","VAIL RESORTS RETAIL"," LITTLETON CO","","","","LITTLETON","CO","80123","US","US","BROOMFIELD","CO",""]
["C008471","VAIL RESORTS RETAIL","2826","390 INTERLOCKEN CRESCENT","VAIL RESORTS RETAIL","VAIL RESORTS RETAIL"," COLORADO SPRINGS CO","","","","COLORADO SPRINGS","CO","80918","US","US","BROOMFIELD","CO",""]
["C008471","VAIL RESORTS RETAIL","2827","390 INTERLOCKEN CRESCENT","VAIL RESORTS RETAIL","VAIL RESORTS RETAIL"," KEYSTONE CO","","","","KEYSTONE","CO","80435","US","US","BROOMFIELD","CO",""]
["C008471","VAIL RESORTS RETAIL","2828","390 INTERLOCKEN CRESCENT","VAIL RESORTS RETAIL","VAIL RESORTS RETAIL"," GLENWOOD SPRINGS CO","","","","GLENWOOD SPRINGS","CO","81601-3033","US","US","BROOMFIELD","CO",""]
["C008471","VAIL RESORTS RETAIL","2829","390 INTERLOCKEN CRESCENT","VAIL RESORTS RETAIL","VAIL RESORTS RETAIL"," SNOWMASS VILLAGE CO","","","","SNOWMASS VILLAGE","CO","81615","US","US","BROOMFIELD","CO",""]
["C008471","VAIL RESORTS RETAIL","2830","390 INTERLOCKEN CRESCENT","VAIL RESORTS RETAIL","VAIL RESORTS RETAIL"," SNOWMASS VILLAGE CO","","","","SNOWMASS VILLAGE","CO","81615","US","US","BROOMFIELD","CO",""]
["C008471","VAIL RESORTS RETAIL","2831","390 INTERLOCKEN CRESCENT","VAIL RESORTS RETAIL","VAIL RESORTS RETAIL"," ASPEN CO","","","","ASPEN","CO","81611","US","US","BROOMFIELD","CO",""]
["C008471","VAIL RESORTS RETAIL","2832","390 INTERLOCKEN CRESCENT","VAIL RESORTS RETAIL","VAIL RESORTS RETAIL"," AVON CO","","","","AVON","CO","81620","US","US","BROOMFIELD","CO",""]
["C008471","VAIL RESORTS RETAIL","2833","390 INTERLOCKEN CRESCENT","VAIL RESORTS RETAIL","VAIL RESORTS RETAIL"," VAIL CO","","","","VAIL","CO","81657","US","US","BROOMFIELD","CO",""]
["C008471","VAIL RESORTS RETAIL","944","390 INTERLOCKEN CRESCENT","VAIL RESORTS RETAIL","VAIL RESORTS RETAIL"," Aurora CO","","","","Aurora","CO","80019","US","US","BROOMFIELD","CO",""]
["C008474","SCANDINAVIAN SKI SHOP INC","1518","1621 WAUKEGAN RD","SCANDINAVIAN SKI SHOP INC","SCANDINAVIAN SKI SHOP INC"," GLENVIEW IL","","","","GLENVIEW","IL","60025","US","US","GLENVIEW","IL",""]
["C008476","BAVARIAN VILLAGE SKI OUTFITTERS","1287","25545 LORAIN RD","BAVARIAN VILLAGE SKI OUTFITTERS","BAVARIAN VILLAGE SKI OUTFITTERS"," NORTH OLMSTED OH","","","","NORTH OLMSTED","OH","44070","US","US","NORTH OLMSTED","OH",""]
["C008476","BAVARIAN VILLAGE SKI OUTFITTERS","3281","25545 LORAIN RD","BAVARIAN VILLAGE SKI OUTFITTERS","BAVARIAN VILLAGE SKI OUTFITTERS"," MAYFIELD HEIGHTS OH","","","","MAYFIELD HEIGHTS","OH","44124","US","US","NORTH OLMSTED","OH",""]
["C008476","BAVARIAN VILLAGE SKI OUTFITTERS","3282","25545 LORAIN RD","BAVARIAN VILLAGE SKI OUTFITTERS","BAVARIAN VILLAGE SKI OUTFITTERS"," MAYFIELD HEIGHTS OH","","","","MAYFIELD HEIGHTS","OH","44124","US","US","NORTH OLMSTED","OH",""]
["C008477","BIG 5 SPORTING GOODS","2169","UNITED MERCHANDISING INC","BIG 5 SPORTING GOODS","BIG 5 SPORTING GOODS"," TACOMA WA","","","","TACOMA","WA","98409","US","US","LOS ANGELES","CA",""]
["C008477","BIG 5 SPORTING GOODS","2170","UNITED MERCHANDISING INC","BIG 5 SPORTING GOODS","BIG 5 SPORTING GOODS"," YUBA CITY CA","","","","YUBA CITY","CA","95991","US","US","LOS ANGELES","CA",""]
["C008477","BIG 5 SPORTING GOODS","2171","UNITED MERCHANDISING INC","BIG 5 SPORTING GOODS","BIG 5 SPORTING GOODS"," CLOVIS CA","","","","CLOVIS","CA","93612","US","US","LOS ANGELES","CA",""]
["C008477","BIG 5 SPORTING GOODS","2172","UNITED MERCHANDISING INC","BIG 5 SPORTING GOODS","BIG 5 SPORTING GOODS"," SAN RAFAEL CA","","","","SAN RAFAEL","CA","94903","US","US","LOS ANGELES","CA",""]
["C008477","BIG 5 SPORTING GOODS","2173","UNITED MERCHANDISING INC","BIG 5 SPORTING GOODS","BIG 5 SPORTING GOODS"," WEST COVINA CA","","","","WEST COVINA","CA","91791","US","US","LOS ANGELES","CA",""]
["C008477","BIG 5 SPORTING GOODS","2174","UNITED MERCHANDISING INC","BIG 5 SPORTING GOODS","BIG 5 SPORTING GOODS"," VALENCIA CA","","","","VALENCIA","CA","91355","US","US","LOS ANGELES","CA",""]
["C008477","BIG 5 SPORTING GOODS","2175","UNITED MERCHANDISING INC","BIG 5 SPORTING GOODS","BIG 5 SPORTING GOODS"," BUENA PARK CA","","","","BUENA PARK","CA","90620","US","US","LOS ANGELES","CA",""]
["C008477","BIG 5 SPORTING GOODS","2176","UNITED MERCHANDISING INC","BIG 5 SPORTING GOODS","BIG 5 SPORTING GOODS"," VICTORVILLE CA","","","","VICTORVILLE","CA","92392","US","US","LOS ANGELES","CA",""]
["C008477","BIG 5 SPORTING GOODS","2177","UNITED MERCHANDISING INC","BIG 5 SPORTING GOODS","BIG 5 SPORTING GOODS"," VALLEJO CA","","","","VALLEJO","CA","94590","US","US","LOS ANGELES","CA",""]
["C008477","BIG 5 SPORTING GOODS","2178","UNITED MERCHANDISING INC","BIG 5 SPORTING GOODS","BIG 5 SPORTING GOODS"," BURBANK CA","","","","BURBANK","CA","91502","US","US","LOS ANGELES","CA",""]
["C008477","BIG 5 SPORTING GOODS","2179","UNITED MERCHANDISING INC","BIG 5 SPORTING GOODS","BIG 5 SPORTING GOODS"," LOS ANGELES CA","","","","LOS ANGELES","CA","90048","US","US","LOS ANGELES","CA",""]
["C008477","BIG 5 SPORTING GOODS","2180","UNITED MERCHANDISING INC","BIG 5 SPORTING GOODS","BIG 5 SPORTING GOODS"," CHINO CA","","","","CHINO","CA","91710","US","US","LOS ANGELES","CA",""]
["C008477","BIG 5 SPORTING GOODS","2181","UNITED MERCHANDISING INC","BIG 5 SPORTING GOODS","BIG 5 SPORTING GOODS"," RIVERSIDE CA","","","","RIVERSIDE","CA","92503","US","US","LOS ANGELES","CA",""]
["C008477","BIG 5 SPORTING GOODS","2182","UNITED MERCHANDISING INC","BIG 5 SPORTING GOODS","BIG 5 SPORTING GOODS"," LANCASTER CA","","","","LANCASTER","CA","93534","US","US","LOS ANGELES","CA",""]
["C008477","BIG 5 SPORTING GOODS","2183","UNITED MERCHANDISING INC","BIG 5 SPORTING GOODS","BIG 5 SPORTING GOODS"," PITTSBURG CA","","","","PITTSBURG","CA","94565","US","US","LOS ANGELES","CA",""]
["C008477","BIG 5 SPORTING GOODS","2184","UNITED MERCHANDISING INC","BIG 5 SPORTING GOODS","BIG 5 SPORTING GOODS"," SANTA MARIA CA","","","","SANTA MARIA","CA","93454","US","US","LOS ANGELES","CA",""]
["C008477","BIG 5 SPORTING GOODS","2185","UNITED MERCHANDISING INC","BIG 5 SPORTING GOODS","BIG 5 SPORTING GOODS"," SAN DIMAS CA","","","","SAN DIMAS","CA","91773","US","US","LOS ANGELES","CA",""]
["C008477","BIG 5 SPORTING GOODS","2186","UNITED MERCHANDISING INC","BIG 5 SPORTING GOODS","BIG 5 SPORTING GOODS"," PICO RIVERA CA","","","","PICO RIVERA","CA","90660","US","US","LOS ANGELES","CA",""]
["C008477","BIG 5 SPORTING GOODS","2187","UNITED MERCHANDISING INC","BIG 5 SPORTING GOODS","BIG 5 SPORTING GOODS"," LAS VEGAS NV","","","","LAS VEGAS","NV","89104","US","US","LOS ANGELES","CA",""]
["C008477","BIG 5 SPORTING GOODS","2188","UNITED MERCHANDISING INC","BIG 5 SPORTING GOODS","BIG 5 SPORTING GOODS"," BELLINGHAM WA","","","","BELLINGHAM","WA","98226","US","US","LOS ANGELES","CA",""]
["C008477","BIG 5 SPORTING GOODS","2189","UNITED MERCHANDISING INC","BIG 5 SPORTING GOODS","BIG 5 SPORTING GOODS"," GIG HARBOR WA","","","","GIG HARBOR","WA","98335","US","US","LOS ANGELES","CA",""]
["C008477","BIG 5 SPORTING GOODS","2190","UNITED MERCHANDISING INC","BIG 5 SPORTING GOODS","BIG 5 SPORTING GOODS"," ALHAMBRA CA","","","","ALHAMBRA","CA","91801","US","US","LOS ANGELES","CA",""]
["C008477","BIG 5 SPORTING GOODS","2191","UNITED MERCHANDISING INC","BIG 5 SPORTING GOODS","BIG 5 SPORTING GOODS"," SAN DIEGO CA","","","","SAN DIEGO","CA","92126","US","US","LOS ANGELES","CA",""]
["C008477","BIG 5 SPORTING GOODS","2192","UNITED MERCHANDISING INC","BIG 5 SPORTING GOODS","BIG 5 SPORTING GOODS"," NAPA CA","","","","NAPA","CA","94558","US","US","LOS ANGELES","CA",""]
["C008477","BIG 5 SPORTING GOODS","2193","UNITED MERCHANDISING INC","BIG 5 SPORTING GOODS","BIG 5 SPORTING GOODS"," MILPITAS CA","","","","MILPITAS","CA","95035","US","US","LOS ANGELES","CA",""]
["C008477","BIG 5 SPORTING GOODS","2194","UNITED MERCHANDISING INC","BIG 5 SPORTING GOODS","BIG 5 SPORTING GOODS"," SAN FRANCISCO CA","","","","SAN FRANCISCO","CA","94123","US","US","LOS ANGELES","CA",""]
["C008477","BIG 5 SPORTING GOODS","2195","UNITED MERCHANDISING INC","BIG 5 SPORTING GOODS","BIG 5 SPORTING GOODS"," EUREKA CA","","","","EUREKA","CA","95501","US","US","LOS ANGELES","CA",""]
["C008477","BIG 5 SPORTING GOODS","2196","UNITED MERCHANDISING INC","BIG 5 SPORTING GOODS","BIG 5 SPORTING GOODS"," CARSON CA","","","","CARSON","CA","90746","US","US","LOS ANGELES","CA",""]
["C008477","BIG 5 SPORTING GOODS","2197","UNITED MERCHANDISING INC","BIG 5 SPORTING GOODS","BIG 5 SPORTING GOODS"," SAN DIEGO CA","","","","SAN DIEGO","CA","92115","US","US","LOS ANGELES","CA",""]
["C008477","BIG 5 SPORTING GOODS","2198","UNITED MERCHANDISING INC","BIG 5 SPORTING GOODS","BIG 5 SPORTING GOODS"," KENT WA","","","","KENT","WA","98031","US","US","LOS ANGELES","CA",""]
["C008477","BIG 5 SPORTING GOODS","2199","UNITED MERCHANDISING INC","BIG 5 SPORTING GOODS","BIG 5 SPORTING GOODS"," DAVIS CA","","","","DAVIS","CA","95616","US","US","LOS ANGELES","CA",""]
["C008477","BIG 5 SPORTING GOODS","2200","UNITED MERCHANDISING INC","BIG 5 SPORTING GOODS","BIG 5 SPORTING GOODS"," CANOGA PARK CA","","","","CANOGA PARK","CA","91303","US","US","LOS ANGELES","CA",""]
["C008477","BIG 5 SPORTING GOODS","2201","UNITED MERCHANDISING INC","BIG 5 SPORTING GOODS","BIG 5 SPORTING GOODS"," TURLOCK CA","","","","TURLOCK","CA","95380","US","US","LOS ANGELES","CA",""]
["C008477","BIG 5 SPORTING GOODS","2202","UNITED MERCHANDISING INC","BIG 5 SPORTING GOODS","BIG 5 SPORTING GOODS"," NORTHRIDGE CA","","","","NORTHRIDGE","CA","91324","US","US","LOS ANGELES","CA",""]
["C008477","BIG 5 SPORTING GOODS","2203","UNITED MERCHANDISING INC","BIG 5 SPORTING GOODS","BIG 5 SPORTING GOODS"," WALNUT CREEK CA","","","","WALNUT CREEK","CA","94596","US","US","LOS ANGELES","CA",""]
["C008477","BIG 5 SPORTING GOODS","2204","UNITED MERCHANDISING INC","BIG 5 SPORTING GOODS","BIG 5 SPORTING GOODS"," IRVINE CA","","","","IRVINE","CA","92614","US","US","LOS ANGELES","CA",""]
["C008477","BIG 5 SPORTING GOODS","2205","UNITED MERCHANDISING INC","BIG 5 SPORTING GOODS","BIG 5 SPORTING GOODS"," BELL GARDENS CA","","","","BELL GARDENS","CA","90201","US","US","LOS ANGELES","CA",""]
["C008477","BIG 5 SPORTING GOODS","2206","UNITED MERCHANDISING INC","BIG 5 SPORTING GOODS","BIG 5 SPORTING GOODS"," ALAMEDA CA","","","","ALAMEDA","CA","94501","US","US","LOS ANGELES","CA",""]
["C008477","BIG 5 SPORTING GOODS","2207","UNITED MERCHANDISING INC","BIG 5 SPORTING GOODS","BIG 5 SPORTING GOODS"," SEATTLE WA","","","","SEATTLE","WA","98105","US","US","LOS ANGELES","CA",""]
["C008477","BIG 5 SPORTING GOODS","2208","UNITED MERCHANDISING INC","BIG 5 SPORTING GOODS","BIG 5 SPORTING GOODS"," EL SEGUNDO CA","","","","EL SEGUNDO","CA","90245","US","US","LOS ANGELES","CA",""]
["C008477","BIG 5 SPORTING GOODS","2209","UNITED MERCHANDISING INC","BIG 5 SPORTING GOODS","BIG 5 SPORTING GOODS"," SAN PEDRO CA","","","","SAN PEDRO","CA","90731","US","US","LOS ANGELES","CA",""]
["C008477","BIG 5 SPORTING GOODS","2210","UNITED MERCHANDISING INC","BIG 5 SPORTING GOODS","BIG 5 SPORTING GOODS"," MENLO PARK CA","","","","MENLO PARK","CA","94025","US","US","LOS ANGELES","CA",""]
["C008477","BIG 5 SPORTING GOODS","2211","UNITED MERCHANDISING INC","BIG 5 SPORTING GOODS","BIG 5 SPORTING GOODS"," ROSEVILLE CA","","","","ROSEVILLE","CA","95661","US","US","LOS ANGELES","CA",""]
["C008477","BIG 5 SPORTING GOODS","2212","UNITED MERCHANDISING INC","BIG 5 SPORTING GOODS","BIG 5 SPORTING GOODS"," SAN BERNARDINO CA","","","","SAN BERNARDINO","CA","92404","US","US","LOS ANGELES","CA",""]
["C008477","BIG 5 SPORTING GOODS","2213","UNITED MERCHANDISING INC","BIG 5 SPORTING GOODS","BIG 5 SPORTING GOODS"," FRESNO CA","","","","FRESNO","CA","93711","US","US","LOS ANGELES","CA",""]
["C008477","BIG 5 SPORTING GOODS","2214","UNITED MERCHANDISING INC","BIG 5 SPORTING GOODS","BIG 5 SPORTING GOODS"," RANCHO CUCAMONGA CA","","","","RANCHO CUCAMONGA","CA","91730","US","US","LOS ANGELES","CA",""]
["C008477","BIG 5 SPORTING GOODS","2215","UNITED MERCHANDISING INC","BIG 5 SPORTING GOODS","BIG 5 SPORTING GOODS"," MORENO VALLEY CA","","","","MORENO VALLEY","CA","92553","US","US","LOS ANGELES","CA",""]
["C008477","BIG 5 SPORTING GOODS","2216","UNITED MERCHANDISING INC","BIG 5 SPORTING GOODS","BIG 5 SPORTING GOODS"," FONTANA CA","","","","FONTANA","CA","92335","US","US","LOS ANGELES","CA",""]
["C008477","BIG 5 SPORTING GOODS","2217","UNITED MERCHANDISING INC","BIG 5 SPORTING GOODS","BIG 5 SPORTING GOODS"," BREA CA","","","","BREA","CA","92821","US","US","LOS ANGELES","CA",""]
["C008477","BIG 5 SPORTING GOODS","2218","UNITED MERCHANDISING INC","BIG 5 SPORTING GOODS","BIG 5 SPORTING GOODS"," THOUSAND OAKS CA","","","","THOUSAND OAKS","CA","91360","US","US","LOS ANGELES","CA",""]
["C008477","BIG 5 SPORTING GOODS","2219","UNITED MERCHANDISING INC","BIG 5 SPORTING GOODS","BIG 5 SPORTING GOODS"," MORGAN HILL CA","","","","MORGAN HILL","CA","95037","US","US","LOS ANGELES","CA",""]
["C008477","BIG 5 SPORTING GOODS","2220","UNITED MERCHANDISING INC","BIG 5 SPORTING GOODS","BIG 5 SPORTING GOODS"," LAKEWOOD CA","","","","LAKEWOOD","CA","90712","US","US","LOS ANGELES","CA",""]
["C008477","BIG 5 SPORTING GOODS","2221","UNITED MERCHANDISING INC","BIG 5 SPORTING GOODS","BIG 5 SPORTING GOODS"," MONTEREY PARK CA","","","","MONTEREY PARK","CA","91754","US","US","LOS ANGELES","CA",""]
["C008477","BIG 5 SPORTING GOODS","2222","UNITED MERCHANDISING INC","BIG 5 SPORTING GOODS","BIG 5 SPORTING GOODS"," OLYMPIA WA","","","","OLYMPIA","WA","98502","US","US","LOS ANGELES","CA",""]
["C008477","BIG 5 SPORTING GOODS","2223","UNITED MERCHANDISING INC","BIG 5 SPORTING GOODS","BIG 5 SPORTING GOODS"," PETALUMA CA","","","","PETALUMA","CA","94954","US","US","LOS ANGELES","CA",""]
["C008477","BIG 5 SPORTING GOODS","2224","UNITED MERCHANDISING INC","BIG 5 SPORTING GOODS","BIG 5 SPORTING GOODS"," UKIAH CA","","","","UKIAH","CA","95482","US","US","LOS ANGELES","CA",""]
["C008477","BIG 5 SPORTING GOODS","2225","UNITED MERCHANDISING INC","BIG 5 SPORTING GOODS","BIG 5 SPORTING GOODS"," VACAVILLE CA","","","","VACAVILLE","CA","95687","US","US","LOS ANGELES","CA",""]
["C008477","BIG 5 SPORTING GOODS","2226","UNITED MERCHANDISING INC","BIG 5 SPORTING GOODS","BIG 5 SPORTING GOODS"," MANTECA CA","","","","MANTECA","CA","95337","US","US","LOS ANGELES","CA",""]
["C008477","BIG 5 SPORTING GOODS","2227","UNITED MERCHANDISING INC","BIG 5 SPORTING GOODS","BIG 5 SPORTING GOODS"," SAN FRANCISCO CA","","","","SAN FRANCISCO","CA","94132","US","US","LOS ANGELES","CA",""]
["C008477","BIG 5 SPORTING GOODS","2228","UNITED MERCHANDISING INC","BIG 5 SPORTING GOODS","BIG 5 SPORTING GOODS"," CAPISTRANO BEACH CA","","","","CAPISTRANO BEACH","CA","92624","US","US","LOS ANGELES","CA",""]
["C008477","BIG 5 SPORTING GOODS","2229","UNITED MERCHANDISING INC","BIG 5 SPORTING GOODS","BIG 5 SPORTING GOODS"," HANFORD CA","","","","HANFORD","CA","93230","US","US","LOS ANGELES","CA",""]
["C008477","BIG 5 SPORTING GOODS","2230","UNITED MERCHANDISING INC","BIG 5 SPORTING GOODS","BIG 5 SPORTING GOODS"," LIVERMORE CA","","","","LIVERMORE","CA","94550","US","US","LOS ANGELES","CA",""]
["C008477","BIG 5 SPORTING GOODS","2231","UNITED MERCHANDISING INC","BIG 5 SPORTING GOODS","BIG 5 SPORTING GOODS"," YUMA AZ","","","","YUMA","AZ","85364","US","US","LOS ANGELES","CA",""]
["C008477","BIG 5 SPORTING GOODS","2232","UNITED MERCHANDISING INC","BIG 5 SPORTING GOODS","BIG 5 SPORTING GOODS"," EL CENTRO CA","","","","EL CENTRO","CA","92243","US","US","LOS ANGELES","CA",""]
["C008477","BIG 5 SPORTING GOODS","2233","UNITED MERCHANDISING INC","BIG 5 SPORTING GOODS","BIG 5 SPORTING GOODS"," TUCSON AZ","","","","TUCSON","AZ","85705","US","US","LOS ANGELES","CA",""]
["C008477","BIG 5 SPORTING GOODS","2234","UNITED MERCHANDISING INC","BIG 5 SPORTING GOODS","BIG 5 SPORTING GOODS"," TUCSON AZ","","","","TUCSON","AZ","85712","US","US","LOS ANGELES","CA",""]
["C008477","BIG 5 SPORTING GOODS","2235","UNITED MERCHANDISING INC","BIG 5 SPORTING GOODS","BIG 5 SPORTING GOODS"," TEMPE AZ","","","","TEMPE","AZ","85282","US","US","LOS ANGELES","CA",""]
["C008477","BIG 5 SPORTING GOODS","2236","UNITED MERCHANDISING INC","BIG 5 SPORTING GOODS","BIG 5 SPORTING GOODS"," PHOENIX AZ","","","","PHOENIX","AZ","85032","US","US","LOS ANGELES","CA",""]
["C008477","BIG 5 SPORTING GOODS","2237","UNITED MERCHANDISING INC","BIG 5 SPORTING GOODS","BIG 5 SPORTING GOODS"," SPOKANE WA","","","","SPOKANE","WA","99208","US","US","LOS ANGELES","CA",""]
["C008477","BIG 5 SPORTING GOODS","2238","UNITED MERCHANDISING INC","BIG 5 SPORTING GOODS","BIG 5 SPORTING GOODS"," SPOKANE WA","","","","SPOKANE","WA","99212","US","US","LOS ANGELES","CA",""]
["C008477","BIG 5 SPORTING GOODS","2239","UNITED MERCHANDISING INC","BIG 5 SPORTING GOODS","BIG 5 SPORTING GOODS"," YAKIMA WA","","","","YAKIMA","WA","98902","US","US","LOS ANGELES","CA",""]
["C008477","BIG 5 SPORTING GOODS","2240","UNITED MERCHANDISING INC","BIG 5 SPORTING GOODS","BIG 5 SPORTING GOODS"," POMONA CA","","","","POMONA","CA","91768","US","US","LOS ANGELES","CA",""]
["C008477","BIG 5 SPORTING GOODS","2241","UNITED MERCHANDISING INC","BIG 5 SPORTING GOODS","BIG 5 SPORTING GOODS"," KENNEWICK WA","","","","KENNEWICK","WA","99336","US","US","LOS ANGELES","CA",""]
["C008477","BIG 5 SPORTING GOODS","2242","UNITED MERCHANDISING INC","BIG 5 SPORTING GOODS","BIG 5 SPORTING GOODS"," LONG BEACH CA","","","","LONG BEACH","CA","90804","US","US","LOS ANGELES","CA",""]
["C008477","BIG 5 SPORTING GOODS","2243","UNITED MERCHANDISING INC","BIG 5 SPORTING GOODS","BIG 5 SPORTING GOODS"," PUYALLUP WA","","","","PUYALLUP","WA","98373","US","US","LOS ANGELES","CA",""]
["C008477","BIG 5 SPORTING GOODS","2244","UNITED MERCHANDISING INC","BIG 5 SPORTING GOODS","BIG 5 SPORTING GOODS"," REDLANDS CA","","","","REDLANDS","CA","92373","US","US","LOS ANGELES","CA",""]
["C008477","BIG 5 SPORTING GOODS","2245","UNITED MERCHANDISING INC","BIG 5 SPORTING GOODS","BIG 5 SPORTING GOODS"," SEATTLE WA","","","","SEATTLE","WA","98133","US","US","LOS ANGELES","CA",""]
["C008477","BIG 5 SPORTING GOODS","2246","UNITED MERCHANDISING INC","BIG 5 SPORTING GOODS","BIG 5 SPORTING GOODS"," WATSONVILLE CA","","","","WATSONVILLE","CA","95076","US","US","LOS ANGELES","CA",""]
["C008477","BIG 5 SPORTING GOODS","2247","UNITED MERCHANDISING INC","BIG 5 SPORTING GOODS","BIG 5 SPORTING GOODS"," PHOENIX AZ","","","","PHOENIX","AZ","85023","US","US","LOS ANGELES","CA",""]
["C008477","BIG 5 SPORTING GOODS","2248","UNITED MERCHANDISING INC","BIG 5 SPORTING GOODS","BIG 5 SPORTING GOODS"," AUBURN CA","","","","AUBURN","CA","95603","US","US","LOS ANGELES","CA",""]
["C008477","BIG 5 SPORTING GOODS","2249","UNITED MERCHANDISING INC","BIG 5 SPORTING GOODS","BIG 5 SPORTING GOODS"," CULVER CITY CA","","","","CULVER CITY","CA","90230","US","US","LOS ANGELES","CA",""]
["C008477","BIG 5 SPORTING GOODS","2250","UNITED MERCHANDISING INC","BIG 5 SPORTING GOODS","BIG 5 SPORTING GOODS"," LOMPOC CA","","","","LOMPOC","CA","93436","US","US","LOS ANGELES","CA",""]
["C008477","BIG 5 SPORTING GOODS","2251","UNITED MERCHANDISING INC","BIG 5 SPORTING GOODS","BIG 5 SPORTING GOODS"," CAPITOLA CA","","","","CAPITOLA","CA","95010","US","US","LOS ANGELES","CA",""]
["C008477","BIG 5 SPORTING GOODS","2252","UNITED MERCHANDISING INC","BIG 5 SPORTING GOODS","BIG 5 SPORTING GOODS"," BURLINGTON WA","","","","BURLINGTON","WA","98233","US","US","LOS ANGELES","CA",""]
["C008477","BIG 5 SPORTING GOODS","2253","UNITED MERCHANDISING INC","BIG 5 SPORTING GOODS","BIG 5 SPORTING GOODS"," COEUR D ALENE ID","","","","COEUR D ALENE","ID","83814","US","US","LOS ANGELES","CA",""]
["C008477","BIG 5 SPORTING GOODS","2254","UNITED MERCHANDISING INC","BIG 5 SPORTING GOODS","BIG 5 SPORTING GOODS"," WENATCHEE WA","","","","WENATCHEE","WA","98801","US","US","LOS ANGELES","CA",""]
["C008477","BIG 5 SPORTING GOODS","2255","UNITED MERCHANDISING INC","BIG 5 SPORTING GOODS","BIG 5 SPORTING GOODS"," MURRIETA CA","","","","MURRIETA","CA","92562","US","US","LOS ANGELES","CA",""]
["C008477","BIG 5 SPORTING GOODS","2256","UNITED MERCHANDISING INC","BIG 5 SPORTING GOODS","BIG 5 SPORTING GOODS"," LODI CA","","","","LODI","CA","95242","US","US","LOS ANGELES","CA",""]
["C008477","BIG 5 SPORTING GOODS","2257","UNITED MERCHANDISING INC","BIG 5 SPORTING GOODS","BIG 5 SPORTING GOODS"," CHANDLER AZ","","","","CHANDLER","AZ","85225","US","US","LOS ANGELES","CA",""]
["C008477","BIG 5 SPORTING GOODS","2258","UNITED MERCHANDISING INC","BIG 5 SPORTING GOODS","BIG 5 SPORTING GOODS"," ENCINO CA","","","","ENCINO","CA","91316","US","US","LOS ANGELES","CA",""]
["C008477","BIG 5 SPORTING GOODS","2259","UNITED MERCHANDISING INC","BIG 5 SPORTING GOODS","BIG 5 SPORTING GOODS"," COSTA MESA CA","","","","COSTA MESA","CA","92626","US","US","LOS ANGELES","CA",""]
["C008477","BIG 5 SPORTING GOODS","2260","UNITED MERCHANDISING INC","BIG 5 SPORTING GOODS","BIG 5 SPORTING GOODS"," CORONA CA","","","","CORONA","CA","92879","US","US","LOS ANGELES","CA",""]
["C008477","BIG 5 SPORTING GOODS","2261","UNITED MERCHANDISING INC","BIG 5 SPORTING GOODS","BIG 5 SPORTING GOODS"," PORTLAND OR","","","","PORTLAND","OR","97233","US","US","LOS ANGELES","CA",""]
["C008477","BIG 5 SPORTING GOODS","2262","UNITED MERCHANDISING INC","BIG 5 SPORTING GOODS","BIG 5 SPORTING GOODS"," VANCOUVER WA","","","","VANCOUVER","WA","98662","US","US","LOS ANGELES","CA",""]
["C008477","BIG 5 SPORTING GOODS","2263","UNITED MERCHANDISING INC","BIG 5 SPORTING GOODS","BIG 5 SPORTING GOODS"," MEDFORD OR","","","","MEDFORD","OR","97501","US","US","LOS ANGELES","CA",""]
["C008477","BIG 5 SPORTING GOODS","2264","UNITED MERCHANDISING INC","BIG 5 SPORTING GOODS","BIG 5 SPORTING GOODS"," EL PASO TX","","","","EL PASO","TX","79912","US","US","LOS ANGELES","CA",""]
["C008477","BIG 5 SPORTING GOODS","2265","UNITED MERCHANDISING INC","BIG 5 SPORTING GOODS","BIG 5 SPORTING GOODS"," EL PASO TX","","","","EL PASO","TX","79925","US","US","LOS ANGELES","CA",""]
["C008477","BIG 5 SPORTING GOODS","2266","UNITED MERCHANDISING INC","BIG 5 SPORTING GOODS","BIG 5 SPORTING GOODS"," ALBUQUERQUE NM","","","","ALBUQUERQUE","NM","87110","US","US","LOS ANGELES","CA",""]
["C008477","BIG 5 SPORTING GOODS","2267","UNITED MERCHANDISING INC","BIG 5 SPORTING GOODS","BIG 5 SPORTING GOODS"," ALBUQUERQUE NM","","","","ALBUQUERQUE","NM","87112","US","US","LOS ANGELES","CA",""]
["C008477","BIG 5 SPORTING GOODS","2268","UNITED MERCHANDISING INC","BIG 5 SPORTING GOODS","BIG 5 SPORTING GOODS"," ALBUQUERQUE NM","","","","ALBUQUERQUE","NM","87114","US","US","LOS ANGELES","CA",""]
["C008477","BIG 5 SPORTING GOODS","2269","UNITED MERCHANDISING INC","BIG 5 SPORTING GOODS","BIG 5 SPORTING GOODS"," SANTA FE NM","","","","SANTA FE","NM","87505","US","US","LOS ANGELES","CA",""]
["C008477","BIG 5 SPORTING GOODS","2270","UNITED MERCHANDISING INC","BIG 5 SPORTING GOODS","BIG 5 SPORTING GOODS"," FARMINGTON NM","","","","FARMINGTON","NM","87401","US","US","LOS ANGELES","CA",""]
["C008477","BIG 5 SPORTING GOODS","2271","UNITED MERCHANDISING INC","BIG 5 SPORTING GOODS","BIG 5 SPORTING GOODS"," SPRINGFIELD OR","","","","SPRINGFIELD","OR","97477","US","US","LOS ANGELES","CA",""]
["C008477","BIG 5 SPORTING GOODS","2272","UNITED MERCHANDISING INC","BIG 5 SPORTING GOODS","BIG 5 SPORTING GOODS"," HUNTINGTON BEACH CA","","","","HUNTINGTON BEACH","CA","92648","US","US","LOS ANGELES","CA",""]
["C008477","BIG 5 SPORTING GOODS","2273","UNITED MERCHANDISING INC","BIG 5 SPORTING GOODS","BIG 5 SPORTING GOODS"," SIERRA VISTA AZ","","","","SIERRA VISTA","AZ","85635","US","US","LOS ANGELES","CA",""]
["C008477","BIG 5 SPORTING GOODS","2274","UNITED MERCHANDISING INC","BIG 5 SPORTING GOODS","BIG 5 SPORTING GOODS"," RANCHO SANTA MARGARITA CA","","","","RANCHO SANTA MARGARITA","CA","92688","US","US","LOS ANGELES","CA",""]
["C008477","BIG 5 SPORTING GOODS","2275","UNITED MERCHANDISING INC","BIG 5 SPORTING GOODS","BIG 5 SPORTING GOODS"," HILLSBORO OR","","","","HILLSBORO","OR","97123","US","US","LOS ANGELES","CA",""]
["C008477","BIG 5 SPORTING GOODS","2276","UNITED MERCHANDISING INC","BIG 5 SPORTING GOODS","BIG 5 SPORTING GOODS"," BEND OR","","","","BEND","OR","97702","US","US","LOS ANGELES","CA",""]
["C008477","BIG 5 SPORTING GOODS","2277","UNITED MERCHANDISING INC","BIG 5 SPORTING GOODS","BIG 5 SPORTING GOODS"," FLAGSTAFF AZ","","","","FLAGSTAFF","AZ","86001","US","US","LOS ANGELES","CA",""]
["C008477","BIG 5 SPORTING GOODS","2278","UNITED MERCHANDISING INC","BIG 5 SPORTING GOODS","BIG 5 SPORTING GOODS"," SONORA CA","","","","SONORA","CA","95370","US","US","LOS ANGELES","CA",""]
["C008477","BIG 5 SPORTING GOODS","2279","UNITED MERCHANDISING INC","BIG 5 SPORTING GOODS","BIG 5 SPORTING GOODS"," HEMET CA","","","","HEMET","CA","92545","US","US","LOS ANGELES","CA",""]
["C008477","BIG 5 SPORTING GOODS","2280","UNITED MERCHANDISING INC","BIG 5 SPORTING GOODS","BIG 5 SPORTING GOODS"," SALEM OR","","","","SALEM","OR","97305","US","US","LOS ANGELES","CA",""]
["C008477","BIG 5 SPORTING GOODS","2281","UNITED MERCHANDISING INC","BIG 5 SPORTING GOODS","BIG 5 SPORTING GOODS"," ISSAQUAH WA","","","","ISSAQUAH","WA","98027","US","US","LOS ANGELES","CA",""]
["C008477","BIG 5 SPORTING GOODS","2282","UNITED MERCHANDISING INC","BIG 5 SPORTING GOODS","BIG 5 SPORTING GOODS"," CONCORD CA","","","","CONCORD","CA","94520","US","US","LOS ANGELES","CA",""]
["C008477","BIG 5 SPORTING GOODS","2283","UNITED MERCHANDISING INC","BIG 5 SPORTING GOODS","BIG 5 SPORTING GOODS"," TUSTIN CA","","","","TUSTIN","CA","92780","US","US","LOS ANGELES","CA",""]
["C008477","BIG 5 SPORTING GOODS","2284","UNITED MERCHANDISING INC","BIG 5 SPORTING GOODS","BIG 5 SPORTING GOODS"," LONG BEACH CA","","","","LONG BEACH","CA","90813","US","US","LOS ANGELES","CA",""]
["C008477","BIG 5 SPORTING GOODS","2285","UNITED MERCHANDISING INC","BIG 5 SPORTING GOODS","BIG 5 SPORTING GOODS"," EL MONTE CA","","","","EL MONTE","CA","91731","US","US","LOS ANGELES","CA",""]
["C008477","BIG 5 SPORTING GOODS","2286","UNITED MERCHANDISING INC","BIG 5 SPORTING GOODS","BIG 5 SPORTING GOODS"," DOWNEY CA","","","","DOWNEY","CA","90241","US","US","LOS ANGELES","CA",""]
["C008477","BIG 5 SPORTING GOODS","2287","UNITED MERCHANDISING INC","BIG 5 SPORTING GOODS","BIG 5 SPORTING GOODS"," SAN DIEGO CA","","","","SAN DIEGO","CA","92111","US","US","LOS ANGELES","CA",""]
["C008477","BIG 5 SPORTING GOODS","2288","UNITED MERCHANDISING INC","BIG 5 SPORTING GOODS","BIG 5 SPORTING GOODS"," CORTE MADERA CA","","","","CORTE MADERA","CA","94925","US","US","LOS ANGELES","CA",""]
["C008477","BIG 5 SPORTING GOODS","2289","UNITED MERCHANDISING INC","BIG 5 SPORTING GOODS","BIG 5 SPORTING GOODS"," CHULA VISTA CA","","","","CHULA VISTA","CA","91910","US","US","LOS ANGELES","CA",""]
["C008477","BIG 5 SPORTING GOODS","2290","UNITED MERCHANDISING INC","BIG 5 SPORTING GOODS","BIG 5 SPORTING GOODS"," OXNARD CA","","","","OXNARD","CA","93030","US","US","LOS ANGELES","CA",""]
["C008477","BIG 5 SPORTING GOODS","2291","UNITED MERCHANDISING INC","BIG 5 SPORTING GOODS","BIG 5 SPORTING GOODS"," SAN JOSE CA","","","","SAN JOSE","CA","95117","US","US","LOS ANGELES","CA",""]
["C008477","BIG 5 SPORTING GOODS","2292","UNITED MERCHANDISING INC","BIG 5 SPORTING GOODS","BIG 5 SPORTING GOODS"," SAN JOSE CA","","","","SAN JOSE","CA","95123","US","US","LOS ANGELES","CA",""]
["C008477","BIG 5 SPORTING GOODS","2293","UNITED MERCHANDISING INC","BIG 5 SPORTING GOODS","BIG 5 SPORTING GOODS"," SAN DIEGO CA","","","","SAN DIEGO","CA","92110","US","US","LOS ANGELES","CA",""]
["C008477","BIG 5 SPORTING GOODS","2294","UNITED MERCHANDISING INC","BIG 5 SPORTING GOODS","BIG 5 SPORTING GOODS"," FRESNO CA","","","","FRESNO","CA","93710","US","US","LOS ANGELES","CA",""]
["C008477","BIG 5 SPORTING GOODS","2295","UNITED MERCHANDISING INC","BIG 5 SPORTING GOODS","BIG 5 SPORTING GOODS"," SAN BERNARDINO CA","","","","SAN BERNARDINO","CA","92401","US","US","LOS ANGELES","CA",""]
["C008477","BIG 5 SPORTING GOODS","2296","UNITED MERCHANDISING INC","BIG 5 SPORTING GOODS","BIG 5 SPORTING GOODS"," ORANGE CA","","","","ORANGE","CA","92865","US","US","LOS ANGELES","CA",""]
["C008477","BIG 5 SPORTING GOODS","2297","UNITED MERCHANDISING INC","BIG 5 SPORTING GOODS","BIG 5 SPORTING GOODS"," PALM SPRINGS CA","","","","PALM SPRINGS","CA","92262","US","US","LOS ANGELES","CA",""]
["C008477","BIG 5 SPORTING GOODS","2298","UNITED MERCHANDISING INC","BIG 5 SPORTING GOODS","BIG 5 SPORTING GOODS"," LAS VEGAS NV","","","","LAS VEGAS","NV","89109","US","US","LOS ANGELES","CA",""]
["C008477","BIG 5 SPORTING GOODS","2299","UNITED MERCHANDISING INC","BIG 5 SPORTING GOODS","BIG 5 SPORTING GOODS"," EL CAJON CA","","","","EL CAJON","CA","92020","US","US","LOS ANGELES","CA",""]
["C008477","BIG 5 SPORTING GOODS","2300","UNITED MERCHANDISING INC","BIG 5 SPORTING GOODS","BIG 5 SPORTING GOODS"," SAN JOSE CA","","","","SAN JOSE","CA","95122","US","US","LOS ANGELES","CA",""]
["C008477","BIG 5 SPORTING GOODS","2301","UNITED MERCHANDISING INC","BIG 5 SPORTING GOODS","BIG 5 SPORTING GOODS"," BAKERSFIELD CA","","","","BAKERSFIELD","CA","93304","US","US","LOS ANGELES","CA",""]
["C008477","BIG 5 SPORTING GOODS","2302","UNITED MERCHANDISING INC","BIG 5 SPORTING GOODS","BIG 5 SPORTING GOODS"," RIVERSIDE CA","","","","RIVERSIDE","CA","92506","US","US","LOS ANGELES","CA",""]
["C008477","BIG 5 SPORTING GOODS","2303","UNITED MERCHANDISING INC","BIG 5 SPORTING GOODS","BIG 5 SPORTING GOODS"," SACRAMENTO CA","","","","SACRAMENTO","CA","95825","US","US","LOS ANGELES","CA",""]
["C008477","BIG 5 SPORTING GOODS","2304","UNITED MERCHANDISING INC","BIG 5 SPORTING GOODS","BIG 5 SPORTING GOODS"," DALY CITY CA","","","","DALY CITY","CA","94015","US","US","LOS ANGELES","CA",""]
["C008477","BIG 5 SPORTING GOODS","2305","UNITED MERCHANDISING INC","BIG 5 SPORTING GOODS","BIG 5 SPORTING GOODS"," WESTMINSTER CA","","","","WESTMINSTER","CA","92683","US","US","LOS ANGELES","CA",""]
["C008477","BIG 5 SPORTING GOODS","2306","UNITED MERCHANDISING INC","BIG 5 SPORTING GOODS","BIG 5 SPORTING GOODS"," GLENDALE CA","","","","GLENDALE","CA","91204","US","US","LOS ANGELES","CA",""]
["C008477","BIG 5 SPORTING GOODS","2307","UNITED MERCHANDISING INC","BIG 5 SPORTING GOODS","BIG 5 SPORTING GOODS"," SUNNYVALE CA","","","","SUNNYVALE","CA","94087","US","US","LOS ANGELES","CA",""]
["C008477","BIG 5 SPORTING GOODS","2308","UNITED MERCHANDISING INC","BIG 5 SPORTING GOODS","BIG 5 SPORTING GOODS"," STOCKTON CA","","","","STOCKTON","CA","95207","US","US","LOS ANGELES","CA",""]
["C008477","BIG 5 SPORTING GOODS","2309","UNITED MERCHANDISING INC","BIG 5 SPORTING GOODS","BIG 5 SPORTING GOODS"," LOS ANGELES CA","","","","LOS ANGELES","CA","90010","US","US","LOS ANGELES","CA",""]
["C008477","BIG 5 SPORTING GOODS","2310","UNITED MERCHANDISING INC","BIG 5 SPORTING GOODS","BIG 5 SPORTING GOODS"," VISALIA CA","","","","VISALIA","CA","93277","US","US","LOS ANGELES","CA",""]
["C008477","BIG 5 SPORTING GOODS","2311","UNITED MERCHANDISING INC","BIG 5 SPORTING GOODS","BIG 5 SPORTING GOODS"," RENO NV","","","","RENO","NV","89502","US","US","LOS ANGELES","CA",""]
["C008477","BIG 5 SPORTING GOODS","2312","UNITED MERCHANDISING INC","BIG 5 SPORTING GOODS","BIG 5 SPORTING GOODS"," SAN LORENZO CA","","","","SAN LORENZO","CA","94580","US","US","LOS ANGELES","CA",""]
["C008477","BIG 5 SPORTING GOODS","2313","UNITED MERCHANDISING INC","BIG 5 SPORTING GOODS","BIG 5 SPORTING GOODS"," FREMONT CA","","","","FREMONT","CA","94538","US","US","LOS ANGELES","CA",""]
["C008477","BIG 5 SPORTING GOODS","2314","UNITED MERCHANDISING INC","BIG 5 SPORTING GOODS","BIG 5 SPORTING GOODS"," CITRUS HEIGHTS CA","","","","CITRUS HEIGHTS","CA","95610","US","US","LOS ANGELES","CA",""]
["C008477","BIG 5 SPORTING GOODS","2315","UNITED MERCHANDISING INC","BIG 5 SPORTING GOODS","BIG 5 SPORTING GOODS"," MODESTO CA","","","","MODESTO","CA","95350","US","US","LOS ANGELES","CA",""]
["C008477","BIG 5 SPORTING GOODS","2316","UNITED MERCHANDISING INC","BIG 5 SPORTING GOODS","BIG 5 SPORTING GOODS"," LAKE FOREST CA","","","","LAKE FOREST","CA","92630","US","US","LOS ANGELES","CA",""]
["C008477","BIG 5 SPORTING GOODS","2317","UNITED MERCHANDISING INC","BIG 5 SPORTING GOODS","BIG 5 SPORTING GOODS"," ANAHEIM CA","","","","ANAHEIM","CA","92802","US","US","LOS ANGELES","CA",""]
["C008477","BIG 5 SPORTING GOODS","2318","UNITED MERCHANDISING INC","BIG 5 SPORTING GOODS","BIG 5 SPORTING GOODS"," REDWOOD CITY CA","","","","REDWOOD CITY","CA","94064","US","US","LOS ANGELES","CA",""]
["C008477","BIG 5 SPORTING GOODS","2319","UNITED MERCHANDISING INC","BIG 5 SPORTING GOODS","BIG 5 SPORTING GOODS"," SIMI VALLEY CA","","","","SIMI VALLEY","CA","93065","US","US","LOS ANGELES","CA",""]
["C008477","BIG 5 SPORTING GOODS","2320","UNITED MERCHANDISING INC","BIG 5 SPORTING GOODS","BIG 5 SPORTING GOODS"," LAS VEGAS NV","","","","LAS VEGAS","NV","89102","US","US","LOS ANGELES","CA",""]
["C008477","BIG 5 SPORTING GOODS","2321","UNITED MERCHANDISING INC","BIG 5 SPORTING GOODS","BIG 5 SPORTING GOODS"," GRANADA HILLS CA","","","","GRANADA HILLS","CA","91344","US","US","LOS ANGELES","CA",""]
["C008477","BIG 5 SPORTING GOODS","2322","UNITED MERCHANDISING INC","BIG 5 SPORTING GOODS","BIG 5 SPORTING GOODS"," SANTA MONICA CA","","","","SANTA MONICA","CA","90403","US","US","LOS ANGELES","CA",""]
["C008477","BIG 5 SPORTING GOODS","2323","UNITED MERCHANDISING INC","BIG 5 SPORTING GOODS","BIG 5 SPORTING GOODS"," PINOLE CA","","","","PINOLE","CA","94564","US","US","LOS ANGELES","CA",""]
["C008477","BIG 5 SPORTING GOODS","2324","UNITED MERCHANDISING INC","BIG 5 SPORTING GOODS","BIG 5 SPORTING GOODS"," SANTA ROSA CA","","","","SANTA ROSA","CA","95401","US","US","LOS ANGELES","CA",""]
["C008477","BIG 5 SPORTING GOODS","2325","UNITED MERCHANDISING INC","BIG 5 SPORTING GOODS","BIG 5 SPORTING GOODS"," SANTA BARBARA CA","","","","SANTA BARBARA","CA","93105","US","US","LOS ANGELES","CA",""]
["C008477","BIG 5 SPORTING GOODS","2326","UNITED MERCHANDISING INC","BIG 5 SPORTING GOODS","BIG 5 SPORTING GOODS"," SACRAMENTO CA","","","","SACRAMENTO","CA","95823","US","US","LOS ANGELES","CA",""]
["C008477","BIG 5 SPORTING GOODS","2327","UNITED MERCHANDISING INC","BIG 5 SPORTING GOODS","BIG 5 SPORTING GOODS"," VAN NUYS CA","","","","VAN NUYS","CA","91405","US","US","LOS ANGELES","CA",""]
["C008477","BIG 5 SPORTING GOODS","2328","UNITED MERCHANDISING INC","BIG 5 SPORTING GOODS","BIG 5 SPORTING GOODS"," MERCED CA","","","","MERCED","CA","95340","US","US","LOS ANGELES","CA",""]
["C008477","BIG 5 SPORTING GOODS","2329","UNITED MERCHANDISING INC","BIG 5 SPORTING GOODS","BIG 5 SPORTING GOODS"," UPLAND CA","","","","UPLAND","CA","91786","US","US","LOS ANGELES","CA",""]
["C008477","BIG 5 SPORTING GOODS","2330","UNITED MERCHANDISING INC","BIG 5 SPORTING GOODS","BIG 5 SPORTING GOODS"," FAIRFIELD CA","","","","FAIRFIELD","CA","94533","US","US","LOS ANGELES","CA",""]
["C008477","BIG 5 SPORTING GOODS","2331","UNITED MERCHANDISING INC","BIG 5 SPORTING GOODS","BIG 5 SPORTING GOODS"," SILVERDALE WA","","","","SILVERDALE","WA","98383","US","US","LOS ANGELES","CA",""]
["C008477","BIG 5 SPORTING GOODS","2332","UNITED MERCHANDISING INC","BIG 5 SPORTING GOODS","BIG 5 SPORTING GOODS"," LA HABRA CA","","","","LA HABRA","CA","90631","US","US","LOS ANGELES","CA",""]
["C008477","BIG 5 SPORTING GOODS","2333","UNITED MERCHANDISING INC","BIG 5 SPORTING GOODS","BIG 5 SPORTING GOODS"," SAN RAMON CA","","","","SAN RAMON","CA","94583","US","US","LOS ANGELES","CA",""]
["C008477","BIG 5 SPORTING GOODS","2334","UNITED MERCHANDISING INC","BIG 5 SPORTING GOODS","BIG 5 SPORTING GOODS"," PALM DESERT CA","","","","PALM DESERT","CA","92260","US","US","LOS ANGELES","CA",""]
["C008477","BIG 5 SPORTING GOODS","2335","UNITED MERCHANDISING INC","BIG 5 SPORTING GOODS","BIG 5 SPORTING GOODS"," OCEANSIDE CA","","","","OCEANSIDE","CA","92054","US","US","LOS ANGELES","CA",""]
["C008477","BIG 5 SPORTING GOODS","2336","UNITED MERCHANDISING INC","BIG 5 SPORTING GOODS","BIG 5 SPORTING GOODS"," BAKERSFIELD CA","","","","BAKERSFIELD","CA","93305","US","US","LOS ANGELES","CA",""]
["C008477","BIG 5 SPORTING GOODS","2337","UNITED MERCHANDISING INC","BIG 5 SPORTING GOODS","BIG 5 SPORTING GOODS"," SAN LUIS OBISPO CA","","","","SAN LUIS OBISPO","CA","93405","US","US","LOS ANGELES","CA",""]
["C008477","BIG 5 SPORTING GOODS","2338","UNITED MERCHANDISING INC","BIG 5 SPORTING GOODS","BIG 5 SPORTING GOODS"," ROWLAND HEIGHTS CA","","","","ROWLAND HEIGHTS","CA","91748","US","US","LOS ANGELES","CA",""]
["C008477","BIG 5 SPORTING GOODS","2339","UNITED MERCHANDISING INC","BIG 5 SPORTING GOODS","BIG 5 SPORTING GOODS"," PASADENA CA","","","","PASADENA","CA","91107","US","US","LOS ANGELES","CA",""]
["C008477","BIG 5 SPORTING GOODS","2340","UNITED MERCHANDISING INC","BIG 5 SPORTING GOODS","BIG 5 SPORTING GOODS"," SALINAS CA","","","","SALINAS","CA","93906","US","US","LOS ANGELES","CA",""]
["C008477","BIG 5 SPORTING GOODS","2341","UNITED MERCHANDISING INC","BIG 5 SPORTING GOODS","BIG 5 SPORTING GOODS"," MONTEREY CA","","","","MONTEREY","CA","93940","US","US","LOS ANGELES","CA",""]
["C008477","BIG 5 SPORTING GOODS","2342","UNITED MERCHANDISING INC","BIG 5 SPORTING GOODS","BIG 5 SPORTING GOODS"," SEATTLE WA","","","","SEATTLE","WA","98126","US","US","LOS ANGELES","CA",""]
["C008477","BIG 5 SPORTING GOODS","2343","UNITED MERCHANDISING INC","BIG 5 SPORTING GOODS","BIG 5 SPORTING GOODS"," FEDERAL WAY WA","","","","FEDERAL WAY","WA","98003","US","US","LOS ANGELES","CA",""]
["C008477","BIG 5 SPORTING GOODS","2344","UNITED MERCHANDISING INC","BIG 5 SPORTING GOODS","BIG 5 SPORTING GOODS"," RENTON WA","","","","RENTON","WA","98055","US","US","LOS ANGELES","CA",""]
["C008477","BIG 5 SPORTING GOODS","2345","UNITED MERCHANDISING INC","BIG 5 SPORTING GOODS","BIG 5 SPORTING GOODS"," BELLEVUE WA","","","","BELLEVUE","WA","98006","US","US","LOS ANGELES","CA",""]
["C008477","BIG 5 SPORTING GOODS","2346","UNITED MERCHANDISING INC","BIG 5 SPORTING GOODS","BIG 5 SPORTING GOODS"," KIRKLAND WA","","","","KIRKLAND","WA","98034","US","US","LOS ANGELES","CA",""]
["C008477","BIG 5 SPORTING GOODS","2347","UNITED MERCHANDISING INC","BIG 5 SPORTING GOODS","BIG 5 SPORTING GOODS"," LYNNWOOD WA","","","","LYNNWOOD","WA","98037","US","US","LOS ANGELES","CA",""]
["C008477","BIG 5 SPORTING GOODS","2348","UNITED MERCHANDISING INC","BIG 5 SPORTING GOODS","BIG 5 SPORTING GOODS"," SEATTLE WA","","","","SEATTLE","WA","98107","US","US","LOS ANGELES","CA",""]
["C008477","BIG 5 SPORTING GOODS","2349","UNITED MERCHANDISING INC","BIG 5 SPORTING GOODS","BIG 5 SPORTING GOODS"," TORRANCE CA","","","","TORRANCE","CA","90504","US","US","LOS ANGELES","CA",""]
["C008477","BIG 5 SPORTING GOODS","2350","UNITED MERCHANDISING INC","BIG 5 SPORTING GOODS","BIG 5 SPORTING GOODS"," ESCONDIDO CA","","","","ESCONDIDO","CA","92027","US","US","LOS ANGELES","CA",""]
["C008477","BIG 5 SPORTING GOODS","2351","UNITED MERCHANDISING INC","BIG 5 SPORTING GOODS","BIG 5 SPORTING GOODS"," CERRITOS CA","","","","CERRITOS","CA","90701","US","US","LOS ANGELES","CA",""]
["C008477","BIG 5 SPORTING GOODS","2352","UNITED MERCHANDISING INC","BIG 5 SPORTING GOODS","BIG 5 SPORTING GOODS"," SAN MATEO CA","","","","SAN MATEO","CA","94403","US","US","LOS ANGELES","CA",""]
["C008477","BIG 5 SPORTING GOODS","2353","UNITED MERCHANDISING INC","BIG 5 SPORTING GOODS","BIG 5 SPORTING GOODS"," REDDING CA","","","","REDDING","CA","96002","US","US","LOS ANGELES","CA",""]
["C008477","BIG 5 SPORTING GOODS","2354","UNITED MERCHANDISING INC","BIG 5 SPORTING GOODS","BIG 5 SPORTING GOODS"," TORRANCE CA","","","","TORRANCE","CA","90505","US","US","LOS ANGELES","CA",""]
["C008477","BIG 5 SPORTING GOODS","2355","UNITED MERCHANDISING INC","BIG 5 SPORTING GOODS","BIG 5 SPORTING GOODS"," VENTURA CA","","","","VENTURA","CA","93003","US","US","LOS ANGELES","CA",""]
["C008477","BIG 5 SPORTING GOODS","2356","UNITED MERCHANDISING INC","BIG 5 SPORTING GOODS","BIG 5 SPORTING GOODS"," EVERETT WA","","","","EVERETT","WA","98208","US","US","LOS ANGELES","CA",""]
["C008477","BIG 5 SPORTING GOODS","2357","UNITED MERCHANDISING INC","BIG 5 SPORTING GOODS","BIG 5 SPORTING GOODS"," CHICO CA","","","","CHICO","CA","95926","US","US","LOS ANGELES","CA",""]
["C008477","BIG 5 SPORTING GOODS","2358","UNITED MERCHANDISING INC","BIG 5 SPORTING GOODS","BIG 5 SPORTING GOODS"," STUDIO CITY CA","","","","STUDIO CITY","CA","91604","US","US","LOS ANGELES","CA",""]
["C008477","BIG 5 SPORTING GOODS","2359","UNITED MERCHANDISING INC","BIG 5 SPORTING GOODS","BIG 5 SPORTING GOODS"," FONTANA CA","","","","FONTANA","CA","92335","US","US","LOS ANGELES","CA",""]
["C008477","BIG 5 SPORTING GOODS","2360","UNITED MERCHANDISING INC","BIG 5 SPORTING GOODS","BIG 5 SPORTING GOODS"," RIVERSIDE CA","","","","RIVERSIDE","CA","92508","US","US","LOS ANGELES","CA",""]
["C008477","BIG 5 SPORTING GOODS","2361","UNITED MERCHANDISING INC","BIG 5 SPORTING GOODS","BIG 5 SPORTING GOODS"," MOSES LAKE WA","","","","MOSES LAKE","WA","98837","US","US","LOS ANGELES","CA",""]
["C008477","BIG 5 SPORTING GOODS","577","UNITED MERCHANDISING INC","BIG 5 SPORTING GOODS","BIG 5 SPORTING GOODS"," LOS ANGELES CA","","","","LOS ANGELES","CA","90009","US","US","LOS ANGELES","CA",""]
["C008478","SKI TECH","2464","905 S SAINT FRANCIS DR.","SKI TECH","SKI TECH"," ANGEL FIRE NM","","","","ANGEL FIRE","NM","87710","US","US","SANTE FE","NM",""]
["C008478","SKI TECH","723","905 S SAINT FRANCIS DR.","SKI TECH","SKI TECH"," SANTE FE NM","","","","SANTE FE","NM","87505","US","US","SANTE FE","NM",""]
["C008479","GANDER OUTDOORS","1400","CWI, INC","GANDER OUTDOORS","GANDER OUTDOORS"," BOWLING GREEN KY","","","","BOWLING GREEN","KY","42102-9018","US","US","BOWLING GREEN","KY",""]
["C008479","GANDER OUTDOORS","3383","CWI, INC","GANDER OUTDOORS","GANDER OUTDOORS"," COLDWATER MI","","","","COLDWATER","MI","49036","US","US","BOWLING GREEN","KY",""]
["C008479","GANDER OUTDOORS","3384","CWI, INC","GANDER OUTDOORS","GANDER OUTDOORS"," MUNCY PA","","","","MUNCY","PA","17756","US","US","BOWLING GREEN","KY",""]
["C008479","GANDER OUTDOORS","3385","CWI, INC","GANDER OUTDOORS","GANDER OUTDOORS"," ONALASKA WI","","","","ONALASKA","WI","54650","US","US","BOWLING GREEN","KY",""]
["C008479","GANDER OUTDOORS","3386","CWI, INC","GANDER OUTDOORS","GANDER OUTDOORS"," JANESVILLE WI","","","","JANESVILLE","WI","53546","US","US","BOWLING GREEN","KY",""]
["C008479","GANDER OUTDOORS","3387","CWI, INC","GANDER OUTDOORS","GANDER OUTDOORS"," EDEN PRAIRIE MN","","","","EDEN PRAIRIE","MN","55344","US","US","BOWLING GREEN","KY",""]
["C008479","GANDER OUTDOORS","3388","CWI, INC","GANDER OUTDOORS","GANDER OUTDOORS"," JOHNSON CITY NY","","","","JOHNSON CITY","NY","13790","US","US","BOWLING GREEN","KY",""]
["C008479","GANDER OUTDOORS","3389","CWI, INC","GANDER OUTDOORS","GANDER OUTDOORS"," WEST BARABOO WI","","","","WEST BARABOO","WI","53913","US","US","BOWLING GREEN","KY",""]
["C008479","GANDER OUTDOORS","3390","CWI, INC","GANDER OUTDOORS","GANDER OUTDOORS"," ROTHSCHILD WI","","","","ROTHSCHILD","WI","54474","US","US","BOWLING GREEN","KY",""]
["C008479","GANDER OUTDOORS","3391","CWI, INC","GANDER OUTDOORS","GANDER OUTDOORS"," FRANKLIN WI","","","","FRANKLIN","WI","53132","US","US","BOWLING GREEN","KY",""]
["C008479","GANDER OUTDOORS","3392","CWI, INC","GANDER OUTDOORS","GANDER OUTDOORS"," DAVENPORT IA","","","","DAVENPORT","IA","52807","US","US","BOWLING GREEN","KY",""]
["C008479","GANDER OUTDOORS","3393","CWI, INC","GANDER OUTDOORS","GANDER OUTDOORS"," LANSING MI","","","","LANSING","MI","48917","US","US","BOWLING GREEN","KY",""]
["C008479","GANDER OUTDOORS","3394","CWI, INC","GANDER OUTDOORS","GANDER OUTDOORS"," TAYLOR MI","","","","TAYLOR","MI","48180","US","US","BOWLING GREEN","KY",""]
["C008479","GANDER OUTDOORS","3395","CWI, INC","GANDER OUTDOORS","GANDER OUTDOORS"," WARREN OH","","","","WARREN","OH","44484","US","US","BOWLING GREEN","KY",""]
["C008479","GANDER OUTDOORS","3396","CWI, INC","GANDER OUTDOORS","GANDER OUTDOORS"," HOLLAND OH","","","","HOLLAND","OH","43528","US","US","BOWLING GREEN","KY",""]
["C008479","GANDER OUTDOORS","3397","CWI, INC","GANDER OUTDOORS","GANDER OUTDOORS"," COLUMBUS OH","","","","COLUMBUS","OH","43228","US","US","BOWLING GREEN","KY",""]
["C008479","GANDER OUTDOORS","3398","CWI, INC","GANDER OUTDOORS","GANDER OUTDOORS"," HUBER HEIGHTS OH","","","","HUBER HEIGHTS","OH","45424","US","US","BOWLING GREEN","KY",""]
["C008479","GANDER OUTDOORS","3399","CWI, INC","GANDER OUTDOORS","GANDER OUTDOORS"," NORTH CANTON OH","","","","NORTH CANTON","OH","44720","US","US","BOWLING GREEN","KY",""]
["C008479","GANDER OUTDOORS","3400","CWI, INC","GANDER OUTDOORS","GANDER OUTDOORS"," JOHNSTOWN PA","","","","JOHNSTOWN","PA","15904","US","US","BOWLING GREEN","KY",""]
["C008479","GANDER OUTDOORS","3401","CWI, INC","GANDER OUTDOORS","GANDER OUTDOORS"," DICKSON CITY PA","","","","DICKSON CITY","PA","18519","US","US","BOWLING GREEN","KY",""]
["C008479","GANDER OUTDOORS","3402","CWI, INC","GANDER OUTDOORS","GANDER OUTDOORS"," CHAMPAIGN IL","","","","CHAMPAIGN","IL","61822","US","US","BOWLING GREEN","KY",""]
["C008479","GANDER OUTDOORS","3403","CWI, INC","GANDER OUTDOORS","GANDER OUTDOORS"," ALGONQUIN IL","","","","ALGONQUIN","IL","60102","US","US","BOWLING GREEN","KY",""]
["C008479","GANDER OUTDOORS","3404","CWI, INC","GANDER OUTDOORS","GANDER OUTDOORS"," ELYRIA OH","","","","ELYRIA","OH","44035","US","US","BOWLING GREEN","KY",""]
["C008479","GANDER OUTDOORS","3405","CWI, INC","GANDER OUTDOORS","GANDER OUTDOORS"," MENTOR OH","","","","MENTOR","OH","44060","US","US","BOWLING GREEN","KY",""]
["C008479","GANDER OUTDOORS","3406","CWI, INC","GANDER OUTDOORS","GANDER OUTDOORS"," TWINSBURG OH","","","","TWINSBURG","OH","44087","US","US","BOWLING GREEN","KY",""]
["C008479","GANDER OUTDOORS","3407","CWI, INC","GANDER OUTDOORS","GANDER OUTDOORS"," ROGERS MN","","","","ROGERS","MN","55374","US","US","BOWLING GREEN","KY",""]
["C008479","GANDER OUTDOORS","3408","CWI, INC","GANDER OUTDOORS","GANDER OUTDOORS"," LAFAYETTE IN","","","","LAFAYETTE","IN","47905","US","US","BOWLING GREEN","KY",""]
["C008479","GANDER OUTDOORS","3409","CWI, INC","GANDER OUTDOORS","GANDER OUTDOORS"," GREENVILLE NC","","","","GREENVILLE","NC","27834","US","US","BOWLING GREEN","KY",""]
["C008479","GANDER OUTDOORS","3410","CWI, INC","GANDER OUTDOORS","GANDER OUTDOORS"," GREENVILLE NC","","","","GREENVILLE","NC","27858","US","US","BOWLING GREEN","KY",""]
["C008479","GANDER OUTDOORS","3411","CWI, INC","GANDER OUTDOORS","GANDER OUTDOORS"," WAITE PARK MN","","","","WAITE PARK","MN","56387","US","US","BOWLING GREEN","KY",""]
["C008479","GANDER OUTDOORS","3412","CWI, INC","GANDER OUTDOORS","GANDER OUTDOORS"," WAUKESHA WI","","","","WAUKESHA","WI","53186","US","US","BOWLING GREEN","KY",""]
["C008479","GANDER OUTDOORS","3413","CWI, INC","GANDER OUTDOORS","GANDER OUTDOORS"," HUNTSVILLE AL","","","","HUNTSVILLE","AL","35810","US","US","BOWLING GREEN","KY",""]
["C008479","GANDER OUTDOORS","3414","CWI, INC","GANDER OUTDOORS","GANDER OUTDOORS"," SHERWOOD AR","","","","SHERWOOD","AR","72117","US","US","BOWLING GREEN","KY",""]
["C008479","GANDER OUTDOORS","3415","CWI, INC","GANDER OUTDOORS","GANDER OUTDOORS"," JACKSONVILLE FL","","","","JACKSONVILLE","FL","32218","US","US","BOWLING GREEN","KY",""]
["C008479","GANDER OUTDOORS","3416","CWI, INC","GANDER OUTDOORS","GANDER OUTDOORS"," LAKE MARY FL","","","","LAKE MARY","FL","32746","US","US","BOWLING GREEN","KY",""]
["C008479","GANDER OUTDOORS","3417","CWI, INC","GANDER OUTDOORS","GANDER OUTDOORS"," OCALA FL","","","","OCALA","FL","34474","US","US","BOWLING GREEN","KY",""]
["C008479","GANDER OUTDOORS","3418","CWI, INC","GANDER OUTDOORS","GANDER OUTDOORS"," PALM BEACH GARDENS FL","","","","PALM BEACH GARDENS","FL","33403","US","US","BOWLING GREEN","KY",""]
["C008479","GANDER OUTDOORS","3419","CWI, INC","GANDER OUTDOORS","GANDER OUTDOORS"," ST AUGUSTINE FL","","","","ST AUGUSTINE","FL","32084","US","US","BOWLING GREEN","KY",""]
["C008479","GANDER OUTDOORS","3420","CWI, INC","GANDER OUTDOORS","GANDER OUTDOORS"," GENEVA IL","","","","GENEVA","IL","60134","US","US","BOWLING GREEN","KY",""]
["C008479","GANDER OUTDOORS","3421","CWI, INC","GANDER OUTDOORS","GANDER OUTDOORS"," JOLIET IL","","","","JOLIET","IL","60435","US","US","BOWLING GREEN","KY",""]
["C008479","GANDER OUTDOORS","3422","CWI, INC","GANDER OUTDOORS","GANDER OUTDOORS"," PEORIA IL","","","","PEORIA","IL","61615","US","US","BOWLING GREEN","KY",""]
["C008479","GANDER OUTDOORS","3423","CWI, INC","GANDER OUTDOORS","GANDER OUTDOORS"," ROCKFORD IL","","","","ROCKFORD","IL","61114","US","US","BOWLING GREEN","KY",""]
["C008479","GANDER OUTDOORS","3424","CWI, INC","GANDER OUTDOORS","GANDER OUTDOORS"," INDIANAPOLIS IN","","","","INDIANAPOLIS","IN","46250","US","US","BOWLING GREEN","KY",""]
["C008479","GANDER OUTDOORS","3425","CWI, INC","GANDER OUTDOORS","GANDER OUTDOORS"," EVANSVILLE IN","","","","EVANSVILLE","IN","47715","US","US","BOWLING GREEN","KY",""]
["C008479","GANDER OUTDOORS","3426","CWI, INC","GANDER OUTDOORS","GANDER OUTDOORS"," FORT WAYNE IN","","","","FORT WAYNE","IN","46818","US","US","BOWLING GREEN","KY",""]
["C008479","GANDER OUTDOORS","3427","CWI, INC","GANDER OUTDOORS","GANDER OUTDOORS"," GREENWOOD IN","","","","GREENWOOD","IN","46142","US","US","BOWLING GREEN","KY",""]
["C008479","GANDER OUTDOORS","3428","CWI, INC","GANDER OUTDOORS","GANDER OUTDOORS"," MERRILLVILLE IN","","","","MERRILLVILLE","IN","46410","US","US","BOWLING GREEN","KY",""]
["C008479","GANDER OUTDOORS","3429","CWI, INC","GANDER OUTDOORS","GANDER OUTDOORS"," TERRE HAUTE IN","","","","TERRE HAUTE","IN","47802","US","US","BOWLING GREEN","KY",""]
["C008479","GANDER OUTDOORS","3430","CWI, INC","GANDER OUTDOORS","GANDER OUTDOORS"," CEDAR RAPIDS IA","","","","CEDAR RAPIDS","IA","52404-2342","US","US","BOWLING GREEN","KY",""]
["C008479","GANDER OUTDOORS","3431","CWI, INC","GANDER OUTDOORS","GANDER OUTDOORS"," ROCHESTER MN","","","","ROCHESTER","MN","55901","US","US","BOWLING GREEN","KY",""]
["C008479","GANDER OUTDOORS","3432","CWI, INC","GANDER OUTDOORS","GANDER OUTDOORS"," EAU CLAIRE WI","","","","EAU CLAIRE","WI","54701","US","US","BOWLING GREEN","KY",""]
["C008479","GANDER OUTDOORS","3433","CWI, INC","GANDER OUTDOORS","GANDER OUTDOORS"," DE FOREST WI","","","","DE FOREST","WI","53532","US","US","BOWLING GREEN","KY",""]
["C008479","GANDER OUTDOORS","3434","CWI, INC","GANDER OUTDOORS","GANDER OUTDOORS"," BLOOMINGTON MN","","","","BLOOMINGTON","MN","55437","US","US","BOWLING GREEN","KY",""]
["C008479","GANDER OUTDOORS","3435","CWI, INC","GANDER OUTDOORS","GANDER OUTDOORS"," ONALASKA WI","","","","ONALASKA","WI","54650","US","US","BOWLING GREEN","KY",""]
["C008479","GANDER OUTDOORS","3436","CWI, INC","GANDER OUTDOORS","GANDER OUTDOORS"," AURORA CO","","","","AURORA","CO","80012","US","US","BOWLING GREEN","KY",""]
["C008479","GANDER OUTDOORS","3437","CWI, INC","GANDER OUTDOORS","GANDER OUTDOORS"," WATERTOWN NY","","","","WATERTOWN","NY","13601","US","US","BOWLING GREEN","KY",""]
["C008479","GANDER OUTDOORS","3438","CWI, INC","GANDER OUTDOORS","GANDER OUTDOORS"," ROCHESTER NY","","","","ROCHESTER","NY","14623","US","US","BOWLING GREEN","KY",""]
["C008479","GANDER OUTDOORS","3439","CWI, INC","GANDER OUTDOORS","GANDER OUTDOORS"," MARQUETTE MI","","","","MARQUETTE","MI","49855","US","US","BOWLING GREEN","KY",""]
["C008479","GANDER OUTDOORS","3440","CWI, INC","GANDER OUTDOORS","GANDER OUTDOORS"," HERMANTOWN MN","","","","HERMANTOWN","MN","55811","US","US","BOWLING GREEN","KY",""]
["C008479","GANDER OUTDOORS","3441","CWI, INC","GANDER OUTDOORS","GANDER OUTDOORS"," CICERO NY","","","","CICERO","NY","13039","US","US","BOWLING GREEN","KY",""]
["C008479","GANDER OUTDOORS","3442","CWI, INC","GANDER OUTDOORS","GANDER OUTDOORS"," PLATTSBURGH NY","","","","PLATTSBURGH","NY","12901","US","US","BOWLING GREEN","KY",""]
["C008479","GANDER OUTDOORS","3443","CWI, INC","GANDER OUTDOORS","GANDER OUTDOORS"," KINGSTON NY","","","","KINGSTON","NY","12401","US","US","BOWLING GREEN","KY",""]
["C008479","GANDER OUTDOORS","3444","CWI, INC","GANDER OUTDOORS","GANDER OUTDOORS"," NEW HARTFORD NY","","","","NEW HARTFORD","NY","13413","US","US","BOWLING GREEN","KY",""]
["C008479","GANDER OUTDOORS","3445","CWI, INC","GANDER OUTDOORS","GANDER OUTDOORS"," THORNTON CO","","","","THORNTON","CO","80229","US","US","BOWLING GREEN","KY",""]
["C008479","GANDER OUTDOORS","3446","CWI, INC","GANDER OUTDOORS","GANDER OUTDOORS"," GREENVILLE NC","","","","GREENVILLE","NC","27834","US","US","BOWLING GREEN","KY",""]
["C008479","GANDER OUTDOORS","3447","CWI, INC","GANDER OUTDOORS","GANDER OUTDOORS"," KENTWOOD MI","","","","KENTWOOD","MI","49512","US","US","BOWLING GREEN","KY",""]
["C008479","GANDER OUTDOORS","3448","CWI, INC","GANDER OUTDOORS","GANDER OUTDOORS"," GRANDVILLE MI","","","","GRANDVILLE","MI","49418","US","US","BOWLING GREEN","KY",""]
["C008479","GANDER OUTDOORS","3449","CWI, INC","GANDER OUTDOORS","GANDER OUTDOORS"," DULUTH MN","","","","DULUTH","MN","55811","US","US","BOWLING GREEN","KY",""]
["C008479","GANDER OUTDOORS","3450","CWI, INC","GANDER OUTDOORS","GANDER OUTDOORS"," LEBANON IN","","","","LEBANON","IN","46052","US","US","BOWLING GREEN","KY",""]
["C008479","GANDER OUTDOORS","3451","CWI, INC","GANDER OUTDOORS","GANDER OUTDOORS"," MANKATO MN","","","","MANKATO","MN","56001","US","US","BOWLING GREEN","KY",""]
["C008479","GANDER OUTDOORS","3452","CWI, INC","GANDER OUTDOORS","GANDER OUTDOORS"," LEBANON IN","","","","LEBANON","IN","46052","US","US","BOWLING GREEN","KY",""]
["C008479","GANDER OUTDOORS","3453","CWI, INC","GANDER OUTDOORS","GANDER OUTDOORS"," FORT GRATIOT MI","","","","FORT GRATIOT","MI","48059","US","US","BOWLING GREEN","KY",""]
["C008479","GANDER OUTDOORS","3454","CWI, INC","GANDER OUTDOORS","GANDER OUTDOORS"," MIDDLETOWN NY","","","","MIDDLETOWN","NY","10941","US","US","BOWLING GREEN","KY",""]
["C008479","GANDER OUTDOORS","3455","CWI, INC","GANDER OUTDOORS","GANDER OUTDOORS"," FREDERICKSBURG VA","","","","FREDERICKSBURG","VA","22407","US","US","BOWLING GREEN","KY",""]
["C008479","GANDER OUTDOORS","3456","CWI, INC","GANDER OUTDOORS","GANDER OUTDOORS"," NOVI MI","","","","NOVI","MI","48377","US","US","BOWLING GREEN","KY",""]
["C008479","GANDER OUTDOORS","3457","CWI, INC","GANDER OUTDOORS","GANDER OUTDOORS"," FLINT MI","","","","FLINT","MI","48507","US","US","BOWLING GREEN","KY",""]
["C008479","GANDER OUTDOORS","3458","CWI, INC","GANDER OUTDOORS","GANDER OUTDOORS"," SAGINAW MI","","","","SAGINAW","MI","48604","US","US","BOWLING GREEN","KY",""]
["C008479","GANDER OUTDOORS","3459","CWI, INC","GANDER OUTDOORS","GANDER OUTDOORS"," TRAVERSE CITY MI","","","","TRAVERSE CITY","MI","49684","US","US","BOWLING GREEN","KY",""]
["C008479","GANDER OUTDOORS","3460","CWI, INC","GANDER OUTDOORS","GANDER OUTDOORS"," PORTAGE MI","","","","PORTAGE","MI","49024","US","US","BOWLING GREEN","KY",""]
["C008479","GANDER OUTDOORS","3461","CWI, INC","GANDER OUTDOORS","GANDER OUTDOORS"," UTICA MI","","","","UTICA","MI","48315","US","US","BOWLING GREEN","KY",""]
["C008479","GANDER OUTDOORS","3462","CWI, INC","GANDER OUTDOORS","GANDER OUTDOORS"," BAXTER MN","","","","BAXTER","MN","56425","US","US","BOWLING GREEN","KY",""]
["C008479","GANDER OUTDOORS","3463","CWI, INC","GANDER OUTDOORS","GANDER OUTDOORS"," WOODBURY MN","","","","WOODBURY","MN","55129","US","US","BOWLING GREEN","KY",""]
["C008479","GANDER OUTDOORS","3464","CWI, INC","GANDER OUTDOORS","GANDER OUTDOORS"," BEMIDJI MN","","","","BEMIDJI","MN","56601","US","US","BOWLING GREEN","KY",""]
["C008479","GANDER OUTDOORS","3465","CWI, INC","GANDER OUTDOORS","GANDER OUTDOORS"," MAPLE GROVE MN","","","","MAPLE GROVE","MN","55369","US","US","BOWLING GREEN","KY",""]
["C008479","GANDER OUTDOORS","3466","CWI, INC","GANDER OUTDOORS","GANDER OUTDOORS"," FOREST LAKE MN","","","","FOREST LAKE","MN","55025","US","US","BOWLING GREEN","KY",""]
["C008479","GANDER OUTDOORS","3467","CWI, INC","GANDER OUTDOORS","GANDER OUTDOORS"," LAKEVILLE MN","","","","LAKEVILLE","MN","55044","US","US","BOWLING GREEN","KY",""]
["C008479","GANDER OUTDOORS","3468","CWI, INC","GANDER OUTDOORS","GANDER OUTDOORS"," BLAINE MN","","","","BLAINE","MN","55434","US","US","BOWLING GREEN","KY",""]
["C008479","GANDER OUTDOORS","3469","CWI, INC","GANDER OUTDOORS","GANDER OUTDOORS"," TONAWANDA NY","","","","TONAWANDA","NY","14150","US","US","BOWLING GREEN","KY",""]
["C008479","GANDER OUTDOORS","3470","CWI, INC","GANDER OUTDOORS","GANDER OUTDOORS"," FARGO ND","","","","FARGO","ND","58104","US","US","BOWLING GREEN","KY",""]
["C008479","GANDER OUTDOORS","3471","CWI, INC","GANDER OUTDOORS","GANDER OUTDOORS"," ERIE PA","","","","ERIE","PA","16565","US","US","BOWLING GREEN","KY",""]
["C008479","GANDER OUTDOORS","3472","CWI, INC","GANDER OUTDOORS","GANDER OUTDOORS"," APPLETON WI","","","","APPLETON","WI","54914","US","US","BOWLING GREEN","KY",""]
["C008479","GANDER OUTDOORS","3473","CWI, INC","GANDER OUTDOORS","GANDER OUTDOORS"," GREEN BAY WI","","","","GREEN BAY","WI","54303","US","US","BOWLING GREEN","KY",""]
["C008479","GANDER OUTDOORS","3474","CWI, INC","GANDER OUTDOORS","GANDER OUTDOORS"," SHEBOYGAN WI","","","","SHEBOYGAN","WI","53083","US","US","BOWLING GREEN","KY",""]
["C008479","GANDER OUTDOORS","3475","CWI, INC","GANDER OUTDOORS","GANDER OUTDOORS"," BROOKFIELD WI","","","","BROOKFIELD","WI","53045","US","US","BOWLING GREEN","KY",""]
["C008479","GANDER OUTDOORS","3476","CWI, INC","GANDER OUTDOORS","GANDER OUTDOORS"," EAU CLAIRE WI","","","","EAU CLAIRE","WI","54701","US","US","BOWLING GREEN","KY",""]
["C008479","GANDER OUTDOORS","3477","CWI, INC","GANDER OUTDOORS","GANDER OUTDOORS"," MADISON WI","","","","MADISON","WI","53704","US","US","BOWLING GREEN","KY",""]
["C008479","GANDER OUTDOORS","3478","CWI, INC","GANDER OUTDOORS","GANDER OUTDOORS"," GERMANTOWN WI","","","","GERMANTOWN","WI","53022","US","US","BOWLING GREEN","KY",""]
["C008479","GANDER OUTDOORS","3479","CWI, INC","GANDER OUTDOORS","GANDER OUTDOORS"," MADISON WI","","","","MADISON","WI","53719","US","US","BOWLING GREEN","KY",""]
["C008479","GANDER OUTDOORS","3480","CWI, INC","GANDER OUTDOORS","GANDER OUTDOORS"," KENOSHA WI","","","","KENOSHA","WI","53140","US","US","BOWLING GREEN","KY",""]
["C008480","EXPEDITION SUPPLY","424","20 W SUMNER ST","EXPEDITION SUPPLY","EXPEDITION SUPPLY"," HARTFORD WI","","","","HARTFORD","WI","53027","US","US","HARTFORD","WI",""]
["C008481","PELICAN SWIM & SKI CENTER","1145","PO BOX 36","PELICAN SWIM & SKI CENTER","PELICAN SWIM & SKI CENTER"," WHITEHOUSE NJ","","","","WHITEHOUSE","NJ","08888","US","US","WHITEHOUSE","NJ",""]
["C008481","PELICAN SWIM & SKI CENTER","3185","PO BOX 36","PELICAN SWIM & SKI CENTER","PELICAN SWIM & SKI CENTER"," WHITEHOUSE NJ","","","","WHITEHOUSE","NJ","08888","US","US","WHITEHOUSE","NJ",""]
["C008483","MOUNTAINSIDE SKI & SPORTS","1540","5142 TRINDLE RD","MOUNTAINSIDE SKI & SPORTS","MOUNTAINSIDE SKI & SPORTS"," MECHANICSBURG PA","","","","MECHANICSBURG","PA","17050","US","US","MECHANICSBURG","PA",""]
["C008483","MOUNTAINSIDE SKI & SPORTS","3640","5142 TRINDLE RD","MOUNTAINSIDE SKI & SPORTS","MOUNTAINSIDE SKI & SPORTS"," MECHANICSBURG PA","","","","MECHANICSBURG","PA","17050","US","US","MECHANICSBURG","PA",""]
["C008484","DARIEN SPORTS","1351","1127 POST RD","DARIEN SPORTS","DARIEN SPORTS"," DARIEN CT","","","","DARIEN","CT","06820","US","US","DARIEN","CT",""]
["C008485","CHALET SPORTS","1564","PO BOX 219","CHALET SPORTS","CHALET SPORTS"," BOZEMAN MT","","","","BOZEMAN","MT","59715","US","US","BOZEMAN","MT",""]
["C008485","CHALET SPORTS","3737","PO BOX 219","CHALET SPORTS","CHALET SPORTS"," BOZEMAN MT","","","","BOZEMAN","MT","59715","US","US","BOZEMAN","MT",""]
["C008489","PORTLAND MOUNTAIN SHOP, LLC","276","2975 NE SANDY BLVD","PORTLAND MOUNTAIN SHOP, LLC","PORTLAND MOUNTAIN SHOP, LLC"," PORTLAND OR","","","","PORTLAND","OR","97232","US","US","PORTLAND","OR",""]
["C008490","CALIFORNIA SKI COMPANY","1549","843 GILMAN STREET","CALIFORNIA SKI COMPANY","CALIFORNIA SKI COMPANY"," BERKELEY CA","","","","BERKELEY","CA","94710","US","US","BERKELEY","CA",""]
["C008491","MOUNTAIN OUTFITTERS","292","109 S MAIN","MOUNTAIN OUTFITTERS","MOUNTAIN OUTFITTERS"," WEST BEND WI","","","","WEST BEND","WI","53095","US","US","WEST BEND","WI",""]
["C008494","TAHOE DAVE'S SKIS AND BOARD","1431","PO BOX 7259","TAHOE DAVE'S SKIS AND BOARD","TAHOE DAVE'S SKIS AND BOARD"," TAHOE CITY CA","","","","TAHOE CITY","CA","96145","US","US","TAHOE CITY","CA",""]
["C008494","TAHOE DAVE'S SKIS AND BOARD","3504","PO BOX 7259","TAHOE DAVE'S SKIS AND BOARD","TAHOE DAVE'S SKIS AND BOARD"," TAHOE CITY CA","","","","TAHOE CITY","CA","96145","US","US","TAHOE CITY","CA",""]
["C008494","TAHOE DAVE'S SKIS AND BOARD","3505","PO BOX 7259","TAHOE DAVE'S SKIS AND BOARD","TAHOE DAVE'S SKIS AND BOARD"," TRUCKEE CA","","","","TRUCKEE","CA","96161","US","US","TAHOE CITY","CA",""]
["C008494","TAHOE DAVE'S SKIS AND BOARD","3506","PO BOX 7259","TAHOE DAVE'S SKIS AND BOARD","TAHOE DAVE'S SKIS AND BOARD"," KINGS BEACH CA","","","","KINGS BEACH","CA","96143","US","US","TAHOE CITY","CA",""]
["C008494","TAHOE DAVE'S SKIS AND BOARD","3507","PO BOX 7259","TAHOE DAVE'S SKIS AND BOARD","TAHOE DAVE'S SKIS AND BOARD"," OLYMPIC VALLEY CA","","","","OLYMPIC VALLEY","CA","96146","US","US","TAHOE CITY","CA",""]
["C008494","TAHOE DAVE'S SKIS AND BOARD","3508","PO BOX 7259","TAHOE DAVE'S SKIS AND BOARD","TAHOE DAVE'S SKIS AND BOARD"," TAHOE CITY CA","","","","TAHOE CITY","CA","96145","US","US","TAHOE CITY","CA",""]
["C008494","TAHOE DAVE'S SKIS AND BOARD","3509","PO BOX 7259","TAHOE DAVE'S SKIS AND BOARD","TAHOE DAVE'S SKIS AND BOARD"," TRUCKEE CA","","","","TRUCKEE","CA","96160","US","US","TAHOE CITY","CA",""]
["C008500","ALPINE SPORTS","1054","541 WEST CORDOVA","ALPINE SPORTS","ALPINE SPORTS"," SANTA FE NM","","","","SANTA FE","NM","87505","US","US","SANTA FE","NM",""]
["C008504","TRADING POST","175","PO BOX 478","TRADING POST","TRADING POST"," ENCAMPMENT WY","","","","ENCAMPMENT","WY","82325","US","US","ENCAMPMENT","WY",""]
["C008504","TRADING POST","1874","PO BOX 478","TRADING POST","TRADING POST"," ENCAMPMENT WY","","","","ENCAMPMENT","WY","82325","US","US","ENCAMPMENT","WY",""]
["C008505","OREGON MOUNTAIN COMMUNITY","862","2975 NE SANDY BLVD","OREGON MOUNTAIN COMMUNITY","OREGON MOUNTAIN COMMUNITY"," PORTLAND OR","","","","PORTLAND","OR","97232","US","US","PORTLAND","OR",""]
["C008506","COLORADO SKI SHOP INC","1425","510 ROGERS AVE","COLORADO SKI SHOP INC","COLORADO SKI SHOP INC"," WEST SPRINGFIELD MA","","","","WEST SPRINGFIELD","MA","01089","US","US","WEST SPRINGFIELD","MA",""]
["C008506","COLORADO SKI SHOP INC","3501","510 ROGERS AVE","COLORADO SKI SHOP INC","COLORADO SKI SHOP INC"," WEST SPRINGFIELD MA","","","","WEST SPRINGFIELD","MA","01089","US","US","WEST SPRINGFIELD","MA",""]
["C008506","COLORADO SKI SHOP INC","3502","510 ROGERS AVE","COLORADO SKI SHOP INC","COLORADO SKI SHOP INC"," WEST DOVER VT","","","","WEST DOVER","VT","05356","US","US","WEST SPRINGFIELD","MA",""]
["C008507","RAMSEY OUTDOOR STORE","2629","PO BOX 406","RAMSEY OUTDOOR STORE","RAMSEY OUTDOOR STORE"," RAMSEY NJ","","","","RAMSEY","NJ","07446","US","US","SUCCASUNNA","NJ",""]
["C008507","RAMSEY OUTDOOR STORE","2630","PO BOX 406","RAMSEY OUTDOOR STORE","RAMSEY OUTDOOR STORE"," RED BANK NJ","","","","RED BANK","NJ","07701","US","US","SUCCASUNNA","NJ",""]
["C008507","RAMSEY OUTDOOR STORE","830","PO BOX 406","RAMSEY OUTDOOR STORE","RAMSEY OUTDOOR STORE"," SUCCASUNNA NJ","","","","SUCCASUNNA","NJ","07876","US","US","SUCCASUNNA","NJ",""]
["C008508","MOUNTAIN WEST SPORTSYSTEM","901","2052 LAKE TAHOE BLVD","MOUNTAIN WEST SPORTSYSTEM","MOUNTAIN WEST SPORTSYSTEM"," SOUTH LAKE TAHOE CA","","","","SOUTH LAKE TAHOE","CA","96150","US","US","SOUTH LAKE TAHOE","CA",""]
["C008510","PLAY IT AGAIN SPORTS #10801","2459","160 OLD STEESE HWY","PLAY IT AGAIN SPORTS #10801","PLAY IT AGAIN SPORTS #10801"," AUBURN WA","","","","AUBURN","WA","98001","US","US","FAIRBANKS","AK",""]
["C008510","PLAY IT AGAIN SPORTS #10801","2460","160 OLD STEESE HWY","PLAY IT AGAIN SPORTS #10801","PLAY IT AGAIN SPORTS #10801"," TACOMA WA","","","","TACOMA","WA","98421","US","US","FAIRBANKS","AK",""]
["C008510","PLAY IT AGAIN SPORTS #10801","719","160 OLD STEESE HWY","PLAY IT AGAIN SPORTS #10801","PLAY IT AGAIN SPORTS #10801"," FAIRBANKS AK","","","","FAIRBANKS","AK","99701","US","US","FAIRBANKS","AK",""]
["C008512","SKI & BOW RACK","2549","BOX 730","SKI & BOW RACK","SKI & BOW RACK"," PAGOSA SPRINGS CO","","","","PAGOSA SPRINGS","CO","81147","US","US","PAGOSA SPRINGS","CO",""]
["C008512","SKI & BOW RACK","810","BOX 730","SKI & BOW RACK","SKI & BOW RACK"," PAGOSA SPRINGS CO","","","","PAGOSA SPRINGS","CO","81147","US","US","PAGOSA SPRINGS","CO",""]
["C008517","MCAFEE SKI SHOP INC","924","105 STATE RT 94","MCAFEE SKI SHOP INC","MCAFEE SKI SHOP INC"," VERNON NJ","","","","VERNON","NJ","07462","US","US","VERNON","NJ",""]
["C008518","CLARKS SKI COMPANY INC","2379","3515 SUNRISE BLVD #26","CLARKS SKI COMPANY INC","CLARKS SKI COMPANY INC"," ROSEVILLE CA","","","","ROSEVILLE","CA","95678","US","US","RANCHO CORDOVA","CA",""]
["C008518","CLARKS SKI COMPANY INC","597","3515 SUNRISE BLVD #26","CLARKS SKI COMPANY INC","CLARKS SKI COMPANY INC"," RANCHO CORDOVA CA","","","","RANCHO CORDOVA","CA","95742","US","US","RANCHO CORDOVA","CA",""]
["C008520","ALPINE SPORT SHOP","1494","PO BOX 67","ALPINE SPORT SHOP","ALPINE SPORT SHOP"," SARATOGA SPRINGS NY","","","","SARATOGA SPRINGS","NY","12866","US","US","SARATOGA SPRINGS","NY",""]
["C008520","ALPINE SPORT SHOP","3563","PO BOX 67","ALPINE SPORT SHOP","ALPINE SPORT SHOP"," SARATOGA SPRINGS NY","","","","SARATOGA SPRINGS","NY","12866","US","US","SARATOGA SPRINGS","NY",""]
["C008521","SKI WORKS INC","2101","PO BOX 600","SKI WORKS INC","SKI WORKS INC"," WEST OSSIPEE NH","","","","WEST OSSIPEE","NH","03890-0600","US","US","WEST OSSIPEE","NH",""]
["C008521","SKI WORKS INC","439","PO BOX 600","SKI WORKS INC","SKI WORKS INC"," WEST OSSIPEE NH","","","","WEST OSSIPEE","NH","03890","US","US","WEST OSSIPEE","NH",""]
["C008522","ALPINE SKI SHOP INC","1546","21999 SHAW RD","ALPINE SKI SHOP INC","ALPINE SKI SHOP INC"," STERLING VA","","","","STERLING","VA","20164","US","US","STERLING","VA",""]
["C008522","ALPINE SKI SHOP INC","9406","21999 SHAW RD","ALPINE SKI SHOP INC","ALPINE SKI SHOP INC"," Blowing Rock NC","","","","Blowing Rock","NC","28605-8300","US","US","STERLING","VA",""]
["C008524","BUSHWHACKER LTD","94","5728 N KNOXVILLE","BUSHWHACKER LTD","BUSHWHACKER LTD"," PEORIA IL","","","","PEORIA","IL","61614","US","US","PEORIA","IL",""]
["C008525","ALOHA SKI AND SNOWBOARD RENTAL","1474","R AND R SPORTS COMPANY LLC","ALOHA SKI AND SNOWBOARD RENTAL","ALOHA SKI AND SNOWBOARD RENTAL"," LITTLE ROCK AR","","","","LITTLE ROCK","AR","72202","US","US","LITTLE ROCK","AR",""]
["C008525","ALOHA SKI AND SNOWBOARD RENTAL","3535","R AND R SPORTS COMPANY LLC","ALOHA SKI AND SNOWBOARD RENTAL","ALOHA SKI AND SNOWBOARD RENTAL"," PARK CITY UT","","","","PARK CITY","UT","84068","US","US","LITTLE ROCK","AR",""]
["C008525","ALOHA SKI AND SNOWBOARD RENTAL","3536","R AND R SPORTS COMPANY LLC","ALOHA SKI AND SNOWBOARD RENTAL","ALOHA SKI AND SNOWBOARD RENTAL"," PARK CITY UT","","","","PARK CITY","UT","84060","US","US","LITTLE ROCK","AR",""]
["C008525","ALOHA SKI AND SNOWBOARD RENTAL","3537","R AND R SPORTS COMPANY LLC","ALOHA SKI AND SNOWBOARD RENTAL","ALOHA SKI AND SNOWBOARD RENTAL"," PARK CITY UT","","","","PARK CITY","UT","84098","US","US","LITTLE ROCK","AR",""]
["C008526","PELICAN SPORT CENTER INC","1319","2980 STATE ROUTE 10","PELICAN SPORT CENTER INC","PELICAN SPORT CENTER INC"," MORRIS PLAINS NJ","","","","MORRIS PLAINS","NJ","07950","US","US","MORRIS PLAINS","NJ",""]
["C008527","PLAY IT AGAIN SPORTS - SOUTH BURLINGTON #10454","401","OLD MACDONALD SPORTS INC","PLAY IT AGAIN SPORTS - SOUTH BURLINGTON #10454","PLAY IT AGAIN SPORTS - SOUTH BURLINGTON #10454"," SOUTH BURLINGTON VT","","","","SOUTH BURLINGTON","VT","05403","US","US","SOUTH BURLINGTON","VT",""]
["C008528","SKI HOUSE INC","848","1241 WILBUR AVE","SKI HOUSE INC","SKI HOUSE INC"," SOMERSET MA","","","","SOMERSET","MA","02725","US","US","SOMERSET","MA",""]
["C008529","SKIERS EDGE","1232","PO BOX 1180","SKIERS EDGE","SKIERS EDGE"," SHOW LOW AZ","","","","SHOW LOW","AZ","85901","US","US","SHOW LOW","AZ",""]
["C008529","SKIERS EDGE","3242","PO BOX 1180","SKIERS EDGE","SKIERS EDGE"," PINETOP AZ","","","","PINETOP","AZ","85935","US","US","SHOW LOW","AZ",""]
["C008531","UTE MOUNTAINEER","767","210 S. GALENA","UTE MOUNTAINEER","UTE MOUNTAINEER"," ASPEN CO","","","","ASPEN","CO","81611","US","US","ASPEN","CO",""]
["C008533","HERMITS HUT","1460","3184 BECHELLI LN","HERMITS HUT","HERMITS HUT"," REDDING CA","","","","REDDING","CA","96002","US","US","REDDING","CA",""]
["C008547","KRISTI MOUNTAIN SPORTS","2144","3223 MAIN ST","KRISTI MOUNTAIN SPORTS","KRISTI MOUNTAIN SPORTS"," ALAMOSA CO","","","","ALAMOSA","CO","81101","US","US","ALAMOSA","CO",""]
["C008547","KRISTI MOUNTAIN SPORTS","526","3223 MAIN ST","KRISTI MOUNTAIN SPORTS","KRISTI MOUNTAIN SPORTS"," ALAMOSA CO","","","","ALAMOSA","CO","81101","US","US","ALAMOSA","CO",""]
["C008560","LOFT - THE","711","SKI EASE","LOFT - THE","LOFT - THE"," TANNERSVILLE PA","","","","TANNERSVILLE","PA","18372","US","US","TANNERSVILLE","PA",""]
["C008565","PEDIGREE SKI SHOP","1555","355 MAMARONECK AVE","PEDIGREE SKI SHOP","PEDIGREE SKI SHOP"," WHITE PLAINS NY","","","","WHITE PLAINS","NY","10605","US","US","WHITE PLAINS","NY",""]
["C008565","PEDIGREE SKI SHOP","3652","355 MAMARONECK AVE","PEDIGREE SKI SHOP","PEDIGREE SKI SHOP"," STAMFORD CT","","","","STAMFORD","CT","06901","US","US","WHITE PLAINS","NY",""]
["C008565","PEDIGREE SKI SHOP","3653","355 MAMARONECK AVE","PEDIGREE SKI SHOP","PEDIGREE SKI SHOP"," BEDFORD HILLS NY","","","","BEDFORD HILLS","NY","10507","US","US","WHITE PLAINS","NY",""]
["C008565","PEDIGREE SKI SHOP","3654","355 MAMARONECK AVE","PEDIGREE SKI SHOP","PEDIGREE SKI SHOP"," WHITE PLAINS NY","","","","WHITE PLAINS","NY","10605","US","US","WHITE PLAINS","NY",""]
["C008567","MIDWEST MOUNTAINEERING","1446","309 CEDAR AVE S","MIDWEST MOUNTAINEERING","MIDWEST MOUNTAINEERING"," MINNEAPOLIS MN","","","","MINNEAPOLIS","MN","55454","US","US","MINNEAPOLIS","MN",""]
["C008568","PIONEER SPORTS LTD","1377","PO BOX 1968","PIONEER SPORTS LTD","PIONEER SPORTS LTD"," FRISCO CO","","","","FRISCO","CO","80443","US","US","FRISCO","CO",""]
["C008568","PIONEER SPORTS LTD","3369","PO BOX 1968","PIONEER SPORTS LTD","PIONEER SPORTS LTD"," FRISCO CO","","","","FRISCO","CO","80443","US","US","FRISCO","CO",""]
["C008575","COMPETITIVE EDGE","1090","19 NORTH ST","COMPETITIVE EDGE","COMPETITIVE EDGE"," EASTHAMPTON MA","","","","EASTHAMPTON","MA","01027-1248","US","US","EASTHAMPTON","MA",""]
["C008575","COMPETITIVE EDGE","3151","19 NORTH ST","COMPETITIVE EDGE","COMPETITIVE EDGE"," EAST LONGMEADOW MA","","","","EAST LONGMEADOW","MA","01028","US","US","EASTHAMPTON","MA",""]
["C008575","COMPETITIVE EDGE","3152","19 NORTH ST","COMPETITIVE EDGE","COMPETITIVE EDGE"," HOLYOKE MA","","","","HOLYOKE","MA","01040","US","US","EASTHAMPTON","MA",""]
["C008580","TAHOE SPORTS EXCHANGE INC.","72","THE SPORTS EXCHANGE INC.","TAHOE SPORTS EXCHANGE INC.","TAHOE SPORTS EXCHANGE INC."," TRUCKEE CA","","","","TRUCKEE","CA","96161","US","US","TRUCKEE","CA",""]
["C008595","THE SKI SHACK","233","200 MONTAGE MOUNTAIN RD","THE SKI SHACK","THE SKI SHACK"," MOOSIC PA","","","","MOOSIC","PA","18507","US","US","MOOSIC","PA",""]
["C008599","SKI FANATICS INC","892","23 VINTINNER ROAD, 6","SKI FANATICS INC","SKI FANATICS INC"," CAMPTON NH","","","","CAMPTON","NH","03223","US","US","CAMPTON","NH",""]
["C008615","COPPER MOUNTAIN","1114","ATTN: RETAIL AP","COPPER MOUNTAIN","COPPER MOUNTAIN"," FRISCO CO","","","","FRISCO","CO","80443-3250","US","US","FRISCO","CO",""]
["C008615","COPPER MOUNTAIN","3166","ATTN: RETAIL AP","COPPER MOUNTAIN","COPPER MOUNTAIN"," FRISCO CO","","","","FRISCO","CO","80443","US","US","FRISCO","CO",""]
["C008615","COPPER MOUNTAIN","3167","ATTN: RETAIL AP","COPPER MOUNTAIN","COPPER MOUNTAIN"," COPPER MOUNTAIN CO","","","","COPPER MOUNTAIN","CO","80443","US","US","FRISCO","CO",""]
["C008615","COPPER MOUNTAIN","3168","ATTN: RETAIL AP","COPPER MOUNTAIN","COPPER MOUNTAIN"," FRISCO CO","","","","FRISCO","CO","80443","US","US","FRISCO","CO",""]
["C008617","CARVERS SKI BOARD SPORTS","1457","BRAND E ENTERPRISE","CARVERS SKI BOARD SPORTS","CARVERS SKI BOARD SPORTS"," BRECKENRIDGE CO","","","","BRECKENRIDGE","CO","80424","US","US","BRECKENRIDGE","CO",""]
["C008617","CARVERS SKI BOARD SPORTS","3523","BRAND E ENTERPRISE","CARVERS SKI BOARD SPORTS","CARVERS SKI BOARD SPORTS"," BRECKENRIDGE CO","","","","BRECKENRIDGE","CO","80424","US","US","BRECKENRIDGE","CO",""]
["C008620","ANGELFIRE RESORT OPS LLC","1201","ANGELFIRE RESORT OPS LLC","ANGELFIRE RESORT OPS LLC","ANGELFIRE RESORT OPS LLC"," ANGEL FIRE NM","","","","ANGEL FIRE","NM","87710","US","US","ANGEL FIRE","NM",""]
["C008620","ANGELFIRE RESORT OPS LLC","3218","ANGELFIRE RESORT OPS LLC","ANGELFIRE RESORT OPS LLC","ANGELFIRE RESORT OPS LLC"," ANGEL FIRE NM","","","","ANGEL FIRE","NM","87710","US","US","ANGEL FIRE","NM",""]
["C008625","PLAY IT AGAIN SPORTS - TRAVERSE CITY #11275","550","NORTHLAND SPORTS LLC","PLAY IT AGAIN SPORTS - TRAVERSE CITY #11275","PLAY IT AGAIN SPORTS - TRAVERSE CITY #11275"," TRAVERSE CITY MI","","","","TRAVERSE CITY","MI","49686","US","US","TRAVERSE CITY","MI",""]
["C008630","ALS SPORTING GOODS","1211","1075 N MAIN ST","ALS SPORTING GOODS","ALS SPORTING GOODS"," LOGAN UT","","","","LOGAN","UT","84341","US","US","LOGAN","UT",""]
["C008630","ALS SPORTING GOODS","3228","1075 N MAIN ST","ALS SPORTING GOODS","ALS SPORTING GOODS"," IDAHO FALLS ID","","","","IDAHO FALLS","ID","83401","US","US","LOGAN","UT",""]
["C008630","ALS SPORTING GOODS","3229","1075 N MAIN ST","ALS SPORTING GOODS","ALS SPORTING GOODS"," LOGAN UT","","","","LOGAN","UT","84321","US","US","LOGAN","UT",""]
["C008630","ALS SPORTING GOODS","3230","1075 N MAIN ST","ALS SPORTING GOODS","ALS SPORTING GOODS"," NORTH LOGAN UT","","","","NORTH LOGAN","UT","84341","US","US","LOGAN","UT",""]
["C008633","HUGHES SKI HUT","1519","13600 HWY 99","HUGHES SKI HUT","HUGHES SKI HUT"," CHICO CA","","","","CHICO","CA","95973","US","US","CHICO","CA",""]
["C008633","HUGHES SKI HUT","3614","13600 HWY 99","HUGHES SKI HUT","HUGHES SKI HUT"," CHICO CA","","","","CHICO","CA","95926","US","US","CHICO","CA",""]
["C008636","MOUNTAIN SPORTS","558","176 E 3RD ST","MOUNTAIN SPORTS","MOUNTAIN SPORTS"," CHICO CA","","","","CHICO","CA","95928","US","US","CHICO","CA",""]
["C008653","MUDD N FLOOD LLC","329","103A BENT ST","MUDD N FLOOD LLC","MUDD N FLOOD LLC"," TAOS NM","","","","TAOS","NM","87571","US","US","TAOS","NM",""]
["C008661","AJS SKI & SPORTS","2640","SHINNERS INC","AJS SKI & SPORTS","AJS SKI & SPORTS"," STOWE VT","","","","STOWE","VT","05672","US","US","STOWE","VT",""]
["C008661","AJS SKI & SPORTS","852","SHINNERS INC","AJS SKI & SPORTS","AJS SKI & SPORTS"," STOWE VT","","","","STOWE","VT","05672","US","US","STOWE","VT",""]
["C008662","SPORTS DEN - THE","18","PERKINS SPORTS DEN INC","SPORTS DEN - THE","SPORTS DEN - THE"," MARSHFIELD WI","","","","MARSHFIELD","WI","54449","US","US","MARSHFIELD","WI",""]
["C008685","SPORTS BARN","2125","PO BOX 301","SPORTS BARN","SPORTS BARN"," YORKTOWN HEIGHTS NY","","","","YORKTOWN HEIGHTS","NY","10598","US","US","YORKTOWN HEIGHTS","NY",""]
["C008685","SPORTS BARN","482","PO BOX 301","SPORTS BARN","SPORTS BARN"," YORKTOWN HEIGHTS NY","","","","YORKTOWN HEIGHTS","NY","10598","US","US","YORKTOWN HEIGHTS","NY",""]
["C008688","WILD COUNTRY","2042","203 S LINDEN","WILD COUNTRY","WILD COUNTRY"," CHAMPAIGN IL","","","","CHAMPAIGN","IL","61820","US","US","NORMAL","IL",""]
["C008688","WILD COUNTRY","366","203 S LINDEN","WILD COUNTRY","WILD COUNTRY"," NORMAL IL","","","","NORMAL","IL","61761","US","US","NORMAL","IL",""]
["C008701","SCHEELS ALL SPORTS","5901","1551 45TH STREET SW","SCHEELS ALL SPORTS","SCHEELS ALL SPORTS"," FARGO ND","","","","FARGO","ND","58103-3255","US","US","FARGO","ND",""]
["C008701","SCHEELS ALL SPORTS","6002","1551 45TH STREET SW","SCHEELS ALL SPORTS","SCHEELS ALL SPORTS"," Saint Cloud MN","","","","Saint Cloud","MN","56301","US","US","FARGO","ND",""]
["C008701","SCHEELS ALL SPORTS","6003","1551 45TH STREET SW","SCHEELS ALL SPORTS","SCHEELS ALL SPORTS"," Fargo ND","","","","Fargo","ND","58103","US","US","FARGO","ND",""]
["C008701","SCHEELS ALL SPORTS","6004","1551 45TH STREET SW","SCHEELS ALL SPORTS","SCHEELS ALL SPORTS"," Fargo ND","","","","Fargo","ND","58103","US","US","FARGO","ND",""]
["C008701","SCHEELS ALL SPORTS","6005","1551 45TH STREET SW","SCHEELS ALL SPORTS","SCHEELS ALL SPORTS"," Appleton WI","","","","Appleton","WI","54913-8681","US","US","FARGO","ND",""]
["C008701","SCHEELS ALL SPORTS","6006","1551 45TH STREET SW","SCHEELS ALL SPORTS","SCHEELS ALL SPORTS"," Billings MT","","","","Billings","MT","59102-7361","US","US","FARGO","ND",""]
["C008701","SCHEELS ALL SPORTS","6007","1551 45TH STREET SW","SCHEELS ALL SPORTS","SCHEELS ALL SPORTS"," Cedar Falls IA","","","","Cedar Falls","IA","50613","US","US","FARGO","ND",""]
["C008701","SCHEELS ALL SPORTS","6008","1551 45TH STREET SW","SCHEELS ALL SPORTS","SCHEELS ALL SPORTS"," Colorado Springs CO","","","","Colorado Springs","CO","80921","US","US","FARGO","ND",""]
["C008701","SCHEELS ALL SPORTS","6009","1551 45TH STREET SW","SCHEELS ALL SPORTS","SCHEELS ALL SPORTS"," Minot ND","","","","Minot","ND","58701-6996","US","US","FARGO","ND",""]
["C008701","SCHEELS ALL SPORTS","6010","1551 45TH STREET SW","SCHEELS ALL SPORTS","SCHEELS ALL SPORTS"," West Des Moines IA","","","","West Des Moines","IA","50266-8127","US","US","FARGO","ND",""]
["C008701","SCHEELS ALL SPORTS","6011","1551 45TH STREET SW","SCHEELS ALL SPORTS","SCHEELS ALL SPORTS"," Eau Claire WI","","","","Eau Claire","WI","54701-8926","US","US","FARGO","ND",""]
["C008701","SCHEELS ALL SPORTS","6012","1551 45TH STREET SW","SCHEELS ALL SPORTS","SCHEELS ALL SPORTS"," Eden Prairie MN","","","","Eden Prairie","MN","55344","US","US","FARGO","ND",""]
["C008701","SCHEELS ALL SPORTS","6013","1551 45TH STREET SW","SCHEELS ALL SPORTS","SCHEELS ALL SPORTS"," Fargo ND","","","","Fargo","ND","58103-3255","US","US","FARGO","ND",""]
["C008701","SCHEELS ALL SPORTS","6014","1551 45TH STREET SW","SCHEELS ALL SPORTS","SCHEELS ALL SPORTS"," Grand Forks ND","","","","Grand Forks","ND","58201","US","US","FARGO","ND",""]
["C008701","SCHEELS ALL SPORTS","6015","1551 45TH STREET SW","SCHEELS ALL SPORTS","SCHEELS ALL SPORTS"," Great Falls MT","","","","Great Falls","MT","59405","US","US","FARGO","ND",""]
["C008701","SCHEELS ALL SPORTS","6016","1551 45TH STREET SW","SCHEELS ALL SPORTS","SCHEELS ALL SPORTS"," Coralville IA","","","","Coralville","IA","52241-2801","US","US","FARGO","ND",""]
["C008701","SCHEELS ALL SPORTS","6017","1551 45TH STREET SW","SCHEELS ALL SPORTS","SCHEELS ALL SPORTS"," Johnstown CO","","","","Johnstown","CO","80534","US","US","FARGO","ND",""]
["C008701","SCHEELS ALL SPORTS","6018","1551 45TH STREET SW","SCHEELS ALL SPORTS","SCHEELS ALL SPORTS"," Bismarck ND","","","","Bismarck","ND","58504-5721","US","US","FARGO","ND",""]
["C008701","SCHEELS ALL SPORTS","6019","1551 45TH STREET SW","SCHEELS ALL SPORTS","SCHEELS ALL SPORTS"," Lincoln NE","","","","Lincoln","NE","68516-6010","US","US","FARGO","ND",""]
["C008701","SCHEELS ALL SPORTS","6020","1551 45TH STREET SW","SCHEELS ALL SPORTS","SCHEELS ALL SPORTS"," Missoula MT","","","","Missoula","MT","59801","US","US","FARGO","ND",""]
["C008701","SCHEELS ALL SPORTS","6021","1551 45TH STREET SW","SCHEELS ALL SPORTS","SCHEELS ALL SPORTS"," Moorhead MN","","","","Moorhead","MN","56560-1921","US","US","FARGO","ND",""]
["C008701","SCHEELS ALL SPORTS","6022","1551 45TH STREET SW","SCHEELS ALL SPORTS","SCHEELS ALL SPORTS"," Omaha NE","","","","Omaha","NE","68118-4076","US","US","FARGO","ND",""]
["C008701","SCHEELS ALL SPORTS","6023","1551 45TH STREET SW","SCHEELS ALL SPORTS","SCHEELS ALL SPORTS"," Overland Park KS","","","","Overland Park","KS","66213","US","US","FARGO","ND",""]
["C008701","SCHEELS ALL SPORTS","6024","1551 45TH STREET SW","SCHEELS ALL SPORTS","SCHEELS ALL SPORTS"," Rapid City SD","","","","Rapid City","SD","57701","US","US","FARGO","ND",""]
["C008701","SCHEELS ALL SPORTS","6025","1551 45TH STREET SW","SCHEELS ALL SPORTS","SCHEELS ALL SPORTS"," Sparks NV","","","","Sparks","NV","89434","US","US","FARGO","ND",""]
["C008701","SCHEELS ALL SPORTS","6026","1551 45TH STREET SW","SCHEELS ALL SPORTS","SCHEELS ALL SPORTS"," Rochester MN","","","","Rochester","MN","55902","US","US","FARGO","ND",""]
["C008701","SCHEELS ALL SPORTS","6027","1551 45TH STREET SW","SCHEELS ALL SPORTS","SCHEELS ALL SPORTS"," Sandy UT","","","","Sandy","UT","84070","US","US","FARGO","ND",""]
["C008701","SCHEELS ALL SPORTS","6028","1551 45TH STREET SW","SCHEELS ALL SPORTS","SCHEELS ALL SPORTS"," Sioux Falls SD","","","","Sioux Falls","SD","57105-6102","US","US","FARGO","ND",""]
["C008701","SCHEELS ALL SPORTS","6029","1551 45TH STREET SW","SCHEELS ALL SPORTS","SCHEELS ALL SPORTS"," Springfield IL","","","","Springfield","IL","62711","US","US","FARGO","ND",""]
["C008701","SCHEELS ALL SPORTS","6030","1551 45TH STREET SW","SCHEELS ALL SPORTS","SCHEELS ALL SPORTS"," Saint Cloud MN","","","","Saint Cloud","MN","56301","US","US","FARGO","ND",""]
["C008701","SCHEELS ALL SPORTS","6031","1551 45TH STREET SW","SCHEELS ALL SPORTS","SCHEELS ALL SPORTS"," The Colony TX","","","","The Colony","TX","75056","US","US","FARGO","ND",""]
["C008701","SCHEELS ALL SPORTS","6032","1551 45TH STREET SW","SCHEELS ALL SPORTS","SCHEELS ALL SPORTS"," Mankato MN","","","","Mankato","MN","56001-4848","US","US","FARGO","ND",""]
["C008701","SCHEELS ALL SPORTS","6033","1551 45TH STREET SW","SCHEELS ALL SPORTS","SCHEELS ALL SPORTS"," Sioux City IA","","","","Sioux City","IA","51106","US","US","FARGO","ND",""]
["C008701","SCHEELS ALL SPORTS","6034","1551 45TH STREET SW","SCHEELS ALL SPORTS","SCHEELS ALL SPORTS"," Bismarck ND","","","","Bismarck","ND","58504","US","US","FARGO","ND",""]
["C008701","SCHEELS ALL SPORTS","6035","1551 45TH STREET SW","SCHEELS ALL SPORTS","SCHEELS ALL SPORTS"," Fargo ND","","","","Fargo","ND","58103","US","US","FARGO","ND",""]
["C008709","SKI-N-SEE","2462","1844 E FORT UNION BLVD #17","SKI-N-SEE","SKI-N-SEE"," SALT LAKE CITY UT","","","","SALT LAKE CITY","UT","84121","US","US","COTTONWOOD HEIGHTS","UT",""]
["C008709","SKI-N-SEE","2463","1844 E FORT UNION BLVD #17","SKI-N-SEE","SKI-N-SEE"," WEST VALLEY CITY UT","","","","WEST VALLEY CITY","UT","84120","US","US","COTTONWOOD HEIGHTS","UT",""]
["C008709","SKI-N-SEE","722","1844 E FORT UNION BLVD #17","SKI-N-SEE","SKI-N-SEE"," COTTONWOOD HEIGHTS UT","","","","COTTONWOOD HEIGHTS","UT","84121","US","US","COTTONWOOD HEIGHTS","UT",""]
["C008716","FIFTH SEASON","775","300 N MT SHASTA BLVD","FIFTH SEASON","FIFTH SEASON"," MOUNT SHASTA CA","","","","MOUNT SHASTA","CA","96067","US","US","MOUNT SHASTA","CA",""]
["C008719","BILL & PAULS SPORTSHAUS INC","7704","1200 E PARIS RD SE #5","BILL & PAULS SPORTSHAUS INC","BILL & PAULS SPORTSHAUS INC"," GRAND RAPIDS MI","","","","GRAND RAPIDS","MI","49546","US","US","GRAND RAPIDS","MI",""]
["C008719","BILL & PAULS SPORTSHAUS INC","7804","1200 E PARIS RD SE #5","BILL & PAULS SPORTSHAUS INC","BILL & PAULS SPORTSHAUS INC"," GRAND RAPIDS MI","","","","GRAND RAPIDS","MI","49546","US","US","GRAND RAPIDS","MI",""]
["C008719","BILL & PAULS SPORTSHAUS INC","8805","1200 E PARIS RD SE #5","BILL & PAULS SPORTSHAUS INC","BILL & PAULS SPORTSHAUS INC"," GRAND RAPIDS MI","","","","GRAND RAPIDS","MI","49546","US","US","GRAND RAPIDS","MI",""]
["C008725","VILLAGE SPORT SHOP","1334","PO BOX 173","VILLAGE SPORT SHOP","VILLAGE SPORT SHOP"," LYNDONVILLE VT","","","","LYNDONVILLE","VT","05851","US","US","LYNDONVILLE","VT",""]
["C008725","VILLAGE SPORT SHOP","3343","PO BOX 173","VILLAGE SPORT SHOP","VILLAGE SPORT SHOP"," LYNDONVILLE VT","","","","LYNDONVILLE","VT","05851","US","US","LYNDONVILLE","VT",""]
["C008727","BIKES & BOARDS","741","JMJ SPORT","BIKES & BOARDS","BIKES & BOARDS"," NEW HARTFORD NY","","","","NEW HARTFORD","NY","13413","US","US","NEW HARTFORD","NY",""]
["C008729","OUTDOOR SPORTS CENTER","995","SKI HUT INC","OUTDOOR SPORTS CENTER","OUTDOOR SPORTS CENTER"," WILTON CT","","","","WILTON","CT","06897","US","US","WILTON","CT",""]
["C008734","HICKORY & TWEED","1662","PO BOX 860","HICKORY & TWEED","HICKORY & TWEED"," ARMONK NY","","","","ARMONK","NY","10504","US","US","ARMONK","NY",""]
["C008734","HICKORY & TWEED","75","PO BOX 860","HICKORY & TWEED","HICKORY & TWEED"," ARMONK NY","","","","ARMONK","NY","10504","US","US","ARMONK","NY",""]
["C008740","DICK SONNE BIKE","1974","RTE 5A","DICK SONNE BIKE","DICK SONNE BIKE"," NEW HARTFORD NY","","","","NEW HARTFORD","NY","13413","US","US","NEW HARTFORD","NY",""]
["C008740","DICK SONNE BIKE","271","RTE 5A","DICK SONNE BIKE","DICK SONNE BIKE"," NEW HARTFORD NY","","","","NEW HARTFORD","NY","13413","US","US","NEW HARTFORD","NY",""]
["C008744","MILOSPORT LAFAYETTE","393","905 LINCOLN WAY STE 300","MILOSPORT LAFAYETTE","MILOSPORT LAFAYETTE"," AUBURN CA","","","","AUBURN","CA","95603","US","US","AUBURN","CA",""]
["C008745","RIVERBROOK BIKE & SKI","1647","PO BOX 968","RIVERBROOK BIKE & SKI","RIVERBROOK BIKE & SKI"," HAYWARD WI","","","","HAYWARD","WI","54843","US","US","HAYWARD","WI",""]
["C008745","RIVERBROOK BIKE & SKI","39","PO BOX 968","RIVERBROOK BIKE & SKI","RIVERBROOK BIKE & SKI"," HAYWARD WI","","","","HAYWARD","WI","54843","US","US","HAYWARD","WI",""]
["C008761","GOLDSMITH'S SPORTS INC.","1476","PO BOX 1874","GOLDSMITH'S SPORTS INC.","GOLDSMITH'S SPORTS INC."," BIG BEAR LAKE CA","","","","BIG BEAR LAKE","CA","92315","US","US","BIG BEAR LAKE","CA",""]
["C008761","GOLDSMITH'S SPORTS INC.","3539","PO BOX 1874","GOLDSMITH'S SPORTS INC.","GOLDSMITH'S SPORTS INC."," BIG BEAR LAKES CA","","","","BIG BEAR LAKES","CA","92315","US","US","BIG BEAR LAKE","CA",""]
["C008767","ALPINE HAUS OF WETHERSFIELD","912","942 SILAS DEANE HWY","ALPINE HAUS OF WETHERSFIELD","ALPINE HAUS OF WETHERSFIELD"," WETHERSFIELD CT","","","","WETHERSFIELD","CT","06109","US","US","WETHERSFIELD","CT",""]
["C008769","THE SKI HUT","1503","1032 EAST 4TH ST","THE SKI HUT","THE SKI HUT"," DULUTH MN","","","","DULUTH","MN","55805","US","US","DULUTH","MN",""]
["C008769","THE SKI HUT","8806","1032 EAST 4TH ST","THE SKI HUT","THE SKI HUT"," DULUTH MN","","","","DULUTH","MN","55805","US","US","DULUTH","MN",""]
["C008770","MUD SWEAT & GEARS","1554","PO BOX 1109","MUD SWEAT & GEARS","MUD SWEAT & GEARS"," ELLICOTTVILLE NY","","","","ELLICOTTVILLE","NY","14731","US","US","ELLICOTTVILLE","NY",""]
["C008770","MUD SWEAT & GEARS","3650","PO BOX 1109","MUD SWEAT & GEARS","MUD SWEAT & GEARS"," EAST AURORA NY","","","","EAST AURORA","NY","14052","US","US","ELLICOTTVILLE","NY",""]
["C008770","MUD SWEAT & GEARS","3651","PO BOX 1109","MUD SWEAT & GEARS","MUD SWEAT & GEARS"," ELLICOTTVILLE NY","","","","ELLICOTTVILLE","NY","14731","US","US","ELLICOTTVILLE","NY",""]
["C008772","MOUNTAIN WAVE","1459","PO BOX 7251","MOUNTAIN WAVE","MOUNTAIN WAVE"," BRECKENRIDGE CO","","","","BRECKENRIDGE","CO","80424","US","US","BRECKENRIDGE","CO",""]
["C008772","MOUNTAIN WAVE","3524","PO BOX 7251","MOUNTAIN WAVE","MOUNTAIN WAVE"," BRECKENRIDGE CO","","","","BRECKENRIDGE","CO","80424","US","US","BRECKENRIDGE","CO",""]
["C008778","STRATTON CORP","2860","RETAIL ADMINISTRATION","STRATTON CORP","STRATTON CORP"," SOUTH LONDONDERRY VT","","","","SOUTH LONDONDERRY","VT","05155","US","US","SOUTH LONDONDERRY","VT",""]
["C008778","STRATTON CORP","2861","RETAIL ADMINISTRATION","STRATTON CORP","STRATTON CORP"," SOUTH LONDONDERRY VT","","","","SOUTH LONDONDERRY","VT","05155","US","US","SOUTH LONDONDERRY","VT",""]
["C008778","STRATTON CORP","998","RETAIL ADMINISTRATION","STRATTON CORP","STRATTON CORP"," SOUTH LONDONDERRY VT","","","","SOUTH LONDONDERRY","VT","05155","US","US","SOUTH LONDONDERRY","VT",""]
["C008779","ARLBERG SKI & SURF SHOP","2692","283 MARGINAL WAY","ARLBERG SKI & SURF SHOP","ARLBERG SKI & SURF SHOP"," FREEPORT ME","","","","FREEPORT","ME","04032","US","US","PORTLAND","ME",""]
["C008779","ARLBERG SKI & SURF SHOP","2693","283 MARGINAL WAY","ARLBERG SKI & SURF SHOP","ARLBERG SKI & SURF SHOP"," GILFORD NH","","","","GILFORD","NH","03249","US","US","PORTLAND","ME",""]
["C008779","ARLBERG SKI & SURF SHOP","2694","283 MARGINAL WAY","ARLBERG SKI & SURF SHOP","ARLBERG SKI & SURF SHOP"," PORTLAND ME","","","","PORTLAND","ME","04104","US","US","PORTLAND","ME",""]
["C008779","ARLBERG SKI & SURF SHOP","934","283 MARGINAL WAY","ARLBERG SKI & SURF SHOP","ARLBERG SKI & SURF SHOP"," PORTLAND ME","","","","PORTLAND","ME","04101","US","US","PORTLAND","ME",""]
["C008786","FIRE ON THE MOUNTAIN","841","41 FIRST ST","FIRE ON THE MOUNTAIN","FIRE ON THE MOUNTAIN"," DOVER NH","","","","DOVER","NH","03820","US","US","DOVER","NH",""]
["C008791","MOUNTAIN VIEW SPORTS","2453","PO BOX 97","MOUNTAIN VIEW SPORTS","MOUNTAIN VIEW SPORTS"," KEYSTONE CO","","","","KEYSTONE","CO","80435","US","US","DILLON","CO",""]
["C008791","MOUNTAIN VIEW SPORTS","710","PO BOX 97","MOUNTAIN VIEW SPORTS","MOUNTAIN VIEW SPORTS"," DILLON CO","","","","DILLON","CO","80435","US","US","DILLON","CO",""]
["C008793","HELM OF SUN VALLEY","2547","1111 SARATOGA AVE","HELM OF SUN VALLEY","HELM OF SUN VALLEY"," CAPITOLA CA","","","","CAPITOLA","CA","95010","US","US","SAN JOSE","CA",""]
["C008793","HELM OF SUN VALLEY","805","1111 SARATOGA AVE","HELM OF SUN VALLEY","HELM OF SUN VALLEY"," SAN JOSE CA","","","","SAN JOSE","CA","95129","US","US","SAN JOSE","CA",""]
["C008794","LAHOUTS","2486","245 UNION ST","LAHOUTS","LAHOUTS"," LINCOLN NH","","","","LINCOLN","NH","03251","US","US","LITTLETON","NH",""]
["C008794","LAHOUTS","765","245 UNION ST","LAHOUTS","LAHOUTS"," LITTLETON NH","","","","LITTLETON","NH","03561","US","US","LITTLETON","NH",""]
["C008796","SPORTS CREEL INC","574","EAST 12505 SPRAGUE STE 102","SPORTS CREEL INC","SPORTS CREEL INC"," SPOKANE WA","","","","SPOKANE","WA","99216","US","US","SPOKANE","WA",""]
["C008799","BACP LLC SKI BARN -CO","1565","3533 MAIN AVE","BACP LLC SKI BARN -CO","BACP LLC SKI BARN -CO"," DURANGO CO","","","","DURANGO","CO","81301","US","US","DURANGO","CO",""]
["C008813","SNOWMASS SPORTS INC","1663","PO BOX 5255","SNOWMASS SPORTS INC","SNOWMASS SPORTS INC"," SNOWMASS VILLAGE CO","","","","SNOWMASS VILLAGE","CO","81615","US","US","SNOWMASS VILLAGE","CO",""]
["C008813","SNOWMASS SPORTS INC","82","PO BOX 5255","SNOWMASS SPORTS INC","SNOWMASS SPORTS INC"," SNOWMASS VILLAGE CO","","","","SNOWMASS VILLAGE","CO","81615","US","US","SNOWMASS VILLAGE","CO",""]
["C008819","SPORTSHAUS INC","1505","1126 N HIGH STREET","SPORTSHAUS INC","SPORTSHAUS INC"," BRIDGTON ME","","","","BRIDGTON","ME","04009","US","US","BRIDGTON","ME",""]
["C008823","CLIFFSIDE SKI & SPORT","44","46825 HWY 550 N","CLIFFSIDE SKI & SPORT","CLIFFSIDE SKI & SPORT"," DURANGO CO","","","","DURANGO","CO","81301","US","US","DURANGO","CO",""]
["C008826","PINEWSKIS SKI SHOP","1556","546 W MAIN ST","PINEWSKIS SKI SHOP","PINEWSKIS SKI SHOP"," ANOKA MN","","","","ANOKA","MN","55303","US","US","ANOKA","MN",""]
["C008826","PINEWSKIS SKI SHOP","3655","546 W MAIN ST","PINEWSKIS SKI SHOP","PINEWSKIS SKI SHOP"," ANOKA MN","","","","ANOKA","MN","55303","US","US","ANOKA","MN",""]
["C008830","VILLAGE SKI & SPORT NH","16","PO BOX 902","VILLAGE SKI & SPORT NH","VILLAGE SKI & SPORT NH"," LINCOLN NH","","","","LINCOLN","NH","03251","US","US","LINCOLN","NH",""]
["C008830","VILLAGE SKI & SPORT NH","1631","PO BOX 902","VILLAGE SKI & SPORT NH","VILLAGE SKI & SPORT NH"," LINCOLN NH","","","","LINCOLN","NH","03251","US","US","LINCOLN","NH",""]
["C008832","SKI IN INC","1537","2006 BOSTON RD","SKI IN INC","SKI IN INC"," WILBRAHAM MA","","","","WILBRAHAM","MA","01095","US","US","WILBRAHAM","MA",""]
["C008832","SKI IN INC","3633","2006 BOSTON RD","SKI IN INC","SKI IN INC"," EAST LONGMEADOW MA","","","","EAST LONGMEADOW","MA","01028","US","US","WILBRAHAM","MA",""]
["C008832","SKI IN INC","3634","2006 BOSTON RD","SKI IN INC","SKI IN INC"," LONGMEADOW MA","","","","LONGMEADOW","MA","01106","US","US","WILBRAHAM","MA",""]
["C008845","NICOLLET BIKE & SKI","1382","607 North River Front Drive","NICOLLET BIKE & SKI","NICOLLET BIKE & SKI"," MANKATO MN","","","","MANKATO","MN","56001","US","US","MANKATO","MN",""]
["C008846","OUTPOST SUNSPORTS","1515","OUTPOST TRADING CO","OUTPOST SUNSPORTS","OUTPOST SUNSPORTS"," FORT COLLINS CO","","","","FORT COLLINS","CO","80525","US","US","FORT COLLINS","CO",""]
["C008847","R AND R SPORTS COLORADO","1544","2222 COTTONDALE LANE, #200","R AND R SPORTS COLORADO","R AND R SPORTS COLORADO"," LITTLE ROCK AR","","","","LITTLE ROCK","AR","72202","US","US","LITTLE ROCK","AR",""]
["C008847","R AND R SPORTS COLORADO","3642","2222 COTTONDALE LANE, #200","R AND R SPORTS COLORADO","R AND R SPORTS COLORADO"," EDWARDS CO","","","","EDWARDS","CO","81632","US","US","LITTLE ROCK","AR",""]
["C008847","R AND R SPORTS COLORADO","3643","2222 COTTONDALE LANE, #200","R AND R SPORTS COLORADO","R AND R SPORTS COLORADO"," BRECKENRIDGE CO","","","","BRECKENRIDGE","CO","80424","US","US","LITTLE ROCK","AR",""]
["C008847","R AND R SPORTS COLORADO","3644","2222 COTTONDALE LANE, #200","R AND R SPORTS COLORADO","R AND R SPORTS COLORADO"," AVON CO","","","","AVON","CO","81620","US","US","LITTLE ROCK","AR",""]
["C015656","SKI AND SNOWBOARD EXPRESS","288458","Paradis Holdings Llc","SKI AND SNOWBOARD EXPRESS","SKI AND SNOWBOARD EXPRESS"," Richmond VT","","","","Richmond","VT","05477-0373","US","US","Richmond","VT",""]
["C015656","SKI AND SNOWBOARD EXPRESS","288459","Paradis Holdings Llc","SKI AND SNOWBOARD EXPRESS","SKI AND SNOWBOARD EXPRESS"," Richmond VT","","","","Richmond","VT","05477-4479","US","US","Richmond","VT",""]
["C017085","KETCHA OUTDOORS DBA PORTLAND GEAR HUB","351597","336 Black Point Rd","KETCHA OUTDOORS DBA PORTLAND GEAR HUB","KETCHA OUTDOORS DBA PORTLAND GEAR HUB"," Scarborough ME","","","","Scarborough","ME","04074-8676","US","US","Scarborough","ME",""]
["C017085","KETCHA OUTDOORS DBA PORTLAND GEAR HUB","351598","336 Black Point Rd","KETCHA OUTDOORS DBA PORTLAND GEAR HUB","KETCHA OUTDOORS DBA PORTLAND GEAR HUB"," Portland ME","","","","Portland","ME","04101-2619","US","US","Scarborough","ME",""]
["C017142","DUMMY ELASTIC CUSTOMER - IT TEST","361654","413 Pine Street","DUMMY ELASTIC CUSTOMER - IT TEST","DUMMY ELASTIC CUSTOMER - IT TEST"," Seattle WA","","","","Seattle","WA","98101","US","US","Seattle","WA",""]
["C018514","TRAIL OTTER LLC","406604","134 Main St","TRAIL OTTER LLC","TRAIL OTTER LLC"," Leicester NY","","","","Leicester","NY","14481-9659","US","US","Leicester","NY",""]
["C018514","TRAIL OTTER LLC","406605","134 Main St","TRAIL OTTER LLC","TRAIL OTTER LLC"," Leicester NY","","","","Leicester","NY","14481-9652","US","US","Leicester","NY",""]
["C024295","SKI GARB LLC","589426","540 E 1700 S Ste 102","SKI GARB LLC","SKI GARB LLC"," Clearfield UT","","","","Clearfield","UT","84015-2359","US","US","Clearfield","UT",""]
["C024296","GARY'S SHOES INC","589727","126 N Main St","GARY'S SHOES INC","GARY'S SHOES INC"," Richfield UT","","","","Richfield","UT","84701-2260","US","US","Richfield","UT",""]
["C025968","PARKS & RECREATION - ONONDAGA","648348","106 Lake Dr","PARKS & RECREATION - ONONDAGA","PARKS & RECREATION - ONONDAGA"," Liverpool NY","","","","Liverpool","NY","13088-5118","US","US","Liverpool","NY",""]
["C025968","PARKS & RECREATION - ONONDAGA","648349","106 Lake Dr","PARKS & RECREATION - ONONDAGA","PARKS & RECREATION - ONONDAGA"," Baldwinsville NY","","","","Baldwinsville","NY","13027-9667","US","US","Liverpool","NY",""]
["C027040","YMCA OF THE NORTH","685626","651 Nicollet Mall Ste 500","YMCA OF THE NORTH","YMCA OF THE NORTH"," Minneapolis MN","","","","Minneapolis","MN","55402-1609","US","US","Minneapolis","MN",""]
["C027040","YMCA OF THE NORTH","685627","651 Nicollet Mall Ste 500","YMCA OF THE NORTH","YMCA OF THE NORTH"," Lakeville MN","","","","Lakeville","MN","55044-5182","US","US","Minneapolis","MN",""]
["C031268","NEW LAND TRUST INC","870269","PO BOX 101","NEW LAND TRUST INC","NEW LAND TRUST INC"," Saranac NY","","","","Saranac","NY","12981-3224","US","US","SARANAC","NY",""]
["C031268","NEW LAND TRUST INC","870270","PO BOX 101","NEW LAND TRUST INC","NEW LAND TRUST INC"," SARANAC NY","","","","SARANAC","NY","12981","US","US","SARANAC","NY",""]
["V003768","ALPIN SALES, INC.","3901","","ALPIN SALES, INC.","ALPIN SALES, INC."," Lakewood CO","","","","Lakewood","CO","80215-7702","","US","","",""]
["V003771","BRM REPS LLC","3806","","BRM REPS LLC","BRM REPS LLC"," MINNEAPOLIS MN","","","","MINNEAPOLIS","MN","55406-2914","","US","","",""]
["V003781","LEADING EDGE SPORTS","3818","","LEADING EDGE SPORTS","LEADING EDGE SPORTS"," WOODINVILLE WA","","","","WOODINVILLE","WA","98072","","US","","",""]
["V003794","SURROUNDED BY LAKES, LLC","3835","","SURROUNDED BY LAKES, LLC","SURROUNDED BY LAKES, LLC"," MOUNT PLEASANT MI","","","","MOUNT PLEASANT","MI","48858","","US","","",""]
["V003794","SURROUNDED BY LAKES, LLC","3924","","SURROUNDED BY LAKES, LLC","SURROUNDED BY LAKES, LLC"," MT. PLEASANT MI","","","","MT. PLEASANT","MI","48858","","US","","",""]
["V003798","VELOCITY SALES","3842","","VELOCITY SALES","VELOCITY SALES"," MONTPELIER VT","","","","MONTPELIER","VT","05602","","US","","",""]
["V003798","VELOCITY SALES","3843","","VELOCITY SALES","VELOCITY SALES"," MONTPELIER VT","","","","MONTPELIER","VT","05602","","US","","",""]
["V003798","VELOCITY SALES","3929","","VELOCITY SALES","VELOCITY SALES"," MORRISVILLE VT","","","","MORRISVILLE","VT","05661","","US","","",""]
["V003798","VELOCITY SALES","3930","","VELOCITY SALES","VELOCITY SALES"," MONTPELIER VT","","","","MONTPELIER","VT","05062","","US","","",""]
["V003837","Tubbs Sales Manager","3852","","Tubbs Sales Manager","Tubbs Sales Manager","","","","","","","","","US","","",""]

{"sheet":"GlobalVariables","index":6,"n_rows":200,"n_cols":7,"rows_kept":200,"hidden":true}
["OLOFType","Tabular","V003771_Tubbs2324.xlsm","1/30/2023 2:28:17 PM"]
[" "]
["BookingCatalog","0",null,null," "," "," "]
["DateShipStart","2023/7/1",null,null," "," "," "]
["DateShipEnd","2024/5/31",null,null," "," "," "]
["ReqDateDays","-1",null,null," "," "," "]
["ReqDefaultDays","0",null,null," "," "," "]
["CancelDateDays","14",null,null," "," "," "]
["CancelDefaultDays","-1"]
["CategoryNumbers","5"]
["ShipWindowNumbers","6"]
["QtyColumns","N|O|P|Q|R|S"]
["PriceColumnName","K"]
[null,"1"]
["PONumber Regex","/[*&]/gi"]
["isPoRequired","1"]
["isPoUnique","1"]
["isPOUpper","1"]
[null," "]
[null,"0"]
[null," "]
[null," "]
{"$rows_empty":177}
[null,"Plumriver"]

{"sheet":"ShipMethods","index":7,"n_rows":0,"n_cols":0,"rows_kept":0,"hidden":true}

{"sheet":"ProductLine_Style","index":8,"n_rows":0,"n_cols":0,"rows_kept":0,"hidden":true}

{"sheet":"CellStyle","index":9,"n_rows":3,"n_cols":1,"rows_kept":3,"hidden":true}
[]
[]
["bolder10"]

{"sheet":"CategoryList","index":10,"n_rows":6,"n_cols":9,"rows_kept":6,"hidden":true}
["CategoryID","Category","ParentID","ParentCategory","CategoryRow","SKUBeginRow","SKUEndRow","SKURowNumber","IsTopLevel"]
["1","CATEGORY","","","0","0","0","83","1"]
["30","Snowshoe","1","CATEGORY","95","11","77","0","0"]
["19","Poles","1","CATEGORY","96","78","79","0","0"]
["15","Kits","1","CATEGORY","97","80","87","0","0"]
["2","Accessories","1","CATEGORY","98","88","93","0","0"]

{"sheet":"CATEGORY","index":11,"n_rows":98,"n_cols":21,"rows_kept":98,"merged":[[7,6,7,7],[8,6,8,7]]}
[{"$nulls":6}," "]
[]
[]
[]
[{"$nulls":13},"Order 1","Order 2","Order 3","Order 4","Order 5","Order 6"]
[{"$nulls":6}," "," "," ",null,"Ship To*",null,null,{"$f":"Summary!D13&\"\"","v":""},{"$f":"Summary!F13&\"\"","v":""},{"$f":"Summary!H13&\"\"","v":""},{"$f":"Summary!J13&\"\"","v":""},{"$f":"Summary!L13&\"\"","v":""},{"$f":"Summary!N13&\"\"","v":""}]
[{"$nulls":6}," "," "," ",null,"Ship Date*",null,null,{"$f":"Summary!D14","v":"2023-07-01"},{"$f":"Summary!F14","v":"00:00:00"},{"$f":"Summary!H14","v":"00:00:00"},{"$f":"Summary!J14","v":"00:00:00"},{"$f":"Summary!L14","v":"00:00:00"},{"$f":"Summary!N14","v":"00:00:00"}]
[{"$nulls":6}," Total CATEGORY Units",null,{"$f":"SUM(T11:T93)","v":0}," ","PO Number*",null,null,{"$f":"Summary!D15&\"\"","v":""},{"$f":"Summary!F15&\"\"","v":""},{"$f":"Summary!H15&\"\"","v":""},{"$f":"Summary!J15&\"\"","v":""},{"$f":"Summary!L15&\"\"","v":""},{"$f":"Summary!N15&\"\"","v":""}]
[{"$nulls":6},"Total CATEGORY Order Value",null,{"$f":"SUM(N9:S9)","v":{"v":0,"d":"0.00"}},"USD","Sub-Totals",null,null,{"$f":"SUMPRODUCT(K11:K93,N11:N93)","v":{"v":0,"d":"0.00"}},{"$f":"SUMPRODUCT(K11:K93,O11:O93)","v":{"v":0,"d":"0.00"}},{"$f":"SUMPRODUCT(K11:K93,P11:P93)","v":{"v":0,"d":"0.00"}},{"$f":"SUMPRODUCT(K11:K93,Q11:Q93)","v":{"v":0,"d":"0.00"}},{"$f":"SUMPRODUCT(K11:K93,R11:R93)","v":{"v":0,"d":"0.00"}},{"$f":"SUMPRODUCT(K11:K93,S11:S93)","v":{"v":0,"d":"0.00"}},"USD"]
[null,"CategoryID","SKU","UPC","Product Category","SKU","UPC","Description","Color","Size","Price WS","MAP","Order History","Order 1","Order 2","Order 3","Order 4","Order 5","Order 6","Total Units","Total Value"]
["","Tubbs2324","30","X1901001","Snowshoe","X190100101250","886745820246","MOUNTAINEER","Green (1262)","25",{"v":173,"d":"173.00"},269.95,"",{"$nulls":6},{"$f":"SUM(N11:S11)","v":0},{"$f":"SUMPRODUCT(K11:K11,T11:T11)","v":{"v":0,"d":"0.00"}}]
["","Tubbs2324","30","X1901001","Snowshoe","X190100101300","886745819899","MOUNTAINEER","Green (1262)","30",{"v":173,"d":"173.00"},269.95,"",{"$nulls":6},0,{"v":0,"d":"0.00"}]
["","Tubbs2324","30","X1901001","Snowshoe","X190100101360","886745820154","MOUNTAINEER","Green (1262)","36",{"v":173,"d":"173.00"},269.95,"",{"$nulls":6},0,{"v":0,"d":"0.00"}]
["","Tubbs2324","30","X1901001","Snowshoe","X19010010121W","886745820260","MOUNTAINEER","Purple (1429)","21 W",{"v":173,"d":"173.00"},269.95,"",{"$nulls":6},0,{"v":0,"d":"0.00"}]
["","Tubbs2324","30","X1901001","Snowshoe","X19010010125W","886745819981","MOUNTAINEER","Purple (1429)","25 W",{"v":173,"d":"173.00"},269.95,"",{"$nulls":6},0,{"v":0,"d":"0.00"}]
["","Tubbs2324","30","X1901001","Snowshoe","X19010010130W","886745886082","MOUNTAINEER","Purple (1429)","30 W",{"v":173,"d":"173.00"},269.95,"",{"$nulls":6},0,{"v":0,"d":"0.00"}]
["","Tubbs2324","30","X2201002","Snowshoe","X220100201250","886745975083","FLEX VRT","Yellow (1557)","25",{"v":173,"d":"173.00"},279.95,"",{"$nulls":6},0,{"v":0,"d":"0.00"}]
["","Tubbs2324","30","X2201002","Snowshoe","X220100201290","886745975748","FLEX VRT","Yellow (1557)","29",{"v":173,"d":"173.00"},279.95,"",{"$nulls":6},0,{"v":0,"d":"0.00"}]
["","Tubbs2324","30","X2201003","Snowshoe","X22010030121W","886745975304","FLEX VRT","Coral (1176)","21 W",{"v":173,"d":"173.00"},279.95,"",{"$nulls":6},0,{"v":0,"d":"0.00"}]
["","Tubbs2324","30","X2201003","Snowshoe","X22010030125W","886745974130","FLEX VRT","Coral (1176)","25 W",{"v":173,"d":"173.00"},279.95,"",{"$nulls":6},0,{"v":0,"d":"0.00"}]
["","Tubbs2324","30","X2201004","Snowshoe","X220100401250","886745974628","FLEX ALP","White (1532)","25",{"v":160,"d":"160.00"},259.95,"",{"$nulls":6},0,{"v":0,"d":"0.00"}]
["","Tubbs2324","30","X2201004","Snowshoe","X220100401290","886745975687","FLEX ALP","White (1532)","29",{"v":160,"d":"160.00"},259.95,"",{"$nulls":6},0,{"v":0,"d":"0.00"}]
["","Tubbs2324","30","X2201005","Snowshoe","X22010050121W","886745974444","FLEX ALP","Lime Green (1333)","21 W",{"v":160,"d":"160.00"},259.95,"",{"$nulls":6},0,{"v":0,"d":"0.00"}]
["","Tubbs2324","30","X2201005","Snowshoe","X22010050125W","886745974765","FLEX ALP","Lime Green (1333)","25 W",{"v":160,"d":"160.00"},259.95,"",{"$nulls":6},0,{"v":0,"d":"0.00"}]
["","Tubbs2324","30","X1801015","Snowshoe","X180101501250","886745780175","PANORAMIC","Black/Red (1044)","25",{"v":167,"d":"167.00"},249.95,"",{"$nulls":6},0,{"v":0,"d":"0.00"}]
["","Tubbs2324","30","X1801015","Snowshoe","X180101501300","886745780205","PANORAMIC","Black/Red (1044)","30",{"v":167,"d":"167.00"},249.95,"",{"$nulls":6},0,{"v":0,"d":"0.00"}]
["","Tubbs2324","30","X1801015","Snowshoe","X180101501360","886745780083","PANORAMIC","Black/Red (1044)","36",{"v":167,"d":"167.00"},249.95,"",{"$nulls":6},0,{"v":0,"d":"0.00"}]
["","Tubbs2324","30","X1801015","Snowshoe","X18010150121W","886745780267","PANORAMIC","Grey/Ice Blue (1276)","21 W",{"v":167,"d":"167.00"},249.95,"",{"$nulls":6},0,{"v":0,"d":"0.00"}]
["","Tubbs2324","30","X1801015","Snowshoe","X18010150125W","886745779988","PANORAMIC","Grey/Ice Blue (1276)","25 W",{"v":167,"d":"167.00"},249.95,"",{"$nulls":6},0,{"v":0,"d":"0.00"}]
["","Tubbs2324","30","X1801015","Snowshoe","X18010150130W","886745886174","PANORAMIC","Grey/Ice Blue (1276)","30 W",{"v":167,"d":"167.00"},249.95,"",{"$nulls":6},0,{"v":0,"d":"0.00"}]
["","Tubbs2324","30","X2201008","Snowshoe","X220100801250","886745975724","WILDERNESS","Black (1013)","25",{"v":136,"d":"136.00"},219.95,"",{"$nulls":6},0,{"v":0,"d":"0.00"}]
["","Tubbs2324","30","X2201008","Snowshoe","X220100801300","886745975113","WILDERNESS","Black (1013)","30",{"v":136,"d":"136.00"},219.95,"",{"$nulls":6},0,{"v":0,"d":"0.00"}]
["","Tubbs2324","30","X2201008","Snowshoe","X220100801360","886745974871","WILDERNESS","Black (1013)","36",{"v":136,"d":"136.00"},219.95,"",{"$nulls":6},0,{"v":0,"d":"0.00"}]
["","Tubbs2324","30","X2201008","Snowshoe","X220100802250","886745974550","WILDERNESS","Blue (1119)","25",{"v":136,"d":"136.00"},219.95,"",{"$nulls":6},0,{"v":0,"d":"0.00"}]
["","Tubbs2324","30","X2201008","Snowshoe","X220100802300","886745975632","WILDERNESS","Blue (1119)","30",{"v":136,"d":"136.00"},219.95,"",{"$nulls":6},0,{"v":0,"d":"0.00"}]
["","Tubbs2324","30","X2201008","Snowshoe","X220100802360","886745975885","WILDERNESS","Blue (1119)","36",{"v":136,"d":"136.00"},219.95,"",{"$nulls":6},0,{"v":0,"d":"0.00"}]
["","Tubbs2324","30","X2201009","Snowshoe","X22010090121W","886745975977","WILDERNESS","No Color (1398)","21 W",{"v":136,"d":"136.00"},219.95,"",{"$nulls":6},0,{"v":0,"d":"0.00"}]
["","Tubbs2324","30","X2201009","Snowshoe","X22010090125W","886745975779","WILDERNESS","No Color (1398)","25 W",{"v":136,"d":"136.00"},219.95,"",{"$nulls":6},0,{"v":0,"d":"0.00"}]
["","Tubbs2324","30","X2201009","Snowshoe","X22010090130W","886745974260","WILDERNESS","No Color (1398)","30 W",{"v":136,"d":"136.00"},219.95,"",{"$nulls":6},0,{"v":0,"d":"0.00"}]
["","Tubbs2324","30","X1801020","Snowshoe","X180102001240","886745780397","FLEX RDG","Black/Green (1018)","24",{"v":124,"d":"124.00"},189.95,"",{"$nulls":6},0,{"v":0,"d":"0.00"}]
["","Tubbs2324","30","X1801020","Snowshoe","X18010200122W","886745779971","FLEX RDG","Black/Blue (1028)","22 W",{"v":124,"d":"124.00"},189.95,"",{"$nulls":6},0,{"v":0,"d":"0.00"}]
["","Tubbs2324","30","X2201006","Snowshoe","X220100601240","886745974987","FLEX TRK","No Color (1398)","24",{"v":105,"d":"105.00"},169.95,"",{"$nulls":6},0,{"v":0,"d":"0.00"}]
["","Tubbs2324","30","X2201007","Snowshoe","X22010070122W","886745974772","FLEX TRK","Khaki (1317)","22 W",{"v":105,"d":"105.00"},169.95,"",{"$nulls":6},{"$f":"SUM(N43:S43)","v":0},{"$f":"SUMPRODUCT(K43:K43,T43:T43)","v":{"v":0,"d":"0.00"}}]
["","Tubbs2324","30","X2001004","Snowshoe","X200100401250","886745883111","WAYFINDER","Red/Black (1450)","25",{"v":125,"d":"125.00"},189.95,"",{"$nulls":6},0,{"v":0,"d":"0.00"}]
["","Tubbs2324","30","X2001004","Snowshoe","X200100401300","886745882978","WAYFINDER","Red/Black (1450)","30",{"v":125,"d":"125.00"},189.95,"",{"$nulls":6},0,{"v":0,"d":"0.00"}]
["","Tubbs2324","30","X2001004","Snowshoe","X200100401360","886745884118","WAYFINDER","Red/Black (1450)","36",{"v":125,"d":"125.00"},189.95,"",{"$nulls":6},0,{"v":0,"d":"0.00"}]
["","Tubbs2324","30","X2001004","Snowshoe","X20010040121W","886745884040","WAYFINDER","Purple (1429)","21 W",{"v":125,"d":"125.00"},189.95,"",{"$nulls":6},0,{"v":0,"d":"0.00"}]
["","Tubbs2324","30","X2001004","Snowshoe","X20010040125W","886745884064","WAYFINDER","Purple (1429)","25 W",{"v":125,"d":"125.00"},189.95,"",{"$nulls":6},0,{"v":0,"d":"0.00"}]
["","Tubbs2324","30","X2301005","Snowshoe","X230100501250","196222143288","FRONTIER","Black (1013)","25",{"v":111,"d":"111.00"},179.95,"",{"$nulls":6},0,{"v":0,"d":"0.00"}]
["","Tubbs2324","30","X2301005","Snowshoe","X230100501300","196222143202","FRONTIER","Black (1013)","30",{"v":111,"d":"111.00"},179.95,"",{"$nulls":6},0,{"v":0,"d":"0.00"}]
["","Tubbs2324","30","X2301005","Snowshoe","X230100501360","196222140911","FRONTIER","Black (1013)","36",{"v":111,"d":"111.00"},179.95,"",{"$nulls":6},0,{"v":0,"d":"0.00"}]
["","Tubbs2324","30","X2301006","Snowshoe","X23010060121W","196222143752","FRONTIER","Gray (1238)","21 W",{"v":111,"d":"111.00"},179.95,"",{"$nulls":6},0,{"v":0,"d":"0.00"}]
["","Tubbs2324","30","X2301006","Snowshoe","X23010060125W","196222141734","FRONTIER","Gray (1238)","25 W",{"v":111,"d":"111.00"},179.95,"",{"$nulls":6},0,{"v":0,"d":"0.00"}]
["","Tubbs2324","30","X2301006","Snowshoe","X23010060130W","196222140706","FRONTIER","Gray (1238)","30 W",{"v":111,"d":"111.00"},179.95,"",{"$nulls":6},0,{"v":0,"d":"0.00"}]
["","Tubbs2324","30","X1901002","Snowshoe","X190100201250","886745819967","XPLORE","Silver/Blue (1481)","25",{"v":93,"d":"93.00"},134.95,"",{"$nulls":6},0,{"v":0,"d":"0.00"}]
["","Tubbs2324","30","X1901002","Snowshoe","X190100201300","886745819875","XPLORE","Silver/Blue (1481)","30",{"v":93,"d":"93.00"},134.95,"",{"$nulls":6},0,{"v":0,"d":"0.00"}]
["","Tubbs2324","30","X1901002","Snowshoe","X19010020121W","886745820086","XPLORE","Rasberry Red (1443)","21 W",{"v":93,"d":"93.00"},134.95,"",{"$nulls":6},0,{"v":0,"d":"0.00"}]
["","Tubbs2324","30","X1901002","Snowshoe","X19010020125W","886745819882","XPLORE","Rasberry Red (1443)","25 W",{"v":93,"d":"93.00"},134.95,"",{"$nulls":6},0,{"v":0,"d":"0.00"}]
["","Tubbs2324","30","X1701002","Snowshoe","X170100201240","886745700876","FLEX ESC 24","Cyan/Black (1184)","24",{"v":87,"d":"87.00"},129.95,"",{"$nulls":6},0,{"v":0,"d":"0.00"}]
["","Tubbs2324","30","X1901010","Snowshoe","X1901010018","886745838258","FLEX ESC XL","Cyan/Black (1184)","XL",{"v":87,"d":"87.00"},129.95,"",{"$nulls":6},0,{"v":0,"d":"0.00"}]
["","Tubbs2324","30","X1701001","Snowshoe","X170100101220","886745696551","FLEX ESC 22 W","Cyan/Black (1184)","22",{"v":87,"d":"87.00"},129.95,"",{"$nulls":6},0,{"v":0,"d":"0.00"}]
["","Tubbs2324","30","X1701013","Snowshoe","X170101301240","886745698302","FLEX STP 24","Black/Red (1044)","24",{"v":68,"d":"68.00"},99.95,"",{"$nulls":6},0,{"v":0,"d":"0.00"}]
["","Tubbs2324","30","X1901009","Snowshoe","X1901009018","886745838333","FLEX STP XL","Black/Red (1044)","XL",{"v":68,"d":"68.00"},99.95,"",{"$nulls":6},0,{"v":0,"d":"0.00"}]
["","Tubbs2324","30","X1701012","Snowshoe","X170101201220","886745697169","FLEX STP 22 W","Black/Teal (1047)","22",{"v":68,"d":"68.00"},99.95,"",{"$nulls":6},0,{"v":0,"d":"0.00"}]
["","Tubbs2324","30","X2301012","Snowshoe","X230101201170","196222145084","ECLIPSE","Black (1013)","17",{"v":72,"d":"72.00"},119.95,"",{"$nulls":6},0,{"v":0,"d":"0.00"}]
["","Tubbs2324","30","X2301012","Snowshoe","X230101201210","196222145060","ECLIPSE","Black (1013)","21",{"v":90,"d":"90.00"},149.95,"",{"$nulls":6},0,{"v":0,"d":"0.00"}]
["","Tubbs2324","30","X2301012","Snowshoe","X230101201250","196222145039","ECLIPSE","Black (1013)","25",{"v":90,"d":"90.00"},149.95,"",{"$nulls":6},0,{"v":0,"d":"0.00"}]
["","Tubbs2324","30","X2301012","Snowshoe","X230101202210","196222145350","ECLIPSE","Blue (1119)","21",{"v":90,"d":"90.00"},149.95,"",{"$nulls":6},0,{"v":0,"d":"0.00"}]
["","Tubbs2324","30","X2301012","Snowshoe","X230101202250","196222145329","ECLIPSE","Blue (1119)","25",{"v":90,"d":"90.00"},149.95,"",{"$nulls":6},0,{"v":0,"d":"0.00"}]
["","Tubbs2324","30","X2201012","Snowshoe","X220101201220","886745975205","FLEX HKE","No Color (1398)","22",{"v":62,"d":"62.00"},99.95,"",{"$nulls":6},0,{"v":0,"d":"0.00"}]
["","Tubbs2324","30","X2201013","Snowshoe","X220101301210","886745975403","GLACIER","No Color (1398)","21",{"v":62,"d":"62.00"},99.95,"",{"$nulls":6},0,{"v":0,"d":"0.00"}]
["","Tubbs2324","30","X1801021","Snowshoe","X180102101190","886745780182","STORM","Teal (1501)","19",{"v":56,"d":"56.00"},84.95,"",{"$nulls":6},0,{"v":0,"d":"0.00"}]
["","Tubbs2324","30","X1901008","Snowshoe","X1901008010","886745837251","STORM","Purple (1429)","1SZ",{"v":56,"d":"56.00"},84.95,"",{"$nulls":6},0,{"v":0,"d":"0.00"}]
["","Tubbs2324","30","X1301010","Snowshoe","X130101001170","886745169901","FLEX JR","Cyan/Black (1184)","17",{"v":44,"d":"44.00"},64.95,"",{"$nulls":6},0,{"v":0,"d":"0.00"}]
["","Tubbs2324","30","X1401010","Snowshoe","X140101001160","886745300298","SNOWGLOW","Pearl/Glow (1419)","16",{"v":37,"d":"37.00"},54.95,"",{"$nulls":6},{"$f":"SUM(N75:S75)","v":0},{"$f":"SUMPRODUCT(K75:K75,T75:T75)","v":{"v":0,"d":"0.00"}}]
["","Tubbs2324","30","X2001001","Snowshoe","X200100101160","886745883715","SNOWBALL","No Color (1398)","16",{"v":34,"d":"34.00"},49.95,"",{"$nulls":6},0,{"v":0,"d":"0.00"}]
["","Tubbs2324","30","X1601032","Snowshoe","X160103201140","886745596479","SNOWFLAKE","Red/Yellow/Blue (1456)","14",{"v":28,"d":"28.00"},39.95,"",{"$nulls":6},0,{"v":0,"d":"0.00"}]
["","Tubbs2324","19","X2202001","Poles","X2202001010","886745995531","TUBBS TRAIL WALKING POLES- 2 PC","No Color (1398)","1SZ",{"v":30,"d":"30.00"},49.95,"",{"$nulls":6},0,{"v":0,"d":"0.00"}]
["","Tubbs2324","19","X2202002","Poles","X2202002010","886745995548","TUBBS DAY HIKING POLES- 3 PC","No Color (1398)","1SZ",{"v":42,"d":"42.00"},69.95,"",{"$nulls":6},0,{"v":0,"d":"0.00"}]
["","Tubbs2324","15","X2201015","Kits","X22010150122W","886745991731","FLEX TRK KIT","No Color (1398)","22 W",{"v":142,"d":"142.00"},229.95,"",{"$nulls":6},0,{"v":0,"d":"0.00"}]
["","Tubbs2324","15","X2201015","Kits","X220101501240","886745991724","FLEX TRK KIT","No Color (1398)","24",{"v":142,"d":"142.00"},229.95,"",{"$nulls":6},0,{"v":0,"d":"0.00"}]
["","Tubbs2324","15","X1901006","Kits","X190100601250","886745820079","XPLORE KIT","Silver/Blue (1481)","25",{"v":123,"d":"123.00"},184.95,"",{"$nulls":6},0,{"v":0,"d":"0.00"}]
["","Tubbs2324","15","X1901006","Kits","X190100601300","886745819868","XPLORE KIT","Silver/Blue (1481)","30",{"v":123,"d":"123.00"},184.95,"",{"$nulls":6},0,{"v":0,"d":"0.00"}]
["","Tubbs2324","15","X1901006","Kits","X19010060121W","886745819950","XPLORE KIT","Rasberry Red (1443)","21 W",{"v":123,"d":"123.00"},184.95,"",{"$nulls":6},0,{"v":0,"d":"0.00"}]
["","Tubbs2324","15","X1901006","Kits","X19010060125W","886745820109","XPLORE KIT","Rasberry Red (1443)","25 W",{"v":123,"d":"123.00"},184.95,"",{"$nulls":6},0,{"v":0,"d":"0.00"}]
["","Tubbs2324","15","X1701016","Kits","X170101601220","886745719908","FLEX STP KIT 22 W","Black/Teal (1047)","22",{"v":105,"d":"105.00"},149.95,"",{"$nulls":6},0,{"v":0,"d":"0.00"}]
["","Tubbs2324","15","X1701017","Kits","X170101701240","886745719847","FLEX STP KIT 24","Black/Red (1044)","24",{"v":105,"d":"105.00"},149.95,"",{"$nulls":6},0,{"v":0,"d":"0.00"}]
["","Tubbs2324","2","X1303001","Accessories","X1303001010","886745169932","TUBBS SNOWSHOE HOLSTER","Black (1013)","1SZ",{"v":18,"d":"18.00"},26.95,"",{"$nulls":6},0,{"v":0,"d":"0.00"}]
["","Tubbs2324","2","X1050019","Accessories","X10500192","714636638529","SNOWSHOE_BAG","Gray (1238)","S",{"v":27,"d":"27.00"},39.95,"",{"$nulls":6},0,{"v":0,"d":"0.00"}]
["","Tubbs2324","2","X1050019","Accessories","X10500194","714636638536","SNOWSHOE_BAG","Gray (1238)","M",{"v":27,"d":"27.00"},39.95,"",{"$nulls":6},0,{"v":0,"d":"0.00"}]
["","Tubbs2324","2","X1050019","Accessories","X10500196","714636638543","SNOWSHOE_BAG","Gray (1238)","L",{"v":27,"d":"27.00"},39.95,"",{"$nulls":6},0,{"v":0,"d":"0.00"}]
["","Tubbs2324","2","X1203001","Accessories","X1203001010","714636952946","WOMENS SNOWSHOE GAITERS","Black/Gray (1034)","1SZ",{"v":21,"d":"21.00"},29.95,"",{"$nulls":6},0,{"v":0,"d":"0.00"}]
["","Tubbs2324","2","X1203002","Accessories","X1203002010","886745011101","MENS SNOWSHOE GAITERS","Black (1013)","1SZ",{"v":21,"d":"21.00"},29.95,"",{"$nulls":6},0,{"v":0,"d":"0.00"}]
["","","","","","","","","","","","","","","","","","","","",""]
["","30","","","Snowshoe","","","","","","","","",{"$f":"SUM(N11:N77)","v":0},0,0,0,0,0,0,{"v":0,"d":"0.00"}]
["","19","","","Poles","","","","","","","","",{"$f":"SUM(N78:N79)","v":0},0,0,0,0,0,0,{"v":0,"d":"0.00"}]
["","15","","","Kits","","","","","","","","",{"$f":"SUM(N80:N87)","v":0},0,0,0,0,0,0,{"v":0,"d":"0.00"}]
["","2","","","Accessories","","","","","","","","",{"$f":"SUM(N88:N93)","v":0},0,0,0,0,0,0,{"v":0,"d":"0.00"}]

{"sheet":"HistoryData","index":12,"n_rows":1,"n_cols":3,"rows_kept":1,"hidden":true}
["SKU","Description","History Quantity"]

{"sheet":"Instructions","index":13,"n_rows":57,"n_cols":1,"rows_kept":57}
[]
[]
["Offline Order Tool Instructions:"]
[]
["SUMMARY TAB"]
["Mandatory Fields:"]
["1. ACCOUNT NUMBER: Enter the Account Number of the retailer in the Account No. field."]
["2. SHIP TO: Select a Ship To Number for each Ship Date entered"]
["3. SHIP DATE:  Enter one or more Ship Dates (make sure to tab off the date to accept the date entry.)  NOTE: You may have the same Ship Date in multiple columns"]
["4. PO NUMBER: Enter a PO Number for each Ship Date  (Note: PO Number must be unique for each ship date)"]
["Optional Fields:"]
["1. COMMENTS: Any notes or comments can be entered here"]
["2. DEADLINE: If you wish to have the deadlines populated in the tool"]
["3. REQUESTED DELIVER DATE: to inform the user of the CRD for the season"]
["Notes:"]
["1.  Summary information MUST BE populated before entering quantities into the the product tabs.  All tab columns are protected until Ship dates are entered"]
["2.  All gray fields in the Summary tab are auto-populated fields and cannot be edited by the user."]
["3.  Ship dates dictate when a product can be ordered and will \"un-protect\" the columns in the product tabs"]
[]
["PRODUCT TABS"]
["Mandatory Fields:"]
["1. None"]
["Notes:"]
["1.  To search for a specific product within the workbook - do a ctrl F, Click on OPTIONS, Type in the product in the \"Find What\" field, Select WORKBOOK in the \"Within\" field"]
[]
[]
["UPLOAD TAB"]
["TWO Options To upload the Spreadsheet... "]
["1. Upload from your saved file"]
["i.  Once you have saved your spreadsheet to your computer, make sure that you close the spreadsheet.  You will receive an error when trying to load the spreadsheet if it is opened."]
["ii.  Login "]
["iii. Go to the Product Catalog page and select the Quick Web Order tab.  Click on the Upload link at the bottom of the page."]
["iv.  Add files from your computer and then Start Upload."]
["v.  If there are no problems with your order(s), they will be listed as a Working Order for the Customer.  "]
["vi.  If any issues are present you will receive an email message detailing the issues.  You can make necessary corrections and upload the spreadsheet again."]
[]
["2. Use the Upload Tab format"]
["i.  Once you have saved your spreadsheet, go to the UPLOAD tab to upload your order"]
["ii. Filter the delivery to upload by clicking on the blue filter button above the column to upload.  (this command eliminates all 0 qty)"]
["iii. Copy the UPC and qty and paste into the QUICK WEB ORDER screen "]
["    To upload an addiotnal delivery YOU MUST…."]
["i. Unfilter the previous delivery by selecting the red unfilter button above the column that is filtered."]
["ii.  Filter the new delivery by clicking on the filter button above the new column to be uploaded."]
[]
[]
[]
["2. Set Macro Security (from the menu at the top of the page)"]
["a. Developer, Macro Security, Macro Settings, select radio button for \"Enable All Macros\" "]
["b. Click OK"]
["d. Close and then re-open the Offline Order Form"]
[]
["3. If after making the above Macro Security Setting change you are still unable to see Customer's address, Ship Date Comment, Ship To popup etc, then from the top of the page,"]
["a. Select Office 2007 button, Choose Excel Options, Select Ad-ins"]
["b. Near bottom of page for Manage drop-down select  \"Excel Add-ins\", and click GO"]
["c. Select \" Analysis Tool Pack\" and \"Analysis Tool Pack – VBA\" from list"]
["d. Click OK"]
["e. Close and then re-open the Offline Order Form"]